{"text_format":"1","workbook":"xlsx","n_sheets":11,"sheets":["Utilitaire","Accueil","Description","Détail des projets","GES","Indicateurs","Évaluation","Commentaires","Validation","Modalités de fin du PACC","Prochain Exercice-Commentaire"],"not_rendered":{"charts":0,"images":10,"macros":1,"external_links":0,"defined_names":480,"comments":2,"pivot_tables":0},"unopened":[],"bounds":{"document_bytes":16777216,"sheet_cells":100000,"rows_first":2000,"rows_last":500,"rows_between":2000,"halvings":0,"cell_chars":16384,"cell_head_chars":4096},"cells_cut":0,"cells_raw":0,"read":"whole","date_system":"1900"}

{"sheet":"Utilitaire","index":0,"n_rows":239,"n_cols":18,"rows_kept":239,"cut":false,"hidden":true,"merged":[[15,1,15,5],[15,8,15,9],[39,1,39,5]]}
[]
[]
[null,"Mot de passe:","!1320PACC","Fiche verrouillée:","Oui - diffusion en ligne"]
[null,"Fiche validée:","Oui","Fiche générée"]
[null,"GES attendu:",null,"Est-ce que le pop-up \"validation\" s'affiche:","Générée"]
[null,"Feuille accueil complètement remplie:","Oui","Exercice de suivi:","2022-03-31","Date de l'exercice:","2022-03-31"]
[null,"Statut action:",{"$f":"Accueil!D58","v":"en cours"},null,null,"Année Courante","2022-2023"]
[null,"Feuille Utilitaire visible:","Non","Titre des Onglets:","Plan d'action 2013-2020 sur les changements climatiques"]
[null,"Dernière ligne de la zone de défilement de l'onglet détail des projets:",392]
[null,"nombre d'indicateurs approuvés:",3]
[null,"Secteur:","Plan d'action 2013-2020 sur les changements climatiques"]
[null,"Numéro de séquence de l'action:",11.05,"Remplir la section Évaluation requis : ",{"$f":"IF(Utilitaire!C7=I21,\"Oui\",IF(C7=I23,\"Oui\",\"Non\"))","v":"Non"},"Première ligne masquée dans l'onglet Indicateurs : ",164]
[null,"Première ligne masquée dans l'onglet Description:",76,"Affiche onglet Évaluation:","Oui","Première ligne masquée dans l'onglet Évaluation:",51]
[]
[null,"Listes Déroulantes"]
[null,"Onglet \"Détail des projets\"",null,null,null,null,"Onglet \"Indicateurs\"","DRFM COF","Accueil"]
[null,"Région Administrative","Statut","Classification","Type d'émissions","Info GES","Type d'indicateur","Exercice de suivi","Statut de l'action","Programmes","Fiche verrouillée"]
[null,"99-toutes les régions","COVID-19 - Reporté ou prolongé","SU-Subvention","QC-Québec","Oui","Minimum à atteindre","2013-2014-1","non démarrée","Sans objet","Oui - partenaire"]
[null,"01-Bas-Saint-Laurent","COVID-19 - Suspendu","CF-Contrat fonctionnement","HQ-Hors-Québec","Non","Maximum à ne pas dépasser","2013-2014-2","en élaboration","Programme \"Faites de l'air!\"","Oui - diffusion en ligne"]
[null,"02-Saguenay- Lac-Saint-Jean","COVID-19 - Annulé","CI-Contrat immobilisation","ND-Non distingué",null,"Binaire","2014-2015-1","en cours","Programme Action-Climat Québec","Non - BGFV"]
[null,"03-Capitale-Nationale","AC-Actif","CP-Contrat service professionnel",null,null,null,"2014-2015-2","terminée","Programme Chauffez vert"]
[null,"04-Mauricie ","TE-Terminé","CT-Contrat service technique",null,null,null,"2015-2016-1","en suspens","Programme Climat municipalités - Phase 2"]
[null,"05-Estrie","AT-En attente","PI-Projet à l'interne",null,null,null,"2015-2016-2","Retirée du PACC","Programme d’aide gouvernementale à l’amélioration des services de transport en commun (PAGASTC )"]
[null,"06-Montréal","SU-Suspendu","AU-Autre",null,null,"Étape","2016-2017-1",null,"Programme d’aide gouvernementale au transport collectif des personnes (PAGTCP)"]
[null,"07-Outaouais","AN-Annulé",null,null,null,"Recherche","2016-2017-2",null,"Programme d’aide gouvernementale transitoire en matière de transport routier des personnes","Commentaires"]
[null,"08-Abitibi-Témiscamingue","AB-Abandonné",null,null,null,"Étude de cas et caractérisation des impacts des CC","2017-2018-1",null,"Programme d'aide à la réduction des émissions de gaz à effet de serre dans le transport routier des marchandises - ÉcoCamionnage","Accueil"]
[null,"09-Côte-Nord","Projet en lien avec le transport","Horizon temporel Potentiel GES",null,"Catégories","Surveillance et prévention","2017-2018-2",null,"Programme d'aide à la réhabilitation des terrains contaminés - ClimatSol-Plus - Volet 1","Description"]
[null,"10-Nord-du-Québec","Oui","À la fin du projet (suite au dernier versement)",null,"Agricole","Réalisation","2018-2019-1",null,"Programme d'aide à l'amélioration de l'efficacité du transport maritime, aérien et ferroviaire en matière de réduction des émissions de GES (PETMAF)","Détail des projets"]
[null,"11-Gaspésie-Iles-de-la-Madeleine","Non","Cinq ans après la commercialisation du produit",null,"Aménagement du territoire","Aide à la décision","2018-2019-2","Part de financement par le PACC","Programme d'aide au développement du transport collectif (PADTC)","GES"]
[null,"12-Chaudières-Appalaches",null,"Dix ans après la commercialisation du produit",null,"Bâtiment","Sensibilisation et formation","2019-2020-1","Variable","Programme d'aide aux nouvelles mobilités des personnes (NOMO)","Indicateurs"]
[null,"13-Laval",null,2030,null,"Biodiversité, écosystèmes et ressources naturelles","Cadre législatif","2019-2020-2",{"$f":"10 & \" %\"","v":"10 %"},"Programme d'aide financière au développement des transports actifs dans les périmètres urbains (TAPU)","Validation"]
[null,"14-Lanaudière",null,2040,null,"Industriel, commercial et institutionnel",null,"2020-2021-1",{"$f":"20 & \" %\"","v":"20 %"},"Programme d'aide financière pour la planification de milieux de vie durables","Tout - autres"]
[null,"15-Laurentides",null,2050,null,"Matières résiduelles",null,"2020-2021-2",{"$f":"30 & \" %\"","v":"30 %"},"Programme d'aide financière pour le compostage domestique et communautaire (ACDC)"]
[null,"16-Montérégie",null,null,null,"Reddition de comptes et partenariats",null,"2021-2022-1",{"$f":"40 & \" %\"","v":"40 %"},"Programme d'aide gouvernementale au transport collectif régional (PAGTCR)"]
[null,"17-Centre-du-Québec",null,null,null,"Santé et sécurité publique","Ajustements","2021-2022-2",{"$f":"50 & \" %\"","v":"50 %"},"Programme d'appui à la lutte contre les changements climatiques en agriculture (PALCCA)","Onglet Évaluation"]
[null,"Québec méridional",null,null,null,"Transports","Agriculture","2022-2023-1",{"$f":"60 & \" %\"","v":"60 %"},"Programme de biomasse forestière résiduelle","Type de document"]
[null,"À l'extérieur du Québec",null,null,null,"Autres","Aménagement du territoire","2022-2023-2",{"$f":"70 & \" %\"","v":"70 %"},"Programme de coopération climatique internationale (PCCI)","Cadre d'évaluation"]
[null,null,null,null,null,null,"Bâtiments et infrastructures","2023-2024-1",{"$f":"80 & \" %\"","v":"80 %"},"Programme de formation continue sur l'utilisation du bois dans la construction","Cadre de suivi d'évaluation préliminaire"]
[null,null,null,null,null,null,"Forêts","2023-2024-2",{"$f":"90 & \" %\"","v":"90 %"},"Programme de récupération et de valorisation des réfrigérateurs et congélateurs domestiques","Rapport d'évaluation"]
[null,"Onglet \"Description\"",null,null,null,null,"Industriel, commercial et institutionnel",null,{"$f":"100 & \" %\"","v":"100 %"},"Programme de soutien à la promotion de l'électrification des transports","Résultats"]
[null,"Clientèle","État d'avancement","Moyens","Finalité","COVID","Océan, fleuve ou cours d'eau",null,null,"Programme de soutien à la réalisation de projets de démonstration de taxis électriques"]
[null,"Citoyens","Nouvelle","Encadrement légal (politiques, stratégies, codes, réglementations, etc.)","Adaptation aux effets des changements climatiques","Aucun changement prévu","Politiques et gestion",null,null,"Programme de soutien à l'intégration de l'adaptation aux changements climatiques à la planification municipale (PIACC)","Type d'évaluation"]
[null,"Entreprises (grandes entreprises)","En cours","Innovation, recherche et développement","Réduction des émissions de gaz à effet de serre","Diminution des coûts prévus","Services à la population",null,null,"Programme de soutien au déploiement des autobus scolaires électriques au Québec","En cours d'action"]
[null,"Entreprises (petites ou moyennes entreprises)","Complétée","Réalisation (programmes et subventions favorisant l'exécution de solutions établies)","Réduction et adaptation","Augmentation des coûts prévus","Suivi de l'état de l'environnement",null,null,"Programme de soutien aux essais de fertilisation","Lorsque l'action est terminée"]
[null,"Établissements de recherche","Inactive","Sensibilisation, formation et promotion","Coordination","L'augmentation prévue du coûts des projets rend le budget 2013-2020 insuffisant pour garantir la réalisation de tous les projets entamés","Autres",null,null,"Programme de soutien aux municipalités dans la mise en place d'infrastructures de gestion durable des eaux de pluie à la source"]
[null,"Ministères et organismes gouvernementaux","Abandonnée",null,null,"moins d'un mois",null,null,null,"Programme de subventions à l’adaptation des taxis et des autocars interurbains pour le transport des personnes se déplaçant en fauteuil roulant"]
[null,"Municipalités et organismes municipaux",null,null,null,"de 1 à 6 mois",null,null,null,"Programme de traitement des matières organiques par biométhanisation et compostage (PTMOBC)","Recommandation"]
[null,"Organismes à but non lucratif",null,null,null,"de 7 à 12 mois",null,null,null,"Programme de vitrine technologique pour les bâtiments et les solutions innovantes en bois","Reconduire"]
[null,null,null,null,null,"plus de 12 mois",null,null,null,"Programme d'innovation en construction bois","Ne pas reconduire"]
[null,null,null,null,null,"Aucun changement","Risques",null,null,"Programme ÉcoPerformance","Voir commentaire ci-dessous"]
[null,null,null,null,null,"Retards prévus, mais les engagements seront tous pris avant le 31 décembre 2020","Biodiversité",null,null,"Programme Prime-Vert 2013-2018","Objectifs initiaux"]
[null,null,null,null,null,"Retards prévus et les engagements ne pourront pas tous être pris avant le 31 décembre 2020","Économie",null,null,"Programme Roulez vert","Oui"]
[null,null,null,null,null,"Les échéanciers pourront être devancés","Environnement",null,null,"Programme Technoclimat","Partiellement"]
[null,null,null,null,null,"Des cibles pourraient être atteintes avant les délais prévus","Ressources naturelles",null,null,"Programme visant à rendre les établissements d'enseignement écoresponsables","Non"]
[null,null,null,null,null,"Toutes les cibles devraient être atteintes dans les délais prévus","Santé et sécurité publique",null,null,"Programme visant la réduction des émissions de GES par le développement du transport intermodal (PREGTI)"]
[null,null,null,null,null,"Toutes les cibles devraient être atteintes avec certains retards","Services à la population",null,null,"Programme visant la réduction, la récupération et le recyclage des matières organiques du secteur des industries, commerces et institutions (ICI)"]
[]
[null,null,null,null,null,"Aucune cible ne pourra être atteinte",null,null,null,"Autre programme"]
[]
[]
[null,null,null,null,null,null,"Effets des changements climatiques"]
[null,null,null,null,null,null,"Dégradation d'écosystèmes"]
[null,null,null,null,null,null,"Dégradation du pergélisol"]
[null,null,null,null,null,null,"Intensification de l'érosion"]
[null,null,null,null,null,null,"Exacerbation des aléas naturels"]
[null,null,null,null,null,null,"Intensification des îlots de chaleur"]
[null,null,null,null,null,null,"Modifications des régimes hydriques, de vagues ou de glaces"]
[null,null,null,null,null,null,"Modifications des régimes de précipitations"]
[null,null,null,null,null,null,"Propagation de maladies ou d'espèces nuisibles"]
[null,null,null,null,null,null,"Qualité de l'air"]
[null,null,null,null,null,null,"Tous les effets"]
[null,null,null,null,null,null,"Autres"]
[]
[]
[]
[]
[]
[]
[]
[]
[]
[null,null,null,null,null,null,null,null,null,null,"Onglet de la fiche"]
[null,null,null,null,null,null,null,null,null,null,"Accueil"]
[null,null,null,null,null,null,null,null,null,null,"Description"]
[null,null,null,null,null,null,null,null,null,null,"Détail des projets"]
[null,null,null,null,null,null,null,null,null,null,"GES"]
[null,null,null,null,null,null,null,null,null,null,"Indicateurs"]
[null,null,null,null,null,null,null,null,null,null,"Évaluation"]
[null,null,null,null,null,null,null,null,null,null,"Commentaires"]
[]
[]
[]
[]
[]
[]
[]
[]
[]
[]
[]
[]
[]
[]
[]
[]
[]
[]
[]
[]
[]
[]
[]
[]
[]
[]
[]
[]
[]
[]
[]
[]
[]
[]
[]
[]
[]
[]
[]
[]
[]
[]
[]
[]
[]
[]
[]
[]
[]
[]
[]
[]
[]
[]
[]
[]
[]
[]
[]
[]
[]
[]
[]
[]
[]
[]
[]
[]
[]
[]
[]
[]
[]
[]
[]
[]
[]
[]
[]
[]
[]
[]
[]
[]
[]
[]
[]
[]
[]
[]
[]
[]
[]
[]
[]
[]
[]
[]
[]
[]
[]
[]
[]
[]
[]
[]
[]
[]
[]
[]
[]
[]
[]
[]
[]
[]
[]
[]
[]
[]
[]
[]
[]
[]
[]
[]
[]
[]
[]
[]
[]
[]
[]
[]
[]
[]
[null,null,null,null,null,null,null,null,null,null,"2021-2022"]
[null,"ONGLET INDICATEURS: Liste des statuts de l'action",null,null,null,null,null,null,null,null,{"$f":"IF(K226=$G$7,IF(Accueil!$D$58<>$C$239,Accueil!$D$58,IF(ISBLANK(K228),J230,K228)),K228)","v":"non démarrée"}]
[null,null,"2013-2014","2014-2015","2015-2016","2016-2017","2017-2018","2018-2019","2019-2020","2020-2021","non démarrée","2022-2023","2023-2024","2024-2025","2025-2026","2026-2027","2027-2028","2026-2029"]
[null,"Valeurs actuelles",{"$f":"IF(C228=$G$7,IF(Accueil!$D$58<>$C$239,Accueil!$D$58,IF(ISBLANK(C230),B230,C230)),C230)","v":"non démarrée"},{"$f":"IF(D228=$G$7,IF(Accueil!$D$58<>$C$239,Accueil!$D$58,IF(ISBLANK(D230),C230,D230)),D230)","v":"non démarrée"},{"$f":"IF(E228=$G$7,IF(Accueil!$D$58<>$C$239,Accueil!$D$58,IF(ISBLANK(E230),D230,E230)),E230)","v":"non démarrée"},{"$f":"IF(F228=$G$7,IF(Accueil!$D$58<>$C$239,Accueil!$D$58,IF(ISBLANK(F230),E230,F230)),F230)","v":"non démarrée"},{"$f":"IF(G228=$G$7,IF(Accueil!$D$58<>$C$239,Accueil!$D$58,IF(ISBLANK(G230),F230,G230)),G230)","v":"non démarrée"},{"$f":"IF(H228=$G$7,IF(Accueil!$D$58<>$C$239,Accueil!$D$58,IF(ISBLANK(H230),G230,H230)),H230)","v":"non démarrée"},{"$f":"IF(I228=$G$7,IF(Accueil!$D$58<>$C$239,Accueil!$D$58,IF(ISBLANK(I230),H230,I230)),I230)","v":"non démarrée"},{"$f":"IF(J228=$G$7,IF(Accueil!$D$58<>$C$239,Accueil!$D$58,IF(ISBLANK(J230),I230,J230)),J230)","v":"non démarrée"},null,{"$f":"IF(L228=$G$7,IF(Accueil!$D$58<>$C$239,Accueil!$D$58,IF(ISBLANK(L230),K228,L230)),L230)","v":"en cours"},{"$f":"IF(M228=$G$7,IF(Accueil!$D$58<>$C$239,Accueil!$D$58,IF(ISBLANK(M230),L230,M230)),M230)","v":0},{"$f":"IF(N228=$G$7,IF(Accueil!$D$58<>$C$239,Accueil!$D$58,IF(ISBLANK(N230),M230,N230)),N230)","v":0},{"$f":"IF(O228=$G$7,IF(Accueil!$D$58<>$C$239,Accueil!$D$58,IF(ISBLANK(O230),N230,O230)),O230)","v":0},{"$f":"IF(P228=$G$7,IF(Accueil!$D$58<>$C$239,Accueil!$D$58,IF(ISBLANK(P230),O230,P230)),P230)","v":0},{"$f":"IF(Q228=$G$7,IF(Accueil!$D$58<>$C$239,Accueil!$D$58,IF(ISBLANK(Q230),P230,Q230)),Q230)","v":0},{"$f":"IF(R228=$G$7,IF(Accueil!$D$58<>$C$239,Accueil!$D$58,IF(ISBLANK(R230),Q230,R230)),R230)","v":0}]
[null,"Valeurs précédentes","non démarrée","non démarrée","non démarrée","non démarrée","non démarrée","non démarrée","non démarrée","non démarrée"]
[]
[]
[null,"IdStatutAction","codeStatutAction","valeurStatutAction","rangStatut"]
[null,1,{"$f":"I18","v":"non démarrée"},0,1]
[null,2,{"$f":"I19","v":"en élaboration"},0,2]
[null,3,"en cours",0.5,3]
[null,4,"terminée",1,4]
[null,5,"en suspens",0,5]
[null,6,"Retirée du PACC",0,6]

{"sheet":"Accueil","index":1,"n_rows":85,"n_cols":11,"rows_kept":85,"cut":false,"hidden":false,"merged":[[84,1,84,12],[1,4,2,12],[67,1,67,2],[57,1,57,2],[31,1,31,9],[66,3,66,6],[66,8,66,9],[66,1,66,2],[65,3,65,6],[53,4,53,11],[53,1,53,2],[55,3,55,11],[64,3,64,6],[65,10,65,11],[64,10,64,11],[57,3,57,11],[66,10,66,11],[65,1,65,2],[65,8,65,9],[62,3,62,4],[64,1,64,2],[62,1,62,2],[58,3,58,11],[64,8,64,9],[58,1,58,2],[30,1,30,12],[55,1,55,2],[31,10,31,12],[51,1,51,2],[52,1,52,2],[54,4,54,11],[51,4,51,11],[52,4,52,11],[56,1,56,2],[56,3,56,10],[49,1,49,12],[4,1,5,12],[54,1,54,2],[29,1,29,12],[24,1,24,12],[22,1,22,12],[9,1,9,12],[26,1,26,12],[21,1,21,12],[16,1,16,12],[14,1,14,12],[15,1,15,12],[23,1,23,12],[25,1,25,12],[18,1,18,12],[20,1,20,11],[17,1,17,12],[69,0,71,0],[68,1,68,12],[71,10,71,11],[69,1,69,2],[71,8,71,9],[70,1,70,2],[71,1,71,2],[71,3,71,6],[69,10,69,11],[70,8,70,9],[69,3,69,6],[70,3,70,6],[69,8,69,9],[70,10,70,11],[13,1,13,2],[13,3,13,4],[28,1,28,12],[85,1,87,12],[72,1,72,2],[74,3,74,11],[74,1,74,2],[73,1,73,2],[76,11,76,12],[67,3,67,6],[73,3,73,11],[67,8,67,9],[67,10,67,11],[72,3,72,6],[72,8,72,9],[72,10,72,11]]}
[]
[null,null,null,null,"EXERCICE DE SUIVI DU PLAN D'ACTION 2013-2020 SUR LES CHANGEMENTS CLIMATIQUES"]
[]
[]
[]
[]
[]
[]
[]
[null,"Bienvenue dans votre fiche de suivi du FECC - Gestion des matières résiduelles"]
[]
[]
[]
[null,"Échéance de transmission :",null,"2022-06-14"]
[null,"Nouveautés pour l’exercice de suivi de mai 2020 "]
[null,"RAPPEL :"]
[null,"* Fin du PACC : Les conventions de subventions se rapportant aux engagements saisis à SAGIR sont maintenant signées."]
[null,"* Fin du PACC : Les projets réalisés à l'interne dans vos organisations doivent se terminer avant le 31 décembre 2022"]
[null,"* Fin du PACC : Vous devez compléter l'onglet Évaluation."]
[null,"Consignes générales :"]
[null,"→Les informations doivent correspondre à l'avancement de l'action en date du 31 mars 2022."]
[null,"→Assurez-vous de valider votre fiche (onglet Validation) avant de la transmettre à l’adresse suivante :  suivi.climatique@environnement.gouv.qc.ca"]
[null,"→Toute information confidentielle doit être saisie en bleu."]
[null,"→Conservez la fiche en format xlsm afin de pouvoir profiter des outils conviviaux."]
[null,"→La plupart des cellules contenant du texte sont limitées à 250 caractères."]
[]
[null,"→Copier-coller des informations à partir d’un document Word verrouille les cellules concernées. Pour pouvoir à nouveau écrire et modifier le  format de ces cellules, fermez et ouvrez à nouveau la fiche."]
[]
[null,"→Besoin d’assistance? Écrivez-nous à l’adresse suivante en précisant votre question et vos coordonnées : suivi.climatique@environnement.gouv.qc.ca"]
[]
[]
[null,null,null,null,null,null,null,null,null,null,"suivi.climatique@environnement.gouv.qc.ca"]
[]
[]
[]
[]
[]
[]
[]
[]
[]
[]
[]
[]
[]
[]
[]
[]
[]
[null,"Veuillez vérifier, corriger et compléter les informations ci-dessous :"]
[]
[null,"Priorité :",null,"11","Favoriser la réduction de GES reliés aux opérations de l'administration publique"]
[null,"Action :",null,"11.5","Investissements en infrastructures écoresponsables"]
[null,"Sous-action :",null,11.5,""]
[null,"Libellé usuel :",null,"11.5","Investissements en infrastructures écoresponsables"]
[null,"Programme :",null,"Programme visant à rendre les établissements d'enseignement écoresponsables"]
[null,"Nom du programme :"]
[null,"Statut de l’action :",null,"en cours"]
[null,"Raison du statut de l’action :"]
[]
[]
[]
[null,"Informations en date du :",null,{"$f":"Utilitaire!G6","v":"2022-03-31"}]
[]
[null,"Ministère porteur :",null,"MEQ",null,null,null,null,"Direction responsable :",null,"Direction de l'expertise et du développement des inrastructures scolaires"]
[null,"Partenaires :",null,"S.O.",null,null,null,null,"Part de financement par le FECC :",null,1]
[null,"Budget 2013-2020 (M$) :",null,90,null,null,null,null,"Autres sources de financement :",null,"S. O."]
[null,"Date de lancement de l’action :",null,"2018-04-27",null,null,null,null,"Date de fin de l’action :",null,"2025-12-31"]
[null,"Section réservée à l’usage exclusif du BECC (lignes 70 à 73 non publiées)"]
[null,"Chargé de projet :",null,"Nicolas Faguy, ing",null,null,null,null,"Tél. :",null,"418 644-2525"]
[null,"Responsable ministériel :",null,"Martin Bérubé, ing",null,null,null,null,"Tél. :",null,"418 644-2525, poste 3818"]
[null,"Personne ressource pour le BECC :",null,"Nicolas Faguy, ing",null,null,null,null,"Tél. :",null,"418 644-2525"]
[null,"Estimation des sommes résiduelles au \n31 décembre 2020 ($) :",null,0,null,null,null,null,"Précisions sur le montant des sommes résiduelles :",null,"s"]
[null,"Téléphone pour informations :",null,"418 644-2525"]
[null,"Référence Web :",null,"S. O."]
[]
[]
[]
[]
[]
[]
[]
[]
[]
[null,"Ministère de l'Éducation"]

{"sheet":"Description","index":2,"n_rows":196,"n_cols":14,"rows_kept":196,"cut":false,"hidden":false,"merged":[[40,1,40,4],[40,5,40,8],[1,1,1,6],[18,1,18,2],[18,3,18,4],[18,5,18,14],[14,1,14,14],[15,1,15,2],[15,3,15,4],[15,5,15,14],[16,1,16,2],[16,3,16,4],[16,6,16,14],[17,1,17,2],[17,3,17,4],[17,6,17,14],[2,1,2,2],[3,2,3,6],[5,1,5,6],[1,8,1,9],[1,11,1,12],[1,13,1,14],[2,8,5,14],[4,1,4,2],[4,3,4,6],[53,2,53,6],[53,9,53,14],[41,1,41,14],[52,1,52,14],[53,7,53,8],[162,1,162,8],[162,9,162,11],[162,12,162,14],[158,1,158,8],[158,9,158,11],[158,12,158,14],[159,1,159,8],[159,9,159,11],[159,12,159,14],[156,1,156,8],[156,9,156,11],[156,12,156,14],[157,1,157,8],[157,9,157,11],[157,12,157,14],[154,1,154,8],[154,9,154,11],[154,12,154,14],[155,1,155,8],[163,1,163,8],[163,9,163,11],[163,12,163,14],[160,1,160,8],[160,9,160,11],[160,12,160,14],[161,1,161,8],[161,9,161,11],[161,12,161,14],[152,1,152,8],[152,9,152,11],[152,12,152,14],[153,1,153,8],[153,9,153,11],[153,12,153,14],[150,1,150,8],[150,9,150,11],[150,12,150,14],[151,1,151,8],[151,9,151,11],[151,12,151,14],[148,1,148,8],[148,9,148,11],[148,12,148,14],[149,1,149,8],[149,9,149,11],[149,12,149,14],[146,1,146,8],[146,9,146,11],[146,12,146,14],[147,1,147,8],[147,9,147,11],[147,12,147,14],[144,1,144,8],[144,9,144,11],[144,12,144,14],[145,1,145,8],[145,9,145,11],[145,12,145,14],[142,1,142,8],[142,9,142,11],[142,12,142,14],[143,1,143,8],[143,9,143,11],[143,12,143,14],[140,1,140,8],[140,9,140,11],[140,12,140,14],[141,1,141,8],[141,9,141,11],[141,12,141,14],[138,1,138,8],[138,9,138,11],[138,12,138,14],[139,1,139,8],[139,9,139,11],[139,12,139,14],[136,1,136,8],[136,9,136,11],[136,12,136,14],[137,1,137,8],[137,9,137,11],[137,12,137,14],[134,1,134,8],[134,9,134,11],[134,12,134,14],[135,1,135,8],[135,9,135,11],[135,12,135,14],[132,1,132,8],[132,9,132,11],[132,12,132,14],[133,1,133,8],[133,9,133,11],[133,12,133,14],[130,1,130,8],[130,9,130,11],[130,12,130,14],[131,1,131,8],[131,9,131,11],[131,12,131,14],[128,1,128,8],[128,9,128,11],[128,12,128,14],[129,1,129,8],[129,9,129,11],[129,12,129,14],[126,1,126,8],[126,9,126,11],[126,12,126,14],[127,1,127,8],[127,9,127,11],[127,12,127,14],[124,1,124,8],[124,9,124,11],[124,12,124,14],[125,1,125,8],[125,9,125,11],[125,12,125,14],[122,1,122,8],[122,9,122,11],[122,12,122,14],[123,1,123,8],[123,9,123,11],[123,12,123,14],[120,1,120,8],[120,9,120,11],[120,12,120,14],[121,1,121,8],[121,9,121,11],[121,12,121,14],[118,1,118,8],[118,9,118,11],[118,12,118,14],[119,1,119,8],[119,9,119,11],[119,12,119,14],[116,1,116,8],[116,9,116,11],[116,12,116,14],[117,1,117,8],[117,9,117,11],[117,12,117,14],[114,1,114,8],[114,9,114,11],[114,12,114,14],[115,1,115,8],[115,9,115,11],[115,12,115,14],[112,1,112,8],[112,9,112,11],[112,12,112,14],[113,1,113,8],[113,9,113,11],[113,12,113,14],[110,1,110,8],[110,9,110,11],[110,12,110,14],[111,1,111,8],[111,9,111,11],[111,12,111,14],[108,1,108,8],[108,9,108,11],[108,12,108,14],[109,1,109,8],[109,9,109,11],[109,12,109,14],[106,1,106,8],[106,9,106,11],[106,12,106,14],[107,1,107,8],[107,9,107,11],[107,12,107,14],[104,1,104,8],[104,9,104,11],[104,12,104,14],[105,1,105,8],[105,9,105,11],[105,12,105,14],[102,1,102,8],[102,9,102,11],[102,12,102,14],[103,1,103,8],[103,9,103,11],[103,12,103,14],[100,1,100,8],[100,9,100,11],[100,12,100,14],[101,1,101,8],[101,9,101,11],[101,12,101,14],[98,1,98,8],[98,9,98,11],[98,12,98,14],[99,1,99,8],[99,9,99,11],[99,12,99,14],[96,1,96,8],[96,9,96,11],[96,12,96,14],[97,1,97,8],[97,9,97,11],[97,12,97,14],[94,1,94,8],[94,9,94,11],[94,12,94,14],[95,1,95,8],[95,9,95,11],[95,12,95,14],[92,1,92,8],[92,9,92,11],[92,12,92,14],[93,1,93,8],[93,9,93,11],[93,12,93,14],[90,1,90,8],[90,9,90,11],[90,12,90,14],[91,1,91,8],[91,9,91,11],[91,12,91,14],[89,1,89,8],[89,9,89,11],[89,12,89,14],[86,1,86,8],[86,9,86,11],[86,12,86,14],[87,1,87,8],[87,9,87,11],[87,12,87,14],[85,1,85,8],[85,9,85,11],[85,12,85,14],[82,12,82,14],[83,1,83,8],[83,9,83,11],[83,12,83,14],[88,1,88,8],[88,9,88,11],[88,12,88,14],[81,1,81,8],[81,9,81,11],[81,12,81,14],[179,1,179,8],[179,9,179,11],[179,12,179,14],[176,1,176,8],[176,9,176,11],[176,12,176,14],[173,1,173,8],[173,9,173,11],[173,12,173,14],[174,1,174,8],[174,9,174,11],[174,12,174,14],[175,1,175,8],[175,9,175,11],[175,12,175,14],[171,1,171,8],[171,9,171,11],[171,12,171,14],[84,1,84,8],[84,9,84,11],[84,12,84,14],[180,1,180,8],[180,9,180,11],[180,12,180,14],[177,1,177,8],[177,9,177,11],[177,12,177,14],[178,1,178,8],[178,9,178,11],[178,12,178,14],[184,1,184,8],[184,9,184,11],[184,12,184,14],[181,1,181,8],[181,9,181,11],[181,12,181,14],[182,1,182,8],[182,9,182,11],[182,12,182,14],[183,1,183,8],[183,9,183,11],[183,12,183,14],[172,1,172,8],[172,9,172,11],[172,12,172,14],[169,1,169,8],[169,9,169,11],[169,12,169,14],[170,1,170,8],[170,9,170,11],[170,12,170,14],[167,1,167,8],[167,9,167,11],[167,12,167,14],[168,1,168,8],[168,9,168,11],[168,12,168,14],[165,1,165,8],[165,9,165,11],[165,12,165,14],[166,1,166,8],[166,9,166,11],[166,12,166,14],[164,1,164,8],[164,9,164,11],[164,12,164,14],[74,1,74,8],[74,9,74,11],[74,12,74,14],[75,1,75,8],[75,9,75,11],[75,12,75,14],[76,1,76,8],[76,9,76,11],[76,12,76,14],[77,1,77,8],[78,1,78,8],[78,9,78,11],[78,12,78,14],[79,1,79,8],[79,9,79,11],[79,12,79,14],[82,1,82,8],[82,9,82,11],[80,1,80,8],[80,9,80,11],[80,12,80,14],[70,1,70,8],[70,9,70,11],[70,12,70,14],[71,1,71,8],[71,9,71,11],[71,12,71,14],[73,1,73,8],[73,9,73,11],[73,12,73,14],[186,1,186,8],[187,1,187,8],[68,1,68,8],[68,9,68,11],[68,12,68,14],[69,1,69,8],[69,9,69,11],[69,12,69,14],[43,2,43,14],[46,2,46,14],[47,2,47,14],[48,2,48,14],[50,2,50,14],[67,1,67,8],[64,9,64,11],[65,9,65,11],[66,9,66,11],[63,12,63,14],[186,12,186,14],[187,12,187,14],[64,1,64,8],[65,1,65,8],[66,1,66,8],[72,1,72,8],[188,12,188,14],[63,9,63,11],[186,9,186,11],[187,9,187,11],[188,9,188,11],[67,12,67,14],[64,12,64,14],[65,12,65,14],[66,12,66,14],[77,9,77,11],[77,12,77,14],[67,9,67,11],[155,9,155,11],[155,12,155,14],[72,9,72,11],[72,12,72,14],[193,1,193,14],[49,2,49,14],[42,2,42,14],[44,1,45,1],[44,2,44,3],[44,4,44,5],[44,6,44,8],[44,9,44,11],[44,12,44,14],[45,2,45,3],[45,4,45,5],[45,6,45,8],[45,9,45,11],[45,12,45,14],[189,1,189,14],[188,1,188,8],[185,1,185,8],[185,9,185,11],[185,12,185,14],[61,1,61,14],[62,1,62,8],[62,9,62,11],[62,12,62,14],[63,1,63,8],[194,1,194,2],[201,1,201,2],[199,1,199,2],[198,1,198,2],[197,1,197,2],[196,1,196,2],[195,1,195,2],[196,13,196,14],[194,3,194,12],[194,13,194,14],[200,1,200,2],[200,3,200,12],[200,13,200,14],[201,3,201,12],[199,3,199,12],[198,3,198,12],[197,3,197,12],[196,3,196,12],[195,3,195,12],[201,13,201,14],[199,13,199,14],[198,13,198,14],[197,13,197,14],[195,13,195,14]]}
[]
[null,{"$f":"Utilitaire!E8","v":"Plan d'action 2013-2020 sur les changements climatiques"}]
[null,{"$f":"\"Action \" & Accueil!D58","v":"Action en cours"}]
[null,{"$f":"Accueil!D55","v":"11.5"},{"$f":"Accueil!E55","v":"Investissements en infrastructures écoresponsables"}]
[null,"Ministère porteur :",null,{"$f":"Accueil!$D$65","v":"MEQ"}]
[null,"Description"]
[]
[]
[]
[]
[]
[]
[]
[]
[null,"Évaluation des effets de la COVID-19 sur la mise en œuvre de l'action"]
[null,"Résultats attendus : "]
[null,"Échéancier : "]
[null,"Sommes engagées \n(projets en cours) :"]
[null,"Autres : "]
[]
[]
[]
[]
[]
[]
[]
[]
[]
[]
[]
[]
[]
[]
[]
[]
[]
[]
[]
[]
[]
[null,"Informations en date du :",null,null,null,"2022-03-31"]
[null,"Informations générales"]
[null,"Description de l'action: ","Mettre en œuvre le Plan d'action 2013-2020 sur les changements climatiques (PACC 2013-2020) pour soutenir les initiatives visant la réduction ou l'évitement de GES dans les bâtiments des centres de services scolaires (CSS) et les commissions scolaires (CS) du Québec. Le programme vise à apporter une aide financière aux projets d'implantation d'un ou de plusieurs moyens ciblés d'économie de consommation de combustibles fossiles dans une perspective de réduction ou d'évitement global des émissions de GES."]
[null,"Objectif de l'action:","À terme, l'objectif étant d'atteindre une réduction ou un évitement total de 22 754 tonnes de CO2 équivalent par année. Un exemple de projet : Travaux pour remplacer des chaudières fonctionnant au mazout ou au gaz naturel par des systèmes fonctionnant à l'énergie renouvelable (géothermie, aérothermie, chaudières électriques, etc.); ou alors de réduire le temps d'utilisation de chaudières utilisant des énergies fossiles."]
[null,"Bénéficiaires : ","Centres de Services scolaires et Commissions scolaires du Québec"]
[null,null,"Autres (précisez) : "]
[null,"Critères d'admissibilité : ","Les projets d'implantation d'un ou de plusieurs moyens ciblés d'économie de combustibles fossiles dans une perspective de réduction ou d'évitement global des émissions de GES sont admissibles, en autant qu'ils respectent les modalités d'application des mesures d'exemplarité de l'État du PACC 2013-2020 contenues dans le document publié par le ministère de l'Énergie et des Ressources naturelles.\nLes centres de services scolaires ou les commissions scolaires ont jusqu'à trois ans après la signature de l'entente pour faire la preuve que la cible prévue a été atteinte."]
[null,"Processus de suivi de l'action :","Pour recevoir la confirmation de l'allocation définitive, la CS ou le CSS présente une demande de reddition de compte au MÉQ qui doit contenir les éléments suivants :\na. les sections « RÉELS » du formulaire complétées et envoyées par courriel au MÉQ;\nb. les onglets « Instructions » et « Comparaison » du formulaire imprimées, complétées et signées;\nc. le rapport de conciliation signé par un ingénieur membre de l'OIQ présentant et décrivant l'ensemble des activités réalisées;\nd. une déclaration de réduction d'émissions ou d'évitement de GES validée et vérifiée par une tierce partie, ou par un ministère ou organisme qui en détient les compétences, conformément aux spécifications et aux lignes directrices de la partie 3 de la norme ISO 14064.\n\nDeux versements sont faits; un premier (50 %) lors de la confirmation de la fin des travaux (étape C décrite ci-haut) et le dernier lors de l'obtention du rapport de déclaration des réductions de GES (étape D décrite ci-haut)."]
[null,"Résultats et co-bénéfices attendus :","Réduction des émissions de GES des bâtiments du réseau des centres de services scolaires et des commissions scolaires et l'amélioration de leur consommation énergétique."]
[null,"Résultats et co-bénéfices obtenus dans la dernière année :","Dans la dernière année, considérant l'année budgétaire 2021-2022  (1er avril 2021 au 31 mars 2022), les travaux de 25 projets ont été finalisés. Les réductions annuelles prévues pour ces projets est de 4,3 kT de CO2eq annuellement. "]
[null,"Résultats et co-bénéfices obtenus depuis le lancement de l'action :","Depuis son lancement le 27 avril 2018, l'action a permis d'autoriser la réalisation de 353 projets, pour un total de plus de 86,24M$. Ces projets touchent 516 bâtiments répartis dans plus de 127 municipalités."]
[]
[null,"Classification"]
[null,"Finalité :","Réduction des émissions de gaz à effet de serre",null,null,null,null,"Moyen :",null,"Réalisation (programmes et subventions favorisant l'exécution de solutions établies)"]
[]
[]
[]
[]
[]
[]
[]
[null,"Mise en œuvre "]
[null,"Étapes (depuis le début de l'action)",null,null,null,null,null,null,null,"Échéancier",null,null,"État d'avancement"]
[1,"Signature de l'Entente administrative entre le MEES et MELCC",null,null,null,null,null,null,null,"2016-12-21",null,null,"Complétée"]
[2,"Élaboration du cadre normatif de la mesure Rendre les établissements scolaires écoresponsables",null,null,null,null,null,null,null,"2019-02-01",null,null,"Complétée"]
[3,"Approbation du cadre normatif de la mesure Rendre les établissements scolaires écoresponsables",null,null,null,null,null,null,null,"2018-04-10",null,null,"Complétée"]
[4,"Appel à projets",null,null,null,null,null,null,null,"2018-04-27",null,null,"Complétée"]
[5,"Réception des demandes",null,null,null,null,null,null,null,"2021-02-28",null,null,"Complétée"]
[6,"Traitement des demandes",null,null,null,null,null,null,null,"2021-03-31",null,null,"Complétée"]
[null,"Réddition de comptes (en continue)",null,null,null,null,null,null,null,"2025-10-31",null,null,"En cours"]
[8,"Révision du cadre normatif de la mesure Rendre les établissements scolaires écoresponsables",null,null,null,null,null,null,null,"2020-12-01",null,null,"Abandonnée"]
[9]
[]
[]
[]
[]
[]
[]
[]
[]
[]
[]
[]
[]
[]
[]
[]
[]
[]
[]
[]
[]
[]
[]
[]
[]
[]
[]
[]
[]
[]
[]
[]
[]
[]
[]
[]
[]
[]
[]
[]
[]
[]
[]
[]
[]
[]
[]
[]
[]
[]
[]
[]
[]
[]
[]
[]
[]
[]
[]
[]
[]
[]
[]
[]
[]
[]
[]
[]
[]
[]
[]
[]
[]
[]
[]
[]
[]
[]
[]
[]
[]
[]
[]
[]
[]
[]
[]
[]
[]
[]
[]
[]
[]
[]
[]
[]
[]
[]
[]
[]
[]
[]
[]
[]
[]
[]
[]
[]
[]
[]
[]
[]
[]
[]
[]
[]
[]
[]
[null,"Ajouter une ligne"]
[]
[]
[]
[null,"Plans, stratégies ou politiques incluant la mise en œuvre de cette action"]
[null,"Abréviation",null,"Nom complet",null,null,null,null,null,null,null,null,null,"Numéro de mesure"]
[null,"PACC 2013-2020",null,"Plan d'action 2013 - 2020 sur les changements climatiques",null,null,null,null,null,null,null,null,null,"11.5"]

{"sheet":"Détail des projets","index":3,"n_rows":377,"n_cols":28,"rows_kept":377,"cut":false,"hidden":false,"merged":[[376,1,376,4],[375,1,375,4],[21,14,21,25],[22,13,23,13],[22,12,23,12],[22,9,23,9],[22,8,23,8],[22,10,23,10],[21,1,21,6],[22,2,23,2],[22,5,23,5],[374,1,374,4],[22,4,23,4],[22,1,23,1],[22,3,23,3],[373,1,373,9],[22,7,23,7],[14,1,14,4],[22,6,23,6],[22,27,23,27],[22,11,23,11],[22,26,23,26],[18,3,18,5],[18,6,18,8],[1,1,1,6],[1,8,1,10],[1,25,1,27],[2,8,5,27],[1,22,1,24],[3,2,3,6],[2,1,2,2],[5,1,5,6],[4,2,4,6]]}
[]
[null,{"$f":"Utilitaire!E8","v":"Plan d'action 2013-2020 sur les changements climatiques"}]
[null,{"$f":"\"Action \" & Accueil!D58","v":"Action en cours"}]
[null,{"$f":"Accueil!D55","v":"11.5"},{"$f":"Accueil!E55","v":"Investissements en infrastructures écoresponsables"}]
[null,"Ministère porteur :",{"$f":"Accueil!$D$65","v":"MEQ"}]
[null,"Détails et prévisions des dépenses par projet"]
[]
[]
[]
[]
[]
[]
[]
[]
[]
[]
[]
[]
[null,null,null,"Informations en date du :",null,null,"2022-03-31"]
[]
[]
[null,"DÉTAILS DES PROJETS AUTORISÉS",null,null,null,null,null,null,null,null,null,null,null,null,"MONTANTS PROVENANT DU FECC ($)",null,null,null,null,null,null,null,null,null,null,null,{"$f":"MONTH(#REF!)","v":{"$error":"#REF!"}}]
["No","Nom du projet","Nom du requérant ou du bénéficiaire","Volet ou thématique","Catégorie","Nombre de projets","Région administrative","Municipalité","Statut","Classification du projet","Montant engagé ($)","Date de l'engagement","Date du dernier versement","Budget total du projet ($)","2013-2014","2014-2015","2015-2016","2016-2017","2017-2018","2018-2019","2019-2020","2020-2021","2021-2022","2022-2023","2023-2024","2024-2025","MONTANT DES DÉPENSES RÉELLES ($)","TOTAL DES DÉPENSES RÉELLES ET PRÉVUES ($)"]
[null,null,null,null,null,null,null,null,null,null,"(convention signée, contrat, lettre de confirmation du ministre ou de son représentant ou lettre d'octroi)",null,null,null,"Réel","Réel","Réel","Réel","Réel","Réel","Réel","Réel","Réel","Prévu","Prévu","Prévu"]
[1,"50643-002 - Modernisation du réseau de chauffage au mazout de l'école secondaire Marie-Rivier de Drummondville par de l'aérothermie et des chaudières électriques","Commission scolaire des Chênes","Potentiel de réduction : 464 t. CO2","Bâtiment",1,"17-Centre-du-Québec","Drummondville","AC-Actif","SU-Subvention",1026068,"2018-05-23","2023-12-31",1494747,0,0,0,0,0,0,null,null,1026068,0,0,0,{"$f":"SUM(O25:W25)","v":1026068},{"$f":"SUM(O25:Z25)","v":1026068}]
[2,"50643-003 - Remplacement complet du système de chauffage au mazout par de la géothermie et ajout d'un système de ventilation à l'école St-Thomas-d'Aquin","Commission scolaire de Saint-Hyacinthe","Potentiel de réduction : 13 t. CO2","Bâtiment",1,"16-Montérégie","Saint-Hyacinthe","AC-Actif","SU-Subvention",33714,"2018-05-23","2023-12-31",197828,0,0,0,0,0,0,null,null,33714,0,0,0,{"$f":"SUM(O26:W26)","v":33714},{"$f":"SUM(O26:Z26)","v":33714}]
[3,"50643-001 - Amélioration écoénergétique pour 4 bâtiments : Récupération de chaleur, Optimisation des réseaux de chauffage et de ventilation, Modernisation des contrôles centralisés et recommissioning","Commission scolaire de l'Or-et-des-Bois","Potentiel de réduction : 705 t. CO2","Bâtiment",4,"08-Abitibi-Témiscamingue","Val-d'Or","AC-Actif","SU-Subvention",1569979,"2018-05-28","2023-12-31",2898594,0,0,0,0,0,0,null,null,1569979,null,0,0,{"$f":"SUM(O27:W27)","v":1569979},{"$f":"SUM(O27:Z27)","v":1569979}]
[4,"50643-004 - Projet de réduction de GES dans 3 écoles : Remplacement de chaudières au mazout par des chaudières électriques","Commission scolaire de la Capitale","Potentiel de réduction : 174 t. CO2","Bâtiment",3,"03-Capitale-Nationale","Québec","AC-Actif","SU-Subvention",385839,"2018-06-15","2023-12-31",826641,0,0,0,0,0,null,null,null,370958,14881,0,0,{"$f":"SUM(O28:W28)","v":370958},{"$f":"SUM(O28:Z28)","v":385839}]
[5,"50643-005 - Réduction de GES à l'école Larocque : Remplacement de la chaudière au gaz naturel par de la géothermie","Commission scolaire de Saint-Hyacinthe","Potentiel de réduction : 42  t. CO2","Bâtiment",1,"16-Montérégie","Saint-Hyacinthe","AC-Actif","SU-Subvention",98280,"2018-06-15","2023-12-31",448502,0,0,0,0,0,0,null,null,98280,0,0,0,98280,98280]
[6,"50643-007 - Remplacement complet du système de chauffage au mazout par de la géothermie et ajout d'un système de ventilation à l'école aux Quatre-Vents - Immeuble St-Bernard","Commission scolaire de Saint-Hyacinthe","Potentiel de réduction : 18 t. CO2","Bâtiment",1,"16-Montérégie","Saint-Hyacinthe","AC-Actif","SU-Subvention",44820,"2018-07-17","2023-12-31",142565,0,0,0,0,0,0,null,null,44820,0,0,0,44820,44820]
[7,"50643-011 - Réduction de GES à l'école René-Saint-Pierre : Remplacer les chaudières au gaz naturel par de l'aérothermie.","Commission scolaire de Saint-Hyacinthe","Potentiel de réduction : 133 t. CO2","Bâtiment",1,"16-Montérégie","Saint-Hyacinthe","AC-Actif","SU-Subvention",297160,"2018-07-17","2023-12-31",551663,0,0,0,0,0,0,null,null,0,0,148580,148580,0,297160]
[8,"50643-006 - Réduction de GES à l'école Samuel-Casavant : Remplacer les chaudières au gaz naturel par de la géothermie","Commission scolaire de Saint-Hyacinthe","Potentiel de réduction : 118 t. CO2","Bâtiment",1,"16-Montérégie","Saint-Hyacinthe","AC-Actif","SU-Subvention",263720,"2018-08-08","2023-12-31",552428,0,0,0,0,0,0,null,null,263720,0,0,0,263720,263720]
[9,"50643-008 - Dimunition des émissions de GES à l'école l'Escouade 2 : Remplacer la chaudière au mazout par une chaudière électrique.","Commission scolaire des Premières Seigneuries","Potentiel de réduction : 20 t. CO2","Bâtiment",1,"03-Capitale-Nationale","Québec","AC-Actif","SU-Subvention",49440,"2018-12-21","2023-12-31",595992,0,0,0,0,0,0,null,null,49440,0,0,0,49440,49440]
[10,"50643-009 - Remplacement du système de chauffage au mazout du Centre administratif par de la géothermie","Commission scolaire des Premières Seigneuries","Potentiel de réduction : 46 t. CO2","Bâtiment",1,"03-Capitale-Nationale","Québec","AC-Actif","SU-Subvention",105700,"2018-12-21","2023-12-31",530159,0,0,0,0,0,0,null,null,105700,0,0,0,105700,105700]
[11,"50643-010 - Réduction d'émissions de GES à l'école  le Boisé 1 : Remplcer des chaudières au mazout par de la géothermie","Commission scolaire des Premières Seigneuries","Potentiel de réduction : 49 t. CO2","Bâtiment",1,"03-Capitale-Nationale","Québec","AC-Actif","SU-Subvention",112580,"2018-12-21","2023-12-31",547836,0,0,0,0,0,0,null,null,112580,0,0,0,112580,112580]
[12,"50643-012 - Agrandissement du Centre-Ferland : Mise en œuvre de mesures pour augmenter l'évitement d'émissions de GES","Commission scolaire de la Pointe-de-l'Île","Potentiel de réduction : 15,55 t. CO2","Bâtiment",1,"06-Montréal","Montréal","AC-Actif","SU-Subvention",34210,"2018-12-21","2023-12-31",null,0,0,0,0,0,0,null,null,34210,0,0,0,34210,34210]
[13,"50643-13 - Agrandissement école Sainte-Colette : Mise en œuvre de mesures pour augmenter l'évitement d'émissions de GES","Commission scolaire de la Pointe-de-l'Île","Potentiel de réduction : 16,11 t. CO2","Bâtiment",1,"06-Montréal","Montréal","AC-Actif","SU-Subvention",35442,"2018-12-21","2023-12-31",null,0,0,0,0,0,0,null,null,35442,0,null,0,35442,35442]
[14,"50643-014 - Agrandissement école Montmartre : Mise en œuvre de mesures pour augmenter l'évitement d'émissions de GES","Commission scolaire de la Pointe-de-l'Île","Potentiel de réduction : 11,32 t. CO2","Bâtiment",1,"06-Montréal","Montréal","AC-Actif","SU-Subvention",24904,"2018-12-21","2023-12-31",null,0,0,0,0,0,0,null,null,24904,0,0,0,24904,24904]
[15,"50643-015 - Agrandissement école Sainte-Marguerite-Bourgeoys : Mise en œuvre de mesures pour augmenter l'évitement d'émissions de GES","Commission scolaire de la Pointe-de-l'Île","Potentiel de réduction : 17,45 t. CO2","Bâtiment",1,"06-Montréal","Montréal","AC-Actif","SU-Subvention",38390,"2018-12-21","2023-12-31",null,0,0,0,0,0,0,null,null,38390,0,0,0,38390,38390]
[16,"50643-016 - Projet de réduction de GES dans 3 écoles : Remplacement de chaudières au mazout par des chaudières électriques et amélioration de l'enveloppe des bâtiments.","Commission scolaire Harricana","Potentiel de réduction : 109 t. CO2","Bâtiment",3,"08-Abitibi-Témiscamingue","Amos","AC-Actif","SU-Subvention",250442,"2018-12-21","2023-12-31",434907,0,0,0,0,0,0,null,null,250442,0,0,0,250442,250442]
[17,"50643-017 - Projet de remplacement de 3 chaudières au mazout par des chaudières électriques et des accumulateurs thermiques dans 3 écoles","Commission scolaires des Affluents","Potentiel de réduction :205,5 t. CO2","Bâtiment",3,"14-Lanaudière","Repentigny","AC-Actif","SU-Subvention",467100,"2019-01-18","2023-12-31",655558,null,null,null,null,null,null,null,null,467100,null,0,0,467100,467100]
[18,"50643-020 - Projet de réduction de la consommation énergétique et des émissions de GES à l'école St-Félix-de-Kingsey","Commission scolaire des Chênes","Potentiel de réduction : 50,0 t. CO2","Bâtiment",1,"17-Centre-du-Québec","Drummondville","AC-Actif","SU-Subvention",114472,"2018-12-21","2023-12-31",299746,null,null,null,null,null,null,null,null,114472,0,0,0,114472,114472]
[19,"50643-019 - Projet de réduction et d'évitement de GES :  Ajout d'une chaudière électrique pour chauffer l'agrandissement et réduire l'utilisation de la chaudière au gaz naturel de la partie existante de l'école Alexander-Wolff","Commission scolaire de la Capitale","Potentiel de réduction : 139,0 t. +27,2 CO2","Bâtiment",1,"03-Capitale-Nationale","Québec","AC-Actif","SU-Subvention",367826,"2019-03-11","2023-12-31",390475,null,null,null,null,null,null,null,null,367826,0,0,0,367826,{"$f":"SUM(O43:Z43)","v":367826}]
[20,"50643-022 - Projet d'efficacité énergétique et de remplacement de chaudières au mazout par de la géothermie dans 3 écoles","Commission scolaire de la Seigneurie-des-Mille-Îles","Potentiel de réduction : 81,6 t. CO2","Bâtiment",3,"15-Laurentides","Saint-Eustache","AC-Actif","SU-Subvention",194520,"2019-01-21","2023-12-31",811509,null,null,null,null,null,null,null,null,194520,0,0,0,194520,{"$f":"SUM(O44:Z44)","v":194520}]
[21,"50643-023 - Projet de modernisation de la chaufferie de l'école Samuel-de-Chaplain : Remplacer 3 chaudières au gaz naturel par de l'aérothermie","Commissin scolaire des Premières-Seigneuries","Potentiel de réduction : 343,2 t. CO2","Bâtiment",1,"03-Capitale-Nationale","Québec","AC-Actif","SU-Subvention",760106,"2019-02-22","2023-12-31",1719567,null,null,null,null,null,null,null,null,760106,0,0,0,760106,{"$f":"SUM(O45:Z45)","v":760106}]
[22,"50643-034 - Projet de réduction de GES : Remplacement de la chaudière au mazout par de la géothermie.","Commission scolaire New-Frontiers","Potentiel de réduction : 104,0t. CO2","Bâtiment",1,"16-Montérégie","Châteauguay","AC-Actif","SU-Subvention",233534,"2019-02-22","2023-12-31",477102,null,null,null,null,null,null,null,null,233534,0,0,0,233534,{"$f":"SUM(O46:Z46)","v":233534}]
[23,"50643-035 - Projet de réduction de GES : Remplacement de la chaudière au mazout par de l'aérothermie.","Commission scolaire des Premières Seigneuries","Potentiel de réduction : 27,0t. CO2","Bâtiment",1,"03-Capitale-Nationale","Québec","AC-Actif","SU-Subvention",64686,"2019-02-22","2023-12-31",615641,null,null,null,null,null,null,null,null,64686,0,0,0,64686,{"$f":"SUM(O47:Z47)","v":64686}]
[24,"50643-033 - Projets de réduction des GES : Plusieurs remplacements de chaudières au mazout par de la géothermie, de l'aérothermie, des chaudières électriques.","Commission scolaire de Saint-Hyacinthe","Potentiel de réduction : 394,0 t CO2","Bâtiment",10,"16-Montérégie","Saint-Hyacinthe","AC-Actif","SU-Subvention",906092,"2019-03-07","2023-12-31",4067646,null,null,null,null,null,null,null,null,41739,297960,283196.5,283196.5,41739,{"$f":"SUM(O48:Z48)","v":906092}]
[25,"50643-036 - Projet de réduction des GES : réduire l'utilisation du chauffage au mazout par l'introduction du chauffage par de l'aérothermie.","Commission scolaire de Portneuf","Potentiel de réduction : 37,0 t CO2","Bâtiment",2,"03-Capitale-Nationale","Saint-Alban,","AC-Actif","SU-Subvention",92500,"2019-06-04","2023-12-31",184435,null,null,null,null,null,null,null,null,92500,0,0,0,92500,{"$f":"SUM(O49:Z49)","v":92500}]
[26,"50643-037 - Projet de réduction de GES : Conversion du mode chauffage bi-énergie (mazout-électricité) en 100% électrique","Commission scolaire des Hauts-Cantons","Potentiel de réduction : 278,9 t CO2","Bâtiment",4,"05-Estrie","East-Angus","AC-Actif","SU-Subvention",368689,"2019-06-04","2023-12-31",957591,null,null,null,null,null,null,null,null,368689,0,0,0,368689,{"$f":"SUM(O50:Z50)","v":368689}]
[27,"50643-038 - Construction d'une nouvelle école primaire : Mise en œuvre de mesures pour augmenter l'évitement d'émissions de GES","Commission scolaire Marguérite-Boureoys","Potentiel d'évitement de GES : 60,8 t CO2","Bâtiment",1,"06-Montréal","LaSalle","AC-Actif","SU-Subvention",132840,"2019-06-04","2023-12-31",null,null,null,null,null,null,null,null,null,132840,null,0,0,132840,{"$f":"SUM(O51:Z51)","v":132840}]
[28,"50643-039 - Construction d'une nouvelle école primaire : Mise en œuvre de mesures pour augmenter l'évitement d'émissions de GES","Commission scolaire Kativik","Potentiel d'évitement de GES : 107,8 t CO2","Bâtiment",1,"10-Nord-du-Québec","Inukjuak","AC-Actif","SU-Subvention",237151,"2019-06-04","2023-12-31",null,null,null,null,null,null,null,null,null,175308,0,61843,0,{"$f":"SUM(O52:W52)","v":175308},{"$f":"SUM(O52:Z52)","v":237151}]
[29,"50643-040 - Travaux de modernisation de chaufferies : Remplacer 5 chaudières au mazout par des chaudières électriques et optimiser les contrôles des bâtiments.","Commission scolaire des Laurentides","Potentiel de réduction de GES : 100 t CO2","Bâtiment",5,"15-Laurentides","Saint-Rémi d'Amherst, Labelle, La Minerve, Saint-Dona, Sainte-Marguerite","AC-Actif","SU-Subvention",245000,"2019-11-12","2024-06-30",347196,null,null,null,null,null,null,null,null,0,0,122500,122500,{"$f":"SUM(O53:W53)","v":0},{"$f":"SUM(O53:Z53)","v":245000}]
[30,"50643-041 - Agrandissement de l'école Jean-Nicolet : Mise en œuvre de mesures pour augmenter l'évitement d'émissions de GES","Commission scolaire de la Pointe-de-l'Île","Potentiel d'évitement de GES : 18,9 t CO2","Bâtiment",1,"06-Montréal","Montréal-Nord","AC-Actif","SU-Subvention",41599,"2019-10-21","2024-06-30",null,null,null,null,null,null,null,null,null,41599,0,0,0,{"$f":"SUM(O54:W54)","v":41599},{"$f":"SUM(O54:Z54)","v":41599}]
[31,"50643-018 - Projet de réduction et d'évitement (Agrandissement) de GES :  Ajout d'une chaudière électrique ainsi que d'une thermopompe","Centre de services scolaires de la Capitale","Potentiel d'évitement de GES : 21 t CO2","Bâtiment",1,"03-Capitale-Nationale","Québec","AC-Actif","SU-Subvention",57979,"2019-04-24","2023-12-31",null,null,null,null,null,null,null,null,null,55903.351799999997,2076,0,0,{"$f":"SUM(O55:W55)","v":55903.351799999997},{"$f":"SUM(O55:Z55)","v":57979.351799999997}]
[32,"50643-021 - Projet de modernisation de la chaufferie des 3 écoles : Remplacer les chaudières au mazout par une chaudière électrique","Commission scolaire Lester-B-Pearson","Potentiel de réduction de GES : 339 t CO2","Bâtiment",3,"06-Montréal","Montréal","AC-Actif","SU-Subvention",761548,"2019-04-24","2024-12-31",1002111,null,null,null,null,null,null,null,null,761548,0,0,0,{"$f":"SUM(O56:W56)","v":761548},{"$f":"SUM(O56:Z56)","v":761548}]
[33,"50643-054 - Agrandissement de l'école: Mise en œuvre de mesures pour augmenter l'évitement d'émissions de GES","Centre de services scolaires des Grandes Seigneuries","Potentiel d'évitement de GES : 28 t CO2","Bâtiment",1,"16-Montérégie","La Prairie","AC-Actif","SU-Subvention",60617,"2020-04-30","2025-12-31",null,null,null,null,null,null,null,null,null,60617,0,0,0,{"$f":"SUM(O57:W57)","v":60617},{"$f":"SUM(O57:Z57)","v":60617}]
[34,"50643-045 - Remplacer la chaudière au mazout par une chaudière électrique","Centre de services scolaires de la Seigneurie-des-Mille-Îles","Potentiel de réduction de GES : 339 t CO2","Bâtiment",2,"15-Laurentides","Sainte-Thérèse","AC-Actif","SU-Subvention",133420,"2020-04-06","2025-12-31",707934,null,null,null,null,null,null,null,null,133420,0,0,0,{"$f":"SUM(O58:W58)","v":133420},{"$f":"SUM(O58:Z58)","v":133420}]
[35,"50643-048 - Nouvelle école : Mise en œuvre de mesures pour augmenter l'évitement d'émissions de GES - Géothermie","Centre de services scolaires Marie-Victorin","Potentiel d'évitement de GES : 67 t CO2","Bâtiment",1,"16-Montérégie","Vauquelin","AC-Actif","SU-Subvention",147343,"2020-04-06","2025-12-31",null,null,null,null,null,null,null,null,null,146438,905,0,0,{"$f":"SUM(O59:W59)","v":146438},{"$f":"SUM(O59:Z59)","v":147343}]
[36,"50643-050 - Remplacement des systèmes CVAC et d'une chaudière au gaz naturel par une chaudière électrique","Pointe-de-l'Île","Potentiel de réduction de GES : 52 t CO2","Bâtiment",1,"06-Montréal","Montréal","AC-Actif","SU-Subvention",119400,"2020-04-06","2025-12-31",199858,null,null,null,null,null,null,null,null,119400,0,0,0,{"$f":"SUM(O60:W60)","v":119400},{"$f":"SUM(O60:Z60)","v":119400}]
[37,"50643-055 - Nouvelle école : Mise en œuvre de mesures pour augmenter l'évitement d'émissions de GES ","des-Trois-Lacs","Potentiel d'évitement de GES : 64 t CO2","Bâtiment",1,"16-Montérégie","Vaudreuil","AC-Actif","SU-Subvention",140822,"2020-04-06","2025-12-31",null,null,null,null,null,null,null,null,null,139414,1408,0,0,{"$f":"SUM(O61:W61)","v":139414},{"$f":"SUM(O61:Z61)","v":140822}]
[38,"50643-056 - Nouveau centre de formation : Mise en œuvre de mesures pour augmenter l'évitement d'émissions de GES ","des-Trois-Lacs","Potentiel d'évitement de GES : 24 t CO2","Bâtiment",1,"16-Montérégie","Vaudreuil","AC-Actif","SU-Subvention",52998,"2020-04-06","2025-12-31",null,null,null,null,null,null,null,null,null,52724.469324155631,274,0,0,{"$f":"SUM(O62:W62)","v":52724.469324155631},{"$f":"SUM(O62:Z62)","v":52998.469324155631}]
[39,"50643-057 - Remplacement des chaudières au Mazout par de la géothermie et une chaudière électrique","de Montréal","Potentiel de réduction de GES : 105 t CO2","Bâtiment",1,"06-Montréal","Montréal","AC-Actif","SU-Subvention",236000,"2020-04-06","2025-12-31",1716319,null,null,null,null,null,null,null,null,236000,0,null,0,{"$f":"SUM(O63:W63)","v":236000},{"$f":"SUM(O63:Z63)","v":236000}]
[40,"50643-061 - Projets de réduction des GES : Élimination des chaudières au mazout et installation d'un système de géothermie","de Saint-Hyacinthe","Potentiel de réduction de GES : 36 t CO2","Bâtiment",1,"16-Montérégie","Saint-Hyacinthe","AC-Actif","SU-Subvention",84200,"2020-04-06","2025-12-31",189200,null,null,null,null,null,null,null,null,0,0,42100,42100,{"$f":"SUM(O64:W64)","v":0},{"$f":"SUM(O64:Z64)","v":84200}]
[41,"50643-047 - Remplacer les chaudières au mazout par des chaudières électriques et des accumulateurs thermiques","des Affluents","Potentiel de réduction de GES : 281 t CO2","Bâtiment",3,"14-Lanaudière","Répentigny","AC-Actif","SU-Subvention",633200,"2020-04-08","2025-12-31",1162677,null,null,null,null,null,null,null,null,631649.54596819519,0,1550,0,{"$f":"SUM(O65:W65)","v":631649.54596819519},{"$f":"SUM(O65:Z65)","v":633199.54596819519}]
[42,"50643-042 - Projets de réduction des GES : Choix de géothermie et panneaux solaires - 3 bâtiments","des Découvreurs","Potentiel de réduction de GES : 337 t CO2","Bâtiment",3,"03-Capitale-Nationale","Québec","AC-Actif","SU-Subvention",827852,"2020-04-09","2025-12-31",1262265,null,null,null,null,null,null,null,null,318391.87920000002,0,509460,0,{"$f":"SUM(O66:W66)","v":318391.87920000002},{"$f":"SUM(O66:Z66)","v":827851.87920000008}]
[43,"50643-043 - Agrandissement de l'école: Mise en œuvre de mesures pour augmenter l'évitement d'émissions de GES","Kativik","Potentiel d'évitement de GES : 112 t CO2","Bâtiment",1,"06-Montréal","Salluit","AC-Actif","SU-Subvention",327091,"2020-04-16","2025-12-31",null,null,null,null,null,null,null,null,null,303441.97610223154,0,23649,0,{"$f":"SUM(O67:W67)","v":303441.97610223154},{"$f":"SUM(O67:Z67)","v":327090.97610223154}]
[44,"50643-044 - Nouvelle école : Mise en œuvre de mesures pour augmenter l'évitement d'émissions de GES - - Géothermie","de la Seigneurie-des-Mille-Îles","Potentiel d'évitement de GES : 63 t CO2","Bâtiment",1,"15-Laurentides","Mirabel","AC-Actif","SU-Subvention",138600,"2020-04-20","2025-12-31",null,null,null,null,null,null,null,null,null,138455.54463643345,144,0,0,{"$f":"SUM(O68:W68)","v":138455.54463643345},{"$f":"SUM(O68:Z68)","v":138599.54463643345}]
[45,"50643-052 - Nouvelle école : Mise en œuvre de mesures pour augmenter l'évitement d'émissions de GES ","des Grandes-Seigneuries","Potentiel d'évitement de GES : 69 t CO2","Bâtiment",1,"16-Montérégie","Châteauguay","AC-Actif","SU-Subvention",151571,"2020-04-20","2025-12-31",null,null,null,null,null,null,null,null,null,150813.14499999999,758,null,0,{"$f":"SUM(O69:W69)","v":150813.14499999999},{"$f":"SUM(O69:Z69)","v":151571.14499999999}]
[46,"50643-064 - Projets de réduction des GES : Plusieurs options - 11 bâtiments","de Rouyn-Noranda","Potentiel de réduction de GES : 1 181 t CO2","Bâtiment",11,"08-Abitibi-Témiscamingue","Plusieurs","AC-Actif","SU-Subvention",2653112,"2020-04-27","2025-12-31",4991853,null,null,null,null,null,null,null,null,2465304.3746513361,187808,null,0,{"$f":"SUM(O70:W70)","v":2465304.3746513361},{"$f":"SUM(O70:Z70)","v":2653112.3746513361}]
[47,"50643-046 - Projets de réduction des GES : Remplacer les chaudières au mazout par des chaudières électriques et réduction de l'utilisation des chaudières au gaz","de Montréal","Potentiel de réduction de GES : 989 t CO2","Bâtiment",8,"06-Montréal","Montréal","AC-Actif","SU-Subvention",2032653,"2020-04-27","2025-12-31",4372598,null,null,null,null,null,null,null,null,2032653,0,null,0,{"$f":"SUM(O71:W71)","v":2032653},{"$f":"SUM(O71:Z71)","v":2032653}]
[48,"50643-065 - Remplacer les chaudières au gaz par un système à haut rendement (géothermie)","New-Frontiers","Potentiel de réduction de GES : 75 t CO2","Bâtiment",3,"16-Montérégie","Châteauguay","AC-Actif","SU-Subvention",170301,"2020-04-29","2025-12-31",646542,null,null,null,null,null,null,null,null,17849.056720098582,67301,85150.5,0,{"$f":"SUM(O72:W72)","v":17849.056720098582},{"$f":"SUM(O72:Z72)","v":170300.5567200986}]
[49,"50643-066 - Projets de réduction des GES : Remplacer les chaudières de mazout par de la géothermie et des chaudières électriques","Eastern Towships","Potentiel de réduction de GES :  443 t CO2","Bâtiment",1,"11-Gaspésie-Iles-de-la-Madeleine","Magog","AC-Actif","SU-Subvention",979659,"2020-04-29","2025-12-31",2095151,null,null,null,null,null,null,null,null,924273.01358425419,55386,null,null,{"$f":"SUM(O73:W73)","v":924273.01358425419},{"$f":"SUM(O73:Z73)","v":979659.01358425419}]
[50,"50643-051 - Agrandissement de l'école: Mise en œuvre de mesures pour augmenter l'évitement d'émissions de GES","des Grandes-Seigneuries","Potentiel d'évitement de GES : 60 t CO2","Bâtiment",1,"16-Montérégie","Saint-Clotilde","AC-Actif","SU-Subvention",171971,"2020-04-30","2025-12-31",null,null,null,null,null,null,null,null,null,115037.66841937347,56933,null,0,{"$f":"SUM(O74:W74)","v":115037.66841937347},{"$f":"SUM(O74:Z74)","v":171970.66841937345}]
[51,"50643-063 - Nouvelle école : Mise en œuvre de mesures pour augmenter l'évitement d'émissions de GES - - Géothermie","Marie-Victorin","Potentiel d'évitement de GES : 72 t CO2","Bâtiment",1,"16-Montérégie","Longueuil","AC-Actif","SU-Subvention",158288,"2020-04-30","2025-12-31",null,null,null,null,null,null,null,null,null,157746.043816249,null,0,0,{"$f":"SUM(O75:W75)","v":157746.043816249},{"$f":"SUM(O75:Z75)","v":157746.043816249}]
[52,"50643-067 - Conversion de chaufferies de combustible fossile vers l'électricité","des Chênes","Potentiel de réduction de GES : 126 t CO2","Bâtiment",3,"17-Centre-du-Québec","Drummondville","AC-Actif","SU-Subvention",292695,"2020-04-30","2025-12-31",1124170,null,null,null,null,null,null,null,null,292695,null,0,0,{"$f":"SUM(O76:W76)","v":292695},{"$f":"SUM(O76:Z76)","v":292695}]
[53,"50643-068 - Projets de réduction des GES : Modernisation de chaufferie - 4 bâtiments (remplacer les chaudières à combustibles par des chaudières électriques et des thermopompes)","des Hauts-Cantons","Potentiel de réduction de GES : 337 t CO2","Bâtiment",4,"05-Estrie","East Angus","AC-Actif","SU-Subvention",760586,"2020-04-30","2025-12-31",1083997,null,null,null,null,null,null,null,null,654179.38101153902,106407,null,0,{"$f":"SUM(O77:W77)","v":654179.38101153902},{"$f":"SUM(O77:Z77)","v":760586.38101153902}]
[54,"50643-049 - Agrandissement de l'école: Mise en œuvre de mesures pour augmenter l'évitement d'émissions de GES","des Patriotes","Potentiel d'évitement de GES : 16,7 t CO2","Bâtiment",1,"16-Montérégie","Saint-Bruno-de-Montarville","AC-Actif","SU-Subvention",36795,"2020-04-30","2025-12-31",null,null,null,null,null,null,null,null,null,1806.6344999999999,0,34988,0,{"$f":"SUM(O78:W78)","v":1806.6344999999999},{"$f":"SUM(O78:Z78)","v":36794.6345}]
[55,"50643-069 - Remplacer les chaudières au gaz naturel par des chaudières électriques et chaudières au GN de plus petites puissances : 7 bâtiments","Marguérite-Bourgeoys","Potentiel de réduction de GES : 572 t CO2","Bâtiment",7,"06-Montréal","Montréal","AC-Actif","SU-Subvention",1293544,"2020-05-05","2025-12-31",3011247,null,null,null,null,null,null,null,null,1293544,null,0,0,{"$f":"SUM(O79:W79)","v":1293544},{"$f":"SUM(O79:Z79)","v":1293544}]
[56,"50643-070 - Projets de réduction des GES : modernisation de chaufferie - conversion del - ajout de climatisation - aérothermie","Sir-Wilfrid-Laurier","Potentiel de réduction de GES : 1 109 t CO2","Bâtiment",20,"15-Laurentides","Plusieurs","AC-Actif","SU-Subvention",2545530,"2020-05-14","2025-12-31",6519027,null,null,null,null,null,null,null,null,2418527.452512498,null,127003,0,{"$f":"SUM(O80:W80)","v":2418527.452512498},{"$f":"SUM(O80:Z80)","v":2545530.452512498}]
[57,"50643-053 - Agrandissement de l'école: Mise en œuvre de mesures pour augmenter l'évitement d'émissions de GES","des Grandes-Seigneuries","Potentiel d'évitement de GES : 53 t CO2","Bâtiment",1,"16-Montérégie","La Prairie","AC-Actif","SU-Subvention",121574,"2020-05-19","2025-12-31",null,null,null,null,null,null,null,null,null,91180.49239539112,0,30394,0,{"$f":"SUM(O81:W81)","v":91180.49239539112},{"$f":"SUM(O81:Z81)","v":121574.49239539112}]
[58,"50643-059 - Agrandissement de l'école: Mise en œuvre de mesures pour augmenter l'évitement d'émissions de GES","des Grandes-Seigneuries","Potentiel d'évitement de GES : 16,5 t CO2","Bâtiment",1,"16-Montérégie","La Prairie","AC-Actif","SU-Subvention",35464,"2020-05-21","2025-12-31",null,null,null,null,null,null,null,null,null,35464,0,null,0,{"$f":"SUM(O82:W82)","v":35464},{"$f":"SUM(O82:Z82)","v":35464}]
[59,"50643-074 - Nouvelle école : Mise en œuvre de mesures pour augmenter l'évitement d'émissions de GES ","Beauce-Etchemin","Potentiel d'évitement de GES : 72 t CO2","Bâtiment",1,"12-Chaudières-Appalaches","Saint-Georges","AC-Actif","SU-Subvention",158402,"2020-06-22","2025-12-31",null,null,null,null,null,null,null,null,null,57024.72,0,101377,0,{"$f":"SUM(O83:W83)","v":57024.72},{"$f":"SUM(O83:Z83)","v":158401.72}]
[60,"50643-073Remplacer des chaudières fonctionnant au combustible par de la géothermie","des Premières-Seigneuries","Potentiel de réduction de GES : 176 t CO2","Bâtiment",2,"03-Capitale-Nationale","Québec","AC-Actif","SU-Subvention",398223,"2020-07-15","2025-12-31",1149244,null,null,null,null,null,null,null,null,398223,0,null,0,{"$f":"SUM(O84:W84)","v":398223},{"$f":"SUM(O84:Z84)","v":398223}]
[61,"50643-071 - Projets de réduction des GES : Remplacer des chaudières à combustibles par de l'énergie renouvelable(électricité) dans 18 bâtiments","des Bois-Francs Nord","Potentiel de réduction de GES : 722 t CO2","Bâtiment",18,"17-Centre-du-Québec","Plusieurs","AC-Actif","SU-Subvention",1678794,"2020-07-16","2025-12-31",4178327,null,null,null,null,null,null,null,null,53292.024981214432,786105,839397,0,{"$f":"SUM(O85:W85)","v":53292.024981214432},{"$f":"SUM(O85:Z85)","v":1678794.0249812144}]
[62,"50643-058 - Remplacer des chaudières au gaz naturel par des chaudières électriques","Montréal","Potentiel de réduction de GES : 211 t CO2","Bâtiment",2,"06-Montréal","Montréal","AC-Actif","SU-Subvention",471495,"2020-07-15","2025-12-31",607541,null,null,null,null,null,null,null,null,471495,0,null,0,{"$f":"SUM(O86:W86)","v":471495},{"$f":"SUM(O86:Z86)","v":471495}]
[63,"50643-072 - Nouvelle école secondaire : Mise en œuvre de mesures pour augmenter l'évitement d'émissions de GES ","des Portages-de-l'Outaouais","Potentiel d'évitement de GES : 106 t CO2","Bâtiment",1,"07-Outaouais","Gatineau","AC-Actif","SU-Subvention",233739,"2020-07-16","2025-12-31",null,null,null,null,null,null,null,null,null,233252.02242510041,0,null,0,{"$f":"SUM(O87:W87)","v":233252.02242510041},{"$f":"SUM(O87:Z87)","v":233252.02242510041}]
[64,"50643-060 - Remplacer le système de chauffage à base de mazout par un système de chauffage géothermique","Saint-Hyacinthe","Potentiel de réduction de GES : 33 t CO2","Agricole",1,"16-Montérégie","Saint-Hyacinthe","AC-Actif","SU-Subvention",76766,"2020-07-17","2025-12-31",532190,null,null,null,null,null,null,null,null,0,0,38383,38383,{"$f":"SUM(O88:W88)","v":0},{"$f":"SUM(O88:Z88)","v":76766}]
[65,"50643-062 - Projet de réduction GES: Modernisation de la chaufferie de deux écoles - Remplacement des chaudières existantes et utilisation de l'électricité comme source d'énergie primaire","Hautes-Rivières","Potetiel de Réduction de GES : 71,0 tCO2","Bâtiment",2," 16-Montérégie "," Saint-Jean-sur-Richelieu "," AC-Actif "," SU-Subvention ",166200,"2020-04-06","2025-12-31",312638,null,null,null,null,null,null,null,null,166200,null,0,0,{"$f":"SUM(O89:W89)","v":166200},{"$f":"SUM(O89:Z89)","v":166200}]
[66,"50643-075 - Projet de réduction des GES: Modernisation de la chaufferie de l'immeuble Boisé-des-Pins","Chemin du Roy","Potetiel de Réduction de GES : 48,27 tCO2","Bâtiment",1," 04-Mauricie  "," Trois-Rivière "," AC-Actif "," SU-Subvention ",93792,"2021-03-22","2025-12-31",489415,null,null,null,null,null,null,null,null,0,0,46896,46896,{"$f":"SUM(O90:W90)","v":0},{"$f":"SUM(O90:Z90)","v":93792}]
[67,"50643-076 - Installation de systèmes aérothermiques, remplacement de chaudières au mazout par des chaudières électriques, conversion d'éclairage, optimisation de contrôles centralisés et de systèmes géothermiques.","Trois-Lacs","Potetiel de Réduction de GES : 850,4 tCO2","Bâtiment",12," 16-Montérégie "," Plusieurs "," AC-Actif "," SU-Subvention ",1930880,"2021-03-01","2025-12-31",3423840,null,null,null,null,null,null,null,null,1250124.324319087,0,680756,null,{"$f":"SUM(O91:W91)","v":1250124.324319087},{"$f":"SUM(O91:Z91)","v":1930880.324319087}]
[68,"50643-077 - Projets de réduction des GES: Modernisation de la chaufferie de l'école la Frontalière - installation d'un système d'aérothermie","Hauts-Cantons","Potetiel de Réduction de GES : 548,63 tCO2","Bâtiment",1," 05-Estrie "," Coaticook "," AC-Actif "," SU-Subvention ",1211984.1399999999,"2021-03-31","2025-12-31",1775727,null,null,null,null,null,null,null,null,7559.0000124737617,0,605992.06999999995,598433,{"$f":"SUM(O92:W92)","v":7559.0000124737617},{"$f":"SUM(O92:Z92)","v":1211984.0700124737}]
[69,"50643-078 - Nouveau centre de formation: Mise en œuvre de mesures pour augmenter l'évitement d'émissions de GES - utilisation de la géothermie","Affluents","Potetiel de Évitement de GES : 51.548 tCO2","Bâtiment",1," 14-Lanaudière "," Mascouche "," AC-Actif "," SU-Subvention ",113406,"2021-03-26","2025-12-31",null,null,null,null,null,null,null,null,null,0,0,56703,56703,{"$f":"SUM(O93:W93)","v":0},{"$f":"SUM(O93:Z93)","v":113406}]
[70,"50643-079 - Agrandissement de l'école Albert-Naud: Installation d'un système de chauffage électrique - installation d'une thermopompe","Lac-Saint-Jean","Potetiel de Évitement de GES : 81.1 tCO2","Bâtiment",1," 02-Saguenay- Lac-Saint-Jean "," Alma "," AC-Actif "," SU-Subvention ",188524,"2021-03-26","2025-12-31",null,null,null,null,null,null,null,null,null,183525.18098499419,4999,null,null,{"$f":"SUM(O94:W94)","v":183525.18098499419},{"$f":"SUM(O94:Z94)","v":188524.18098499419}]
[71,"50643-080 - Agrandissement de l'école Bon-Conseil: Installation d'un système de géothermie","Lac-Saint-Jean","Potetiel de Évitement de GES : 87.6 tCO2","Bâtiment",1," 02-Saguenay- Lac-Saint-Jean "," Hébertville "," AC-Actif "," SU-Subvention ",197723,"2021-03-26","2025-12-31",null,null,null,null,null,null,null,null,null,194343.61395158782,3379,null,null,{"$f":"SUM(O95:W95)","v":194343.61395158782},{"$f":"SUM(O95:Z95)","v":197722.61395158782}]
[72,"50643-081 - Nouveau centre de formation à Mirabel: Mise en œuvre de mesures pour augmenter l'évitement d'émissions de GES - système de géothermie","Seigneurie-des-Mille-Îles","Potetiel de Évitement de GES : 48,05 tCO2","Bâtiment",1," 15-Laurentides "," Mirabel "," AC-Actif "," SU-Subvention ",105710,"2020-10-03","2025-12-31",null,null,null,null,null,null,null,null,null,105710,null,0,0,{"$f":"SUM(O96:W96)","v":105710},{"$f":"SUM(O96:Z96)","v":105710}]
[73,"50643-082 - Projet de réduction des GES: Remplacement des chaudières existantes - 2 bâtiments","Hautes-Rivières","Potetiel de Réduction de GES : 198,37 tCO2","Bâtiment",2," 16-Montérégie "," Plusieurs "," AC-Actif "," SU-Subvention ",446417.5,"2021-03-31","2025-12-31",627860,null,null,null,null,null,null,null,null,446417.50427999999,0,null,null,{"$f":"SUM(O97:W97)","v":446417.50427999999},{"$f":"SUM(O97:Z97)","v":446417.50427999999}]
[74,"50643-083 - Projet de réduction GES: Installation de systèmes aérothermiques, conversion d'éclairage et optimisation de contrôles centralisés","Des Sommets","Potetiel de Réduction de GES : 643,7 tCO2","Bâtiment",5," 05-Estrie "," Plusieurs "," AC-Actif "," SU-Subvention ",1441140,"2021-02-10","2025-12-31",3205029,null,null,null,null,null,null,null,null,485967.75747217151,0,955172,null,{"$f":"SUM(O98:W98)","v":485967.75747217151},{"$f":"SUM(O98:Z98)","v":1441139.7574721714}]
[75,"50643-084 - Nouvelle école: Mise en œuvre de mesures pour favoriser l'évitement d'émissions de GES - système de géothermie","Eastern Townships","Potetiel de Évitement de GES : 38,17 tCO2","Bâtiment",1," 17-Centre-du-Québec "," Drummondville "," AC-Actif "," SU-Subvention ",83978,"2021-03-19","2025-12-31",null,null,null,null,null,null,null,null,null,0,0,41989,41989,{"$f":"SUM(O99:W99)","v":0},{"$f":"SUM(O99:Z99)","v":83978}]
[76,"50643-085 - Projet de réduction des GES: Modernisation des chaufferies - Installation de systèmes d'aérothermie (12 bâtiments)","Eastern Townships","Potetiel de Réduction de GES : 1 408,8 tCO2","Bâtiment",12," 05-Estrie "," Plusieurs "," AC-Actif "," SU-Subvention ",3159354,"2021-03-26","2025-12-31",4923554,null,null,null,null,null,null,null,null,0,0,1579677,1579677,{"$f":"SUM(O100:W100)","v":0},{"$f":"SUM(O100:Z100)","v":3159354}]
[77,"50643-087 - Projet de réduction des GES: Modernisation de la chaufferie de l'école Saint-Bonaventure - Remplacer les chaudières à l'huile par des chaudières électriques et une thermopompe","Chênes","Potetiel de Réduction de GES : 41,0 tCO2","Bâtiment",1," 17-Centre-du-Québec "," Saint-Bonaventure "," AC-Actif "," SU-Subvention ",95200,"2021-03-26","2025-12-31",349242,null,null,null,null,null,null,null,null,0,0,47600,47600,{"$f":"SUM(O101:W101)","v":0},{"$f":"SUM(O101:Z101)","v":95200}]
[78,"50643-088 - Agrandissement de l'école Desjardins: Modernisation de la chaufferie - Remplacement des chaudière au GN par un système hybride (géothermie et chaudière GN)","Région-de-Sherbrooke","Potetiel de Évitement de GES : 47,03 tCO2","Bâtiment",1," 05-Estrie "," Sherbrooke "," AC-Actif "," SU-Subvention ",139664,"2021-03-26","2025-12-31",415899,null,null,null,null,null,null,null,null,0,0,69832,69832,{"$f":"SUM(O102:W102)","v":0},{"$f":"SUM(O102:Z102)","v":139664}]
[79,"50643-089 - Agrandissement de l'école Cardinal-Roy: Installation d'un système de aérothermie et d'une chaudière électrique","de la Capitale","Potetiel de Évitement de GES : 33,42 tCO2","Bâtiment",1," 03-Capitale-Nationale "," Québec "," AC-Actif "," SU-Subvention ",73522,"2021-03-26","2025-12-31",null,null,null,null,null,null,null,null,null,7352.2000000000007,0,36761,29409,{"$f":"SUM(O103:W103)","v":7352.2000000000007},{"$f":"SUM(O103:Z103)","v":73522.2}]
[80,"50643-090 - Agrandissement de l'école Joseph-François-Perrault: Installation d'un système de aérothermie","de la Capitale","Potetiel de Évitement de GES : 39,03 tCO2","Bâtiment",1," 03-Capitale-Nationale "," Québec "," AC-Actif "," SU-Subvention ",85873,"2021-03-26","2025-12-31",null,null,null,null,null,null,null,null,null,8587.3000000000011,0,42936.5,34349,{"$f":"SUM(O104:W104)","v":8587.3000000000011},{"$f":"SUM(O104:Z104)","v":85872.8}]
[81,"50643-091 - Nouvelle Lab-École Limoilou: Mise en œuvre de mesures pour favoriser l'évitement d'émissions de GES - système d'aérothermie","de la Capitale","Potetiel de Évitement de GES : 51,03 tCO2","Bâtiment",1," 03-Capitale-Nationale "," Québec "," AC-Actif "," SU-Subvention ",112266,"2021-03-09","2025-12-31",null,null,null,null,null,null,null,null,null,84920.560972358944,0,27345,null,{"$f":"SUM(O105:W105)","v":84920.560972358944},{"$f":"SUM(O105:Z105)","v":112265.56097235894}]
[82,"50643-092 - Projet de réduction des GES: Modernisation de la chaufferie du centre Louis-Joliet - Système de géothermie","de la Capitale","Potetiel de Réduction de GES : 285,48 tCO2","Bâtiment",1," 03-Capitale-Nationale "," Québec "," AC-Actif "," SU-Subvention ",633057,"2021-03-31","2025-12-31",5881425,null,null,null,null,null,null,null,null,247926.18766076461,68602,316528.5,null,{"$f":"SUM(O106:W106)","v":247926.18766076461},{"$f":"SUM(O106:Z106)","v":633056.68766076467}]
[83,"50643-093 - Projet de réduction des GES:  Installation d'un système de géothermie - modernisation des chaufferies - 3 écoles","des Premières-Seigneuries","Potetiel de Réduction de GES : 570,91 tCO2","Bâtiment",3," 03-Capitale-Nationale "," Québec "," AC-Actif "," SU-Subvention ",1271200,"2021-03-26","2025-12-31",6437025,null,null,null,null,null,null,null,null,1271200,0,null,null,{"$f":"SUM(O107:W107)","v":1271200},{"$f":"SUM(O107:Z107)","v":1271200}]
[84,"50643-094 - Projet de réduction de GES: Modernisation des chaufferies - Installation de système de géothermie (Saint-Marc, secondaire de) et d'aréothermie (Saumonière)","Portneuf","Potetiel de Réduction de GES : 307,46 tCO2","Bâtiment",2," 03-Capitale-Nationale "," Plusieurs "," AC-Actif "," SU-Subvention ",686411,"2021-03-26","2025-12-31",1944351,null,null,null,null,null,null,null,null,686411,0,null,null,{"$f":"SUM(O108:W108)","v":686411},{"$f":"SUM(O108:Z108)","v":686411}]
[85,"50643-095 - Projet de réduction GES: Remplacement des chaudière au GN de l'école Saint-Thérèse par des thermopompes air-eau","Chemin du Roy","Potetiel de Réduction de GES : 40,73 tCO2","Bâtiment",1," 04-Mauricie  "," Trois-Rivière "," AC-Actif "," SU-Subvention ",94615,"2021-03-31","2025-12-31",512986,null,null,null,null,null,null,null,null,0,0,47307.5,47307.5,{"$f":"SUM(O109:W109)","v":0},{"$f":"SUM(O109:Z109)","v":94615}]
[86,"50643-096 - Agrandissement de l'école Saint-Joseph: Mise en œuvre de mesures pour favoriser l'évitement d'émissions de GES","Chemin du Roy","Potetiel de Évitement de GES : 24,42 tCO2","Bâtiment",1," 04-Mauricie  "," Maskinongé "," AC-Actif "," SU-Subvention ",53728,"2021-03-31","2025-12-31",null,null,null,null,null,null,null,null,null,0,0,26864,26864,{"$f":"SUM(O110:W110)","v":0},{"$f":"SUM(O110:Z110)","v":53728}]
[87,"50643-097 - Nouvelle école Sainte-Lucie: Mise en œuvre de mesures pour favoriser l'évitement d'émissions de GES ","CSDM","Potetiel de Évitement de GES : 58,53 tCO2","Bâtiment",1," 06-Montréal "," Montréal "," AC-Actif "," SU-Subvention ",128773,"2021-03-31","2025-12-31",null,null,null,null,null,null,null,null,null,128773,0,null,null,{"$f":"SUM(O111:W111)","v":128773},{"$f":"SUM(O111:Z111)","v":128773}]
[88,"50643-098 - Projet de réduction des GES: Modernisation des chaufferies de l'école Saint-Donas et du Centre de loisirs communautaires Lajeunesse","CSDM","Potetiel de Réduction de GES : 239,49 tCO2","Bâtiment",2," 06-Montréal "," Montréal "," AC-Actif "," SU-Subvention ",528650,"2021-03-09","2025-12-31",720718,null,null,null,null,null,null,null,null,482244.95671520371,0,46405,null,{"$f":"SUM(O112:W112)","v":482244.95671520371},{"$f":"SUM(O112:Z112)","v":528649.95671520371}]
[89,"50643-099 - Projet de réduction des GES: Modernisation de chaufferies - 23 bâtiments","CSDM","Potetiel de Réduction de GES : 2 664,26 tCO2","Bâtiment",23," 06-Montréal "," Montréal "," AC-Actif "," SU-Subvention ",5976363,"2021-03-26","2025-12-31",6547839,null,null,null,null,null,null,null,null,4119645.4735684665,1856718,null,null,{"$f":"SUM(O113:W113)","v":4119645.4735684665},{"$f":"SUM(O113:Z113)","v":5976363.4735684665}]
[90,"50643-100 - Projet de réduction des GES: Remplacement de certaines chaudières au gaz par des chaudières électriques -- 2 bâtiments","Marguérite-Bourgeoys","Potetiel de Réduction de GES : 175,46 tCO2","Bâtiment",2," 06-Montréal "," Montréal "," AC-Actif "," SU-Subvention ",396016,"2021-03-31","2025-12-31",618251,null,null,null,null,null,null,null,null,0,0,198008,198008,{"$f":"SUM(O114:W114)","v":0},{"$f":"SUM(O114:Z114)","v":396016}]
[91,"50643-101 - Projet de réduction des GES: Modernisation de la chaufferie de l'école Dollard-des-Ormeaux - Remplacement des chaudière au GN par un système hybride (électrique et GN)","Marguérite-Bourgeoys","Potetiel de Réduction de GES : 76,26 tCO2","Bâtiment",1," 06-Montréal "," Montréal "," AC-Actif "," SU-Subvention ",136640,"2021-03-31","2025-12-31",136640,null,null,null,null,null,null,null,null,0,0,68320,68320,{"$f":"SUM(O115:W115)","v":0},{"$f":"SUM(O115:Z115)","v":136640}]
[92,"50643-102 - Projet de réduction des GES:  Remplacement des chaudière au GN de l'école Saint-Clément Ouest par un système hybride (électrique et GN)","Marguérite-Bourgeoys","Potetiel de Réduction de GES : 153,19 tCO2","Bâtiment",1," 06-Montréal "," Mont-Royal "," AC-Actif "," SU-Subvention ",191727,"2021-03-31","2025-12-31",191727,null,null,null,null,null,null,null,null,0,0,95863.5,95863.5,{"$f":"SUM(O116:W116)","v":0},{"$f":"SUM(O116:Z116)","v":191727}]
[93,"50643-103 - Projet de réduction des GES:  Remplacement des chaudière au GN de l'édifice Bois-Franc de l'école Bois-Franc-Aquarelle par un système hybride (électrique et GN)","Marguérite-Bourgeoys","Potetiel de Réduction de GES : 102,74 tCO2","Bâtiment",1," 06-Montréal "," Montréal "," AC-Actif "," SU-Subvention ",148897,"2021-03-31","2025-12-31",148897,null,null,null,null,null,null,null,null,0,0,74448.5,74448.5,{"$f":"SUM(O117:W117)","v":0},{"$f":"SUM(O117:Z117)","v":148897}]
[94,"50643-104 - Agrandissement de l'école Beau-Séjour Sud: ajout d'une chaudière électrique","Marguérite-Bourgeoys","Potetiel de Évitement de GES : 45,39 tCO2","Bâtiment",1," 06-Montréal "," Montréal "," AC-Actif "," SU-Subvention ",95743,"2021-03-31","2025-12-31",95743,null,null,null,null,null,null,null,null,0,0,47871.5,47871.5,{"$f":"SUM(O118:W118)","v":0},{"$f":"SUM(O118:Z118)","v":95743}]
[95,"50643-105 - Projet de réduction des GES: remplacement d'une chaudière GN de l'école Sainte-Geneviève Ouest par une chaudière électrique, installation d'un système de ventilation avec récupération de chaleur","Marguérite-Bourgeoys","Potetiel de Réduction de GES : 107,94 tCO2","Bâtiment",1," 06-Montréal "," Montréal "," AC-Actif "," SU-Subvention ",153017,"2021-03-31","2025-12-31",153017,null,null,null,null,null,null,null,null,0,0,76508.5,76508.5,{"$f":"SUM(O119:W119)","v":0},{"$f":"SUM(O119:Z119)","v":153017}]
[96,"50643-106 - Projet de réduction des GES: Modernisation de la chaufferie de l'école Pointe-Claire - Remplacement des chaudière au GN par un système hybride (chaudière électrique et chaudière GN)","Marguérite-Bourgeoys","Potetiel de Réduction de GES : 109,87 tCO2","Bâtiment",1," 06-Montréal "," Pointe-Claire "," AC-Actif "," SU-Subvention ",164147,"2021-03-31","2025-12-31",164147,null,null,null,null,null,null,null,null,0,0,82073.5,82073.5,{"$f":"SUM(O120:W120)","v":0},{"$f":"SUM(O120:Z120)","v":164147}]
[97,"50643-107 - Projet de réduction des GES: ajout de thermopompes en parallèles au système éxistant de l'école Nouvelle-Querbes","Marguérite-Bourgeoys","Potetiel de Réduction de GES : 42,97 tCO2","Bâtiment",1," 06-Montréal "," Montréal "," AC-Actif "," SU-Subvention ",99543,"2021-03-31","2025-12-31",729815,null,null,null,null,null,null,null,null,0,0,49771.5,49771.5,{"$f":"SUM(O121:W121)","v":0},{"$f":"SUM(O121:Z121)","v":99543}]
[98,"50643-108 - Projet de réduction des GES: Modernisation de la chaufferie de l'édifice 290 Deslauriers - Remplacement des chaudière au GN par un système hybride (chaudière électrique et chaudière GN)","Marguérite-Bourgeoys","Potetiel de Réduction de GES : 77,84 tCO2","Bâtiment",1," 06-Montréal "," Montréal "," AC-Actif "," SU-Subvention ",175755,"2021-03-31","2025-12-31",197400,null,null,null,null,null,null,null,null,0,0,87877.5,87877.5,{"$f":"SUM(O122:W122)","v":0},{"$f":"SUM(O122:Z122)","v":175755}]
[99,"50643-109 - Projet de réduction des GES: Remplacer la chaudière au GN de l'édifice Filion du CEA Outremont par des chaudières électriques","Marguérite-Bourgeoys","Potetiel de Réduction de GES : 18,48 tCO2","Bâtiment",1," 06-Montréal "," Montréal "," AC-Actif "," SU-Subvention ",45147,"2021-03-09","2025-12-31",193277,null,null,null,null,null,null,null,null,0,0,22573.5,22573.5,{"$f":"SUM(O123:W123)","v":0},{"$f":"SUM(O123:Z123)","v":45147}]
[100,"50643-110 - Projet de réduction des GES: Remplacer les chaudières au GN du centre d'éducation d'Outremont par des chaudières électriques","Marguérite-Bourgeoys","Potetiel de Réduction de GES : 117,59 tCO2","Bâtiment",1," 06-Montréal "," Montréal "," AC-Actif "," SU-Subvention ",263196,"2021-03-31","2025-12-31",290115,null,null,null,null,null,null,null,null,0,0,131598,131598,{"$f":"SUM(O124:W124)","v":0},{"$f":"SUM(O124:Z124)","v":263196}]
[101,"50643-111 - Agrandissement de l'école Saint-Rémi: Mise en œuvre de mesures pour favoriser l'évitement d'émissions de GES - Chaufferies séparées","Marguérite-Bourgeoys","Potetiel de Évitement de GES : 37,46 tCO2","Bâtiment",1," 06-Montréal "," Beaconsfield "," AC-Actif "," SU-Subvention ",82410,"2021-03-18","2025-12-31",null,null,null,null,null,null,null,null,null,0,0,41205,41205,{"$f":"SUM(O125:W125)","v":0},{"$f":"SUM(O125:Z125)","v":82410}]
[102,"50643-112 - Agrandissement de l'école La Source: Mise en œuvre de mesures pour favoriser l'évitement d'émissions de GES","Affluents","Potetiel de Évitement de GES : 9,01 tCO2","Bâtiment",1," 14-Lanaudière "," Mascouche "," AC-Actif "," SU-Subvention ",19822,"2021-03-26","2025-12-31",null,null,null,null,null,null,null,null,null,0,0,9911,9911,{"$f":"SUM(O126:W126)","v":0},{"$f":"SUM(O126:Z126)","v":19822}]
[103,"50643-113 - Agrandissement de l'école Félix-Leclerc: Mise en œuvre de mesures pour favoriser l'évitement d'émissions de GES - ajout d'un système de géothermie","Affluents","Potetiel de Évitement de GES : 18,44 tCO2","Bâtiment",1," 14-Lanaudière "," Repentigny "," AC-Actif "," SU-Subvention ",39371,"2021-03-31","2025-12-31",null,null,null,null,null,null,null,null,null,0,0,19685.5,19685.5,{"$f":"SUM(O127:W127)","v":0},{"$f":"SUM(O127:Z127)","v":39371}]
[104,"50643-114 - Agrandissement de l'école Gareau: Mise en œuvre de mesures pour favoriser l'évitement d'émissions de GES - ajout d'un système de géothermie","Affluents","Potetiel de Évitement de GES : 37,32 tCO2","Bâtiment",1," 14-Lanaudière "," L'Assomption "," AC-Actif "," SU-Subvention ",82093,"2021-03-31","2025-12-31",null,null,null,null,null,null,null,null,null,0,0,41046.5,41046.5,{"$f":"SUM(O128:W128)","v":0},{"$f":"SUM(O128:Z128)","v":82093}]
[105,"50643-115 - Projet de réduction des GES: Remplacement des systèmes fonctionnant au GN par des systèmes électriques - 2 bâtiments","Affluents","Potetiel de Réduction de GES : 102,41 tCO2","Bâtiment",2," 14-Lanaudière "," Plusieurs "," AC-Actif "," SU-Subvention ",235306,"2021-03-31","2025-12-31",378514,null,null,null,null,null,null,null,null,0,0,117653,117653,{"$f":"SUM(O129:W129)","v":0},{"$f":"SUM(O129:Z129)","v":235306}]
[106,"50643-116 - Agrandissement des écoles: Installation de systèmes d'aérothermie - 3 bâtiments","Samares","Potetiel de Évitement de GES : 51,0 tCO2","Bâtiment",3," 14-Lanaudière "," Plusieurs "," AC-Actif "," SU-Subvention ",112200,"2021-03-09","2025-12-31",null,null,null,null,null,null,null,null,null,100980,0,11220,null,{"$f":"SUM(O130:W130)","v":100980},{"$f":"SUM(O130:Z130)","v":112200}]
[107,"50643-117 - Nouvelle école secondaire Mirabel: Mise en œuvre de mesures pour favoriser l'évitement d'émissions de GES ","Seigneurie-des-Mille-Îles","Potetiel de Évitement de GES : 248,0 tCO2","Bâtiment",1," 14-Lanaudière "," N/D "," AC-Actif "," SU-Subvention ",545600,"2021-03-09","2025-12-31",null,null,null,null,null,null,null,null,null,0,0,272800,272800,{"$f":"SUM(O131:W131)","v":0},{"$f":"SUM(O131:Z131)","v":545600}]
[108,"50643-118 - Modernisation de la chaufferie: Transformation de l'aile Girouard  en école - installation d'un système de géothermie","Saint-Hyacinthe","Potetiel de Réduction de GES : 69,9 tCO2","Bâtiment",1," 16-Montérégie "," Saint-Hyacinthe "," AC-Actif "," SU-Subvention ",153780,"2021-03-31","2025-12-31",null,null,null,null,null,null,null,null,null,78072.923076923078,0,75707,null,{"$f":"SUM(O132:W132)","v":78072.923076923078},{"$f":"SUM(O132:Z132)","v":153779.92307692306}]
[109,"50643-119 - Projet de réduction des GES: ajout d'un système de géothermie en parallèles au système éxistant de l'école Christ-Roi","Marie-Victorin","Potetiel de Réduction de GES : 47,89 tCO2","Bâtiment",1," 16-Montérégie "," Longueuil "," AC-Actif "," SU-Subvention ",110380,"2021-03-31","2025-12-31",189891,null,null,null,null,null,null,null,null,0,0,55190,55190,{"$f":"SUM(O133:W133)","v":0},{"$f":"SUM(O133:Z133)","v":110380}]
[110,"50643-120 - Agrandissement de l'école Christ-Roi: Installation d'un système de géothermie","Marie-Victorin","Potetiel de Évitement de GES : 52,0 tCO2","Bâtiment",1," 16-Montérégie "," Longueuil "," AC-Actif "," SU-Subvention ",114400,"2021-03-31","2025-12-31",null,null,null,null,null,null,null,null,null,0,0,57200,57200,{"$f":"SUM(O134:W134)","v":0},{"$f":"SUM(O134:Z134)","v":114400}]
[111,"50643-121 - Nouvelle construction: Mise en œuvre de mesures pour favoriser l'évitement d'émissions de GES - immeuble des Glaieuls - utilisation de la géothermie","Marie-Victorin","Potetiel de Évitement de GES : 75,12 tCO2","Bâtiment",1," 16-Montérégie "," Longueuil "," AC-Actif "," SU-Subvention ",165508,"2021-03-09","2025-12-31",null,null,null,null,null,null,null,null,null,0,0,82754,82754,{"$f":"SUM(O135:W135)","v":0},{"$f":"SUM(O135:Z135)","v":165508}]
[112,"50643-122 - Agrandissement de l'école Saint-Michelle-Archange: Remplacer la chaudière au mazout par un système de géothermie","Grandes-Seigneuries","Potetiel de Évitement de GES : 124,25 tCO2","Bâtiment",1," 16-Montérégie "," Saint-Michel "," AC-Actif "," SU-Subvention ",278343,"2021-03-26","2025-12-31",2488170,null,null,null,null,null,null,null,null,0,0,139171.5,139171.5,{"$f":"SUM(O136:W136)","v":0},{"$f":"SUM(O136:Z136)","v":278343}]
[113,"50643-123 - Nouvelle école Saint-Sylvère: Mise en œuvre de mesures pour augmenter l'évitement d'émissions de GES - système d'aérothermie","Riveraine","Potetiel de Évitement de GES : 22,0 tCO2","Bâtiment",1," 17-Centre-du-Québec "," Saint-Sylvère "," AC-Actif "," SU-Subvention ",48407,"2021-03-22","2025-12-31",null,null,null,null,null,null,null,null,null,0,0,24203.5,24203.5,{"$f":"SUM(O137:W137)","v":0},{"$f":"SUM(O137:Z137)","v":48407}]
[114,"50643-124 - Nouvelle école Saint-Célestin: Mise en œuvre de mesures pour favoriser l'évitement d'émissions de GES - système d'aérothermie","Riveraine","Potetiel de Évitement de GES : 32,25 tCO2","Bâtiment",1," 17-Centre-du-Québec "," Saint-Célestin "," AC-Actif "," SU-Subvention ",70957,"2021-03-18","2025-12-31",null,null,null,null,null,null,null,null,null,53217.75,0,17739,null,{"$f":"SUM(O138:W138)","v":53217.75},{"$f":"SUM(O138:Z138)","v":70956.75}]
[115,"50643-125 - Nouvelle Lab-école Shefford: Mise en œuvre de mesures pour favoriser l'évitement d'émissions de GES","Val-des-Cerfs","Potetiel de Évitement de GES : 49,14 tCO2","Bâtiment",1," 16-Montérégie "," Shefford "," AC-Actif "," SU-Subvention ",108099,"2021-03-26","2025-12-31",null,null,null,null,null,null,null,null,null,1473.6349813360239,0,54049.5,52576,{"$f":"SUM(O139:W139)","v":1473.6349813360239},{"$f":"SUM(O139:Z139)","v":108099.13498133601}]
[116,"50643-126 - Projet de réduction de GES: Modernisation des chaufferies - Installation de système de géothermie (Nouvelles-Technologies) et remplacement des chaudières au mazout par des électriques (Rose-des-Vents et Lucioles)","Seigneurie-des-Mille-Îles","Potetiel de Réduction de GES : 194,52 tCO2","Bâtiment",3," 15-Laurentides "," Plusieurs "," AC-Actif "," SU-Subvention ",442945.25,"2021-03-31","2025-12-31",3094756,null,null,null,null,null,null,null,null,442945.25,0,null,null,{"$f":"SUM(O140:W140)","v":442945.25},{"$f":"SUM(O140:Z140)","v":442945.25}]
[117,"50643-127 - Projet de réduction des GES: Modernisation des chaufferies - Installation de systèmes de géothermies - 3 bâtiments","CSDM","Potetiel de Réduction de GES : 436,99 tCO2","Bâtiment",3," 06-Montréal "," Montréal "," AC-Actif "," SU-Subvention ",976378,"2021-03-31","2025-12-31",1243059,null,null,null,null,null,null,null,null,697689.97069380095,0,278688,null,{"$f":"SUM(O141:W141)","v":697689.97069380095},{"$f":"SUM(O141:Z141)","v":976377.97069380095}]
[118,"50643-128 - Nouvelle écoles Longue-Pointe: Mise en œuvre de mesures pour augmenter l'évitement d'émissions de GES - Géothermie","CSDM","Potetiel de Évitement de GES : 80,09 tCO2","Bâtiment",1," 06-Montréal "," Montréal "," AC-Actif "," SU-Subvention ",175569,"2021-03-31","2025-12-31",null,null,null,null,null,null,null,null,null,76838.116062100831,0,87784.5,10946,{"$f":"SUM(O142:W142)","v":76838.116062100831},{"$f":"SUM(O142:Z142)","v":175568.61606210083}]
[119,"50643-129 - Nouvelle Lab-école Marguerite-d-Youville: Mise en œuvre de mesures pour favoriser l'évitement d'émissions de GES ","Rives-Du-Saguenay","Potetiel de Évitement de GES : 48,36 tCO2","Bâtiment",1," 02-Saguenay- Lac-Saint-Jean "," Saguenay "," AC-Actif "," SU-Subvention ",106389.8,"2021-03-31","2025-12-31",null,null,null,null,null,null,null,null,null,0,0,53194.9,53194.9,{"$f":"SUM(O143:W143)","v":0},{"$f":"SUM(O143:Z143)","v":106389.8}]
[120,"50643-130 - Nouvelle école à Blainville, secteur Chambéry : Mise en œuvre de mesures pour augmenter l'évitement d'émissions de GES - Systèmes de géothermie","Seigneurie-des-Mille-Îles","Potetiel de Évitement de GES : 363,36 tCO2","Bâtiment",1," 15-Laurentides "," Blainville "," AC-Actif "," SU-Subvention ",146887,"2021-03-26","2025-12-31",null,null,null,null,null,null,null,null,null,0,0,73443.5,73443.5,{"$f":"SUM(O144:W144)","v":0},{"$f":"SUM(O144:Z144)","v":146887}]
[121,"50643-131 - Nouvelle école Léry : Mise en œuvre de mesures pour augmenter l'évitement d'émissions de GES - système de géothermie","Grandes-Seigneuries","Potetiel de Évitement de GES : 67,32 tCO2","Bâtiment",1," 16-Montérégie "," Léry "," AC-Actif "," SU-Subvention ",148095.20000000001,"2021-03-26","2025-12-31",null,null,null,null,null,null,null,null,null,0,0,74047.600000000006,74047.600000000006,{"$f":"SUM(O145:W145)","v":0},{"$f":"SUM(O145:Z145)","v":148095.20000000001}]
[122,"50643-132 - Agrandissment de l'école Deux-Soleils:  Remplacement de 2 chaudières au mazout - Installation de thermopompe","Des Sommets","Potetiel de Évitement de GES : 41,23 tCO2","Bâtiment",2," 05-Estrie "," Magog "," AC-Actif "," SU-Subvention ",95706,"2021-03-31","2025-12-31",null,null,null,null,null,null,null,null,null,0,0,47853,47853,{"$f":"SUM(O146:W146)","v":0},{"$f":"SUM(O146:Z146)","v":95706}]
[123,"50643-133 - Projet de réduction de GES: Piscine Sylvie-Bernier - Conversion vers géothermie","des Découvreurs","Potetiel de Réduction de GES : 337,49 tCO2","Bâtiment",1," 03-Capitale-Nationale "," Québec "," AC-Actif "," SU-Subvention ",747487,"2021-03-31","2025-12-31",1395121,null,null,null,null,null,null,null,null,0,0,373743.5,373743.5,{"$f":"SUM(O147:W147)","v":0},{"$f":"SUM(O147:Z147)","v":747487}]
[124,"50643-134 - Nouvelle école à Mirabel, secteur Domaine-Vert-Nord 2: Mise en œuvre de mesures pour favoriser l'évitement d'émissions de GES - Système de géothermie - ","Seigneurie-des-Mille-Îles","Potetiel de Évitement de GES : 48,45 tCO2","Bâtiment",1," 15-Laurentides "," Mirabel "," AC-Actif "," SU-Subvention ",106579,"2021-03-26","2025-12-31",null,null,null,null,null,null,null,null,null,0,0,53289.5,53289.5,{"$f":"SUM(O148:W148)","v":0},{"$f":"SUM(O148:Z148)","v":106579}]
[125,"50643-135 - Nouvelle école Saint-Augustin : Mise en œuvre de mesures pour augmenter l'évitement d'émissions de GES - Systèmes de géothermie - ","Seigneurie-des-Mille-Îles","Potetiel de Évitement de GES : 45,9 tCO2","Bâtiment",1," 15-Laurentides "," Mirabel "," AC-Actif "," SU-Subvention ",100989,"2021-03-26","2025-12-31",null,null,null,null,null,null,null,null,null,19543.367142730371,0,50494.5,30951,{"$f":"SUM(O149:W149)","v":19543.367142730371},{"$f":"SUM(O149:Z149)","v":100988.86714273036}]
[126,"50643-136 - Nouvelle école à Ste-Marthe-sur-le-Lac : Mise en œuvre de mesures pour augmenter l'évitement d'émissions de GES - Systèmes de géothermie -","Seigneurie-des-Mille-Îles","Potetiel de Évitement de GES : 66,77 tCO2","Bâtiment",1," 15-Laurentides "," Sainte-Marthe-sur-le-Lac "," AC-Actif "," SU-Subvention ",146887,"2021-03-26","2025-12-31",null,null,null,null,null,null,null,null,null,0,0,73443.5,73443.5,{"$f":"SUM(O150:W150)","v":0},{"$f":"SUM(O150:Z150)","v":146887}]
[127,"50643-137 - Nouvelle école à Terrebonne 640N: Mise en œuvre de mesures pour augmenter l'évitement d'émissions de GES - Systèmes de géothermie -","Seigneurie-des-Mille-Îles","Potetiel de Évitement de GES : 58,11 tCO2","Bâtiment",1," 14-Lanaudière "," Terrebonne "," AC-Actif "," SU-Subvention ",127846,"2021-03-26","2025-12-31",null,null,null,null,null,null,null,null,null,0,0,63923,63923,{"$f":"SUM(O151:W151)","v":0},{"$f":"SUM(O151:Z151)","v":127846}]
[128,"50643-138 - Nouvelle école à Terrebonne (Urbanova): Mise en œuvre de mesures pour augmenter l'évitement d'émissions de GES - Systèmes de géothermie -","Seigneurie-des-Mille-Îles","Potetiel de Évitement de GES : 77,37 tCO2","Bâtiment",1," 14-Lanaudière "," Terrebonne "," AC-Actif "," SU-Subvention ",170212,"2021-03-26","2025-12-31",null,null,null,null,null,null,null,null,null,0,0,85106,85106,{"$f":"SUM(O152:W152)","v":0},{"$f":"SUM(O152:Z152)","v":170212}]
[129,"50643-139 - Nouveau Complexe Multi-sports Polyvalente de St-Georges: Mise en œuvre de mesures pour augmenter l'évitement d'émissions de GES - système d'aérothermie","Beauce-Etchemin","Potetiel de Évitement de GES : 39,69 tCO2","Bâtiment",1," 12-Chaudières-Appalaches "," Saint-Georges "," AC-Actif "," SU-Subvention ",87307,"2021-03-31","2025-12-31",null,null,null,null,null,null,null,null,null,0,0,43653.5,43653.5,{"$f":"SUM(O153:W153)","v":0},{"$f":"SUM(O153:Z153)","v":87307}]
[130,"50643-140 - Agrandissement de l'école Marie-Victorin: Mise en œuvre de mesures pour favoriser l'évitement d'émissions de GES - utilisation de la géothermie","Marie-Victorin","Potetiel de Évitement de GES : 38,81 tCO2","Bâtiment",1," 16-Montérégie "," Brossard "," AC-Actif "," SU-Subvention ",85382,"2021-03-31","2025-12-31",null,null,null,null,null,null,null,null,null,17429.607825350991,0,42691,25261,{"$f":"SUM(O154:W154)","v":17429.607825350991},{"$f":"SUM(O154:Z154)","v":85381.607825350991}]
[131,"50643-141 - Projet de réduction GES: Modernisation de chaufferie de l'école Marie-Victorin: Système de chauffage lié à l'agrandissement - géothermie","Marie-Victorin","Potetiel de Réduction de GES : 43,69 tCO2","Bâtiment",1," 16-Montérégie "," Brossard "," AC-Actif "," SU-Subvention ",101140,"2021-03-31","2025-12-31",202896,null,null,null,null,null,null,null,null,0,0,50570,50570,{"$f":"SUM(O155:W155)","v":0},{"$f":"SUM(O155:Z155)","v":101140}]
[132,"50643-144 - Projet de réduction GES: Modernisation de la chaufferie de l'école Bois-Joli: Remplacement des chaudières GN par système hybride (électrique et GN)","Draveurs","Potetiel de Réduction de GES : 55,9 tCO2","Bâtiment",1," 07-Outaouais "," Gatineau "," AC-Actif "," SU-Subvention ",127985.7,"2021-03-31","2025-12-31",138746,null,null,null,null,null,null,null,null,0,0,63992.85,63992.85,{"$f":"SUM(O156:W156)","v":0},{"$f":"SUM(O156:Z156)","v":127985.7}]
[133,"50643-145 - Agrandissement de l'école primaire Du Phare: Mise en œuvre de mesure pour favoriser l'évitement d'émission de GES","Cote-du-sud","Potetiel de Évitement de GES : 12,68 tCO2","Bâtiment",1," 12-Chaudières-Appalaches "," Saint-Michel-de-Bellechasse "," AC-Actif "," SU-Subvention ",27900,"2021-03-31","2025-12-31",null,null,null,null,null,null,null,null,null,0,0,13950,13950,{"$f":"SUM(O157:W157)","v":0},{"$f":"SUM(O157:Z157)","v":27900}]
[134,"50643-146 - Projet de réduction GES: Modernisation de chaufferies: Remplacement chaudières au GN par des électriques - 3 bâtiments","Marguérite-Bourgeoys","Potetiel de Réduction de GES : 198,06 tCO2","Bâtiment",3," 06-Montréal "," Montréal "," AC-Actif "," SU-Subvention ",450733.06,"2021-03-31","2025-12-31",932818,null,null,null,null,null,null,null,null,0,0,225366.53,225366.53,{"$f":"SUM(O158:W158)","v":0},{"$f":"SUM(O158:Z158)","v":450733.06}]
[135,"50643-147 - Agrandissement de l'école Maclean: Mise en oeuvre de mesure pour favoriser l'évitement d'émission de GES","Central Québec","Potetiel de Évitement de GES : 31,39 tCO2","Bâtiment",1," 10-Nord-du-Québec "," Chibougamau "," AC-Actif "," SU-Subvention ",69058,"2021-03-31","2025-12-31",null,null,null,null,null,null,null,null,null,0,0,34529,34529,{"$f":"SUM(O159:W159)","v":0},{"$f":"SUM(O159:Z159)","v":69058}]
[136,"50643-149 - Projet de réduction GES: Modernisation de chaufferies dans 3 écoles","CSDM","Potetiel de Réduction de GES : 825,66 tCO2","Bâtiment",3," 06-Montréal "," Montréal "," AC-Actif "," SU-Subvention ",1831453.54,"2021-03-31","2025-12-31",5767568,null,null,null,null,null,null,null,null,0,0,915726.77,915726.77,{"$f":"SUM(O160:W160)","v":0},{"$f":"SUM(O160:Z160)","v":1831453.54}]
[137,"50643-151 - Agrandissement de École secondaire Mont-Royal: Mise en oeuvre de mesure pour favoriser l'évitement d'émission de GES - chaufferies séparées","Marguérite-Bourgeoys","Potetiel de Évitement de GES : 42,94 tCO2","Bâtiment",1," 06-Montréal "," Montréal "," AC-Actif "," SU-Subvention ",94476.800000000003,"2021-03-09","2025-12-31",null,null,null,null,null,null,null,null,null,0,0,47238.400000000001,47238.400000000001,{"$f":"SUM(O161:W161)","v":0},{"$f":"SUM(O161:Z161)","v":94476.800000000003}]
[138,"50643-152 - Projet de réduction GES: Modernisation de la chaufferie de l'école Marguerite-Bourgeoys","Hautes-Rivières","Potetiel de Réduction de GES : 119,93 tCO2","Bâtiment",1," 16-Montérégie "," Saint-Jean-sur-Richelieu "," AC-Actif "," SU-Subvention ",268853,"2021-03-31","2025-12-31",1485202,null,null,null,null,null,null,null,null,0,0,134426.5,134426.5,{"$f":"SUM(O162:W162)","v":0},{"$f":"SUM(O162:Z162)","v":268853}]
[139,"50643-153 - Projet de réduction GES: Rénovation de chaufferie du bâtiment Le 4835, avenue Christophe-Colomb (762059)","CSDM","Potetiel de Réduction de GES : 152,85 tCO2","Bâtiment",1," 06-Montréal "," Montréal "," AC-Actif "," SU-Subvention ",341262,"2021-03-31","2025-12-31",429561,null,null,null,null,null,null,null,null,0,0,170631,170631,{"$f":"SUM(O163:W163)","v":0},{"$f":"SUM(O163:Z163)","v":341262}]
[140,"50643-154 - Projet de réduction de GES: Modernisation des systèmes de ventilation fonctionnant au gaz de l'école Professionnelle des métiers, édifice Laurier (596)  par des électriques.","Hautes-Rivières","Potetiel de Réduction de GES : 119,93 tCO2","Bâtiment",1," 16-Montérégie "," Saint-Jean-sur-Richelieu "," AC-Actif "," SU-Subvention ",160838,"2021-03-31","2025-12-31",1485202,null,null,null,null,null,null,null,null,0,0,80419,80419,{"$f":"SUM(O164:W164)","v":0},{"$f":"SUM(O164:Z164)","v":160838}]
[141,"50643-155 - Modernisation des chaufferies: Remplacement des chaudières GN par chaudière électrique et installation d'un système d'aérothermie (N-D-d-L)","Hautes-Rivières","Potetiel de Réduction de GES : 131,36 tCO2","Bâtiment",2," 16-Montérégie "," Saint-Jean-sur-Richelieu "," AC-Actif "," SU-Subvention ",298996.77,"2021-03-31","2025-12-31",851157,null,null,null,null,null,null,null,null,0,0,149498.38,149498.38,{"$f":"SUM(O165:W165)","v":0},{"$f":"SUM(O165:Z165)","v":298996.76}]
[142,"50643-156 - Agrandissement école secondaire  École Armand‐Corbeil: Mise en œuvre de mesure pour favoriser l'évitement d'émission de GES - Installation ","Affluents","Potetiel de Réduction et évitement de GES : 71,84 tCO2","Bâtiment",1," 14-Lanaudière "," Terrebonne "," AC-Actif "," SU-Subvention ",158050,"2021-03-31","2025-12-31",null,null,null,null,null,null,null,null,null,0,0,79025,79025,{"$f":"SUM(O166:W166)","v":0},{"$f":"SUM(O166:Z166)","v":158050}]
[143,"50643-157 - Projet de réduction de GES: Modernisation de la chaufferie - raccordement du système de chauffage de la piscine à celui de l'agrandissement.","Affluents","Potetiel de Réduction et évitement de GES : 43,97 tCO2","Bâtiment",1," 14-Lanaudière "," Terrebonne "," AC-Actif "," SU-Subvention ",100734,"2021-03-31","2025-12-31",254723,null,null,null,null,null,null,null,null,0,0,50367,50367,{"$f":"SUM(O167:W167)","v":0},{"$f":"SUM(O167:Z167)","v":100734}]
[144,"50643-158 - Projet de réduction de GES: Modernisation de la chaufferie de l'école de la Voltige - Remplacement chaudières au gaz par une chaudière électrique","Chemin du Roy","Potetiel de Réduction de GES : 59,02 tCO2","Bâtiment",1," 04-Mauricie  "," Trois-Rivière "," AC-Actif "," SU-Subvention ",105155,"2021-03-31","2025-12-31",187753,null,null,null,null,null,null,null,null,10515.384484406412,0,52577.5,42062,{"$f":"SUM(O168:W168)","v":10515.384484406412},{"$f":"SUM(O168:Z168)","v":105154.88448440642}]
[145,"50643-159 - Projet de réduction GES: Modernisation de la chaufferie du centre Durocher: réfection de la chaufferie - Aérothermie","Rives-Du-Saguenay","Potetiel de Réduction de GES : 37,65 tCO2","Bâtiment",1," 02-Saguenay- Lac-Saint-Jean "," Saguenay "," AC-Actif "," SU-Subvention ",87835,"2021-03-31","2025-12-31",185940,null,null,null,null,null,null,null,null,0,0,43917.5,43917.5,{"$f":"SUM(O169:W169)","v":0},{"$f":"SUM(O169:Z169)","v":87835}]
[146,"50643-160 - Agrandissement de l'école primaire Cuillierrier. Mise en œuvre de mesure pour favoriser l'évitement d'émission de GES avec de l'aérothermie","Trois-Lacs","Potetiel de Évitement de GES : 8,06 tCO2","Bâtiment",1," 16-Montérégie "," Saint-Clet "," AC-Actif "," SU-Subvention ",17732,"2021-03-31","2025-12-31",null,null,null,null,null,null,null,null,null,0,0,8866,8866,{"$f":"SUM(O170:W170)","v":0},{"$f":"SUM(O170:Z170)","v":17732}]
[147,"50643-161 - Projet de réduction GES: Transformation du Centre communautaire Albert-Gariépy en école - Remplacement de chaudière au gaz par de la géothermie","Marguérite-Bourgeoys","Potetiel de Réduction de GES : 103,0 tCO2","Bâtiment",1," 06-Montréal "," Montréal "," AC-Actif "," SU-Subvention ",231600,"2021-03-09","2025-12-31",1099370,null,null,null,null,null,null,null,null,0,0,115800,115800,{"$f":"SUM(O171:W171)","v":0},{"$f":"SUM(O171:Z171)","v":231600}]
[148,"50643-163 - Agrandissement et réaménagement de l'école secondaire Le Carrefour: Mise en œuvre de mesure pour favoriser l'évitement d'émission de GES","Patriotes","Potetiel de Évitement de GES : 44,1 tCO2","Bâtiment",1," 16-Montérégie "," Varennes "," AC-Actif "," SU-Subvention ",97020,"2021-03-31","2025-12-31",null,null,null,null,null,null,null,null,null,0,0,48510,48510,{"$f":"SUM(O172:W172)","v":0},{"$f":"SUM(O172:Z172)","v":97020}]
[149,"50643-164 - nouvelle école sur le terrain de l'école Trait-d 'Union: Mise en œuvre de mesure pour favoriser l'évitement d'émission de GES","Seigneurie-des-Mille-Îles","Potetiel de Évitement de GES : 41,75 tCO2","Bâtiment",1," 15-Laurentides "," Sainte-Thérèse "," AC-Actif "," SU-Subvention ",91843,"2021-03-31","2025-12-31",null,null,null,null,null,null,null,null,null,0,0,45921.5,45921.5,{"$f":"SUM(O173:W173)","v":0},{"$f":"SUM(O173:Z173)","v":91843}]
[150,"50643-165 - Nouvelle école Félix-Antoine-Savard: Mise en œuvre de mesure pour favoriser l'évitement d'émission de GES","Charlevoix","Potetiel de Évitement de GES : 81,47 tCO2","Bâtiment",1," 03-Capitale-Nationale "," La Malbaie "," AC-Actif "," SU-Subvention ",179234,"2021-03-31","2025-12-31",null,null,null,null,null,null,null,null,null,0,0,89617,89617,{"$f":"SUM(O174:W174)","v":0},{"$f":"SUM(O174:Z174)","v":179234}]
[151,"50643-166 - Agandissement de l'immeuble Bon-Séjour de l'École Au Coeur-des-Monts - Mise en œuvre de mesure pour favoriser l'évitement d'émission de GES","Saint-Hyacinthe","Potetiel de Évitement de GES : 12,05 tCO2","Bâtiment",1," 16-Montérégie "," Saint-Pie "," AC-Actif "," SU-Subvention ",26257,"2021-03-09","2025-12-31",null,null,null,null,null,null,null,null,null,0,0,13128.5,13128.5,{"$f":"SUM(O175:W175)","v":0},{"$f":"SUM(O175:Z175)","v":26257}]
[152,"50643-167 - Projet de réduction GES: Modernisation de la chaufferie du Pavillon Clermont de l'école Boréal - Remplacement d'une chaudière au mazout par une électrique","Lac-Abitibi","Potetiel de Réduction de GES : 58,51 tCO2","Bâtiment",1," 08-Abitibi-Témiscamingue "," Clermont "," AC-Actif "," SU-Subvention ",133722,"2021-03-09","2025-12-31",177210,null,null,null,null,null,null,null,null,133722,0,null,null,{"$f":"SUM(O176:W176)","v":133722},{"$f":"SUM(O176:Z176)","v":133722}]
[153,"50643-168 - Nouvelle école Terre-Soleil: Mise en œuvre de mesure pour favoriser l'évitement d'émission de GES","Seigneurie-des-Mille-Îles","Potetiel de Évitement de GES : 58,63 tCO2","Bâtiment",1," 15-Laurentides "," Sainte-Thérèse "," AC-Actif "," SU-Subvention ",128982,"2021-03-31","2025-12-31",null,null,null,null,null,null,null,null,null,0,0,64491,64491,{"$f":"SUM(O177:W177)","v":0},{"$f":"SUM(O177:Z177)","v":128982}]
[154,"50643-169 - Nouveau Centre de formation professionnelle Sainte-Justine-de-Newton - Mise en œuvre de mesure pour favoriser l'évitement d'émission de GES","Trois-Lacs","Potetiel de Évitement de GES : 14,54 tCO2","Bâtiment",1," 16-Montérégie "," Les Cèdres "," AC-Actif "," SU-Subvention ",31986,"2021-03-09","2025-12-31",null,null,null,null,null,null,null,null,null,0,0,15993,15993,{"$f":"SUM(O178:W178)","v":0},{"$f":"SUM(O178:Z178)","v":31986}]
[155,"50643-171 - Nouvelle Lab École Rimouski: Mise en œuvre de mesure pour favoriser l'évitement d'émission de GES","Phares","Potetiel de Évitement de GES : 68,2 tCO2","Bâtiment",1," 01-Bas-Saint-Laurent "," Rimouski "," AC-Actif "," SU-Subvention ",150029,"2021-03-31","2025-12-31",null,null,null,null,null,null,null,null,null,0,0,75014.5,75014.5,{"$f":"SUM(O179:W179)","v":0},{"$f":"SUM(O179:Z179)","v":150029}]
[156,"50643-172 - Projet de réduction GES: Modernisation de la chaufferie de 2 bâtiments - Remplacement de chaudières au mazout","Seigneurie-des-Mille-Îles","Potetiel de Réduction de GES : 39,54 tCO2","Bâtiment",2," 15-Laurentides "," Plusieurs "," AC-Actif "," SU-Subvention ",96981,"2021-03-31","2025-12-31",330044,null,null,null,null,null,null,null,null,0,0,48490.5,48490.5,{"$f":"SUM(O180:W180)","v":0},{"$f":"SUM(O180:Z180)","v":96981}]
[157,"50643-173 - Agrandissement de l'école de la Baie-Saint-François: Mise en œuvre de mesure pour favoriser l'évitement d'émission de GES","Vallée-des-Tisserands","Potetiel de Évitement de GES : 85,76 tCO2","Bâtiment",1," 16-Montérégie "," Salaberry-de-Valleyfield "," AC-Actif "," SU-Subvention ",188672,"2021-03-31","2025-12-31",null,null,null,null,null,null,null,null,null,0,0,94336,94336,{"$f":"SUM(O181:W181)","v":0},{"$f":"SUM(O181:Z181)","v":188672}]
[158,"50643-174 - Nouvelle école à Saint-Hyacinthe: Mise en œuvre de mesure pour favoriser l'évitement d'émission de GES","Saint-Hyacinthe","Potetiel de Évitement de GES : 58,58 tCO2","Bâtiment",1," 16-Montérégie "," Sainte-Hyacinthe "," AC-Actif "," SU-Subvention ",128867.2,"2021-03-31","2025-12-31",null,null,null,null,null,null,null,null,null,89431.072437121475,0,39436,null,{"$f":"SUM(O182:W182)","v":89431.072437121475},{"$f":"SUM(O182:Z182)","v":128867.07243712147}]
[159,"50643-176 - Projet de réduction GES: Modernisation de la chaufferie du siège social - Conversion chaudière au mazout vers électrique","Hauts-Cantons","Potetiel de Réduction de GES : 28,69 tCO2","Bâtiment",1," 05-Estrie "," East Angus "," AC-Actif "," SU-Subvention ",68140,"2021-03-09","2025-12-31",232425,null,null,null,null,null,null,null,null,6814,0,34070,27256,{"$f":"SUM(O183:W183)","v":6814},{"$f":"SUM(O183:Z183)","v":68140}]
[160,"50643-177 - Projet de réduction GES: Modernisation de la chaufferie de 4 bâtiments","Hauts-Cantons","Potetiel de Réduction de GES : 148,91 tCO2","Bâtiment",4," 05-Estrie "," Plusieurs "," AC-Actif "," SU-Subvention ",347492,"2021-03-31","2025-12-31",897161,null,null,null,null,null,null,null,null,208141,0,139351,null,{"$f":"SUM(O184:W184)","v":208141},{"$f":"SUM(O184:Z184)","v":347492}]
[161,"50643-178 - Agrandissement de l'école des Sentiers: Mise en œuvre de mesure pour favoriser l'évitement d'émission de GES","Navigateurs","Potetiel de Évitement de GES : 24,7 tCO2","Bâtiment",1," 12-Chaudières-Appalaches "," Saint-Apollinaire "," AC-Actif "," SU-Subvention ",54340,"2021-03-31","2025-12-31",null,null,null,null,null,null,null,null,null,8151,0,27170,19019,{"$f":"SUM(O185:W185)","v":8151},{"$f":"SUM(O185:Z185)","v":54340}]
[162,"50643-179 - Projet de réduction GES: Modernisation de la chaufferie de l'école Antoine-Saint-Exupéry: Conversion d'une chaudière au gaz par une électrique","Pointe-de-l'Île","Potetiel de Réduction de GES : 142,59 tCO2","Bâtiment",1," 06-Montréal "," Montréal "," AC-Actif "," SU-Subvention ",317720,"2021-03-31","2025-12-31",114639,null,null,null,null,null,null,null,null,313823.27119538991,0,3897,null,{"$f":"SUM(O186:W186)","v":313823.27119538991},{"$f":"SUM(O186:Z186)","v":317720.27119538991}]
[163,"50643-180 - Projet de réduction GES: Modernisation de la chaufferie de l'école Saint-Michel: Remplacement de la chaudière à l'huile","Chemin du Roy","Potetiel de Réduction de GES : 29,96 tCO2","Bâtiment",1," 04-Mauricie  "," Trois-Rivière "," AC-Actif "," SU-Subvention ",68388,"2021-03-31","2025-12-31",174737,null,null,null,null,null,null,null,null,0,0,34194,34194,{"$f":"SUM(O187:W187)","v":0},{"$f":"SUM(O187:Z187)","v":68388}]
[164,"50643-181 - Agrandissement de l'école Jean‐Baptiste‐Meilleur: Mise en œuvre de mesure pour favoriser l'évitement d'émission de GES","Affluents","Potetiel de Évitement de GES : 45,22 tCO2","Bâtiment",1," 14-Lanaudière "," Repentigny "," AC-Actif "," SU-Subvention ",99484,"2021-03-31","2025-12-31",null,null,null,null,null,null,null,null,null,0,0,49742,49742,{"$f":"SUM(O188:W188)","v":0},{"$f":"SUM(O188:Z188)","v":99484}]
[165,"50643-182 - Agrandissement de l'école Notre-Dame: Mise en œuvre de mesure pour favoriser l'évitement d'émission de GES - ajout géothermie","Sorel-Tracy","Potetiel de Évitement de GES : 30,49 tCO2","Bâtiment",1," 16-Montérégie "," Yamaska "," AC-Actif "," SU-Subvention ",67071,"2021-03-31","2025-12-31",null,null,null,null,null,null,null,null,null,0,0,33535.5,33535.5,{"$f":"SUM(O189:W189)","v":0},{"$f":"SUM(O189:Z189)","v":67071}]
[166,"50643-186 - Projet de réduction GES: Modernisation de la chaufferies de l'école de l'Épervière: Remplacement de chaudières au GN par de la géothermie + Agrandissement","Navigateurs","Potetiel de Réduction et évitement de GES : 34,26 tCO2","Bâtiment",1," 12-Chaudières-Appalaches "," Saint-Agapit "," AC-Actif "," SU-Subvention ",122691,"2021-03-31","2025-12-31",1151708,null,null,null,null,null,null,null,null,0,0,61345.5,61345.5,{"$f":"SUM(O190:W190)","v":0},{"$f":"SUM(O190:Z190)","v":122691}]
[167,"50643-187 - Agrandissement école des Quatre-Vents: Mise en œuvre de mesure pour favoriser l'évitement d'émission de GES","Navigateurs","Potetiel de Évitement de GES : 6,62 tCO2","Bâtiment",1," 12-Chaudières-Appalaches "," Saint-Apollinaire "," AC-Actif "," SU-Subvention ",14568,"2021-03-31","2025-12-31",null,null,null,null,null,null,null,null,null,0,0,7284,7284,{"$f":"SUM(O191:W191)","v":0},{"$f":"SUM(O191:Z191)","v":14568}]
[168,"50643-188 - Agrandissement Sainte-Hélène: Mise en œuvre de mesure pour favoriser l'évitement d'émission de GES","Navigateurs","Potetiel de Évitement de GES : 6,62 tCO2","Bâtiment",1," 12-Chaudières-Appalaches "," Lévis "," AC-Actif "," SU-Subvention ",14568,"2021-03-31","2025-12-31",null,null,null,null,null,null,null,null,null,0,0,7284,7284,{"$f":"SUM(O192:W192)","v":0},{"$f":"SUM(O192:Z192)","v":14568}]
[169,"50643-190 - Agrandissement école Bon-Pasteur (Gymnase): Mise en œuvre de mesure pour favoriser l'évitement d'émission de GES","Baie-James","Potetiel de Évitement de GES : 8,52 tCO2","Bâtiment",1," 10-Nord-du-Québec "," Chibougamau "," AC-Actif "," SU-Subvention ",18736,"2021-03-09","2025-12-31",null,null,null,null,null,null,null,null,null,0,0,9368,9368,{"$f":"SUM(O193:W193)","v":0},{"$f":"SUM(O193:Z193)","v":18736}]
[170,"50643-191 - Agrandissement de l'école Mosaïque:  Mise en œuvre de mesure pour favoriser l'évitement d'émission de GES","Marguérite-Bourgeoys","Potetiel de Évitement de GES : 33,93 tCO2","Bâtiment",1," 06-Montréal "," Côte-Saint-Luc "," AC-Actif "," SU-Subvention ",74644,"2021-03-31","2025-12-31",null,null,null,null,null,null,null,null,null,0,0,37322,37322,{"$f":"SUM(O194:W194)","v":0},{"$f":"SUM(O194:Z194)","v":74644}]
[171,"50643-192 - Agrandissement de l'école Lajoie:  Mise en œuvre de mesure pour favoriser l'évitement d'émission de GES - Remplacer les chaudières au GN par des chaudières électriques dans le bâtiment existant","Marguérite-Bourgeoys","Potetiel de Réduction et évitement de GES : 112,5 tCO2","Bâtiment",1," 06-Montréal "," Outremont "," AC-Actif "," SU-Subvention ",286745,"2021-03-31","2025-12-31",606967,null,null,null,null,null,null,null,null,0,0,143372.5,143372.5,{"$f":"SUM(O195:W195)","v":0},{"$f":"SUM(O195:Z195)","v":286745}]
[172,"50643-193 - Agrandissment de l'école Saint-Louis: Remplacer les chaudières au GN par des chaudières électriques dans le bâtiment existant et géothermie dans l'agrandissement","Marguérite-Bourgeoys","Potetiel de Réduction et évitement de GES : 82,76 tCO2","Bâtiment",1," 06-Montréal "," Pointe-Claire "," AC-Actif "," SU-Subvention ",263931,"2021-03-31","2025-12-31",222012,null,null,null,null,null,null,null,null,0,0,131965.5,131965.5,{"$f":"SUM(O196:W196)","v":0},{"$f":"SUM(O196:Z196)","v":263931}]
[173,"50643-194 - Projet de réduction GES: Modernisation de la chaufferie du CEA Champlain - Remplacer les chaudières au GN par des chaudières électriques","Marguérite-Bourgeoys","Potetiel de Réduction de GES : 176,45 tCO2","Bâtiment",1," 06-Montréal "," Montréal "," AC-Actif "," SU-Subvention ",379985,"2021-03-09","2025-12-31",188687,null,null,null,null,null,null,null,null,0,0,189992.5,189992.5,{"$f":"SUM(O197:W197)","v":0},{"$f":"SUM(O197:Z197)","v":379985}]
[174,"50643-195 - Agrandissment de l'école Paul-Guérin-Lajoie - Remplacer les chaudières au GN par des chaudières électriques dans le bâtiment existant et géothermie dans l'agrandissement","Marguérite-Bourgeoys","Potetiel de Réduction et évitement de GES : 33,08 tCO2","Bâtiment",1," 06-Montréal "," Montréal "," AC-Actif "," SU-Subvention ",145132,"2021-03-31","2025-12-31",213152,null,null,null,null,null,null,null,null,0,0,72566,72566,{"$f":"SUM(O198:W198)","v":0},{"$f":"SUM(O198:Z198)","v":145132}]
[175,"50643-200 - Mammouth - Construction d'une école secondaire dans l'arrondissement Charlesbourg  (1256 places-élèves)","des Premières-Seigneuries","Potetiel de Évitement de GES : 174,0 tCO2","Bâtiment",1," 03-Capitale-Nationale "," Québec "," AC-Actif "," SU-Subvention ",466400,"2021-03-31","2025-12-31",null,null,null,null,null,null,null,null,null,62777.440000000002,0,233200,170423,{"$f":"SUM(O199:W199)","v":62777.440000000002},{"$f":"SUM(O199:Z199)","v":466400.44}]
[176,"50643-201 - Mammouth - Construction d'une école secondaire à Anjou - Pointe-de-l'ile, projet A (1 863 places-élèves)","Pointe-de-l'Île","Potetiel de Évitement de GES : 245,0 tCO2","Bâtiment",1," 06-Montréal "," Montréal "," AC-Actif "," SU-Subvention ",655600,"2021-03-31","2025-12-31",null,null,null,null,null,null,null,null,null,0,0,327800,327800,{"$f":"SUM(O200:W200)","v":0},{"$f":"SUM(O200:Z200)","v":655600}]
[177,"50643-202 - Mammouth - Contruction d'une école selondaire à Montréal-Nord / St-Léonard - Pointe-de-l'ile, projet B (1706 places-élèves)","Pointe-de-l'Île","Potetiel de Évitement de GES : 224,0 tCO2","Bâtiment",1," 06-Montréal "," Montréal "," AC-Actif "," SU-Subvention ",598400,"2021-03-31","2025-12-31",null,null,null,null,null,null,null,null,null,0,0,299200,299200,{"$f":"SUM(O201:W201)","v":0},{"$f":"SUM(O201:Z201)","v":598400}]
[178,"50643-203 - Mammouth - Construction d'une école secondaire dans le secteur LaSalle (terrain Cégep André-Laurendeau) (1024 places-élèves)","Marguérite-Bourgeoys","Potetiel de Évitement de GES : 150,0 tCO2","Bâtiment",1," 06-Montréal "," Montréal "," AC-Actif "," SU-Subvention ",400400,"2021-03-31","2025-12-31",null,null,null,null,null,null,null,null,null,0,0,200200,200200,{"$f":"SUM(O202:W202)","v":0},{"$f":"SUM(O202:Z202)","v":400400}]
[179,"50643-204 - Mammouth - Construction d'une école secondaire dans le secteur Nord-Ouest  (secteur Ste-Geneviève - terrain Cégep Gérald-Godin) (913 places-élèves)","Marguérite-Bourgeoys","Potetiel de Évitement de GES : 139,0 tCO2","Bâtiment",1," 06-Montréal "," Montréal "," AC-Actif "," SU-Subvention ",371800,"2021-03-31","2025-12-31",null,null,null,null,null,null,null,null,null,0,0,185900,185900,{"$f":"SUM(O203:W203)","v":0},{"$f":"SUM(O203:Z203)","v":371800}]
[180,"50643-205 - Mammouth - Construction d'une école primaire-secondaire à l'Île-des-Sœurs (18 classes du primaire et 959 places-élèves au secondaire)","Marguérite-Bourgeoys","Potetiel de Évitement de GES : 138,0 tCO2","Bâtiment",1," 06-Montréal "," Montréal "," AC-Actif "," SU-Subvention ",369600,"2021-03-31","2025-12-31",null,null,null,null,null,null,null,null,null,0,0,184800,184800,{"$f":"SUM(O204:W204)","v":0},{"$f":"SUM(O204:Z204)","v":369600}]
[181,"50643-206 - Mammouth - Construction d'une école secondaire à Laval (2 150 places-élèves)","Laval","Potetiel de Évitement de GES : 283,0 tCO2","Bâtiment",1," 13-Laval "," Laval "," AC-Actif "," SU-Subvention ",756800,"2021-03-31","2025-12-31",null,null,null,null,null,null,null,null,null,0,0,378400,378400,{"$f":"SUM(O205:W205)","v":0},{"$f":"SUM(O205:Z205)","v":756800}]
[182,"50643-207 - Mammouth - Construction d'une école secondaire à Terrebonne","Affluents","Potetiel de Évitement de GES : 174,0 tCO2","Bâtiment",1," 14-Lanaudière "," Terrebonne "," AC-Actif "," SU-Subvention ",466400,"2021-03-31","2025-12-31",null,null,null,null,null,null,null,null,null,0,0,233200,233200,{"$f":"SUM(O206:W206)","v":0},{"$f":"SUM(O206:Z206)","v":466400}]
[183,"50643-208 - Mammouth - Construction d'une école secondaire à Mirabel  (1 280 places-élèves) (Saint-Augustin) ","Seigneurie-des-Mille-Îles","Potetiel de Évitement de GES : 184,0 tCO2","Bâtiment",1," 15-Laurentides "," Mirabel "," AC-Actif "," SU-Subvention ",490600,"2021-03-31","2025-12-31",null,null,null,null,null,null,null,null,null,0,0,245300,245300,{"$f":"SUM(O207:W207)","v":0},{"$f":"SUM(O207:Z207)","v":490600}]
[184,"50643-209 - Mammouth - Construction d'une école secondaire à Saint-Jérôme (1 256 places-élèves)","Rivière-du-Nord","Potetiel de Évitement de GES : 174,0 tCO2","Bâtiment",1," 15-Laurentides "," Saint-Jérôme "," AC-Actif "," SU-Subvention ",466400,"2021-03-31","2025-12-31",null,null,null,null,null,null,null,null,null,135010.52631578947,0,233200,98189,{"$f":"SUM(O208:W208)","v":135010.52631578947},{"$f":"SUM(O208:Z208)","v":466399.52631578944}]
[185,"50643-210 - Mammouth - Agrandissement de l'école secondaire de Chambly (1 365 places-élèves)","Patriotes","Potetiel de Évitement de GES : 182,0 tCO2","Bâtiment",1," 16-Montérégie "," Chambly "," AC-Actif "," SU-Subvention ",486200,"2021-03-31","2025-12-31",null,null,null,null,null,null,null,null,null,0,0,243100,243100,{"$f":"SUM(O209:W209)","v":0},{"$f":"SUM(O209:Z209)","v":486200}]
[186,"50643-211 - Mammouth - Construction de l'école secondaire Louis-Philippe-Paré  (2512 places-élèves) et démolition de l'infrastructure existante","Grandes-Seigneuries","Potetiel de Évitement de GES : 344,0 tCO2","Bâtiment",1," 16-Montérégie "," Châteauguay "," AC-Actif "," SU-Subvention ",919600,"2021-03-31","2025-12-31",null,null,null,null,null,null,null,null,null,0,0,459800,459800,{"$f":"SUM(O210:W210)","v":0},{"$f":"SUM(O210:Z210)","v":919600}]
[187,"50643-212 - Mammouth - Construction d'une école secondaire à Vaudreuil-Dorion (1 256 places-élèves)","Trois-Lacs","Potetiel de Évitement de GES : 174,0 tCO2","Bâtiment",1," 16-Montérégie "," Vaudreuil-Dorion "," AC-Actif "," SU-Subvention ",466400,"2021-03-31","2025-12-31",null,null,null,null,null,null,null,null,null,0,0,233200,233200,{"$f":"SUM(O211:W211)","v":0},{"$f":"SUM(O211:Z211)","v":466400}]
[188,"50643-213 - Mammouth - Construction d'une école secondaire à Saint-Zotique (1256 places-élèves)","Trois-Lacs","Potetiel de Évitement de GES : 174,0 tCO2","Bâtiment",1," 16-Montérégie "," Saint-Zotique "," AC-Actif "," SU-Subvention ",466400,"2021-03-31","2025-12-31",null,null,null,null,null,null,null,null,null,0,0,233200,233200,{"$f":"SUM(O212:W212)","v":0},{"$f":"SUM(O212:Z212)","v":466400}]
[189,"50643-214 - Mammouth - Construction d'une école secondaire à Drummondville","Chênes","Potetiel de Évitement de GES : 174,0 tCO2","Bâtiment",1," 17-Centre-du-Québec "," Drummondville "," AC-Actif "," SU-Subvention ",466400,"2021-03-31","2025-12-31",null,null,null,null,null,null,null,null,null,0,0,233200,233200,{"$f":"SUM(O213:W213)","v":0},{"$f":"SUM(O213:Z213)","v":466400}]
[190,"50643-300 - Nouveau Batiment: Mise en œuvre de mesure pour favoriser l'évitement d'émission de GES","Kamouraska - Rivière-du-loup","Potetiel de Évitement de GES : 62,5 tCO2","Bâtiment",1," 01-Bas-Saint-Laurent "," N/D "," AC-Actif "," SU-Subvention ",137500,"2021-03-31","2025-12-31",null,null,null,null,null,null,null,null,null,0,0,68750,68750,{"$f":"SUM(O214:W214)","v":0},{"$f":"SUM(O214:Z214)","v":137500}]
[191,"50643-301 - Construction bâtiment - Saint-Modeste","Kamouraska - Rivière-du-loup","Potetiel de Réduction de GES : 16,27 tCO2","Bâtiment",1," 01-Bas-Saint-Laurent "," Saint-Modeste "," AC-Actif "," SU-Subvention ",35794,"2021-03-31","2025-12-31",null,null,null,null,null,null,null,null,null,0,0,17897,17897,{"$f":"SUM(O215:W215)","v":0},{"$f":"SUM(O215:Z215)","v":35794}]
[192,"50643-302 - Construction bâtiment -Saint-Pierre","Lac-Saint-Jean","Potetiel de Réduction de GES : 6,14 tCO2","Bâtiment",1," 02-Saguenay- Lac-Saint-Jean "," Alma "," AC-Actif "," SU-Subvention ",13508,"2021-03-31","2025-12-31",null,null,null,null,null,null,null,null,null,0,0,6754,6754,{"$f":"SUM(O216:W216)","v":0},{"$f":"SUM(O216:Z216)","v":13508}]
[193,"50643-303 - Construction bâtiment -Tandem - Édifice Saint-Luc, le","De la joncquière","Potetiel de Réduction de GES : 11,98 tCO2","Bâtiment",1," 02-Saguenay- Lac-Saint-Jean "," Saguenay "," AC-Actif "," SU-Subvention ",26356,"2021-03-31","2025-12-31",null,null,null,null,null,null,null,null,null,0,0,13178,13178,{"$f":"SUM(O217:W217)","v":0},{"$f":"SUM(O217:Z217)","v":26356}]
[194,"50643-304 - Construction bâtiment -Buisson, du","de la Capitale","Potetiel de Réduction de GES : 26,73 tCO2","Bâtiment",1," 03-Capitale-Nationale "," Québec "," AC-Actif "," SU-Subvention ",58806,"2021-03-31","2025-12-31",null,null,null,null,null,null,null,null,null,0,0,29403,29403,{"$f":"SUM(O218:W218)","v":0},{"$f":"SUM(O218:Z218)","v":58806}]
[195,"50643-305 - Nouveau Batiment","des Premières-Seigneuries","Potetiel de Évitement de GES : 78,97 tCO2","Bâtiment",1," 03-Capitale-Nationale "," Charlesbourg "," AC-Actif "," SU-Subvention ",173734,"2021-03-31","2025-12-31",null,null,null,null,null,null,null,null,null,0,0,86867,86867,{"$f":"SUM(O219:W219)","v":0},{"$f":"SUM(O219:Z219)","v":173734}]
[196,"50643-306 - Nouveau Batiment","des Premières-Seigneuries","Potetiel de Évitement de GES : 59,93 tCO2","Bâtiment",1," 03-Capitale-Nationale "," Sainte-Bringitte-de-Laval "," AC-Actif "," SU-Subvention ",131846,"2021-03-31","2025-12-31",null,null,null,null,null,null,null,null,null,0,0,65923,65923,{"$f":"SUM(O220:W220)","v":0},{"$f":"SUM(O220:Z220)","v":131846}]
[197,"50643-307 - Nouveau Batiment","des Premières-Seigneuries","Potetiel de Évitement de GES : 45,91 tCO2","Bâtiment",1," 03-Capitale-Nationale "," Beauport "," AC-Actif "," SU-Subvention ",101002,"2021-03-31","2025-12-31",null,null,null,null,null,null,null,null,null,0,0,50501,50501,{"$f":"SUM(O221:W221)","v":0},{"$f":"SUM(O221:Z221)","v":101002}]
[198,"50643-308 - Construction bâtiment -Perce-Neige, pavillon Saint-Charles, du","Portneuf","Potetiel de Réduction de GES : 9,78 tCO2","Bâtiment",1," 03-Capitale-Nationale "," Pont-Rouge "," AC-Actif "," SU-Subvention ",21516,"2021-03-31","2025-12-31",null,null,null,null,null,null,null,null,null,0,0,10758,10758,{"$f":"SUM(O222:W222)","v":0},{"$f":"SUM(O222:Z222)","v":21516}]
[199,"50643-309 - Construction bâtiment -Source, de la","Chemin du Roy","Potetiel de Réduction de GES : 29,27 tCO2","Bâtiment",1," 04-Mauricie  "," Saint-Maurice "," AC-Actif "," SU-Subvention ",64394,"2021-03-31","2025-12-31",null,null,null,null,null,null,null,null,null,0,0,32197,32197,{"$f":"SUM(O223:W223)","v":0},{"$f":"SUM(O223:Z223)","v":64394}]
[200,"50643-310 - Construction bâtiment -Sainte-Bernadette","Chemin du Roy","Potetiel de Réduction de GES : 23,33 tCO2","Bâtiment",1," 04-Mauricie  "," Trois-Rivière "," AC-Actif "," SU-Subvention ",51326,"2021-03-31","2025-12-31",null,null,null,null,null,null,null,null,null,0,0,25663,25663,{"$f":"SUM(O224:W224)","v":0},{"$f":"SUM(O224:Z224)","v":51326}]
[201,"50643-311 - Construction bâtiment -Marguerite-Bourgeois","Chemin du Roy","Potetiel de Réduction de GES : 17,07 tCO2","Bâtiment",1," 04-Mauricie  "," Trois-Rivière "," AC-Actif "," SU-Subvention ",37554,"2021-03-31","2025-12-31",null,null,null,null,null,null,null,null,null,0,0,18777,18777,{"$f":"SUM(O225:W225)","v":0},{"$f":"SUM(O225:Z225)","v":37554}]
[202,"50643-312 - Construction bâtiment -Louis-Saint-Laurent","Hauts-Cantons","Potetiel de Réduction de GES : 12,63 tCO2","Bâtiment",1," 05-Estrie "," Compton "," AC-Actif "," SU-Subvention ",27786,"2021-03-31","2025-12-31",null,null,null,null,null,null,null,null,null,0,0,13893,13893,{"$f":"SUM(O226:W226)","v":0},{"$f":"SUM(O226:Z226)","v":27786}]
[203,"50643-313 - Construction bâtiment -Parchemin, côté collège, du","Hauts-Cantons","Potetiel de Réduction de GES : 18,41 tCO2","Bâtiment",1," 05-Estrie "," East Angus "," AC-Actif "," SU-Subvention ",40502,"2021-03-31","2025-12-31",null,null,null,null,null,null,null,null,null,0,0,20251,20251,{"$f":"SUM(O227:W227)","v":0},{"$f":"SUM(O227:Z227)","v":40502}]
[204,"50643-314 - Construction bâtiment - Notre-Dame-du-Paradis","Hauts-Cantons","Potetiel de Réduction de GES : 11,41 tCO2","Bâtiment",1," 05-Estrie "," Dudswell "," AC-Actif "," SU-Subvention ",25102,"2021-03-31","2025-12-31",null,null,null,null,null,null,null,null,null,0,0,12551,12551,{"$f":"SUM(O228:W228)","v":0},{"$f":"SUM(O228:Z228)","v":25102}]
[205,"50643-315 - Construction bâtiment - Sylvestre","Région-de-Sherbrooke","Potetiel de Réduction de GES : 26,64 tCO2","Bâtiment",1," 05-Estrie "," Sherbrooke "," AC-Actif "," SU-Subvention ",58608,"2021-03-31","2025-12-31",null,null,null,null,null,null,null,null,null,0,0,29304,29304,{"$f":"SUM(O229:W229)","v":0},{"$f":"SUM(O229:Z229)","v":58608}]
[206,"50643-316 - Construction bâtiment - Jean XXIII","Région-de-Sherbrooke","Potetiel de Réduction de GES : 23,33 tCO2","Bâtiment",1," 05-Estrie "," Sherbrooke "," AC-Actif "," SU-Subvention ",51326,"2021-03-31","2025-12-31",null,null,null,null,null,null,null,null,null,0,0,25663,25663,{"$f":"SUM(O230:W230)","v":0},{"$f":"SUM(O230:Z230)","v":51326}]
[207,"50643-317 - Construction bâtiment - Sainte-Famille","Région-de-Sherbrooke","Potetiel de Réduction de GES : 50,82 tCO2","Bâtiment",1," 05-Estrie "," Sherbrooke "," AC-Actif "," SU-Subvention ",111804,"2021-03-31","2025-12-31",null,null,null,null,null,null,null,null,null,0,0,55902,55902,{"$f":"SUM(O231:W231)","v":0},{"$f":"SUM(O231:Z231)","v":111804}]
[208,"50643-318 - Construction bâtiment - Marie Reine","Région-de-Sherbrooke","Potetiel de Réduction de GES : 19,47 tCO2","Bâtiment",1," 05-Estrie "," Sherbrooke "," AC-Actif "," SU-Subvention ",42834,"2021-03-31","2025-12-31",null,null,null,null,null,null,null,null,null,0,0,21417,21417,{"$f":"SUM(O232:W232)","v":0},{"$f":"SUM(O232:Z232)","v":42834}]
[209,"50643-319 - Construction bâtiment - Triolet, pavillons 2 et 3, du","Région-de-Sherbrooke","Potetiel de Réduction de GES : 288,56 tCO2","Bâtiment",1," 05-Estrie "," Sherbrooke "," AC-Actif "," SU-Subvention ",634832,"2021-03-31","2025-12-31",null,null,null,null,null,null,null,null,null,0,0,317416,317416,{"$f":"SUM(O233:W233)","v":0},{"$f":"SUM(O233:Z233)","v":634832}]
[210,"50643-320 - Construction bâtiment - Jardin-des-Lacs, du","Région-de-Sherbrooke","Potetiel de Réduction de GES : 34,91 tCO2","Bâtiment",1," 05-Estrie "," Saint-Denis-de-Brompton "," AC-Actif "," SU-Subvention ",76802,"2021-03-31","2025-12-31",null,null,null,null,null,null,null,null,null,0,0,38401,38401,{"$f":"SUM(O234:W234)","v":0},{"$f":"SUM(O234:Z234)","v":76802}]
[211,"50643-321 - Construction bâtiment - Arc-en-Ciel, pavillon 2, de l'","Des Sommets","Potetiel de Réduction de GES : 9,27 tCO2","Bâtiment",1," 05-Estrie "," Saint-François-Xavier-de-Brompton "," AC-Actif "," SU-Subvention ",20394,"2021-03-31","2025-12-31",null,null,null,null,null,null,null,null,null,0,0,10197,10197,{"$f":"SUM(O235:W235)","v":0},{"$f":"SUM(O235:Z235)","v":20394}]
[212,"50643-322 - Construction bâtiment - Fraternité, de la","Pointe-de-l'Île","Potetiel de Réduction de GES : 44,97 tCO2","Bâtiment",1," 06-Montréal "," Montréal "," AC-Actif "," SU-Subvention ",98934,"2021-03-31","2025-12-31",null,null,null,null,null,null,null,null,null,98404,0,null,null,{"$f":"SUM(O236:W236)","v":98404},{"$f":"SUM(O236:Z236)","v":98404}]
[213,"50643-323 - Construction bâtiment - Wilfrid-Pelletier annexe","Pointe-de-l'Île","Potetiel de Réduction de GES : 37,55 tCO2","Bâtiment",1," 06-Montréal "," Montréal "," AC-Actif "," SU-Subvention ",82610,"2021-03-31","2025-12-31",null,null,null,null,null,null,null,null,null,82610,0,null,null,{"$f":"SUM(O237:W237)","v":82610},{"$f":"SUM(O237:Z237)","v":82610}]
[214,"50643-324 - Construction bâtiment - Saint-Joseph","Pointe-de-l'Île","Potetiel de Réduction de GES : 65,09 tCO2","Bâtiment",1," 06-Montréal "," Montréal "," AC-Actif "," SU-Subvention ",143198,"2021-03-31","2025-12-31",null,null,null,null,null,null,null,null,null,143198,0,null,null,{"$f":"SUM(O238:W238)","v":143198},{"$f":"SUM(O238:Z238)","v":143198}]
[215,"50643-325 - Construction bâtiment - Jacques-Rousseau","Pointe-de-l'Île","Potetiel de Réduction de GES : 51,22 tCO2","Bâtiment",1," 06-Montréal "," Montréal "," AC-Actif "," SU-Subvention ",112684,"2021-03-31","2025-12-31",null,null,null,null,null,null,null,null,null,0,0,56342,56342,{"$f":"SUM(O239:W239)","v":0},{"$f":"SUM(O239:Z239)","v":112684}]
[216,"50643-326 - Construction bâtiment - Centre de formation des métiers de l'acier","Pointe-de-l'Île","Potetiel de Réduction de GES : 51,05 tCO2","Bâtiment",1," 06-Montréal "," Montréal "," AC-Actif "," SU-Subvention ",112310,"2021-03-31","2025-12-31",null,null,null,null,null,null,null,null,null,0,0,56155,56155,{"$f":"SUM(O240:W240)","v":0},{"$f":"SUM(O240:Z240)","v":112310}]
[217,"50643-327 - Construction bâtiment - Marc-Aurèle-Fortin","Pointe-de-l'Île","Potetiel de Réduction de GES : 54,3 tCO2","Bâtiment",1," 06-Montréal "," Montréal "," AC-Actif "," SU-Subvention ",119460,"2021-03-31","2025-12-31",null,null,null,null,null,null,null,null,null,91998,0,null,null,{"$f":"SUM(O241:W241)","v":91998},{"$f":"SUM(O241:Z241)","v":91998}]
[218,"50643-328 - Construction bâtiment - Saint-Marcel","Pointe-de-l'Île","Potetiel de Réduction de GES : 18,41 tCO2","Bâtiment",1," 06-Montréal "," Montréal "," AC-Actif "," SU-Subvention ",40502,"2021-03-31","2025-12-31",null,null,null,null,null,null,null,null,null,0,0,20251,20251,{"$f":"SUM(O242:W242)","v":0},{"$f":"SUM(O242:Z242)","v":40502}]
[219,"50643-329 - Construction bâtiment - François-La-Bernarde","Pointe-de-l'Île","Potetiel de Réduction de GES : 36,32 tCO2","Bâtiment",1," 06-Montréal "," Montréal "," AC-Actif "," SU-Subvention ",79904,"2021-03-31","2025-12-31",null,null,null,null,null,null,null,null,null,0,0,39952,39952,{"$f":"SUM(O243:W243)","v":0},{"$f":"SUM(O243:Z243)","v":79904}]
[220,"50643-330 - Construction bâtiment - Notre-Dame-de-Fatima","Pointe-de-l'Île","Potetiel de Réduction de GES : 50,8 tCO2","Bâtiment",1," 06-Montréal "," Montréal "," AC-Actif "," SU-Subvention ",111760,"2021-03-31","2025-12-31",null,null,null,null,null,null,null,null,null,67597,0,44163,null,{"$f":"SUM(O244:W244)","v":67597},{"$f":"SUM(O244:Z244)","v":111760}]
[221,"50643-331 - Construction bâtiment - Tournesol, le","Pointe-de-l'Île","Potetiel de Réduction de GES : 46,23 tCO2","Bâtiment",1," 06-Montréal "," Montréal "," AC-Actif "," SU-Subvention ",101706,"2021-03-31","2025-12-31",null,null,null,null,null,null,null,null,null,0,0,50853,50853,{"$f":"SUM(O245:W245)","v":0},{"$f":"SUM(O245:Z245)","v":101706}]
[222,"50643-332 - Construction bâtiment - Sainte-Alice","Pointe-de-l'Île","Potetiel de Réduction de GES : 8,69 tCO2","Bâtiment",1," 06-Montréal "," Montréal "," AC-Actif "," SU-Subvention ",19118,"2021-03-31","2025-12-31",null,null,null,null,null,null,null,null,null,0,0,9559,9559,{"$f":"SUM(O246:W246)","v":0},{"$f":"SUM(O246:Z246)","v":19118}]
[223,"50643-333 - Nouveau Batiment","Pointe-de-l'Île","Potetiel de Évitement de GES : 43,98 tCO2","Bâtiment",1," 06-Montréal "," Montréal "," AC-Actif "," SU-Subvention ",96756,"2021-03-31","2025-12-31",null,null,null,null,null,null,null,null,null,0,0,48378,48378,{"$f":"SUM(O247:W247)","v":0},{"$f":"SUM(O247:Z247)","v":96756}]
[224,"50643-334 - Nouveau Batiment","Pointe-de-l'Île","Potetiel de Évitement de GES : 96,6 tCO2","Bâtiment",1," 06-Montréal "," Montréal "," AC-Actif "," SU-Subvention ",212520,"2021-03-31","2025-12-31",null,null,null,null,null,null,null,null,null,0,0,106260,106260,{"$f":"SUM(O248:W248)","v":0},{"$f":"SUM(O248:Z248)","v":212520}]
[225,"50643-335 - Nouveau Batiment","Pointe-de-l'Île","Potetiel de Évitement de GES : 50,18 tCO2","Bâtiment",1," 06-Montréal "," Montréal "," AC-Actif "," SU-Subvention ",110396,"2021-03-31","2025-12-31",null,null,null,null,null,null,null,null,null,0,0,55198,55198,{"$f":"SUM(O249:W249)","v":0},{"$f":"SUM(O249:Z249)","v":110396}]
[226,"50643-336 - Nouveau Batiment","Pointe-de-l'Île","Potetiel de Évitement de GES : 78,97 tCO2","Bâtiment",1," 06-Montréal "," Montréal "," AC-Actif "," SU-Subvention ",173734,"2021-03-31","2025-12-31",null,null,null,null,null,null,null,null,null,0,0,86867,86867,{"$f":"SUM(O250:W250)","v":0},{"$f":"SUM(O250:Z250)","v":173734}]
[227,"50643-337 - Nouveau Batiment","Pointe-de-l'Île","Potetiel de Évitement de GES : 78,97 tCO2","Bâtiment",1," 06-Montréal "," Montréal "," AC-Actif "," SU-Subvention ",173734,"2021-03-31","2025-12-31",null,null,null,null,null,null,null,null,null,0,0,86867,86867,{"$f":"SUM(O251:W251)","v":0},{"$f":"SUM(O251:Z251)","v":173734}]
[228,"50643-338 - Construction bâtiment - Les-Enfants-du-Monde","CSDM","Potetiel de Réduction de GES : 47,31 tCO2","Bâtiment",1," 06-Montréal "," Montréal "," AC-Actif "," SU-Subvention ",104082,"2021-03-31","2025-12-31",null,null,null,null,null,null,null,null,null,0,0,52041,52041,{"$f":"SUM(O252:W252)","v":0},{"$f":"SUM(O252:Z252)","v":104082}]
[229,"50643-339 - Construction bâtiment - De l'Étincelle","CSDM","Potetiel de Réduction de GES : 73,69 tCO2","Bâtiment",1," 06-Montréal "," Montréal "," AC-Actif "," SU-Subvention ",162118,"2021-03-31","2025-12-31",null,null,null,null,null,null,null,null,null,0,0,81059,81059,{"$f":"SUM(O253:W253)","v":0},{"$f":"SUM(O253:Z253)","v":162118}]
[230,"50643-340 - Construction bâtiment - Académie Dunton","CSDM","Potetiel de Réduction de GES : 127,06 tCO2","Bâtiment",1," 06-Montréal "," Montréal "," AC-Actif "," SU-Subvention ",279532,"2021-03-31","2025-12-31",null,null,null,null,null,null,null,null,null,0,0,139766,139766,{"$f":"SUM(O254:W254)","v":0},{"$f":"SUM(O254:Z254)","v":279532}]
[231,"50643-341 - Construction bâtiment - Le 3349, rue Adam","CSDM","Potetiel de Réduction de GES : 49,79 tCO2","Bâtiment",1," 06-Montréal "," Montréal "," AC-Actif "," SU-Subvention ",109538,"2021-03-31","2025-12-31",null,null,null,null,null,null,null,null,null,0,0,54769,54769,{"$f":"SUM(O255:W255)","v":0},{"$f":"SUM(O255:Z255)","v":109538}]
[232,"50643-342 - Construction bâtiment - Lucille-Teasdale","CSDM","Potetiel de Réduction de GES : 8,2 tCO2","Bâtiment",1," 06-Montréal "," Montréal "," AC-Actif "," SU-Subvention ",18040,"2021-03-31","2025-12-31",null,null,null,null,null,null,null,null,null,0,0,9020,9020,{"$f":"SUM(O256:W256)","v":0},{"$f":"SUM(O256:Z256)","v":18040}]
[233,"50643-343 - Nouveau Batiment","CSDM","Potetiel de Évitement de GES : 55,26 tCO2","Bâtiment",1," 06-Montréal "," Montréal "," AC-Actif "," SU-Subvention ",121572,"2021-03-31","2025-12-31",null,null,null,null,null,null,null,null,null,0,0,60786,60786,{"$f":"SUM(O257:W257)","v":0},{"$f":"SUM(O257:Z257)","v":121572}]
[234,"50643-344 - Nouveau Batiment","CSDM","Potetiel de Évitement de GES : 62,47 tCO2","Bâtiment",1," 06-Montréal "," Montréal "," AC-Actif "," SU-Subvention ",137434,"2021-03-31","2025-12-31",null,null,null,null,null,null,null,null,null,0,0,68717,68717,{"$f":"SUM(O258:W258)","v":0},{"$f":"SUM(O258:Z258)","v":137434}]
[235,"50643-345 - Nouveau Batiment","CSDM","Potetiel de Évitement de GES : 75,22 tCO2","Bâtiment",1," 06-Montréal "," Montréal "," AC-Actif "," SU-Subvention ",165484,"2021-03-31","2025-12-31",null,null,null,null,null,null,null,null,null,0,0,82742,82742,{"$f":"SUM(O259:W259)","v":0},{"$f":"SUM(O259:Z259)","v":165484}]
[236,"50643-346 - Nouveau Batiment","CSDM","Potetiel de Évitement de GES : 73,84 tCO2","Bâtiment",1," 06-Montréal "," Montréal "," AC-Actif "," SU-Subvention ",162448,"2021-03-31","2025-12-31",null,null,null,null,null,null,null,null,null,0,0,81224,81224,{"$f":"SUM(O260:W260)","v":0},{"$f":"SUM(O260:Z260)","v":162448}]
[237,"50643-347 - Nouveau Batiment","CSDM","Potetiel de Évitement de GES : 64,15 tCO2","Bâtiment",1," 06-Montréal "," Montréal "," AC-Actif "," SU-Subvention ",141130,"2021-03-31","2025-12-31",null,null,null,null,null,null,null,null,null,0,0,70565,70565,{"$f":"SUM(O261:W261)","v":0},{"$f":"SUM(O261:Z261)","v":141130}]
[238,"50643-348 - Nouveau Batiment","CSDM","Potetiel de Évitement de GES : 62,5 tCO2","Bâtiment",1," 06-Montréal "," Montréal "," AC-Actif "," SU-Subvention ",137500,"2021-03-31","2025-12-31",null,null,null,null,null,null,null,null,null,0,0,68750,68750,{"$f":"SUM(O262:W262)","v":0},{"$f":"SUM(O262:Z262)","v":137500}]
[239,"50643-349 - Construction bâtiment - Saint-Gabriel-Lalemant, annexe","CSDM","Potetiel de Réduction de GES : 44,28 tCO2","Bâtiment",1," 06-Montréal "," Montréal "," AC-Actif "," SU-Subvention ",97416,"2021-03-31","2025-12-31",null,null,null,null,null,null,null,null,null,0,0,48708,48708,{"$f":"SUM(O263:W263)","v":0},{"$f":"SUM(O263:Z263)","v":97416}]
[240,"50643-350 - Construction bâtiment - Saint-Justin","CSDM","Potetiel de Réduction de GES : 45,53 tCO2","Bâtiment",1," 06-Montréal "," Montréal "," AC-Actif "," SU-Subvention ",100166,"2021-03-31","2025-12-31",null,null,null,null,null,null,null,null,null,0,0,50083,50083,{"$f":"SUM(O264:W264)","v":0},{"$f":"SUM(O264:Z264)","v":100166}]
[241,"50643-351 - Construction bâtiment - Berges-de-Lachine, des","Marguérite-Bourgeoys","Potetiel de Réduction de GES : 30,65 tCO2","Bâtiment",1," 06-Montréal "," Montréal "," AC-Actif "," SU-Subvention ",67430,"2021-03-31","2025-12-31",null,null,null,null,null,null,null,null,null,0,0,33715,33715,{"$f":"SUM(O265:W265)","v":0},{"$f":"SUM(O265:Z265)","v":67430}]
[242,"50643-352 - Construction bâtiment - Très-Saint-Sacrement, édifice du Savoir","Marguérite-Bourgeoys","Potetiel de Réduction de GES : 29,51 tCO2","Bâtiment",1," 06-Montréal "," Montréal "," AC-Actif "," SU-Subvention ",64922,"2021-03-31","2025-12-31",null,null,null,null,null,null,null,null,null,0,0,32461,32461,{"$f":"SUM(O266:W266)","v":0},{"$f":"SUM(O266:Z266)","v":64922}]
[243,"50643-353 - Construction bâtiment - Eau-Vive, L'","Marguérite-Bourgeoys","Potetiel de Réduction de GES : 41,83 tCO2","Bâtiment",1," 06-Montréal "," Montréal "," AC-Actif "," SU-Subvention ",92026,"2021-03-31","2025-12-31",null,null,null,null,null,null,null,null,null,0,0,46013,46013,{"$f":"SUM(O267:W267)","v":0},{"$f":"SUM(O267:Z267)","v":92026}]
[244,"50643-354 - Nouveau Batiment","Marguérite-Bourgeoys","Potetiel de Évitement de GES : 76,64 tCO2","Bâtiment",1," 06-Montréal "," Montréal "," AC-Actif "," SU-Subvention ",168608,"2021-03-31","2025-12-31",null,null,null,null,null,null,null,null,null,0,0,84304,84304,{"$f":"SUM(O268:W268)","v":0},{"$f":"SUM(O268:Z268)","v":168608}]
[245,"50643-355 - Construction bâtiment - Immeuble du 860, boulevard de la Côte-Vertu","Marguérite-Bourgeoys","Potetiel de Réduction de GES : 29,71 tCO2","Bâtiment",1," 06-Montréal "," Montréal "," AC-Actif "," SU-Subvention ",65362,"2021-03-31","2025-12-31",null,null,null,null,null,null,null,null,null,0,0,32681,32681,{"$f":"SUM(O269:W269)","v":0},{"$f":"SUM(O269:Z269)","v":65362}]
[246,"50643-356 - Nouveau Batiment","Marguérite-Bourgeoys","Potetiel de Évitement de GES : 59,97 tCO2","Bâtiment",1," 06-Montréal "," Montréal "," AC-Actif "," SU-Subvention ",131934,"2021-03-31","2025-12-31",null,null,null,null,null,null,null,null,null,0,0,65967,65967,{"$f":"SUM(O270:W270)","v":0},{"$f":"SUM(O270:Z270)","v":131934}]
[247,"50643-357 - Nouveau Batiment","Marguérite-Bourgeoys","Potetiel de Évitement de GES : 33,98 tCO2","Bâtiment",1," 06-Montréal "," Montréal "," AC-Actif "," SU-Subvention ",74756,"2021-03-31","2025-12-31",null,null,null,null,null,null,null,null,null,0,0,37378,37378,{"$f":"SUM(O271:W271)","v":0},{"$f":"SUM(O271:Z271)","v":74756}]
[248,"50643-358 - Nouveau Batiment","Marguérite-Bourgeoys","Potetiel de Évitement de GES : 70,1 tCO2","Bâtiment",1," 06-Montréal "," Montréal "," AC-Actif "," SU-Subvention ",154220,"2021-03-31","2025-12-31",null,null,null,null,null,null,null,null,null,0,0,77110,77110,{"$f":"SUM(O272:W272)","v":0},{"$f":"SUM(O272:Z272)","v":154220}]
[249,"50643-359 - Nouveau Batiment","Marguérite-Bourgeoys","Potetiel de Évitement de GES : 59,03 tCO2","Bâtiment",1," 06-Montréal "," Montréal "," AC-Actif "," SU-Subvention ",129866,"2021-03-31","2025-12-31",null,null,null,null,null,null,null,null,null,0,0,64933,64933,{"$f":"SUM(O273:W273)","v":0},{"$f":"SUM(O273:Z273)","v":129866}]
[250,"50643-360 - Nouvelle école secondaire Pierrefonds","Marguérite-Bourgeoys","Potetiel de Évitement de GES : 344,89 tCO2","Bâtiment",1," 06-Montréal "," Montréal "," AC-Actif "," SU-Subvention ",758758,"2021-03-31","2025-12-31",null,null,null,null,null,null,null,null,null,0,0,379379,379379,{"$f":"SUM(O274:W274)","v":0},{"$f":"SUM(O274:Z274)","v":758758}]
[251,"50643-361 - Nouveau Batiment","Marguérite-Bourgeoys","Potetiel de Évitement de GES : 78,97 tCO2","Bâtiment",1," 06-Montréal "," Montréal "," AC-Actif "," SU-Subvention ",173734,"2021-03-31","2025-12-31",null,null,null,null,null,null,null,null,null,0,0,86867,86867,{"$f":"SUM(O275:W275)","v":0},{"$f":"SUM(O275:Z275)","v":173734}]
[252,"50643-362 - Construction bâtiment - Ajagudak","Kativik","Potetiel de Réduction de GES : 21,46 tCO2","Bâtiment",1," 10-Nord-du-Québec "," Tasiujaq "," AC-Actif "," SU-Subvention ",47212,"2021-03-31","2025-12-31",null,null,null,null,null,null,null,null,null,0,0,23606,23606,{"$f":"SUM(O276:W276)","v":0},{"$f":"SUM(O276:Z276)","v":47212}]
[253,"50643-363 - Construction bâtiment - Tukisiniarvik","Kativik","Potetiel de Réduction de GES : 30,35 tCO2","Bâtiment",1," 10-Nord-du-Québec "," Akulivik "," AC-Actif "," SU-Subvention ",66770,"2021-03-31","2025-12-31",null,null,null,null,null,null,null,null,null,0,0,33385,33385,{"$f":"SUM(O277:W277)","v":0},{"$f":"SUM(O277:Z277)","v":66770}]
[254,"50643-364 - Nouveau Batiment","Draveurs","Potetiel de Évitement de GES : 59,93 tCO2","Bâtiment",1," 07-Outaouais "," Gatineau "," AC-Actif "," SU-Subvention ",131846,"2021-03-31","2025-12-31",null,null,null,null,null,null,null,null,null,0,0,65923,65923,{"$f":"SUM(O278:W278)","v":0},{"$f":"SUM(O278:Z278)","v":131846}]
[255,"50643-365 - Construction bâtiment - Amérique-Française, de l'","Portages-de-l'Outaouais","Potetiel de Réduction de GES : 8,2 tCO2","Bâtiment",1," 07-Outaouais "," Gatineau "," AC-Actif "," SU-Subvention ",18040,"2021-03-31","2025-12-31",null,null,null,null,null,null,null,null,null,0,0,9020,9020,{"$f":"SUM(O279:W279)","v":0},{"$f":"SUM(O279:Z279)","v":18040}]
[256,"50643-366 - Nouveau Batiment","Portages-de-l'Outaouais","Potetiel de Évitement de GES : 76,64 tCO2","Bâtiment",1," 07-Outaouais "," Gatineau "," AC-Actif "," SU-Subvention ",168608,"2021-03-31","2025-12-31",null,null,null,null,null,null,null,null,null,0,0,84304,84304,{"$f":"SUM(O280:W280)","v":0},{"$f":"SUM(O280:Z280)","v":168608}]
[257,"50643-367 - Nouveau Batiment","Portages-de-l'Outaouais","Potetiel de Évitement de GES : 62,5 tCO2","Bâtiment",1," 07-Outaouais "," N/D "," AC-Actif "," SU-Subvention ",137500,"2021-03-31","2025-12-31",null,null,null,null,null,null,null,null,null,0,0,68750,68750,{"$f":"SUM(O281:W281)","v":0},{"$f":"SUM(O281:Z281)","v":137500}]
[258,"50643-368 - Construction bâtiment - Sainte-Cécile","Portages-de-l'Outaouais","Potetiel de Réduction de GES : 14,87 tCO2","Bâtiment",1," 07-Outaouais "," La Pêche "," AC-Actif "," SU-Subvention ",32714,"2021-03-31","2025-12-31",null,null,null,null,null,null,null,null,null,3003,0,16357,13354,{"$f":"SUM(O282:W282)","v":3003},{"$f":"SUM(O282:Z282)","v":32714}]
[259,"50643-369 - Construction bâtiment - Parc-de-la-Montagne, du","Portages-de-l'Outaouais","Potetiel de Réduction de GES : 26,68 tCO2","Bâtiment",1," 07-Outaouais "," Gatineau "," AC-Actif "," SU-Subvention ",58696,"2021-03-31","2025-12-31",null,null,null,null,null,null,null,null,null,0,0,29348,29348,{"$f":"SUM(O283:W283)","v":0},{"$f":"SUM(O283:Z283)","v":58696}]
[260,"50643-370 - Nouveau Batiment","Coeur-des-Vallées","Potetiel de Évitement de GES : 42,75 tCO2","Bâtiment",1," 07-Outaouais "," l'Ange-Gardien "," AC-Actif "," SU-Subvention ",94050,"2021-03-31","2025-12-31",null,null,null,null,null,null,null,null,null,0,0,47025,47025,{"$f":"SUM(O284:W284)","v":0},{"$f":"SUM(O284:Z284)","v":94050}]
[261,"50643-371 - Construction bâtiment - Monseigneur-Blanche","Fer","Potetiel de Réduction de GES : 6,01 tCO2","Bâtiment",1," 09-Côte-Nord "," Sept-ïle "," AC-Actif "," SU-Subvention ",13222,"2021-03-31","2025-12-31",null,null,null,null,null,null,null,null,null,0,0,6611,6611,{"$f":"SUM(O285:W285)","v":0},{"$f":"SUM(O285:Z285)","v":13222}]
[262,"50643-372 - Nouveau Batiment","Baie-James","Potetiel de Évitement de GES : 10,79 tCO2","Bâtiment",1," 10-Nord-du-Québec "," Chibougamau "," AC-Actif "," SU-Subvention ",23738,"2021-03-31","2025-12-31",null,null,null,null,null,null,null,null,null,0,0,11869,11869,{"$f":"SUM(O286:W286)","v":0},{"$f":"SUM(O286:Z286)","v":23738}]
[263,"50643-373 - Construction bâtiment - Couvent du Bon-Pasteur","Cote-du-sud","Potetiel de Réduction de GES : 9,79 tCO2","Bâtiment",1," 12-Chaudières-Appalaches "," L'Islet "," AC-Actif "," SU-Subvention ",21538,"2021-03-31","2025-12-31",null,null,null,null,null,null,null,null,null,0,0,10769,10769,{"$f":"SUM(O287:W287)","v":0},{"$f":"SUM(O287:Z287)","v":21538}]
[264,"50643-374 - Nouveau Batiment","Cote-du-sud","Potetiel de Évitement de GES : 42,65 tCO2","Bâtiment",1," 11-Gaspésie-Iles-de-la-Madeleine "," St-Charles-de-Bellechasse "," AC-Actif "," SU-Subvention ",93830,"2021-03-31","2025-12-31",null,null,null,null,null,null,null,null,null,0,0,46915,46915,{"$f":"SUM(O288:W288)","v":0},{"$f":"SUM(O288:Z288)","v":93830}]
[265,"50643-375 - Construction bâtiment - Saint-Nicolas","Cote-du-sud","Potetiel de Réduction de GES : 6,01 tCO2","Bâtiment",1," 12-Chaudières-Appalaches "," Montmagny "," AC-Actif "," SU-Subvention ",13222,"2021-03-31","2025-12-31",null,null,null,null,null,null,null,null,null,0,0,6611,6611,{"$f":"SUM(O289:W289)","v":0},{"$f":"SUM(O289:Z289)","v":13222}]
[266,"50643-376 - Construction bâtiment - Serre PBV","Beauce-Etchemin","Potetiel de Réduction de GES : 52,36 tCO2","Bâtiment",1," 12-Chaudières-Appalaches "," Sainte-Marie "," AC-Actif "," SU-Subvention ",115192,"2021-03-31","2025-12-31",null,null,null,null,null,null,null,null,null,0,0,57596,57596,{"$f":"SUM(O290:W290)","v":0},{"$f":"SUM(O290:Z290)","v":115192}]
[267,"50643-377 - Construction bâtiment - Boisé, du","Navigateurs","Potetiel de Réduction de GES : 12,28 tCO2","Bâtiment",1," 12-Chaudières-Appalaches "," Lévis "," AC-Actif "," SU-Subvention ",27016,"2021-03-31","2025-12-31",null,null,null,null,null,null,null,null,null,270.16000000000003,0,13508,13237.84,{"$f":"SUM(O291:W291)","v":270.16000000000003},{"$f":"SUM(O291:Z291)","v":27016}]
[268,"50643-378 - Construction bâtiment - Grand-Voilier (Hirondelles), du","Navigateurs","Potetiel de Réduction de GES : 12,58 tCO2","Bâtiment",1," 12-Chaudières-Appalaches "," Lévis "," AC-Actif "," SU-Subvention ",27676,"2021-03-31","2025-12-31",null,null,null,null,null,null,null,null,null,1383.8000000000002,0,13838,12454.2,{"$f":"SUM(O292:W292)","v":1383.8000000000002},{"$f":"SUM(O292:Z292)","v":27676}]
[269,"50643-379 - Construction bâtiment - Ruisseau, du","Navigateurs","Potetiel de Réduction de GES : 27,05 tCO2","Bâtiment",1," 12-Chaudières-Appalaches "," Lévis "," AC-Actif "," SU-Subvention ",59510,"2021-03-31","2025-12-31",null,null,null,null,null,null,null,null,null,595.1,0,29755,29159.9,{"$f":"SUM(O293:W293)","v":595.1},{"$f":"SUM(O293:Z293)","v":59510}]
[270,"50643-380 - Construction bâtiment - Sainte-Marie","Navigateurs","Potetiel de Réduction de GES : 8,2 tCO2","Bâtiment",1," 12-Chaudières-Appalaches "," Lévis "," AC-Actif "," SU-Subvention ",18040,"2021-03-31","2025-12-31",null,null,null,null,null,null,null,null,null,180.4,0,9020,8839.6,{"$f":"SUM(O294:W294)","v":180.4},{"$f":"SUM(O294:Z294)","v":18040}]
[271,"50643-381 - Construction bâtiment - Épervière, l'","Navigateurs","Potetiel de Réduction de GES : 19,24 tCO2","Bâtiment",1," 12-Chaudières-Appalaches "," Saint-Agapit "," AC-Actif "," SU-Subvention ",42328,"2021-03-31","2025-12-31",null,null,null,null,null,null,null,null,null,423.28000000000003,0,21164,20740.72,{"$f":"SUM(O295:W295)","v":423.28000000000003},{"$f":"SUM(O295:Z295)","v":42328}]
[272,"50643-382 - Construction bâtiment - Saint-Dominique","Navigateurs","Potetiel de Réduction de GES : 12,28 tCO2","Bâtiment",1," 12-Chaudières-Appalaches "," Lévis "," AC-Actif "," SU-Subvention ",27016,"2021-03-31","2025-12-31",null,null,null,null,null,null,null,null,null,270.16000000000003,0,13508,13237.84,{"$f":"SUM(O296:W296)","v":270.16000000000003},{"$f":"SUM(O296:Z296)","v":27016}]
[273,"50643-383 - Construction bâtiment - Odyssée, de l'","Navigateurs","Potetiel de Réduction de GES : 8,2 tCO2","Bâtiment",1," 12-Chaudières-Appalaches "," Lévis "," AC-Actif "," SU-Subvention ",18040,"2021-03-31","2025-12-31",null,null,null,null,null,null,null,null,null,180.4,0,9020,8839.6,{"$f":"SUM(O297:W297)","v":180.4},{"$f":"SUM(O297:Z297)","v":18040}]
[274,"50643-384 - Construction bâtiment - Clair-Soleil","Navigateurs","Potetiel de Réduction de GES : 16,37 tCO2","Bâtiment",1," 12-Chaudières-Appalaches "," Lévis "," AC-Actif "," SU-Subvention ",36014,"2021-03-31","2025-12-31",null,null,null,null,null,null,null,null,null,360.14,0,18007,17646.86,{"$f":"SUM(O298:W298)","v":360.14},{"$f":"SUM(O298:Z298)","v":36014}]
[275,"50643-385 - Construction bâtiment - Fleur-de-Vie, pavillon B","Laval","Potetiel de Réduction de GES : 17,18 tCO2","Bâtiment",1," 13-Laval "," Laval "," AC-Actif "," SU-Subvention ",37796,"2021-03-31","2025-12-31",null,null,null,null,null,null,null,null,null,0,0,18898,18898,{"$f":"SUM(O299:W299)","v":0},{"$f":"SUM(O299:Z299)","v":37796}]
[276,"50643-386 - Construction bâtiment - Le Baluchon","Laval","Potetiel de Réduction de GES : 9,27 tCO2","Bâtiment",1," 13-Laval "," Laval "," AC-Actif "," SU-Subvention ",20394,"2021-03-31","2025-12-31",null,null,null,null,null,null,null,null,null,0,0,10197,10197,{"$f":"SUM(O300:W300)","v":0},{"$f":"SUM(O300:Z300)","v":20394}]
[277,"50643-387 - Construction bâtiment - Pavillon Ulric-Debien","Laval","Potetiel de Réduction de GES : 32,07 tCO2","Bâtiment",1," 13-Laval "," Laval "," AC-Actif "," SU-Subvention ",70554,"2021-03-31","2025-12-31",null,null,null,null,null,null,null,null,null,52974,0,17580,null,{"$f":"SUM(O301:W301)","v":52974},{"$f":"SUM(O301:Z301)","v":70554}]
[278,"50643-388 - Construction bâtiment - Édifice Cunard","Laval","Potetiel de Réduction de GES : 214,36 tCO2","Bâtiment",1," 13-Laval "," Laval "," AC-Actif "," SU-Subvention ",471592,"2021-03-31","2025-12-31",null,null,null,null,null,null,null,null,null,0,0,235796,235796,{"$f":"SUM(O302:W302)","v":0},{"$f":"SUM(O302:Z302)","v":471592}]
[279,"50643-389 - Nouvelle école pour adultes à Chomedey","Laval","Potetiel de Évitement de GES : 15,18 tCO2","Bâtiment",1," 13-Laval "," N/D "," AC-Actif "," SU-Subvention ",33396,"2021-03-31","2025-12-31",null,null,null,null,null,null,null,null,null,1774.4188788307806,0,16698,14924,{"$f":"SUM(O303:W303)","v":1774.4188788307806},{"$f":"SUM(O303:Z303)","v":33396.41887883078}]
[280,"50643-390 - Nouveau Batiment","Laval","Potetiel de Évitement de GES : 57,25 tCO2","Bâtiment",1," 13-Laval "," Laval "," AC-Actif "," SU-Subvention ",125950,"2021-03-31","2025-12-31",null,null,null,null,null,null,null,null,null,134.01603431667905,0,62975,62841,{"$f":"SUM(O304:W304)","v":134.01603431667905},{"$f":"SUM(O304:Z304)","v":125950.01603431668}]
[281,"50643-391 - Nouveau Batiment","Laval","Potetiel de Évitement de GES : 65,46 tCO2","Bâtiment",1," 13-Laval "," Laval "," AC-Actif "," SU-Subvention ",144012,"2021-03-31","2025-12-31",null,null,null,null,null,null,null,null,null,0,0,72006,72006,{"$f":"SUM(O305:W305)","v":0},{"$f":"SUM(O305:Z305)","v":144012}]
[282,"50643-392 - Contruction bâtiment - Centre administratif, édifice 3","Laval","Potetiel de Réduction de GES : 40,54 tCO2","Bâtiment",1," 13-Laval "," Laval "," AC-Actif "," SU-Subvention ",89188,"2021-03-31","2025-12-31",null,null,null,null,null,null,null,null,null,0,0,44594,44594,{"$f":"SUM(O306:W306)","v":0},{"$f":"SUM(O306:Z306)","v":89188}]
[283,"50643-393 - Nouveau Batiment","Laval","Potetiel de Évitement de GES : 67,62 tCO2","Bâtiment",1," 13-Laval "," Laval "," AC-Actif "," SU-Subvention ",148764,"2021-03-31","2025-12-31",null,null,null,null,null,null,null,null,null,323.22147125304929,0,74382,74059,{"$f":"SUM(O307:W307)","v":323.22147125304929},{"$f":"SUM(O307:Z307)","v":148764.22147125305}]
[284,"50643-394 - Construction bâtiment - Les Berges, édifice 1","Laval","Potetiel de Réduction de GES : 46,46 tCO2","Bâtiment",1," 13-Laval "," Laval "," AC-Actif "," SU-Subvention ",102212,"2021-03-31","2025-12-31",null,null,null,null,null,null,null,null,null,0,0,51106,51106,{"$f":"SUM(O308:W308)","v":0},{"$f":"SUM(O308:Z308)","v":102212}]
[285,"50643-395 - Construction bâtiment - Les Berges, édifice 2","Laval","Potetiel de Réduction de GES : 23,47 tCO2","Bâtiment",1," 13-Laval "," Laval "," AC-Actif "," SU-Subvention ",51634,"2021-03-31","2025-12-31",null,null,null,null,null,null,null,null,null,0,0,25817,25817,{"$f":"SUM(O309:W309)","v":0},{"$f":"SUM(O309:Z309)","v":51634}]
[286,"50643-396 - Construction bâtiment - Sainte-Croix, pavillon","Laval","Potetiel de Réduction de GES : 21,35 tCO2","Bâtiment",1," 13-Laval "," Laval "," AC-Actif "," SU-Subvention ",46970,"2021-03-31","2025-12-31",null,null,null,null,null,null,null,null,null,3781.2865185072665,0,23485,19704,{"$f":"SUM(O310:W310)","v":3781.2865185072665},{"$f":"SUM(O310:Z310)","v":46970.286518507266}]
[287,"50643-397 - Construction bâtiment - Du Coteau","Affluents","Potetiel de Réduction de GES : 55,18 tCO2","Bâtiment",1," 14-Lanaudière "," Mascouche "," AC-Actif "," SU-Subvention ",121396,"2021-03-31","2025-12-31",null,null,null,null,null,null,null,null,null,0,0,60698,60698,{"$f":"SUM(O311:W311)","v":0},{"$f":"SUM(O311:Z311)","v":121396}]
[288,"50643-398 - Construction bâtiment - Source d'Autray, de la","Samares","Potetiel de Réduction de GES : 27,05 tCO2","Bâtiment",1," 14-Lanaudière "," Lanoraie "," AC-Actif "," SU-Subvention ",59510,"2021-03-31","2025-12-31",null,null,null,null,null,null,null,null,null,0,0,29755,29755,{"$f":"SUM(O312:W312)","v":0},{"$f":"SUM(O312:Z312)","v":59510}]
[289,"50643-399 - Construction bâtiment - Sainte-Bernadette","Samares","Potetiel de Réduction de GES : 7,98 tCO2","Bâtiment",1," 14-Lanaudière "," Notre-Dame-de-Lourdes "," AC-Actif "," SU-Subvention ",17556,"2021-03-31","2025-12-31",null,null,null,null,null,null,null,null,null,0,0,8778,8778,{"$f":"SUM(O313:W313)","v":0},{"$f":"SUM(O313:Z313)","v":17556}]
[290,"50643-400 - Construction bâtiment - Notre-Dame","Samares","Potetiel de Réduction de GES : 37,28 tCO2","Bâtiment",1," 14-Lanaudière "," Saint-Roch-de-l'Achigan "," AC-Actif "," SU-Subvention ",82016,"2021-03-31","2025-12-31",null,null,null,null,null,null,null,null,null,0,0,41008,41008,{"$f":"SUM(O314:W314)","v":0},{"$f":"SUM(O314:Z314)","v":82016}]
[291,"50643-401 - Nouveau Batiment","Samares","Potetiel de Évitement de GES : 81,1 tCO2","Bâtiment",1," 14-Lanaudière "," N/D "," AC-Actif "," SU-Subvention ",178420,"2021-03-31","2025-12-31",null,null,null,null,null,null,null,null,null,0,0,89210,89210,{"$f":"SUM(O315:W315)","v":0},{"$f":"SUM(O315:Z315)","v":178420}]
[292,"50643-402 - Nouveau Batiment","Samares","Potetiel de Évitement de GES : 42,65 tCO2","Bâtiment",1," 14-Lanaudière "," N/D "," AC-Actif "," SU-Subvention ",93830,"2021-03-31","2025-12-31",null,null,null,null,null,null,null,null,null,0,0,46915,46915,{"$f":"SUM(O316:W316)","v":0},{"$f":"SUM(O316:Z316)","v":93830}]
[293,"50643-403 - Construction bâtiment - Terre des Jeunes","Seigneurie-des-Mille-Îles","Potetiel de Réduction de GES : 40,81 tCO2","Bâtiment",1," 15-Laurentides "," Saint-Eustache "," AC-Actif "," SU-Subvention ",89782,"2021-03-31","2025-12-31",null,null,null,null,null,null,null,null,null,0,0,44891,44891,{"$f":"SUM(O317:W317)","v":0},{"$f":"SUM(O317:Z317)","v":89782}]
[294,"50643-404 - Construction bâtiment - Saint-Pierre","Seigneurie-des-Mille-Îles","Potetiel de Réduction de GES : 8,2 tCO2","Bâtiment",1," 15-Laurentides "," Sainte-Thérèse "," AC-Actif "," SU-Subvention ",18040,"2021-03-31","2025-12-31",null,null,null,null,null,null,null,null,null,0,0,9020,9020,{"$f":"SUM(O318:W318)","v":0},{"$f":"SUM(O318:Z318)","v":18040}]
[295,"50643-405 - Construction bâtiment - Harfang, pavillon Saint-François, secondaire du","Seigneurie-des-Mille-Îles","Potetiel de Réduction de GES : 39,7 tCO2","Bâtiment",1," 15-Laurentides "," Sainte-Anne-des-Plaines "," AC-Actif "," SU-Subvention ",87340,"2021-03-31","2025-12-31",null,null,null,null,null,null,null,null,null,0,0,43670,43670,{"$f":"SUM(O319:W319)","v":0},{"$f":"SUM(O319:Z319)","v":87340}]
[296,"50643-406 - Construction bâtiment - Du Harfang","Seigneurie-des-Mille-Îles","Potetiel de Réduction de GES : 90,57 tCO2","Bâtiment",1," 15-Laurentides "," Sainte-Anne-des-Plaines "," AC-Actif "," SU-Subvention ",199254,"2021-03-31","2025-12-31",null,null,null,null,null,null,null,null,null,0,0,99627,99627,{"$f":"SUM(O320:W320)","v":0},{"$f":"SUM(O320:Z320)","v":199254}]
[297,"50643-407 - Construction bâtiment - Blés-Dorés, des","Seigneurie-des-Mille-Îles","Potetiel de Réduction de GES : 8,2 tCO2","Bâtiment",1," 15-Laurentides "," Mirabel "," AC-Actif "," SU-Subvention ",18040,"2021-03-31","2025-12-31",null,null,null,null,null,null,null,null,null,9032.9509551162992,0,9007,null,{"$f":"SUM(O321:W321)","v":9032.9509551162992},{"$f":"SUM(O321:Z321)","v":18039.950955116299}]
[298,"50643-408 - Construction bâtiment - Horizon-du-Lac","Seigneurie-des-Mille-Îles","Potetiel de Réduction de GES : 8,2 tCO2","Bâtiment",1," 15-Laurentides "," Sainte-Marthe-sur-le-Lac "," AC-Actif "," SU-Subvention ",18040,"2021-03-31","2025-12-31",null,null,null,null,null,null,null,null,null,0,0,9020,9020,{"$f":"SUM(O322:W322)","v":0},{"$f":"SUM(O322:Z322)","v":18040}]
[299,"50643-409 - Nouveau Batiment","Seigneurie-des-Mille-Îles","Potetiel de Évitement de GES : 46,9 tCO2","Bâtiment",1," 15-Laurentides "," Mirabel "," AC-Actif "," SU-Subvention ",103180,"2021-03-31","2025-12-31",null,null,null,null,null,null,null,null,null,0,0,51590,51590,{"$f":"SUM(O323:W323)","v":0},{"$f":"SUM(O323:Z323)","v":103180}]
[300,"50643-410 - Nouveau Batiment","Seigneurie-des-Mille-Îles","Potetiel de Évitement de GES : 78,97 tCO2","Bâtiment",1," 14-Lanaudière "," Terrebonne "," AC-Actif "," SU-Subvention ",173734,"2021-03-31","2025-12-31",null,null,null,null,null,null,null,null,null,0,0,86867,86867,{"$f":"SUM(O324:W324)","v":0},{"$f":"SUM(O324:Z324)","v":173734}]
[301,"50643-411 - Construction bâtiment - Sainte-Thérèse-de-l'Enfant-Jésus","Rivière-du-Nord","Potetiel de Réduction de GES : 43,96 tCO2","Bâtiment",1," 15-Laurentides "," Saint-Jérôme "," AC-Actif "," SU-Subvention ",96712,"2021-03-31","2025-12-31",null,null,null,null,null,null,null,null,null,0,0,48356,48356,{"$f":"SUM(O325:W325)","v":0},{"$f":"SUM(O325:Z325)","v":96712}]
[302,"50643-412 - Nouveau Batiment","Rivière-du-Nord","Potetiel de Évitement de GES : 76,34 tCO2","Bâtiment",1," 15-Laurentides "," Saint-Jérôme "," AC-Actif "," SU-Subvention ",167948,"2021-03-31","2025-12-31",null,null,null,null,null,null,null,null,null,0,0,83974,83974,{"$f":"SUM(O326:W326)","v":0},{"$f":"SUM(O326:Z326)","v":167948}]
[303,"50643-413 - Nouveau Batiment","Rivière-du-Nord","Potetiel de Évitement de GES : 73,04 tCO2","Bâtiment",1," 15-Laurentides "," Saint-Jérôme "," AC-Actif "," SU-Subvention ",160688,"2021-03-31","2025-12-31",null,null,null,null,null,null,null,null,null,0,0,80344,80344,{"$f":"SUM(O327:W327)","v":0},{"$f":"SUM(O327:Z327)","v":160688}]
[304,"50643-414 - Nouveau Batiment","Rivière-du-Nord","Potetiel de Évitement de GES : 26,5 tCO2","Bâtiment",1," 15-Laurentides "," N/D "," AC-Actif "," SU-Subvention ",58300,"2021-03-31","2025-12-31",null,null,null,null,null,null,null,null,null,0,0,29150,29150,{"$f":"SUM(O328:W328)","v":0},{"$f":"SUM(O328:Z328)","v":58300}]
[305,"50643-415 - Nouveau Batiment","Rivière-du-Nord","Potetiel de Évitement de GES : 66,51 tCO2","Bâtiment",1," 15-Laurentides "," Mirabel "," AC-Actif "," SU-Subvention ",146322,"2021-03-31","2025-12-31",null,null,null,null,null,null,null,null,null,0,0,73161,73161,{"$f":"SUM(O329:W329)","v":0},{"$f":"SUM(O329:Z329)","v":146322}]
[306,"50643-416 - Nouveau Batiment","Rivière-du-Nord","Potetiel de Évitement de GES : 85,76 tCO2","Bâtiment",1," 15-Laurentides "," Sainte-Sophie "," AC-Actif "," SU-Subvention ",188672,"2021-03-31","2025-12-31",null,null,null,null,null,null,null,null,null,0,0,94336,94336,{"$f":"SUM(O330:W330)","v":0},{"$f":"SUM(O330:Z330)","v":188672}]
[307,"50643-417 - Nouveau Batiment","Laurentides","Potetiel de Évitement de GES : 62,5 tCO2","Bâtiment",1," 15-Laurentides "," Val-David "," AC-Actif "," SU-Subvention ",137500,"2021-03-31","2025-12-31",null,null,null,null,null,null,null,null,null,0,0,68750,68750,{"$f":"SUM(O331:W331)","v":0},{"$f":"SUM(O331:Z331)","v":137500}]
[308,"50643-418 - Construction bâtiment - Pavillon Tournesol","Laurentides","Potetiel de Réduction de GES : 19,24 tCO2","Bâtiment",1," 15-Laurentides "," Mont-Tremblant "," AC-Actif "," SU-Subvention ",42328,"2021-03-31","2025-12-31",null,null,null,null,null,null,null,null,null,0,0,21164,21164,{"$f":"SUM(O332:W332)","v":0},{"$f":"SUM(O332:Z332)","v":42328}]
[309,"50643-419 - Nouveau Batiment","Laurentides","Potetiel de Réduction de GES : 73,04 tCO2","Bâtiment",1," 15-Laurentides "," Saint-Sauveur "," AC-Actif "," SU-Subvention ",160688,"2021-03-31","2025-12-31",null,null,null,null,null,null,null,null,null,0,0,80344,80344,{"$f":"SUM(O333:W333)","v":0},{"$f":"SUM(O333:Z333)","v":160688}]
[310,"50643-420 - Construction bâtiment - Notre-Dame-de-la-Paix","Saint-Hyacinthe","Potetiel de Réduction de GES : 14,76 tCO2","Bâtiment",1," 16-Montérégie "," Saint-Simon "," AC-Actif "," SU-Subvention ",32472,"2021-03-31","2025-12-31",null,null,null,null,null,null,null,null,null,0,0,16236,16236,{"$f":"SUM(O334:W334)","v":0},{"$f":"SUM(O334:Z334)","v":32472}]
[311,"50643-421 - Construction bâtiment - Normandie, de","Marie-Victorin","Potetiel de Réduction de GES : 34,95 tCO2","Bâtiment",1," 16-Montérégie "," Longueuil "," AC-Actif "," SU-Subvention ",76890,"2021-03-31","2025-12-31",null,null,null,null,null,null,null,null,null,0,0,38445,38445,{"$f":"SUM(O335:W335)","v":0},{"$f":"SUM(O335:Z335)","v":76890}]
[312,"50643-422 - Construction bâtiment - Saint-Edmond, secondaire","Marie-Victorin","Potetiel de Réduction de GES : 70,91 tCO2","Bâtiment",1," 16-Montérégie "," Longueuil "," AC-Actif "," SU-Subvention ",156002,"2021-03-31","2025-12-31",null,null,null,null,null,null,null,null,null,0,0,78001,78001,{"$f":"SUM(O336:W336)","v":0},{"$f":"SUM(O336:Z336)","v":156002}]
[313,"50643-423 - Construction bâtiment - Paul-Chagnon","Marie-Victorin","Potetiel de Réduction de GES : 26,62 tCO2","Bâtiment",1," 16-Montérégie "," Longueuil "," AC-Actif "," SU-Subvention ",58564,"2021-03-31","2025-12-31",null,null,null,null,null,null,null,null,null,0,0,29282,29282,{"$f":"SUM(O337:W337)","v":0},{"$f":"SUM(O337:Z337)","v":58564}]
[314,"50643-424 - Construction bâtiment - Rabeau","Marie-Victorin","Potetiel de Réduction de GES : 38,89 tCO2","Bâtiment",1," 16-Montérégie "," Saint-Lambert "," AC-Actif "," SU-Subvention ",85558,"2021-03-31","2025-12-31",null,null,null,null,null,null,null,null,null,0,0,42779,42779,{"$f":"SUM(O338:W338)","v":0},{"$f":"SUM(O338:Z338)","v":85558}]
[315,"50643-425 - Construction bâtiment - Saint-Laurent","Marie-Victorin","Potetiel de Réduction de GES : 23,69 tCO2","Bâtiment",1," 16-Montérégie "," Brossard "," AC-Actif "," SU-Subvention ",52118,"2021-03-31","2025-12-31",null,null,null,null,null,null,null,null,null,0,0,26059,26059,{"$f":"SUM(O339:W339)","v":0},{"$f":"SUM(O339:Z339)","v":52118}]
[316,"50643-426 - Construction bâtiment - Antoine-Brossard","Marie-Victorin","Potetiel de Réduction de GES : 293,18 tCO2","Bâtiment",1," 16-Montérégie "," Brossard "," AC-Actif "," SU-Subvention ",644996,"2021-03-31","2025-12-31",null,null,null,null,null,null,null,null,null,0,0,322498,322498,{"$f":"SUM(O340:W340)","v":0},{"$f":"SUM(O340:Z340)","v":644996}]
[317,"50643-427 - Construction bâtiment - Jacques-Rousseau","Marie-Victorin","Potetiel de Réduction de GES : 321,55 tCO2","Bâtiment",1," 16-Montérégie "," Longueuil "," AC-Actif "," SU-Subvention ",707410,"2021-03-31","2025-12-31",null,null,null,null,null,null,null,null,null,562617.62266939494,0,144792,null,{"$f":"SUM(O341:W341)","v":562617.62266939494},{"$f":"SUM(O341:Z341)","v":707409.62266939494}]
[318,"50643-428 - Construction bâtiment - Lucille-Teasdale, internationale","Marie-Victorin","Potetiel de Réduction de GES : 167,79 tCO2","Bâtiment",1," 16-Montérégie "," Brossard "," AC-Actif "," SU-Subvention ",369138,"2021-03-31","2025-12-31",null,null,null,null,null,null,null,null,null,0,0,184569,184569,{"$f":"SUM(O342:W342)","v":0},{"$f":"SUM(O342:Z342)","v":369138}]
[319,"50643-429 - Nouveau Batiment","Marie-Victorin","Potetiel de Évitement de GES : 76,64 tCO2","Bâtiment",1," 16-Montérégie "," Brossard "," AC-Actif "," SU-Subvention ",168608,"2021-03-31","2025-12-31",null,null,null,null,null,null,null,null,null,0,0,84304,84304,{"$f":"SUM(O343:W343)","v":0},{"$f":"SUM(O343:Z343)","v":168608}]
[320,"50643-430 - Nouveau Batiment","Marie-Victorin","Potetiel de Évitement de GES : 78,97 tCO2","Bâtiment",1," 16-Montérégie "," Brossard "," AC-Actif "," SU-Subvention ",173734,"2021-03-31","2025-12-31",null,null,null,null,null,null,null,null,null,0,0,86867,86867,{"$f":"SUM(O344:W344)","v":0},{"$f":"SUM(O344:Z344)","v":173734}]
[321,"50643-431 - Nouveau Batiment","Marie-Victorin","Potetiel de Évitement de GES : 108,1 tCO2","Bâtiment",1," 16-Montérégie "," St-Hubert "," AC-Actif "," SU-Subvention ",237820,"2021-03-31","2025-12-31",null,null,null,null,null,null,null,null,null,0,0,118910,118910,{"$f":"SUM(O345:W345)","v":0},{"$f":"SUM(O345:Z345)","v":237820}]
[322,"50643-432 - Nouveau Batiment - Nouvelle école Carignan","Patriotes","Potetiel de Évitement de GES : 78,97 tCO2","Bâtiment",1," 16-Montérégie "," Carignan "," AC-Actif "," SU-Subvention ",173734,"2021-03-31","2025-12-31",null,null,null,null,null,null,null,null,null,0,0,86867,86867,{"$f":"SUM(O346:W346)","v":0},{"$f":"SUM(O346:Z346)","v":173734}]
[323,"50643-433 - Nouveau Batiment","Patriotes","Potetiel de Évitement de GES : 44,28 tCO2","Bâtiment",1," 16-Montérégie "," Beloeil "," AC-Actif "," SU-Subvention ",97416,"2021-03-31","2025-12-31",null,null,null,null,null,null,null,null,null,0,0,48708,48708,{"$f":"SUM(O347:W347)","v":0},{"$f":"SUM(O347:Z347)","v":97416}]
[324,"50643-434 - Nouveau Batiment","Val-des-Cerfs","Potetiel de Évitement de GES : 44,28 tCO2","Bâtiment",1," 16-Montérégie "," Granby "," AC-Actif "," SU-Subvention ",97416,"2021-03-31","2025-12-31",null,null,null,null,null,null,null,null,null,6369.3789674281279,0,48708,42339,{"$f":"SUM(O348:W348)","v":6369.3789674281279},{"$f":"SUM(O348:Z348)","v":97416.378967428129}]
[325,"50643-435 - Nouveau Batiment","Val-des-Cerfs","Potetiel de Évitement de GES : 44,28 tCO2","Bâtiment",1," 16-Montérégie "," Cowansville "," AC-Actif "," SU-Subvention ",97416,"2021-03-31","2025-12-31",null,null,null,null,null,null,null,null,null,4380.7571928925836,0,48708,44327,{"$f":"SUM(O349:W349)","v":4380.7571928925836},{"$f":"SUM(O349:Z349)","v":97415.757192892575}]
[326,"50643-436 - Nouveau Batiment","Val-des-Cerfs","Potetiel de Évitement de GES : 44,28 tCO2","Bâtiment",1," 16-Montérégie "," Granby "," AC-Actif "," SU-Subvention ",97416,"2021-03-31","2025-12-31",null,null,null,null,null,null,null,null,null,5353.6945884020752,0,48708,43354,{"$f":"SUM(O350:W350)","v":5353.6945884020752},{"$f":"SUM(O350:Z350)","v":97415.694588402082}]
[327,"50643-437 - Construction bâtiment - Omer-Séguin","Vallée-des-Tisserands","Potetiel de Réduction de GES : 12,4 tCO2","Bâtiment",1," 16-Montérégie "," Saint-Louis-de-Gonzague "," AC-Actif "," SU-Subvention ",27280,"2021-03-31","2025-12-31",null,null,null,null,null,null,null,null,null,0,0,13640,13640,{"$f":"SUM(O351:W351)","v":0},{"$f":"SUM(O351:Z351)","v":27280}]
[328,"50643-438 - Construction bâtiment - Des Jeunes-Riverains","Vallée-des-Tisserands","Potetiel de Réduction de GES : 8,48 tCO2","Bâtiment",1," 16-Montérégie "," Saint-Anicet "," AC-Actif "," SU-Subvention ",18656,"2021-03-31","2025-12-31",null,null,null,null,null,null,null,null,null,0,0,9328,9328,{"$f":"SUM(O352:W352)","v":0},{"$f":"SUM(O352:Z352)","v":18656}]
[329,"50643-439 - Nouveau Batiment","Trois-Lacs","Potetiel de Évitement de GES : 14,23 tCO2","Bâtiment",1," 16-Montérégie "," N/D "," AC-Actif "," SU-Subvention ",31306,"2021-03-31","2025-12-31",null,null,null,null,null,null,null,null,null,7180.962619600632,0,15653,8472,{"$f":"SUM(O353:W353)","v":7180.962619600632},{"$f":"SUM(O353:Z353)","v":31305.962619600632}]
[330,"50643-440 - Nouveau Batiment","Trois-Lacs","Potetiel de Évitement de GES : 66,51 tCO2","Bâtiment",1," 16-Montérégie "," Vaudreuil-Dorion "," AC-Actif "," SU-Subvention ",146322,"2021-03-31","2025-12-31",null,null,null,null,null,null,null,null,null,0,0,73161,73161,{"$f":"SUM(O354:W354)","v":0},{"$f":"SUM(O354:Z354)","v":146322}]
[331,"50643-441 - Nouveau Batiment","Riveraine","Potetiel de Évitement de GES : 39,26 tCO2","Bâtiment",1," 17-Centre-du-Québec "," Bécancourt "," AC-Actif "," SU-Subvention ",86372,"2021-03-31","2025-12-31",null,null,null,null,null,null,null,null,null,0,0,43186,43186,{"$f":"SUM(O355:W355)","v":0},{"$f":"SUM(O355:Z355)","v":86372}]
[332,"50643-442 - Construction bâtiment - Tournesol","Riveraine","Potetiel de Réduction de GES : 29,33 tCO2","Bâtiment",1," 17-Centre-du-Québec "," Saint-Léonard-d'Aston "," AC-Actif "," SU-Subvention ",64526,"2021-03-31","2025-12-31",null,null,null,null,null,null,null,null,null,0,0,32263,32263,{"$f":"SUM(O356:W356)","v":0},{"$f":"SUM(O356:Z356)","v":64526}]
[333,"50643-443 - Construction bâtiment - Sainte-Famille","Bois-Francs","Potetiel de Réduction de GES : 8,2 tCO2","Bâtiment",1," 17-Centre-du-Québec "," Plessisville "," AC-Actif "," SU-Subvention ",18040,"2021-03-31","2025-12-31",null,null,null,null,null,null,null,null,null,0,0,9020,9020,{"$f":"SUM(O357:W357)","v":0},{"$f":"SUM(O357:Z357)","v":18040}]
[334,"50643-444 - Construction bâtiment - Monseigneur-Milot","Bois-Francs","Potetiel de Réduction de GES : 10,23 tCO2","Bâtiment",1," 17-Centre-du-Québec "," Monseigneur-Milot "," AC-Actif "," SU-Subvention ",22506,"2021-03-31","2025-12-31",null,null,null,null,null,null,null,null,null,0,0,11253,11253,{"$f":"SUM(O358:W358)","v":0},{"$f":"SUM(O358:Z358)","v":22506}]
[335,"50643-445 - Construction bâtiment - Pie-X","Bois-Francs","Potetiel de Réduction de GES : 26,6 tCO2","Bâtiment",1," 17-Centre-du-Québec "," Victoriaville "," AC-Actif "," SU-Subvention ",58520,"2021-03-31","2025-12-31",null,null,null,null,null,null,null,null,null,0,0,29260,29260,{"$f":"SUM(O359:W359)","v":0},{"$f":"SUM(O359:Z359)","v":58520}]
[336,"50643-446 - Construction bâtiment - Sacré-Coeur","Bois-Francs","Potetiel de Réduction de GES : 8,2 tCO2","Bâtiment",1," 17-Centre-du-Québec "," Princeville "," AC-Actif "," SU-Subvention ",18040,"2021-03-31","2025-12-31",null,null,null,null,null,null,null,null,null,0,0,9020,9020,{"$f":"SUM(O360:W360)","v":0},{"$f":"SUM(O360:Z360)","v":18040}]
[337,"50643-447 - Construction bâtiment - Le tandem (Albert-Morissette), secondaire","Bois-Francs","Potetiel de Réduction de GES : 33,43 tCO2","Bâtiment",1," 17-Centre-du-Québec "," Victoriaville "," AC-Actif "," SU-Subvention ",73546,"2021-03-31","2025-12-31",null,null,null,null,null,null,null,null,null,0,0,36773,36773,{"$f":"SUM(O361:W361)","v":0},{"$f":"SUM(O361:Z361)","v":73546}]
[338,"50643-448 - Construction bâtiment - Deux Rivières, des","Chênes","Potetiel de Réduction de GES : 30,99 tCO2","Bâtiment",1," 17-Centre-du-Québec "," Saint-Lucien "," AC-Actif "," SU-Subvention ",68178,"2021-03-31","2025-12-31",null,null,null,null,null,null,null,null,null,0,0,34089,34089,{"$f":"SUM(O362:W362)","v":0},{"$f":"SUM(O362:Z362)","v":68178}]
[339,"50643-449 - Nouveau Batiment","Chênes","Potetiel de Évitement de GES : 59,43 tCO2","Bâtiment",1," 17-Centre-du-Québec "," Drummondville "," AC-Actif "," SU-Subvention ",130746,"2021-03-31","2025-12-31",null,null,null,null,null,null,null,null,null,0,0,65373,65373,{"$f":"SUM(O363:W363)","v":0},{"$f":"SUM(O363:Z363)","v":130746}]
[340,"50643-450 - Construction bâtiment - Riverside Regional Elementary School","Central Québec","Potetiel de Réduction de GES : 10,73 tCO2","Bâtiment",1," 02-Saguenay- Lac-Saint-Jean "," Saguenay "," AC-Actif "," SU-Subvention ",23606,"2021-03-31","2025-12-31",null,null,null,null,null,null,null,null,null,0,0,11803,11803,{"$f":"SUM(O364:W364)","v":0},{"$f":"SUM(O364:Z364)","v":23606}]
[341,"50643-451 - Construction bâtiment - MacLean Memorial","Central Québec","Potetiel de Réduction de GES : 23,91 tCO2","Bâtiment",1," 10-Nord-du-Québec "," Chibougamau "," AC-Actif "," SU-Subvention ",52602,"2021-03-31","2025-12-31",null,null,null,null,null,null,null,null,null,0,0,26301,26301,{"$f":"SUM(O365:W365)","v":0},{"$f":"SUM(O365:Z365)","v":52602}]
[342,"50643-452 - Construction bâtiment - Jimmy Sandy Memorial","Central Québec","Potetiel de Réduction de GES : 82,04 tCO2","Bâtiment",1," 10-Nord-du-Québec "," Kawawachikamach "," AC-Actif "," SU-Subvention ",180488,"2021-03-31","2025-12-31",null,null,null,null,null,null,null,null,null,0,0,90244,90244,{"$f":"SUM(O366:W366)","v":0},{"$f":"SUM(O366:Z366)","v":180488}]
[343,"50643-453 - Nouveau Batiment","Sir-Wilfried-Laurier","Potetiel de Évitement de GES : 44,28 tCO2","Bâtiment",1," 15-Laurentides "," St-Charles de Borromee "," AC-Actif "," SU-Subvention ",97416,"2021-03-31","2025-12-31",null,null,null,null,null,null,null,null,null,0,0,48708,48708,{"$f":"SUM(O367:W367)","v":0},{"$f":"SUM(O367:Z367)","v":97416}]
[344,"50643-454 - Construction bâtiment - Greater Gatineau-St-Aloysius","Western Québec","Potetiel de Réduction de GES : 6,15 tCO2","Bâtiment",1," 07-Outaouais "," Gatineau "," AC-Actif "," SU-Subvention ",13530,"2021-03-31","2025-12-31",null,null,null,null,null,null,null,null,null,0,0,6765,6765,{"$f":"SUM(O368:W368)","v":0},{"$f":"SUM(O368:Z368)","v":13530}]
[345,null,null,null,null,null,null,null,null,null,{"$f":"SUM(K25:K368)","v":86239751.960000008},null,null,{"$f":"SUM(N25:N368)","v":122906345},0,0,0,0,0,0,0,0,35553209.921095848,3512044,26083045,21062430.989999998,35553209.921095848,86210729.911095873]
[346,null,null,null,null,null,null,null,null,null,null,null,null,null,null,null,null,null,null,null,null,null,null,null,null,null,{"$f":"SUM(O370:W370)","v":0},{"$f":"SUM(O370:Z370)","v":0}]
[347,null,null,null,null,null,null,null,null,null,null,null,null,null,null,null,null,null,null,null,null,null,null,null,null,null,{"$f":"SUM(O371:W371)","v":0},{"$f":"SUM(O371:Z371)","v":0}]
[348,null,null,null,null,null,null,null,null,null,null,null,null,null,null,null,null,null,null,null,null,null,null,null,null,null,{"$f":"SUM(O372:W372)","v":0},{"$f":"SUM(O372:Z372)","v":0}]
[349,null,null,null,null,null,null,null,null,null,null,null,null,null,null,null,null,null,null,null,null,null,null,null,null,null,{"$f":"SUM(O373:W373)","v":0},{"$f":"SUM(O373:Z373)","v":0}]
[null,"TOTAL DES DÉPENSES DE PROJET ($)",null,null,null,null,null,null,null,null,{"$f":"SUM(K25:K373)","v":172479503.92000002},null,null,{"$f":"SUM(N25:N373)","v":245812690},0,0,0,0,0,0,0,0,71106419.842191696,7024088,52166090,42124861.979999997,71106419.842191696,172421459.82219175]
[null,"TOTAL CONTRATS FONCTIONNEMENT ($)",null,null,null,null,null,null,null,null,{"$f":"SUMIF($J$25:$J37,\"CF-Contrat fonctionnement\",K25:K37)+SUMIF($J$25:$J37,\"CP-Contrat service professionnel\",K25:K37)+SUMIF($J$25:$J37,\"CT-Contrat service technique\",K25:K37)","v":0},null,null,null,{"$f":"SUMIF($J$25:$J37,\"CF-Contrat fonctionnement\",O25:O37)+SUMIF($J$25:$J37,\"CP-Contrat service professionnel\",O25:O37)+SUMIF($J$25:$J37,\"CT-Contrat service technique\",O25:O37)","v":0},{"$f":"SUMIF($J$25:$J37,\"CF-Contrat fonctionnement\",P25:P37)+SUMIF($J$25:$J37,\"CP-Contrat service professionnel\",P25:P37)+SUMIF($J$25:$J37,\"CT-Contrat service technique\",P25:P37)","v":0},{"$f":"SUMIF($J$25:$J37,\"CF-Contrat fonctionnement\",Q25:Q37)+SUMIF($J$25:$J37,\"CP-Contrat service professionnel\",Q25:Q37)+SUMIF($J$25:$J37,\"CT-Contrat service technique\",Q25:Q37)","v":0},{"$f":"SUMIF($J$25:$J37,\"CF-Contrat fonctionnement\",R25:R37)+SUMIF($J$25:$J37,\"CP-Contrat service professionnel\",R25:R37)+SUMIF($J$25:$J37,\"CT-Contrat service technique\",R25:R37)","v":0},{"$f":"SUMIF($J$25:$J37,\"CF-Contrat fonctionnement\",S25:S37)+SUMIF($J$25:$J37,\"CP-Contrat service professionnel\",S25:S37)+SUMIF($J$25:$J37,\"CT-Contrat service technique\",S25:S37)","v":0},{"$f":"SUMIF($J$25:$J37,\"CF-Contrat fonctionnement\",T25:T37)+SUMIF($J$25:$J37,\"CP-Contrat service professionnel\",T25:T37)+SUMIF($J$25:$J37,\"CT-Contrat service technique\",T25:T37)","v":0},{"$f":"SUMIF($J$25:$J37,\"CF-Contrat fonctionnement\",U25:U37)+SUMIF($J$25:$J37,\"CP-Contrat service professionnel\",U25:U37)+SUMIF($J$25:$J37,\"CT-Contrat service technique\",U25:U37)","v":0},{"$f":"SUMIF($J$25:$J37,\"CF-Contrat fonctionnement\",V25:V37)+SUMIF($J$25:$J37,\"CP-Contrat service professionnel\",V25:V37)+SUMIF($J$25:$J37,\"CT-Contrat service technique\",V25:V37)","v":0},{"$f":"SUMIF($J$25:$J37,\"CF-Contrat fonctionnement\",W25:W37)+SUMIF($J$25:$J37,\"CP-Contrat service professionnel\",W25:W37)+SUMIF($J$25:$J37,\"CT-Contrat service technique\",W25:W37)","v":0},{"$f":"SUMIF($J$25:$J37,\"CF-Contrat fonctionnement\",X25:X37)+SUMIF($J$25:$J37,\"CP-Contrat service professionnel\",X25:X37)+SUMIF($J$25:$J37,\"CT-Contrat service technique\",X25:X37)","v":0},{"$f":"SUMIF($J$25:$J37,\"CF-Contrat fonctionnement\",Y25:Y37)+SUMIF($J$25:$J37,\"CP-Contrat service professionnel\",Y25:Y37)+SUMIF($J$25:$J37,\"CT-Contrat service technique\",Y25:Y37)","v":0},null,{"$f":"SUMIF($J$25:$J37,\"CF-Contrat fonctionnement\",AA25:AA37)+SUMIF($J$25:$J37,\"CP-Contrat service professionnel\",AA25:AA37)+SUMIF($J$25:$J37,\"CT-Contrat service technique\",AA25:AA37)","v":0},{"$f":"SUMIF($J$25:$J37,\"CF-Contrat fonctionnement\",AB25:AB37)+SUMIF($J$25:$J37,\"CP-Contrat service professionnel\",AB25:AB37)+SUMIF($J$25:$J37,\"CT-Contrat service technique\",AB25:AB37)","v":0}]
[null,"TOTAL CONTRATS IMMOBILISATION ($)",null,null,null,null,null,null,null,null,{"$f":"SUMIF(J25:J37,\"CI-Contrat immobilisation\",K25:K37)","v":0},null,null,null,{"$f":"SUMIF($J$25:$J37,\"CI-Contrat immobilisation\",O25:O37)","v":0},{"$f":"SUMIF($J$25:$J37,\"CI-Contrat immobilisation\",P25:P37)","v":0},{"$f":"SUMIF($J$25:$J37,\"CI-Contrat immobilisation\",Q25:Q37)","v":0},{"$f":"SUMIF($J$25:$J37,\"CI-Contrat immobilisation\",R25:R37)","v":0},{"$f":"SUMIF($J$25:$J37,\"CI-Contrat immobilisation\",S25:S37)","v":0},{"$f":"SUMIF($J$25:$J37,\"CI-Contrat immobilisation\",T25:T37)","v":0},{"$f":"SUMIF($J$25:$J37,\"CI-Contrat immobilisation\",U25:U37)","v":0},{"$f":"SUMIF($J$25:$J37,\"CI-Contrat immobilisation\",V25:V37)","v":0},{"$f":"SUMIF($J$25:$J37,\"CI-Contrat immobilisation\",W25:W37)","v":0},{"$f":"SUMIF($J$25:$J37,\"CI-Contrat immobilisation\",X25:X37)","v":0},{"$f":"SUMIF($J$25:$J37,\"CI-Contrat immobilisation\",Y25:Y37)","v":0},null,{"$f":"SUMIF($J$25:$J37,\"CI-Contrat immobilisation\",AA25:AA37)","v":0},{"$f":"SUMIF($J$25:$J37,\"CI-Contrat immobilisation\",AB25:AB37)","v":0}]
[null,"TOTAL DES SUBVENTIONS ($)",null,null,null,null,null,null,null,null,{"$f":"SUMIF(J25:J37,\"SU-Subvention\",K25:K37)","v":4056952},null,null,null,{"$f":"SUMIF($J$25:$J376,\"SU-Subvention\",O25:O27)","v":0},{"$f":"SUMIF($J$25:$J376,\"SU-Subvention\",P25:P27)","v":0},{"$f":"SUMIF($J$25:$J376,\"SU-Subvention\",Q25:Q27)","v":0},{"$f":"SUMIF($J$25:$J376,\"SU-Subvention\",R25:R27)","v":0},{"$f":"SUMIF($J$25:$J376,\"SU-Subvention\",S25:S27)","v":0},{"$f":"SUMIF($J$25:$J376,\"SU-Subvention\",T25:T27)","v":0},{"$f":"SUMIF($J$25:$J376,\"SU-Subvention\",U25:U27)","v":0},{"$f":"SUMIF($J$25:$J376,\"SU-Subvention\",V25:V27)","v":0},{"$f":"SUMIF($J$25:$J376,\"SU-Subvention\",W25:W27)","v":22075329.797048073},{"$f":"SUMIF($J$25:$J376,\"SU-Subvention\",X25:X27)","v":1578346},{"$f":"SUMIF($J$25:$J376,\"SU-Subvention\",Y25:Y27)","v":2449571},null,{"$f":"SUMIF($J$25:$J376,\"SU-Subvention\",AA25:AA27)","v":22075329.797048073},{"$f":"SUMIF($J$25:$J376,\"SU-Subvention\",AB25:AB27)","v":26738006.29704807}]

{"sheet":"GES","index":4,"n_rows":393,"n_cols":39,"rows_kept":393,"cut":false,"hidden":false,"merged":[[21,5,21,6],[21,7,21,37],[22,29,22,30],[22,31,22,32],[22,33,22,34],[22,35,22,36],[22,37,22,38],[22,27,22,28],[22,21,22,22],[22,23,22,24],[22,25,22,26],[22,8,23,8],[22,6,23,6],[22,9,23,9],[22,11,22,12],[22,13,22,14],[22,1,23,1],[22,2,23,2],[22,3,23,3],[22,19,22,20],[373,1,373,4],[22,4,23,4],[22,15,22,16],[22,17,22,18],[19,14,19,16],[1,14,1,16],[1,1,1,6],[2,1,2,2],[3,2,3,6],[1,11,1,13],[2,8,5,16],[4,2,4,6],[19,8,19,13],[19,1,19,5],[5,1,5,6],[1,8,1,10],[18,1,18,2],[18,3,18,4]]}
[]
[null,{"$f":"Utilitaire!E8","v":"Plan d'action 2013-2020 sur les changements climatiques"}]
[null,{"$f":"\"Action \" & Accueil!D58","v":"Action en cours"}]
[null,{"$f":"Accueil!D55","v":"11.5"},{"$f":"Accueil!E55","v":"Investissements en infrastructures écoresponsables"}]
[null,"Ministère porteur :",{"$f":"Accueil!$D$65","v":"MEQ"}]
[null,"GES"]
[]
[]
[]
[]
[]
[]
[]
[]
[]
[]
[]
[]
[null,"Informations en date du :",null,"2022-03-31"]
[null,"Potentiel de réduction des GES évalué lors de la sélection des projets de cette action : ",null,null,null,null,"Oui",null,"Réductions réelles quantifiables des émissions de GES attendues pour cette action :   ",null,null,null,null,null,"Oui"]
[]
[null,null,null,null,null,"ÉVALUATION DU POTENTIEL DE RÉDUCTION ET D'ÉVITEMENT D'ÉMISSIONS DE GES À TERME.",null,"DÉTAIL DES ÉMISSIONS DE GES RÉDUITES OU ÉVITÉES  (en tonnes éq. CO2)"]
[null,"Nom du projet","Nom du requérant ou du bénéficiaire","Région administrative","Montant engagé ($)","Potentiel de réduction des GES sur une base annuelle","Horizon temporel pour la réalisation du potentiel","Coût/tonne estimé","Type d'émission","Émissions rapportées dans l'inventaire","Durée du projet","Émissions",null,"Vérifiées",null,"2013-2014",null,"2014-2015",null,"2015-2016",null,"2016-2017",null,"2017-2018",null,"2018-2019",null,"2019-2020",null,"2020-2021",null,"2021-2022",null,"2022-2023",null,"2023-2024",null,"2024-2025"]
[null,null,null,null,null,"(tonnes éq. CO2)",null,"$\n------------ \ntonne éq. CO2",null,null,"(années)","Réduites","Évitées","Tierce partie","M/O","Vérifié","Non vérifié","Vérifié","Non vérifié","Vérifié","Non vérifié","Vérifié","Non vérifié","Vérifié","Non vérifié","Vérifié","Non vérifié","Vérifié","Non vérifié","Vérifié","Non vérifié","Vérifié","Non vérifié","Vérifié","Non vérifié","Vérifié","Non vérifié","Vérifié","Non vérifié"]
[null,{"$f":"IF(LEN('Détail des projets'!B25)=0,\"\",'Détail des projets'!B25)","v":"50643-002 - Modernisation du réseau de chauffage au mazout de l'école secondaire Marie-Rivier de Drummondville par de l'aérothermie et des chaudières électriques"},{"$f":"'Détail des projets'!C25","v":"Commission scolaire des Chênes"},{"$f":"IF(LEN('Détail des projets'!G25)=0,\"\",'Détail des projets'!G25)","v":"17-Centre-du-Québec"},{"$f":"IF(LEN('Détail des projets'!K25)=0,\"\",'Détail des projets'!K25)","v":1026068},464,"À la fin du projet (suite au dernier versement)",128.85749999999999,null,null,25]
[null,{"$f":"IF(LEN('Détail des projets'!B26)=0,\"\",'Détail des projets'!B26)","v":"50643-003 - Remplacement complet du système de chauffage au mazout par de la géothermie et ajout d'un système de ventilation à l'école St-Thomas-d'Aquin"},{"$f":"IF(LEN('Détail des projets'!C26)=0,\"\",'Détail des projets'!C26)","v":"Commission scolaire de Saint-Hyacinthe"},{"$f":"IF(LEN('Détail des projets'!G26)=0,\"\",'Détail des projets'!G26)","v":"16-Montérégie"},{"$f":"IF(LEN('Détail des projets'!K26)=0,\"\",'Détail des projets'!K26)","v":33714},13,"À la fin du projet (suite au dernier versement)",380.43846153999999,null,null,40]
[null,{"$f":"IF(LEN('Détail des projets'!B27)=0,\"\",'Détail des projets'!B27)","v":"50643-001 - Amélioration écoénergétique pour 4 bâtiments : Récupération de chaleur, Optimisation des réseaux de chauffage et de ventilation, Modernisation des contrôles centralisés et recommissioning"},{"$f":"IF(LEN('Détail des projets'!C27)=0,\"\",'Détail des projets'!C27)","v":"Commission scolaire de l'Or-et-des-Bois"},{"$f":"IF(LEN('Détail des projets'!G27)=0,\"\",'Détail des projets'!G27)","v":"08-Abitibi-Témiscamingue"},{"$f":"IF(LEN('Détail des projets'!K27)=0,\"\",'Détail des projets'!K27)","v":1569979},705,"À la fin du projet (suite au dernier versement)",137.04936169999999,null,null,30]
[null,{"$f":"IF(LEN('Détail des projets'!B28)=0,\"\",'Détail des projets'!B28)","v":"50643-004 - Projet de réduction de GES dans 3 écoles : Remplacement de chaudières au mazout par des chaudières électriques"},{"$f":"IF(LEN('Détail des projets'!C28)=0,\"\",'Détail des projets'!C28)","v":"Commission scolaire de la Capitale"},{"$f":"IF(LEN('Détail des projets'!G28)=0,\"\",'Détail des projets'!G28)","v":"03-Capitale-Nationale"},{"$f":"IF(LEN('Détail des projets'!K28)=0,\"\",'Détail des projets'!K28)","v":385839},174,"À la fin du projet (suite au dernier versement)",135.73743841999999,null,null,35]
[null,{"$f":"IF(LEN('Détail des projets'!B29)=0,\"\",'Détail des projets'!B29)","v":"50643-005 - Réduction de GES à l'école Larocque : Remplacement de la chaudière au gaz naturel par de la géothermie"},{"$f":"IF(LEN('Détail des projets'!C29)=0,\"\",'Détail des projets'!C29)","v":"Commission scolaire de Saint-Hyacinthe"},{"$f":"IF(LEN('Détail des projets'!G29)=0,\"\",'Détail des projets'!G29)","v":"16-Montérégie"},{"$f":"IF(LEN('Détail des projets'!K29)=0,\"\",'Détail des projets'!K29)","v":98280},42,"À la fin du projet (suite au dernier versement)",266.96547619,null,null,40]
[null,{"$f":"IF(LEN('Détail des projets'!B30)=0,\"\",'Détail des projets'!B30)","v":"50643-007 - Remplacement complet du système de chauffage au mazout par de la géothermie et ajout d'un système de ventilation à l'école aux Quatre-Vents - Immeuble St-Bernard"},{"$f":"IF(LEN('Détail des projets'!C30)=0,\"\",'Détail des projets'!C30)","v":"Commission scolaire de Saint-Hyacinthe"},{"$f":"IF(LEN('Détail des projets'!G30)=0,\"\",'Détail des projets'!G30)","v":"16-Montérégie"},{"$f":"IF(LEN('Détail des projets'!K30)=0,\"\",'Détail des projets'!K30)","v":44820},18,"À la fin du projet (suite au dernier versement)",198.00694444000001,null,null,40]
[null,{"$f":"IF(LEN('Détail des projets'!B31)=0,\"\",'Détail des projets'!B31)","v":"50643-011 - Réduction de GES à l'école René-Saint-Pierre : Remplacer les chaudières au gaz naturel par de l'aérothermie."},{"$f":"IF(LEN('Détail des projets'!C31)=0,\"\",'Détail des projets'!C31)","v":"Commission scolaire de Saint-Hyacinthe"},{"$f":"IF(LEN('Détail des projets'!G31)=0,\"\",'Détail des projets'!G31)","v":"16-Montérégie"},{"$f":"IF(LEN('Détail des projets'!K31)=0,\"\",'Détail des projets'!K31)","v":297160},133,"À la fin du projet (suite au dernier versement)",165.91368421000001,null,null,25]
[null,{"$f":"IF(LEN('Détail des projets'!B32)=0,\"\",'Détail des projets'!B32)","v":"50643-006 - Réduction de GES à l'école Samuel-Casavant : Remplacer les chaudières au gaz naturel par de la géothermie"},{"$f":"IF(LEN('Détail des projets'!C32)=0,\"\",'Détail des projets'!C32)","v":"Commission scolaire de Saint-Hyacinthe"},{"$f":"IF(LEN('Détail des projets'!G32)=0,\"\",'Détail des projets'!G32)","v":"16-Montérégie"},{"$f":"IF(LEN('Détail des projets'!K32)=0,\"\",'Détail des projets'!K32)","v":263720},118,"À la fin du projet (suite au dernier versement)",117.03983051,null,null,40]
[null,{"$f":"IF(LEN('Détail des projets'!B33)=0,\"\",'Détail des projets'!B33)","v":"50643-008 - Dimunition des émissions de GES à l'école l'Escouade 2 : Remplacer la chaudière au mazout par une chaudière électrique."},{"$f":"IF(LEN('Détail des projets'!C33)=0,\"\",'Détail des projets'!C33)","v":"Commission scolaire des Premières Seigneuries"},{"$f":"IF(LEN('Détail des projets'!G33)=0,\"\",'Détail des projets'!G33)","v":"03-Capitale-Nationale"},{"$f":"IF(LEN('Détail des projets'!K33)=0,\"\",'Détail des projets'!K33)","v":49440},20,"À la fin du projet (suite au dernier versement)",851.41714286000001,null,null,35]
[null,{"$f":"IF(LEN('Détail des projets'!B34)=0,\"\",'Détail des projets'!B34)","v":"50643-009 - Remplacement du système de chauffage au mazout du Centre administratif par de la géothermie"},{"$f":"IF(LEN('Détail des projets'!C34)=0,\"\",'Détail des projets'!C34)","v":"Commission scolaire des Premières Seigneuries"},{"$f":"IF(LEN('Détail des projets'!G34)=0,\"\",'Détail des projets'!G34)","v":"03-Capitale-Nationale"},{"$f":"IF(LEN('Détail des projets'!K34)=0,\"\",'Détail des projets'!K34)","v":105700},46,"À la fin du projet (suite au dernier versement)",288.1298913,null,null,40]
[null,{"$f":"IF(LEN('Détail des projets'!B35)=0,\"\",'Détail des projets'!B35)","v":"50643-010 - Réduction d'émissions de GES à l'école  le Boisé 1 : Remplcer des chaudières au mazout par de la géothermie"},{"$f":"IF(LEN('Détail des projets'!C35)=0,\"\",'Détail des projets'!C35)","v":"Commission scolaire des Premières Seigneuries"},{"$f":"IF(LEN('Détail des projets'!G35)=0,\"\",'Détail des projets'!G35)","v":"03-Capitale-Nationale"},{"$f":"IF(LEN('Détail des projets'!K35)=0,\"\",'Détail des projets'!K35)","v":112580},49,"À la fin du projet (suite au dernier versement)",279.50816327000001,null,null,40]
[null,{"$f":"IF(LEN('Détail des projets'!B36)=0,\"\",'Détail des projets'!B36)","v":"50643-012 - Agrandissement du Centre-Ferland : Mise en œuvre de mesures pour augmenter l'évitement d'émissions de GES"},{"$f":"IF(LEN('Détail des projets'!C36)=0,\"\",'Détail des projets'!C36)","v":"Commission scolaire de la Pointe-de-l'Île"},{"$f":"IF(LEN('Détail des projets'!G36)=0,\"\",'Détail des projets'!G36)","v":"06-Montréal"},{"$f":"IF(LEN('Détail des projets'!K36)=0,\"\",'Détail des projets'!K36)","v":34210},16,"À la fin du projet (suite au dernier versement)"]
[null,{"$f":"IF(LEN('Détail des projets'!B37)=0,\"\",'Détail des projets'!B37)","v":"50643-13 - Agrandissement école Sainte-Colette : Mise en œuvre de mesures pour augmenter l'évitement d'émissions de GES"},{"$f":"IF(LEN('Détail des projets'!C37)=0,\"\",'Détail des projets'!C37)","v":"Commission scolaire de la Pointe-de-l'Île"},{"$f":"IF(LEN('Détail des projets'!G37)=0,\"\",'Détail des projets'!G37)","v":"06-Montréal"},{"$f":"IF(LEN('Détail des projets'!K37)=0,\"\",'Détail des projets'!K37)","v":35442},16,"À la fin du projet (suite au dernier versement)"]
[null,{"$f":"IF(LEN('Détail des projets'!B38)=0,\"\",'Détail des projets'!B38)","v":"50643-014 - Agrandissement école Montmartre : Mise en œuvre de mesures pour augmenter l'évitement d'émissions de GES"},{"$f":"IF(LEN('Détail des projets'!C38)=0,\"\",'Détail des projets'!C38)","v":"Commission scolaire de la Pointe-de-l'Île"},{"$f":"IF(LEN('Détail des projets'!G38)=0,\"\",'Détail des projets'!G38)","v":"06-Montréal"},{"$f":"IF(LEN('Détail des projets'!K38)=0,\"\",'Détail des projets'!K38)","v":24904},11,"À la fin du projet (suite au dernier versement)"]
[null,{"$f":"IF(LEN('Détail des projets'!B39)=0,\"\",'Détail des projets'!B39)","v":"50643-015 - Agrandissement école Sainte-Marguerite-Bourgeoys : Mise en œuvre de mesures pour augmenter l'évitement d'émissions de GES"},{"$f":"IF(LEN('Détail des projets'!C39)=0,\"\",'Détail des projets'!C39)","v":"Commission scolaire de la Pointe-de-l'Île"},{"$f":"IF(LEN('Détail des projets'!G39)=0,\"\",'Détail des projets'!G39)","v":"06-Montréal"},{"$f":"IF(LEN('Détail des projets'!K39)=0,\"\",'Détail des projets'!K39)","v":38390},17,"À la fin du projet (suite au dernier versement)"]
[null,{"$f":"IF(LEN('Détail des projets'!B40)=0,\"\",'Détail des projets'!B40)","v":"50643-016 - Projet de réduction de GES dans 3 écoles : Remplacement de chaudières au mazout par des chaudières électriques et amélioration de l'enveloppe des bâtiments."},{"$f":"IF(LEN('Détail des projets'!C40)=0,\"\",'Détail des projets'!C40)","v":"Commission scolaire Harricana"},{"$f":"IF(LEN('Détail des projets'!G40)=0,\"\",'Détail des projets'!G40)","v":"08-Abitibi-Témiscamingue"},{"$f":"IF(LEN('Détail des projets'!K40)=0,\"\",'Détail des projets'!K40)","v":250442},109,"À la fin du projet (suite au dernier versement)",113.99921363,null,null,35]
[null,{"$f":"IF(LEN('Détail des projets'!B41)=0,\"\",'Détail des projets'!B41)","v":"50643-017 - Projet de remplacement de 3 chaudières au mazout par des chaudières électriques et des accumulateurs thermiques dans 3 écoles"},{"$f":"IF(LEN('Détail des projets'!C41)=0,\"\",'Détail des projets'!C41)","v":"Commission scolaires des Affluents"},{"$f":"IF(LEN('Détail des projets'!G41)=0,\"\",'Détail des projets'!G41)","v":"14-Lanaudière"},{"$f":"IF(LEN('Détail des projets'!K41)=0,\"\",'Détail des projets'!K41)","v":467100},205.5,"À la fin du projet (suite au dernier versement)",91.144664581000001,null,null,35]
[null,{"$f":"IF(LEN('Détail des projets'!B42)=0,\"\",'Détail des projets'!B42)","v":"50643-020 - Projet de réduction de la consommation énergétique et des émissions de GES à l'école St-Félix-de-Kingsey"},{"$f":"IF(LEN('Détail des projets'!C42)=0,\"\",'Détail des projets'!C42)","v":"Commission scolaire des Chênes"},{"$f":"IF(LEN('Détail des projets'!G42)=0,\"\",'Détail des projets'!G42)","v":"17-Centre-du-Québec"},{"$f":"IF(LEN('Détail des projets'!K42)=0,\"\",'Détail des projets'!K42)","v":114472},50,"À la fin du projet (suite au dernier versement)",239.79679999999999,null,null,25]
[null,{"$f":"IF(LEN('Détail des projets'!B43)=0,\"\",'Détail des projets'!B43)","v":"50643-019 - Projet de réduction et d'évitement de GES :  Ajout d'une chaudière électrique pour chauffer l'agrandissement et réduire l'utilisation de la chaudière au gaz naturel de la partie existante de l'école Alexander-Wolff"},{"$f":"IF(LEN('Détail des projets'!C43)=0,\"\",'Détail des projets'!C43)","v":"Commission scolaire de la Capitale"},{"$f":"IF(LEN('Détail des projets'!G43)=0,\"\",'Détail des projets'!G43)","v":"03-Capitale-Nationale"},{"$f":"IF(LEN('Détail des projets'!K43)=0,\"\",'Détail des projets'!K43)","v":367826},166.2,"À la fin du projet (suite au dernier versement)",67.126525701000006,null,null,35]
[null,{"$f":"IF(LEN('Détail des projets'!B44)=0,\"\",'Détail des projets'!B44)","v":"50643-022 - Projet d'efficacité énergétique et de remplacement de chaudières au mazout par de la géothermie dans 3 écoles"},{"$f":"IF(LEN('Détail des projets'!C44)=0,\"\",'Détail des projets'!C44)","v":"Commission scolaire de la Seigneurie-des-Mille-Îles"},{"$f":"IF(LEN('Détail des projets'!G44)=0,\"\",'Détail des projets'!G44)","v":"15-Laurentides"},{"$f":"IF(LEN('Détail des projets'!K44)=0,\"\",'Détail des projets'!K44)","v":194520},81.599999999999994,"À la fin du projet (suite au dernier versement)",248.62408088000001,null,null,40]
[null,{"$f":"IF(LEN('Détail des projets'!B45)=0,\"\",'Détail des projets'!B45)","v":"50643-023 - Projet de modernisation de la chaufferie de l'école Samuel-de-Chaplain : Remplacer 3 chaudières au gaz naturel par de l'aérothermie"},{"$f":"IF(LEN('Détail des projets'!C45)=0,\"\",'Détail des projets'!C45)","v":"Commissin scolaire des Premières-Seigneuries"},{"$f":"IF(LEN('Détail des projets'!G45)=0,\"\",'Détail des projets'!G45)","v":"03-Capitale-Nationale"},{"$f":"IF(LEN('Détail des projets'!K45)=0,\"\",'Détail des projets'!K45)","v":760106},343.2,"À la fin du projet (suite au dernier versement)",200.41573427,null,null,25]
[null,{"$f":"IF(LEN('Détail des projets'!B46)=0,\"\",'Détail des projets'!B46)","v":"50643-034 - Projet de réduction de GES : Remplacement de la chaudière au mazout par de la géothermie."},{"$f":"IF(LEN('Détail des projets'!C46)=0,\"\",'Détail des projets'!C46)","v":"Commission scolaire New-Frontiers"},{"$f":"IF(LEN('Détail des projets'!G46)=0,\"\",'Détail des projets'!G46)","v":"16-Montérégie"},{"$f":"IF(LEN('Détail des projets'!K46)=0,\"\",'Détail des projets'!K46)","v":233534},104,"À la fin du projet (suite au dernier versement)",114.68798077,null,null,40]
[null,{"$f":"IF(LEN('Détail des projets'!B47)=0,\"\",'Détail des projets'!B47)","v":"50643-035 - Projet de réduction de GES : Remplacement de la chaudière au mazout par de l'aérothermie."},{"$f":"IF(LEN('Détail des projets'!C47)=0,\"\",'Détail des projets'!C47)","v":"Commission scolaire des Premières Seigneuries"},{"$f":"IF(LEN('Détail des projets'!G47)=0,\"\",'Détail des projets'!G47)","v":"03-Capitale-Nationale"},{"$f":"IF(LEN('Détail des projets'!K47)=0,\"\",'Détail des projets'!K47)","v":64686},27,"À la fin du projet (suite au dernier versement)",912.06074074000003,null,null,25]
[null,{"$f":"IF(LEN('Détail des projets'!B48)=0,\"\",'Détail des projets'!B48)","v":"50643-033 - Projets de réduction des GES : Plusieurs remplacements de chaudières au mazout par de la géothermie, de l'aérothermie, des chaudières électriques."},{"$f":"IF(LEN('Détail des projets'!C48)=0,\"\",'Détail des projets'!C48)","v":"Commission scolaire de Saint-Hyacinthe"},{"$f":"IF(LEN('Détail des projets'!G48)=0,\"\",'Détail des projets'!G48)","v":"16-Montérégie"},{"$f":"IF(LEN('Détail des projets'!K48)=0,\"\",'Détail des projets'!K48)","v":906092},394,"À la fin du projet (suite au dernier versement)",344.13248730999999,null,null,30]
[null,{"$f":"IF(LEN('Détail des projets'!B49)=0,\"\",'Détail des projets'!B49)","v":"50643-036 - Projet de réduction des GES : réduire l'utilisation du chauffage au mazout par l'introduction du chauffage par de l'aérothermie."},{"$f":"IF(LEN('Détail des projets'!C49)=0,\"\",'Détail des projets'!C49)","v":"Commission scolaire de Portneuf"},{"$f":"IF(LEN('Détail des projets'!G49)=0,\"\",'Détail des projets'!G49)","v":"03-Capitale-Nationale"},{"$f":"IF(LEN('Détail des projets'!K49)=0,\"\",'Détail des projets'!K49)","v":92500},37,"À la fin du projet (suite au dernier versement)",199.38918919,null,null,25]
[null,{"$f":"IF(LEN('Détail des projets'!B50)=0,\"\",'Détail des projets'!B50)","v":"50643-037 - Projet de réduction de GES : Conversion du mode chauffage bi-énergie (mazout-électricité) en 100% électrique"},{"$f":"IF(LEN('Détail des projets'!C50)=0,\"\",'Détail des projets'!C50)","v":"Commission scolaire des Hauts-Cantons"},{"$f":"IF(LEN('Détail des projets'!G50)=0,\"\",'Détail des projets'!G50)","v":"05-Estrie"},{"$f":"IF(LEN('Détail des projets'!K50)=0,\"\",'Détail des projets'!K50)","v":368689},278.89999999999998,"À la fin du projet (suite au dernier versement)",114.44854787,null,null,30]
[null,{"$f":"IF(LEN('Détail des projets'!B51)=0,\"\",'Détail des projets'!B51)","v":"50643-038 - Construction d'une nouvelle école primaire : Mise en œuvre de mesures pour augmenter l'évitement d'émissions de GES"},{"$f":"IF(LEN('Détail des projets'!C51)=0,\"\",'Détail des projets'!C51)","v":"Commission scolaire Marguérite-Boureoys"},{"$f":"IF(LEN('Détail des projets'!G51)=0,\"\",'Détail des projets'!G51)","v":"06-Montréal"},{"$f":"IF(LEN('Détail des projets'!K51)=0,\"\",'Détail des projets'!K51)","v":132840},60.8,"À la fin du projet (suite au dernier versement)"]
[null,{"$f":"IF(LEN('Détail des projets'!B52)=0,\"\",'Détail des projets'!B52)","v":"50643-039 - Construction d'une nouvelle école primaire : Mise en œuvre de mesures pour augmenter l'évitement d'émissions de GES"},{"$f":"IF(LEN('Détail des projets'!C52)=0,\"\",'Détail des projets'!C52)","v":"Commission scolaire Kativik"},{"$f":"IF(LEN('Détail des projets'!G52)=0,\"\",'Détail des projets'!G52)","v":"10-Nord-du-Québec"},{"$f":"IF(LEN('Détail des projets'!K52)=0,\"\",'Détail des projets'!K52)","v":237151},107.8,"À la fin du projet (suite au dernier versement)"]
[null,{"$f":"IF(LEN('Détail des projets'!B53)=0,\"\",'Détail des projets'!B53)","v":"50643-040 - Travaux de modernisation de chaufferies : Remplacer 5 chaudières au mazout par des chaudières électriques et optimiser les contrôles des bâtiments."},{"$f":"IF(LEN('Détail des projets'!C53)=0,\"\",'Détail des projets'!C53)","v":"Commission scolaire des Laurentides"},{"$f":"IF(LEN('Détail des projets'!G53)=0,\"\",'Détail des projets'!G53)","v":"15-Laurentides"},{"$f":"IF(LEN('Détail des projets'!K53)=0,\"\",'Détail des projets'!K53)","v":245000},100,"À la fin du projet (suite au dernier versement)",99.198857142999998,null,null,35]
[null,{"$f":"IF(LEN('Détail des projets'!B54)=0,\"\",'Détail des projets'!B54)","v":"50643-041 - Agrandissement de l'école Jean-Nicolet : Mise en œuvre de mesures pour augmenter l'évitement d'émissions de GES"},{"$f":"IF(LEN('Détail des projets'!C54)=0,\"\",'Détail des projets'!C54)","v":"Commission scolaire de la Pointe-de-l'Île"},{"$f":"IF(LEN('Détail des projets'!G54)=0,\"\",'Détail des projets'!G54)","v":"06-Montréal"},{"$f":"IF(LEN('Détail des projets'!K54)=0,\"\",'Détail des projets'!K54)","v":41599},18.899999999999999,"À la fin du projet (suite au dernier versement)"]
[null,{"$f":"IF(LEN('Détail des projets'!B55)=0,\"\",'Détail des projets'!B55)","v":"50643-018 - Projet de réduction et d'évitement (Agrandissement) de GES :  Ajout d'une chaudière électrique ainsi que d'une thermopompe"},{"$f":"IF(LEN('Détail des projets'!C55)=0,\"\",'Détail des projets'!C55)","v":"Centre de services scolaires de la Capitale"},{"$f":"IF(LEN('Détail des projets'!G55)=0,\"\",'Détail des projets'!G55)","v":"03-Capitale-Nationale"},{"$f":"IF(LEN('Détail des projets'!K55)=0,\"\",'Détail des projets'!K55)","v":57979},21,"À la fin du projet (suite au dernier versement)"]
[null,{"$f":"IF(LEN('Détail des projets'!B56)=0,\"\",'Détail des projets'!B56)","v":"50643-021 - Projet de modernisation de la chaufferie des 3 écoles : Remplacer les chaudières au mazout par une chaudière électrique"},{"$f":"IF(LEN('Détail des projets'!C56)=0,\"\",'Détail des projets'!C56)","v":"Commission scolaire Lester-B-Pearson"},{"$f":"IF(LEN('Détail des projets'!G56)=0,\"\",'Détail des projets'!G56)","v":"06-Montréal"},{"$f":"IF(LEN('Détail des projets'!K56)=0,\"\",'Détail des projets'!K56)","v":761548},339,"À la fin du projet (suite au dernier versement)",98.535988200999995,null,null,30]
[null,{"$f":"IF(LEN('Détail des projets'!B57)=0,\"\",'Détail des projets'!B57)","v":"50643-054 - Agrandissement de l'école: Mise en œuvre de mesures pour augmenter l'évitement d'émissions de GES"},{"$f":"IF(LEN('Détail des projets'!C57)=0,\"\",'Détail des projets'!C57)","v":"Centre de services scolaires des Grandes Seigneuries"}]
[null,{"$f":"IF(LEN('Détail des projets'!B58)=0,\"\",'Détail des projets'!B58)","v":"50643-045 - Remplacer la chaudière au mazout par une chaudière électrique"},{"$f":"IF(LEN('Détail des projets'!C58)=0,\"\",'Détail des projets'!C58)","v":"Centre de services scolaires de la Seigneurie-des-Mille-Îles"},{"$f":"IF(LEN('Détail des projets'!G58)=0,\"\",'Détail des projets'!G58)","v":"15-Laurentides"},{"$f":"IF(LEN('Détail des projets'!K58)=0,\"\",'Détail des projets'!K58)","v":133420},56,"À la fin du projet (suite au dernier versement)",421.38928571000002,null,null,30]
[null,{"$f":"IF(LEN('Détail des projets'!B59)=0,\"\",'Détail des projets'!B59)","v":"50643-048 - Nouvelle école : Mise en œuvre de mesures pour augmenter l'évitement d'émissions de GES - Géothermie"},{"$f":"IF(LEN('Détail des projets'!C59)=0,\"\",'Détail des projets'!C59)","v":"Centre de services scolaires Marie-Victorin"},{"$f":"IF(LEN('Détail des projets'!G59)=0,\"\",'Détail des projets'!G59)","v":"16-Montérégie"},{"$f":"IF(LEN('Détail des projets'!K59)=0,\"\",'Détail des projets'!K59)","v":147343},67,"À la fin du projet (suite au dernier versement)"]
[null,{"$f":"IF(LEN('Détail des projets'!B60)=0,\"\",'Détail des projets'!B60)","v":"50643-050 - Remplacement des systèmes CVAC et d'une chaudière au gaz naturel par une chaudière électrique"},{"$f":"IF(LEN('Détail des projets'!C60)=0,\"\",'Détail des projets'!C60)","v":"Pointe-de-l'Île"},{"$f":"IF(LEN('Détail des projets'!G60)=0,\"\",'Détail des projets'!G60)","v":"06-Montréal"},{"$f":"IF(LEN('Détail des projets'!K60)=0,\"\",'Détail des projets'!K60)","v":119400},52,"À la fin du projet (suite au dernier versement)",128.11410255999999,null,null,30]
[null,{"$f":"IF(LEN('Détail des projets'!B61)=0,\"\",'Détail des projets'!B61)","v":"50643-055 - Nouvelle école : Mise en œuvre de mesures pour augmenter l'évitement d'émissions de GES "},{"$f":"IF(LEN('Détail des projets'!C61)=0,\"\",'Détail des projets'!C61)","v":"des-Trois-Lacs"},{"$f":"IF(LEN('Détail des projets'!G61)=0,\"\",'Détail des projets'!G61)","v":"16-Montérégie"},{"$f":"IF(LEN('Détail des projets'!K61)=0,\"\",'Détail des projets'!K61)","v":140822},64,"À la fin du projet (suite au dernier versement)"]
[null,{"$f":"IF(LEN('Détail des projets'!B62)=0,\"\",'Détail des projets'!B62)","v":"50643-056 - Nouveau centre de formation : Mise en œuvre de mesures pour augmenter l'évitement d'émissions de GES "},{"$f":"IF(LEN('Détail des projets'!C62)=0,\"\",'Détail des projets'!C62)","v":"des-Trois-Lacs"},{"$f":"IF(LEN('Détail des projets'!G62)=0,\"\",'Détail des projets'!G62)","v":"16-Montérégie"},{"$f":"IF(LEN('Détail des projets'!K62)=0,\"\",'Détail des projets'!K62)","v":52998},24,"À la fin du projet (suite au dernier versement)"]
[null,{"$f":"IF(LEN('Détail des projets'!B63)=0,\"\",'Détail des projets'!B63)","v":"50643-057 - Remplacement des chaudières au Mazout par de la géothermie et une chaudière électrique"},{"$f":"IF(LEN('Détail des projets'!C63)=0,\"\",'Détail des projets'!C63)","v":"de Montréal"},{"$f":"IF(LEN('Détail des projets'!G63)=0,\"\",'Détail des projets'!G63)","v":"06-Montréal"},{"$f":"IF(LEN('Détail des projets'!K63)=0,\"\",'Détail des projets'!K63)","v":236000},105,"À la fin du projet (suite au dernier versement)",544.86317459999998,null,null,30]
[null,{"$f":"IF(LEN('Détail des projets'!B64)=0,\"\",'Détail des projets'!B64)","v":"50643-061 - Projets de réduction des GES : Élimination des chaudières au mazout et installation d'un système de géothermie"},{"$f":"IF(LEN('Détail des projets'!C64)=0,\"\",'Détail des projets'!C64)","v":"de Saint-Hyacinthe"},{"$f":"IF(LEN('Détail des projets'!G64)=0,\"\",'Détail des projets'!G64)","v":"16-Montérégie"},{"$f":"IF(LEN('Détail des projets'!K64)=0,\"\",'Détail des projets'!K64)","v":84200},36,"À la fin du projet (suite au dernier versement)",131.38888889,null,null,40]
[null,{"$f":"IF(LEN('Détail des projets'!B65)=0,\"\",'Détail des projets'!B65)","v":"50643-047 - Remplacer les chaudières au mazout par des chaudières électriques et des accumulateurs thermiques"},{"$f":"IF(LEN('Détail des projets'!C65)=0,\"\",'Détail des projets'!C65)","v":"des Affluents"},{"$f":"IF(LEN('Détail des projets'!G65)=0,\"\",'Détail des projets'!G65)","v":"14-Lanaudière"},{"$f":"IF(LEN('Détail des projets'!K65)=0,\"\",'Détail des projets'!K65)","v":633200},281,"À la fin du projet (suite au dernier versement)",137.92135231,null,null,30]
[null,{"$f":"IF(LEN('Détail des projets'!B66)=0,\"\",'Détail des projets'!B66)","v":"50643-042 - Projets de réduction des GES : Choix de géothermie et panneaux solaires - 3 bâtiments"},{"$f":"IF(LEN('Détail des projets'!C66)=0,\"\",'Détail des projets'!C66)","v":"des Découvreurs"},{"$f":"IF(LEN('Détail des projets'!G66)=0,\"\",'Détail des projets'!G66)","v":"03-Capitale-Nationale"},{"$f":"IF(LEN('Détail des projets'!K66)=0,\"\",'Détail des projets'!K66)","v":827852},337,"À la fin du projet (suite au dernier versement)",93.639836794999994,null,null,40]
[null,{"$f":"IF(LEN('Détail des projets'!B67)=0,\"\",'Détail des projets'!B67)","v":"50643-043 - Agrandissement de l'école: Mise en œuvre de mesures pour augmenter l'évitement d'émissions de GES"},{"$f":"IF(LEN('Détail des projets'!C67)=0,\"\",'Détail des projets'!C67)","v":"Kativik"},{"$f":"IF(LEN('Détail des projets'!G67)=0,\"\",'Détail des projets'!G67)","v":"06-Montréal"},{"$f":"IF(LEN('Détail des projets'!K67)=0,\"\",'Détail des projets'!K67)","v":327091},112,"À la fin du projet (suite au dernier versement)"]
[null,{"$f":"IF(LEN('Détail des projets'!B68)=0,\"\",'Détail des projets'!B68)","v":"50643-044 - Nouvelle école : Mise en œuvre de mesures pour augmenter l'évitement d'émissions de GES - - Géothermie"},{"$f":"IF(LEN('Détail des projets'!C68)=0,\"\",'Détail des projets'!C68)","v":"de la Seigneurie-des-Mille-Îles"},{"$f":"IF(LEN('Détail des projets'!G68)=0,\"\",'Détail des projets'!G68)","v":"15-Laurentides"},{"$f":"IF(LEN('Détail des projets'!K68)=0,\"\",'Détail des projets'!K68)","v":138600},63,"À la fin du projet (suite au dernier versement)"]
[null,{"$f":"IF(LEN('Détail des projets'!B69)=0,\"\",'Détail des projets'!B69)","v":"50643-052 - Nouvelle école : Mise en œuvre de mesures pour augmenter l'évitement d'émissions de GES "},{"$f":"IF(LEN('Détail des projets'!C69)=0,\"\",'Détail des projets'!C69)","v":"des Grandes-Seigneuries"},{"$f":"IF(LEN('Détail des projets'!G69)=0,\"\",'Détail des projets'!G69)","v":"16-Montérégie"},{"$f":"IF(LEN('Détail des projets'!K69)=0,\"\",'Détail des projets'!K69)","v":151571},69,"À la fin du projet (suite au dernier versement)"]
[null,{"$f":"IF(LEN('Détail des projets'!B70)=0,\"\",'Détail des projets'!B70)","v":"50643-064 - Projets de réduction des GES : Plusieurs options - 11 bâtiments"},{"$f":"IF(LEN('Détail des projets'!C70)=0,\"\",'Détail des projets'!C70)","v":"de Rouyn-Noranda"},{"$f":"IF(LEN('Détail des projets'!G70)=0,\"\",'Détail des projets'!G70)","v":"08-Abitibi-Témiscamingue"},{"$f":"IF(LEN('Détail des projets'!K70)=0,\"\",'Détail des projets'!K70)","v":2653112},1181,"À la fin du projet (suite au dernier versement)",140.89339543,null,null,30]
[null,{"$f":"IF(LEN('Détail des projets'!B71)=0,\"\",'Détail des projets'!B71)","v":"50643-046 - Projets de réduction des GES : Remplacer les chaudières au mazout par des chaudières électriques et réduction de l'utilisation des chaudières au gaz"},{"$f":"IF(LEN('Détail des projets'!C71)=0,\"\",'Détail des projets'!C71)","v":"de Montréal"},{"$f":"IF(LEN('Détail des projets'!G71)=0,\"\",'Détail des projets'!G71)","v":"06-Montréal"},{"$f":"IF(LEN('Détail des projets'!K71)=0,\"\",'Détail des projets'!K71)","v":2032653},989,"À la fin du projet (suite au dernier versement)",147.3743849,null,null,30]
[null,{"$f":"IF(LEN('Détail des projets'!B72)=0,\"\",'Détail des projets'!B72)","v":"50643-065 - Remplacer les chaudières au gaz par un système à haut rendement (géothermie)"},{"$f":"IF(LEN('Détail des projets'!C72)=0,\"\",'Détail des projets'!C72)","v":"New-Frontiers"},{"$f":"IF(LEN('Détail des projets'!G72)=0,\"\",'Détail des projets'!G72)","v":"16-Montérégie"},{"$f":"IF(LEN('Détail des projets'!K72)=0,\"\",'Détail des projets'!K72)","v":170301},75,"À la fin du projet (suite au dernier versement)",215.51400000000001,null,null,40]
[null,{"$f":"IF(LEN('Détail des projets'!B73)=0,\"\",'Détail des projets'!B73)","v":"50643-066 - Projets de réduction des GES : Remplacer les chaudières de mazout par de la géothermie et des chaudières électriques"},{"$f":"IF(LEN('Détail des projets'!C73)=0,\"\",'Détail des projets'!C73)","v":"Eastern Towships"},{"$f":"IF(LEN('Détail des projets'!G73)=0,\"\",'Détail des projets'!G73)","v":"11-Gaspésie-Iles-de-la-Madeleine"},{"$f":"IF(LEN('Détail des projets'!K73)=0,\"\",'Détail des projets'!K73)","v":979659},443,"À la fin du projet (suite au dernier versement)",157.64868322000001,null,null,30]
[null,{"$f":"IF(LEN('Détail des projets'!B74)=0,\"\",'Détail des projets'!B74)","v":"50643-051 - Agrandissement de l'école: Mise en œuvre de mesures pour augmenter l'évitement d'émissions de GES"},{"$f":"IF(LEN('Détail des projets'!C74)=0,\"\",'Détail des projets'!C74)","v":"des Grandes-Seigneuries"},{"$f":"IF(LEN('Détail des projets'!G74)=0,\"\",'Détail des projets'!G74)","v":"16-Montérégie"},{"$f":"IF(LEN('Détail des projets'!K74)=0,\"\",'Détail des projets'!K74)","v":171971},60,"À la fin du projet (suite au dernier versement)"]
[null,{"$f":"IF(LEN('Détail des projets'!B75)=0,\"\",'Détail des projets'!B75)","v":"50643-063 - Nouvelle école : Mise en œuvre de mesures pour augmenter l'évitement d'émissions de GES - - Géothermie"},{"$f":"IF(LEN('Détail des projets'!C75)=0,\"\",'Détail des projets'!C75)","v":"Marie-Victorin"},{"$f":"IF(LEN('Détail des projets'!G75)=0,\"\",'Détail des projets'!G75)","v":"16-Montérégie"},{"$f":"IF(LEN('Détail des projets'!K75)=0,\"\",'Détail des projets'!K75)","v":158288},72,"À la fin du projet (suite au dernier versement)"]
[null,{"$f":"IF(LEN('Détail des projets'!B76)=0,\"\",'Détail des projets'!B76)","v":"50643-067 - Conversion de chaufferies de combustible fossile vers l'électricité"},{"$f":"IF(LEN('Détail des projets'!C76)=0,\"\",'Détail des projets'!C76)","v":"des Chênes"},{"$f":"IF(LEN('Détail des projets'!G76)=0,\"\",'Détail des projets'!G76)","v":"17-Centre-du-Québec"},{"$f":"IF(LEN('Détail des projets'!K76)=0,\"\",'Détail des projets'!K76)","v":292695},126,"À la fin du projet (suite au dernier versement)",297.39947089999998,null,null,30]
[null,{"$f":"IF(LEN('Détail des projets'!B77)=0,\"\",'Détail des projets'!B77)","v":"50643-068 - Projets de réduction des GES : Modernisation de chaufferie - 4 bâtiments (remplacer les chaudières à combustibles par des chaudières électriques et des thermopompes)"},{"$f":"IF(LEN('Détail des projets'!C77)=0,\"\",'Détail des projets'!C77)","v":"des Hauts-Cantons"},{"$f":"IF(LEN('Détail des projets'!G77)=0,\"\",'Détail des projets'!G77)","v":"05-Estrie"},{"$f":"IF(LEN('Détail des projets'!K77)=0,\"\",'Détail des projets'!K77)","v":760586},337,"À la fin du projet (suite au dernier versement)",128.66433233999999,null,null,25]
[null,{"$f":"IF(LEN('Détail des projets'!B78)=0,\"\",'Détail des projets'!B78)","v":"50643-049 - Agrandissement de l'école: Mise en œuvre de mesures pour augmenter l'évitement d'émissions de GES"},{"$f":"IF(LEN('Détail des projets'!C78)=0,\"\",'Détail des projets'!C78)","v":"des Patriotes"},{"$f":"IF(LEN('Détail des projets'!G78)=0,\"\",'Détail des projets'!G78)","v":"16-Montérégie"},{"$f":"IF(LEN('Détail des projets'!K78)=0,\"\",'Détail des projets'!K78)","v":36795},16.7,"À la fin du projet (suite au dernier versement)"]
[null,{"$f":"IF(LEN('Détail des projets'!B79)=0,\"\",'Détail des projets'!B79)","v":"50643-069 - Remplacer les chaudières au gaz naturel par des chaudières électriques et chaudières au GN de plus petites puissances : 7 bâtiments"},{"$f":"IF(LEN('Détail des projets'!C79)=0,\"\",'Détail des projets'!C79)","v":"Marguérite-Bourgeoys"},{"$f":"IF(LEN('Détail des projets'!G79)=0,\"\",'Détail des projets'!G79)","v":"06-Montréal"},{"$f":"IF(LEN('Détail des projets'!K79)=0,\"\",'Détail des projets'!K79)","v":1293544},572,"À la fin du projet (suite au dernier versement)",175.48059441000001,null,null,30]
[null,{"$f":"IF(LEN('Détail des projets'!B80)=0,\"\",'Détail des projets'!B80)","v":"50643-070 - Projets de réduction des GES : modernisation de chaufferie - conversion del - ajout de climatisation - aérothermie"},{"$f":"IF(LEN('Détail des projets'!C80)=0,\"\",'Détail des projets'!C80)","v":"Sir-Wilfrid-Laurier"},{"$f":"IF(LEN('Détail des projets'!G80)=0,\"\",'Détail des projets'!G80)","v":"15-Laurentides"},{"$f":"IF(LEN('Détail des projets'!K80)=0,\"\",'Détail des projets'!K80)","v":2545530},1109,"À la fin du projet (suite au dernier versement)",235.13172227000001,null,null,25]
[null,{"$f":"IF(LEN('Détail des projets'!B81)=0,\"\",'Détail des projets'!B81)","v":"50643-053 - Agrandissement de l'école: Mise en œuvre de mesures pour augmenter l'évitement d'émissions de GES"},{"$f":"IF(LEN('Détail des projets'!C81)=0,\"\",'Détail des projets'!C81)","v":"des Grandes-Seigneuries"},{"$f":"IF(LEN('Détail des projets'!G81)=0,\"\",'Détail des projets'!G81)","v":"16-Montérégie"},{"$f":"IF(LEN('Détail des projets'!K81)=0,\"\",'Détail des projets'!K81)","v":121574},53,"À la fin du projet (suite au dernier versement)"]
[null,{"$f":"IF(LEN('Détail des projets'!B82)=0,\"\",'Détail des projets'!B82)","v":"50643-059 - Agrandissement de l'école: Mise en œuvre de mesures pour augmenter l'évitement d'émissions de GES"},{"$f":"IF(LEN('Détail des projets'!C82)=0,\"\",'Détail des projets'!C82)","v":"des Grandes-Seigneuries"},{"$f":"IF(LEN('Détail des projets'!G82)=0,\"\",'Détail des projets'!G82)","v":"16-Montérégie"},{"$f":"IF(LEN('Détail des projets'!K82)=0,\"\",'Détail des projets'!K82)","v":35464},16.5,"À la fin du projet (suite au dernier versement)"]
[null,{"$f":"IF(LEN('Détail des projets'!B83)=0,\"\",'Détail des projets'!B83)","v":"50643-074 - Nouvelle école : Mise en œuvre de mesures pour augmenter l'évitement d'émissions de GES "},{"$f":"IF(LEN('Détail des projets'!C83)=0,\"\",'Détail des projets'!C83)","v":"Beauce-Etchemin"},{"$f":"IF(LEN('Détail des projets'!G83)=0,\"\",'Détail des projets'!G83)","v":"12-Chaudières-Appalaches"},{"$f":"IF(LEN('Détail des projets'!K83)=0,\"\",'Détail des projets'!K83)","v":158402},72,"À la fin du projet (suite au dernier versement)"]
[null,{"$f":"IF(LEN('Détail des projets'!B84)=0,\"\",'Détail des projets'!B84)","v":"50643-073Remplacer des chaudières fonctionnant au combustible par de la géothermie"},{"$f":"IF(LEN('Détail des projets'!C84)=0,\"\",'Détail des projets'!C84)","v":"des Premières-Seigneuries"},{"$f":"IF(LEN('Détail des projets'!G84)=0,\"\",'Détail des projets'!G84)","v":"03-Capitale-Nationale"},{"$f":"IF(LEN('Détail des projets'!K84)=0,\"\",'Détail des projets'!K84)","v":398223},176,"À la fin du projet (suite au dernier versement)",163.24488636000001,null,null,40]
[null,{"$f":"IF(LEN('Détail des projets'!B85)=0,\"\",'Détail des projets'!B85)","v":"50643-071 - Projets de réduction des GES : Remplacer des chaudières à combustibles par de l'énergie renouvelable(électricité) dans 18 bâtiments"},{"$f":"IF(LEN('Détail des projets'!C85)=0,\"\",'Détail des projets'!C85)","v":"des Bois-Francs Nord"},{"$f":"IF(LEN('Détail des projets'!G85)=0,\"\",'Détail des projets'!G85)","v":"17-Centre-du-Québec"},{"$f":"IF(LEN('Détail des projets'!K85)=0,\"\",'Détail des projets'!K85)","v":1678794},722,"À la fin du projet (suite au dernier versement)",192.90521699000001,null,null,30]
[null,{"$f":"IF(LEN('Détail des projets'!B86)=0,\"\",'Détail des projets'!B86)","v":"50643-058 - Remplacer des chaudières au gaz naturel par des chaudières électriques"},{"$f":"IF(LEN('Détail des projets'!C86)=0,\"\",'Détail des projets'!C86)","v":"Montréal"},{"$f":"IF(LEN('Détail des projets'!G86)=0,\"\",'Détail des projets'!G86)","v":"06-Montréal"},{"$f":"IF(LEN('Détail des projets'!K86)=0,\"\",'Détail des projets'!K86)","v":471495},211,"À la fin du projet (suite au dernier versement)",95.978041074000004,null,null,30]
[null,{"$f":"IF(LEN('Détail des projets'!B87)=0,\"\",'Détail des projets'!B87)","v":"50643-072 - Nouvelle école secondaire : Mise en œuvre de mesures pour augmenter l'évitement d'émissions de GES "},{"$f":"IF(LEN('Détail des projets'!C87)=0,\"\",'Détail des projets'!C87)","v":"des Portages-de-l'Outaouais"},{"$f":"IF(LEN('Détail des projets'!G87)=0,\"\",'Détail des projets'!G87)","v":"07-Outaouais"},{"$f":"IF(LEN('Détail des projets'!K87)=0,\"\",'Détail des projets'!K87)","v":233739},106,"À la fin du projet (suite au dernier versement)"]
[null,{"$f":"IF(LEN('Détail des projets'!B88)=0,\"\",'Détail des projets'!B88)","v":"50643-060 - Remplacer le système de chauffage à base de mazout par un système de chauffage géothermique"},{"$f":"IF(LEN('Détail des projets'!C88)=0,\"\",'Détail des projets'!C88)","v":"Saint-Hyacinthe"},{"$f":"IF(LEN('Détail des projets'!G88)=0,\"\",'Détail des projets'!G88)","v":"16-Montérégie"},{"$f":"IF(LEN('Détail des projets'!K88)=0,\"\",'Détail des projets'!K88)","v":76766},33,"À la fin du projet (suite au dernier versement)",403.17424241999998,null,null,40]
[null,{"$f":"IF(LEN('Détail des projets'!B89)=0,\"\",'Détail des projets'!B89)","v":"50643-062 - Projet de réduction GES: Modernisation de la chaufferie de deux écoles - Remplacement des chaudières existantes et utilisation de l'électricité comme source d'énergie primaire"},{"$f":"IF(LEN('Détail des projets'!C89)=0,\"\",'Détail des projets'!C89)","v":"Hautes-Rivières"},{"$f":"IF(LEN('Détail des projets'!G89)=0,\"\",'Détail des projets'!G89)","v":" 16-Montérégie "},{"$f":"IF(LEN('Détail des projets'!K89)=0,\"\",'Détail des projets'!K89)","v":166200},71,"À la fin du projet (suite au dernier versement)",125.81,null,null,35]
[null,{"$f":"IF(LEN('Détail des projets'!B90)=0,\"\",'Détail des projets'!B90)","v":"50643-075 - Projet de réduction des GES: Modernisation de la chaufferie de l'immeuble Boisé-des-Pins"},{"$f":"IF(LEN('Détail des projets'!C90)=0,\"\",'Détail des projets'!C90)","v":"Chemin du Roy"},{"$f":"IF(LEN('Détail des projets'!G90)=0,\"\",'Détail des projets'!G90)","v":" 04-Mauricie  "},{"$f":"IF(LEN('Détail des projets'!K90)=0,\"\",'Détail des projets'!K90)","v":93792},48.27,"À la fin du projet (suite au dernier versement)",337.97,null,null,30]
[null,{"$f":"IF(LEN('Détail des projets'!B91)=0,\"\",'Détail des projets'!B91)","v":"50643-076 - Installation de systèmes aérothermiques, remplacement de chaudières au mazout par des chaudières électriques, conversion d'éclairage, optimisation de contrôles centralisés et de systèmes géothermiques."},{"$f":"IF(LEN('Détail des projets'!C91)=0,\"\",'Détail des projets'!C91)","v":"Trois-Lacs"},{"$f":"IF(LEN('Détail des projets'!G91)=0,\"\",'Détail des projets'!G91)","v":" 16-Montérégie "},{"$f":"IF(LEN('Détail des projets'!K91)=0,\"\",'Détail des projets'!K91)","v":1930880},850.4,"À la fin du projet (suite au dernier versement)",161.05000000000001,null,null,25]
[null,{"$f":"IF(LEN('Détail des projets'!B92)=0,\"\",'Détail des projets'!B92)","v":"50643-077 - Projets de réduction des GES: Modernisation de la chaufferie de l'école la Frontalière - installation d'un système d'aérothermie"},{"$f":"IF(LEN('Détail des projets'!C92)=0,\"\",'Détail des projets'!C92)","v":"Hauts-Cantons"},{"$f":"IF(LEN('Détail des projets'!G92)=0,\"\",'Détail des projets'!G92)","v":" 05-Estrie "},{"$f":"IF(LEN('Détail des projets'!K92)=0,\"\",'Détail des projets'!K92)","v":1211984.1399999999},548.63,"À la fin du projet (suite au dernier versement)",129.47,null,null,25]
[null,{"$f":"IF(LEN('Détail des projets'!B93)=0,\"\",'Détail des projets'!B93)","v":"50643-078 - Nouveau centre de formation: Mise en œuvre de mesures pour augmenter l'évitement d'émissions de GES - utilisation de la géothermie"},{"$f":"IF(LEN('Détail des projets'!C93)=0,\"\",'Détail des projets'!C93)","v":"Affluents"},{"$f":"IF(LEN('Détail des projets'!G93)=0,\"\",'Détail des projets'!G93)","v":" 14-Lanaudière "},{"$f":"IF(LEN('Détail des projets'!K93)=0,\"\",'Détail des projets'!K93)","v":113406},51.548000000000002,"À la fin du projet (suite au dernier versement)",null,null,null," -"]
[null,{"$f":"IF(LEN('Détail des projets'!B94)=0,\"\",'Détail des projets'!B94)","v":"50643-079 - Agrandissement de l'école Albert-Naud: Installation d'un système de chauffage électrique - installation d'une thermopompe"},{"$f":"IF(LEN('Détail des projets'!C94)=0,\"\",'Détail des projets'!C94)","v":"Lac-Saint-Jean"},{"$f":"IF(LEN('Détail des projets'!G94)=0,\"\",'Détail des projets'!G94)","v":" 02-Saguenay- Lac-Saint-Jean "},{"$f":"IF(LEN('Détail des projets'!K94)=0,\"\",'Détail des projets'!K94)","v":188524},81.099999999999994,"À la fin du projet (suite au dernier versement)",null,null,null," -"]
[null,{"$f":"IF(LEN('Détail des projets'!B95)=0,\"\",'Détail des projets'!B95)","v":"50643-080 - Agrandissement de l'école Bon-Conseil: Installation d'un système de géothermie"},{"$f":"IF(LEN('Détail des projets'!C95)=0,\"\",'Détail des projets'!C95)","v":"Lac-Saint-Jean"},{"$f":"IF(LEN('Détail des projets'!G95)=0,\"\",'Détail des projets'!G95)","v":" 02-Saguenay- Lac-Saint-Jean "},{"$f":"IF(LEN('Détail des projets'!K95)=0,\"\",'Détail des projets'!K95)","v":197723},87.6,"À la fin du projet (suite au dernier versement)",null,null,null," -"]
[null,{"$f":"IF(LEN('Détail des projets'!B96)=0,\"\",'Détail des projets'!B96)","v":"50643-081 - Nouveau centre de formation à Mirabel: Mise en œuvre de mesures pour augmenter l'évitement d'émissions de GES - système de géothermie"},{"$f":"IF(LEN('Détail des projets'!C96)=0,\"\",'Détail des projets'!C96)","v":"Seigneurie-des-Mille-Îles"},{"$f":"IF(LEN('Détail des projets'!G96)=0,\"\",'Détail des projets'!G96)","v":" 15-Laurentides "},{"$f":"IF(LEN('Détail des projets'!K96)=0,\"\",'Détail des projets'!K96)","v":105710},48.05,"À la fin du projet (suite au dernier versement)",null,null,null," -"]
[null,{"$f":"IF(LEN('Détail des projets'!B97)=0,\"\",'Détail des projets'!B97)","v":"50643-082 - Projet de réduction des GES: Remplacement des chaudières existantes - 2 bâtiments"},{"$f":"IF(LEN('Détail des projets'!C97)=0,\"\",'Détail des projets'!C97)","v":"Hautes-Rivières"},{"$f":"IF(LEN('Détail des projets'!G97)=0,\"\",'Détail des projets'!G97)","v":" 16-Montérégie "},{"$f":"IF(LEN('Détail des projets'!K97)=0,\"\",'Détail des projets'!K97)","v":446417.5},198.37,"À la fin du projet (suite au dernier versement)",105.5,null,null,30]
[null,{"$f":"IF(LEN('Détail des projets'!B98)=0,\"\",'Détail des projets'!B98)","v":"50643-083 - Projet de réduction GES: Installation de systèmes aérothermiques, conversion d'éclairage et optimisation de contrôles centralisés"},{"$f":"IF(LEN('Détail des projets'!C98)=0,\"\",'Détail des projets'!C98)","v":"Des Sommets"},{"$f":"IF(LEN('Détail des projets'!G98)=0,\"\",'Détail des projets'!G98)","v":" 05-Estrie "},{"$f":"IF(LEN('Détail des projets'!K98)=0,\"\",'Détail des projets'!K98)","v":1441140},643.70000000000005,"À la fin du projet (suite au dernier versement)",199.16,null,null,25]
[null,{"$f":"IF(LEN('Détail des projets'!B99)=0,\"\",'Détail des projets'!B99)","v":"50643-084 - Nouvelle école: Mise en œuvre de mesures pour favoriser l'évitement d'émissions de GES - système de géothermie"},{"$f":"IF(LEN('Détail des projets'!C99)=0,\"\",'Détail des projets'!C99)","v":"Eastern Townships"},{"$f":"IF(LEN('Détail des projets'!G99)=0,\"\",'Détail des projets'!G99)","v":" 17-Centre-du-Québec "},{"$f":"IF(LEN('Détail des projets'!K99)=0,\"\",'Détail des projets'!K99)","v":83978},38.17,"À la fin du projet (suite au dernier versement)",null,null,null," -"]
[null,{"$f":"IF(LEN('Détail des projets'!B100)=0,\"\",'Détail des projets'!B100)","v":"50643-085 - Projet de réduction des GES: Modernisation des chaufferies - Installation de systèmes d'aérothermie (12 bâtiments)"},{"$f":"IF(LEN('Détail des projets'!C100)=0,\"\",'Détail des projets'!C100)","v":"Eastern Townships"},{"$f":"IF(LEN('Détail des projets'!G100)=0,\"\",'Détail des projets'!G100)","v":" 05-Estrie "},{"$f":"IF(LEN('Détail des projets'!K100)=0,\"\",'Détail des projets'!K100)","v":3159354},1408.8,"À la fin du projet (suite au dernier versement)",139.79,null,null,25]
[null,{"$f":"IF(LEN('Détail des projets'!B101)=0,\"\",'Détail des projets'!B101)","v":"50643-087 - Projet de réduction des GES: Modernisation de la chaufferie de l'école Saint-Bonaventure - Remplacer les chaudières à l'huile par des chaudières électriques et une thermopompe"},{"$f":"IF(LEN('Détail des projets'!C101)=0,\"\",'Détail des projets'!C101)","v":"Chênes"},{"$f":"IF(LEN('Détail des projets'!G101)=0,\"\",'Détail des projets'!G101)","v":" 17-Centre-du-Québec "},{"$f":"IF(LEN('Détail des projets'!K101)=0,\"\",'Détail des projets'!K101)","v":95200},41,"À la fin du projet (suite au dernier versement)",283.94,null,null,30]
[null,{"$f":"IF(LEN('Détail des projets'!B102)=0,\"\",'Détail des projets'!B102)","v":"50643-088 - Agrandissement de l'école Desjardins: Modernisation de la chaufferie - Remplacement des chaudière au GN par un système hybride (géothermie et chaudière GN)"},{"$f":"IF(LEN('Détail des projets'!C102)=0,\"\",'Détail des projets'!C102)","v":"Région-de-Sherbrooke"},{"$f":"IF(LEN('Détail des projets'!G102)=0,\"\",'Détail des projets'!G102)","v":" 05-Estrie "},{"$f":"IF(LEN('Détail des projets'!K102)=0,\"\",'Détail des projets'!K102)","v":139664},47.03,"À la fin du projet (suite au dernier versement)",221.08,null,null,40]
[null,{"$f":"IF(LEN('Détail des projets'!B103)=0,\"\",'Détail des projets'!B103)","v":"50643-089 - Agrandissement de l'école Cardinal-Roy: Installation d'un système de aérothermie et d'une chaudière électrique"},{"$f":"IF(LEN('Détail des projets'!C103)=0,\"\",'Détail des projets'!C103)","v":"de la Capitale"},{"$f":"IF(LEN('Détail des projets'!G103)=0,\"\",'Détail des projets'!G103)","v":" 03-Capitale-Nationale "},{"$f":"IF(LEN('Détail des projets'!K103)=0,\"\",'Détail des projets'!K103)","v":73522},33.42,"À la fin du projet (suite au dernier versement)",null,null,null," -"]
[null,{"$f":"IF(LEN('Détail des projets'!B104)=0,\"\",'Détail des projets'!B104)","v":"50643-090 - Agrandissement de l'école Joseph-François-Perrault: Installation d'un système de aérothermie"},{"$f":"IF(LEN('Détail des projets'!C104)=0,\"\",'Détail des projets'!C104)","v":"de la Capitale"},{"$f":"IF(LEN('Détail des projets'!G104)=0,\"\",'Détail des projets'!G104)","v":" 03-Capitale-Nationale "},{"$f":"IF(LEN('Détail des projets'!K104)=0,\"\",'Détail des projets'!K104)","v":85873},39.03,"À la fin du projet (suite au dernier versement)",null,null,null," -"]
[null,{"$f":"IF(LEN('Détail des projets'!B105)=0,\"\",'Détail des projets'!B105)","v":"50643-091 - Nouvelle Lab-École Limoilou: Mise en œuvre de mesures pour favoriser l'évitement d'émissions de GES - système d'aérothermie"},{"$f":"IF(LEN('Détail des projets'!C105)=0,\"\",'Détail des projets'!C105)","v":"de la Capitale"},{"$f":"IF(LEN('Détail des projets'!G105)=0,\"\",'Détail des projets'!G105)","v":" 03-Capitale-Nationale "},{"$f":"IF(LEN('Détail des projets'!K105)=0,\"\",'Détail des projets'!K105)","v":112266},51.03,"À la fin du projet (suite au dernier versement)",null,null,null," -"]
[null,{"$f":"IF(LEN('Détail des projets'!B106)=0,\"\",'Détail des projets'!B106)","v":"50643-092 - Projet de réduction des GES: Modernisation de la chaufferie du centre Louis-Joliet - Système de géothermie"},{"$f":"IF(LEN('Détail des projets'!C106)=0,\"\",'Détail des projets'!C106)","v":"de la Capitale"},{"$f":"IF(LEN('Détail des projets'!G106)=0,\"\",'Détail des projets'!G106)","v":" 03-Capitale-Nationale "},{"$f":"IF(LEN('Détail des projets'!K106)=0,\"\",'Détail des projets'!K106)","v":633057},285.48,"À la fin du projet (suite au dernier versement)",515.04999999999995,null,null,40]
[null,{"$f":"IF(LEN('Détail des projets'!B107)=0,\"\",'Détail des projets'!B107)","v":"50643-093 - Projet de réduction des GES:  Installation d'un système de géothermie - modernisation des chaufferies - 3 écoles"},{"$f":"IF(LEN('Détail des projets'!C107)=0,\"\",'Détail des projets'!C107)","v":"des Premières-Seigneuries"},{"$f":"IF(LEN('Détail des projets'!G107)=0,\"\",'Détail des projets'!G107)","v":" 03-Capitale-Nationale "},{"$f":"IF(LEN('Détail des projets'!K107)=0,\"\",'Détail des projets'!K107)","v":1271200},570.91,"À la fin du projet (suite au dernier versement)",281.88,null,null,40]
[null,{"$f":"IF(LEN('Détail des projets'!B108)=0,\"\",'Détail des projets'!B108)","v":"50643-094 - Projet de réduction de GES: Modernisation des chaufferies - Installation de système de géothermie (Saint-Marc, secondaire de) et d'aréothermie (Saumonière)"},{"$f":"IF(LEN('Détail des projets'!C108)=0,\"\",'Détail des projets'!C108)","v":"Portneuf"},{"$f":"IF(LEN('Détail des projets'!G108)=0,\"\",'Détail des projets'!G108)","v":" 03-Capitale-Nationale "},{"$f":"IF(LEN('Détail des projets'!K108)=0,\"\",'Détail des projets'!K108)","v":686411},307.45999999999998,"À la fin du projet (suite au dernier versement)",210.8,null,null,30]
[null,{"$f":"IF(LEN('Détail des projets'!B109)=0,\"\",'Détail des projets'!B109)","v":"50643-095 - Projet de réduction GES: Remplacement des chaudière au GN de l'école Saint-Thérèse par des thermopompes air-eau"},{"$f":"IF(LEN('Détail des projets'!C109)=0,\"\",'Détail des projets'!C109)","v":"Chemin du Roy"},{"$f":"IF(LEN('Détail des projets'!G109)=0,\"\",'Détail des projets'!G109)","v":" 04-Mauricie  "},{"$f":"IF(LEN('Détail des projets'!K109)=0,\"\",'Détail des projets'!K109)","v":94615},40.729999999999997,"À la fin du projet (suite au dernier versement)",419.83,null,null,30]
[null,{"$f":"IF(LEN('Détail des projets'!B110)=0,\"\",'Détail des projets'!B110)","v":"50643-096 - Agrandissement de l'école Saint-Joseph: Mise en œuvre de mesures pour favoriser l'évitement d'émissions de GES"},{"$f":"IF(LEN('Détail des projets'!C110)=0,\"\",'Détail des projets'!C110)","v":"Chemin du Roy"},{"$f":"IF(LEN('Détail des projets'!G110)=0,\"\",'Détail des projets'!G110)","v":" 04-Mauricie  "},{"$f":"IF(LEN('Détail des projets'!K110)=0,\"\",'Détail des projets'!K110)","v":53728},24.42,"À la fin du projet (suite au dernier versement)",null,null,null," -"]
[null,{"$f":"IF(LEN('Détail des projets'!B111)=0,\"\",'Détail des projets'!B111)","v":"50643-097 - Nouvelle école Sainte-Lucie: Mise en œuvre de mesures pour favoriser l'évitement d'émissions de GES "},{"$f":"IF(LEN('Détail des projets'!C111)=0,\"\",'Détail des projets'!C111)","v":"CSDM"},{"$f":"IF(LEN('Détail des projets'!G111)=0,\"\",'Détail des projets'!G111)","v":" 06-Montréal "},{"$f":"IF(LEN('Détail des projets'!K111)=0,\"\",'Détail des projets'!K111)","v":128773},58.53,"À la fin du projet (suite au dernier versement)",null,null,null," -"]
[null,{"$f":"IF(LEN('Détail des projets'!B112)=0,\"\",'Détail des projets'!B112)","v":"50643-098 - Projet de réduction des GES: Modernisation des chaufferies de l'école Saint-Donas et du Centre de loisirs communautaires Lajeunesse"},{"$f":"IF(LEN('Détail des projets'!C112)=0,\"\",'Détail des projets'!C112)","v":"CSDM"},{"$f":"IF(LEN('Détail des projets'!G112)=0,\"\",'Détail des projets'!G112)","v":" 06-Montréal "},{"$f":"IF(LEN('Détail des projets'!K112)=0,\"\",'Détail des projets'!K112)","v":528650},239.49,"À la fin du projet (suite au dernier versement)",100.31,null,null,30]
[null,{"$f":"IF(LEN('Détail des projets'!B113)=0,\"\",'Détail des projets'!B113)","v":"50643-099 - Projet de réduction des GES: Modernisation de chaufferies - 23 bâtiments"},{"$f":"IF(LEN('Détail des projets'!C113)=0,\"\",'Détail des projets'!C113)","v":"CSDM"},{"$f":"IF(LEN('Détail des projets'!G113)=0,\"\",'Détail des projets'!G113)","v":" 06-Montréal "},{"$f":"IF(LEN('Détail des projets'!K113)=0,\"\",'Détail des projets'!K113)","v":5976363},2664.26,"À la fin du projet (suite au dernier versement)",81.92,null,null,30]
[null,{"$f":"IF(LEN('Détail des projets'!B114)=0,\"\",'Détail des projets'!B114)","v":"50643-100 - Projet de réduction des GES: Remplacement de certaines chaudières au gaz par des chaudières électriques -- 2 bâtiments"},{"$f":"IF(LEN('Détail des projets'!C114)=0,\"\",'Détail des projets'!C114)","v":"Marguérite-Bourgeoys"},{"$f":"IF(LEN('Détail des projets'!G114)=0,\"\",'Détail des projets'!G114)","v":" 06-Montréal "},{"$f":"IF(LEN('Détail des projets'!K114)=0,\"\",'Détail des projets'!K114)","v":396016},175.46,"À la fin du projet (suite au dernier versement)",117.45,null,null,30]
[null,{"$f":"IF(LEN('Détail des projets'!B115)=0,\"\",'Détail des projets'!B115)","v":"50643-101 - Projet de réduction des GES: Modernisation de la chaufferie de l'école Dollard-des-Ormeaux - Remplacement des chaudière au GN par un système hybride (électrique et GN)"},{"$f":"IF(LEN('Détail des projets'!C115)=0,\"\",'Détail des projets'!C115)","v":"Marguérite-Bourgeoys"},{"$f":"IF(LEN('Détail des projets'!G115)=0,\"\",'Détail des projets'!G115)","v":" 06-Montréal "},{"$f":"IF(LEN('Détail des projets'!K115)=0,\"\",'Détail des projets'!K115)","v":136640},76.260000000000005,"À la fin du projet (suite au dernier versement)",59.73,null,null,30]
[null,{"$f":"IF(LEN('Détail des projets'!B116)=0,\"\",'Détail des projets'!B116)","v":"50643-102 - Projet de réduction des GES:  Remplacement des chaudière au GN de l'école Saint-Clément Ouest par un système hybride (électrique et GN)"},{"$f":"IF(LEN('Détail des projets'!C116)=0,\"\",'Détail des projets'!C116)","v":"Marguérite-Bourgeoys"},{"$f":"IF(LEN('Détail des projets'!G116)=0,\"\",'Détail des projets'!G116)","v":" 06-Montréal "},{"$f":"IF(LEN('Détail des projets'!K116)=0,\"\",'Détail des projets'!K116)","v":191727},153.19,"À la fin du projet (suite au dernier versement)",41.72,null,null,30]
[null,{"$f":"IF(LEN('Détail des projets'!B117)=0,\"\",'Détail des projets'!B117)","v":"50643-103 - Projet de réduction des GES:  Remplacement des chaudière au GN de l'édifice Bois-Franc de l'école Bois-Franc-Aquarelle par un système hybride (électrique et GN)"},{"$f":"IF(LEN('Détail des projets'!C117)=0,\"\",'Détail des projets'!C117)","v":"Marguérite-Bourgeoys"},{"$f":"IF(LEN('Détail des projets'!G117)=0,\"\",'Détail des projets'!G117)","v":" 06-Montréal "},{"$f":"IF(LEN('Détail des projets'!K117)=0,\"\",'Détail des projets'!K117)","v":148897},102.74,"À la fin du projet (suite au dernier versement)",48.31,null,null,30]
[null,{"$f":"IF(LEN('Détail des projets'!B118)=0,\"\",'Détail des projets'!B118)","v":"50643-104 - Agrandissement de l'école Beau-Séjour Sud: ajout d'une chaudière électrique"},{"$f":"IF(LEN('Détail des projets'!C118)=0,\"\",'Détail des projets'!C118)","v":"Marguérite-Bourgeoys"},{"$f":"IF(LEN('Détail des projets'!G118)=0,\"\",'Détail des projets'!G118)","v":" 06-Montréal "},{"$f":"IF(LEN('Détail des projets'!K118)=0,\"\",'Détail des projets'!K118)","v":95743},45.39,"À la fin du projet (suite au dernier versement)",70.31,null,null,30]
[null,{"$f":"IF(LEN('Détail des projets'!B119)=0,\"\",'Détail des projets'!B119)","v":"50643-105 - Projet de réduction des GES: remplacement d'une chaudière GN de l'école Sainte-Geneviève Ouest par une chaudière électrique, installation d'un système de ventilation avec récupération de chaleur"},{"$f":"IF(LEN('Détail des projets'!C119)=0,\"\",'Détail des projets'!C119)","v":"Marguérite-Bourgeoys"},{"$f":"IF(LEN('Détail des projets'!G119)=0,\"\",'Détail des projets'!G119)","v":" 06-Montréal "},{"$f":"IF(LEN('Détail des projets'!K119)=0,\"\",'Détail des projets'!K119)","v":153017},107.94,"À la fin du projet (suite au dernier versement)",47.25,null,null,30]
[null,{"$f":"IF(LEN('Détail des projets'!B120)=0,\"\",'Détail des projets'!B120)","v":"50643-106 - Projet de réduction des GES: Modernisation de la chaufferie de l'école Pointe-Claire - Remplacement des chaudière au GN par un système hybride (chaudière électrique et chaudière GN)"},{"$f":"IF(LEN('Détail des projets'!C120)=0,\"\",'Détail des projets'!C120)","v":"Marguérite-Bourgeoys"},{"$f":"IF(LEN('Détail des projets'!G120)=0,\"\",'Détail des projets'!G120)","v":" 06-Montréal "},{"$f":"IF(LEN('Détail des projets'!K120)=0,\"\",'Détail des projets'!K120)","v":164147},109.87,"À la fin du projet (suite au dernier versement)",49.8,null,null,30]
[null,{"$f":"IF(LEN('Détail des projets'!B121)=0,\"\",'Détail des projets'!B121)","v":"50643-107 - Projet de réduction des GES: ajout de thermopompes en parallèles au système éxistant de l'école Nouvelle-Querbes"},{"$f":"IF(LEN('Détail des projets'!C121)=0,\"\",'Détail des projets'!C121)","v":"Marguérite-Bourgeoys"},{"$f":"IF(LEN('Détail des projets'!G121)=0,\"\",'Détail des projets'!G121)","v":" 06-Montréal "},{"$f":"IF(LEN('Détail des projets'!K121)=0,\"\",'Détail des projets'!K121)","v":99543},42.97,"À la fin du projet (suite au dernier versement)",566.14,null,null,30]
[null,{"$f":"IF(LEN('Détail des projets'!B122)=0,\"\",'Détail des projets'!B122)","v":"50643-108 - Projet de réduction des GES: Modernisation de la chaufferie de l'édifice 290 Deslauriers - Remplacement des chaudière au GN par un système hybride (chaudière électrique et chaudière GN)"},{"$f":"IF(LEN('Détail des projets'!C122)=0,\"\",'Détail des projets'!C122)","v":"Marguérite-Bourgeoys"},{"$f":"IF(LEN('Détail des projets'!G122)=0,\"\",'Détail des projets'!G122)","v":" 06-Montréal "},{"$f":"IF(LEN('Détail des projets'!K122)=0,\"\",'Détail des projets'!K122)","v":175755},77.84,"À la fin du projet (suite au dernier versement)",84.53,null,null,30]
[null,{"$f":"IF(LEN('Détail des projets'!B123)=0,\"\",'Détail des projets'!B123)","v":"50643-109 - Projet de réduction des GES: Remplacer la chaudière au GN de l'édifice Filion du CEA Outremont par des chaudières électriques"},{"$f":"IF(LEN('Détail des projets'!C123)=0,\"\",'Détail des projets'!C123)","v":"Marguérite-Bourgeoys"},{"$f":"IF(LEN('Détail des projets'!G123)=0,\"\",'Détail des projets'!G123)","v":" 06-Montréal "},{"$f":"IF(LEN('Détail des projets'!K123)=0,\"\",'Détail des projets'!K123)","v":45147},18.48,"À la fin du projet (suite au dernier versement)",348.62,null,null,30]
[null,{"$f":"IF(LEN('Détail des projets'!B124)=0,\"\",'Détail des projets'!B124)","v":"50643-110 - Projet de réduction des GES: Remplacer les chaudières au GN du centre d'éducation d'Outremont par des chaudières électriques"},{"$f":"IF(LEN('Détail des projets'!C124)=0,\"\",'Détail des projets'!C124)","v":"Marguérite-Bourgeoys"},{"$f":"IF(LEN('Détail des projets'!G124)=0,\"\",'Détail des projets'!G124)","v":" 06-Montréal "},{"$f":"IF(LEN('Détail des projets'!K124)=0,\"\",'Détail des projets'!K124)","v":263196},117.59,"À la fin du projet (suite au dernier versement)",82.24,null,null,30]
[null,{"$f":"IF(LEN('Détail des projets'!B125)=0,\"\",'Détail des projets'!B125)","v":"50643-111 - Agrandissement de l'école Saint-Rémi: Mise en œuvre de mesures pour favoriser l'évitement d'émissions de GES - Chaufferies séparées"},{"$f":"IF(LEN('Détail des projets'!C125)=0,\"\",'Détail des projets'!C125)","v":"Marguérite-Bourgeoys"},{"$f":"IF(LEN('Détail des projets'!G125)=0,\"\",'Détail des projets'!G125)","v":" 06-Montréal "},{"$f":"IF(LEN('Détail des projets'!K125)=0,\"\",'Détail des projets'!K125)","v":82410},37.46,"À la fin du projet (suite au dernier versement)",null,null,null," -"]
[null,{"$f":"IF(LEN('Détail des projets'!B126)=0,\"\",'Détail des projets'!B126)","v":"50643-112 - Agrandissement de l'école La Source: Mise en œuvre de mesures pour favoriser l'évitement d'émissions de GES"},{"$f":"IF(LEN('Détail des projets'!C126)=0,\"\",'Détail des projets'!C126)","v":"Affluents"},{"$f":"IF(LEN('Détail des projets'!G126)=0,\"\",'Détail des projets'!G126)","v":" 14-Lanaudière "},{"$f":"IF(LEN('Détail des projets'!K126)=0,\"\",'Détail des projets'!K126)","v":19822},9.01,"À la fin du projet (suite au dernier versement)",null,null,null," -"]
[null,{"$f":"IF(LEN('Détail des projets'!B127)=0,\"\",'Détail des projets'!B127)","v":"50643-113 - Agrandissement de l'école Félix-Leclerc: Mise en œuvre de mesures pour favoriser l'évitement d'émissions de GES - ajout d'un système de géothermie"},{"$f":"IF(LEN('Détail des projets'!C127)=0,\"\",'Détail des projets'!C127)","v":"Affluents"},{"$f":"IF(LEN('Détail des projets'!G127)=0,\"\",'Détail des projets'!G127)","v":" 14-Lanaudière "},{"$f":"IF(LEN('Détail des projets'!K127)=0,\"\",'Détail des projets'!K127)","v":39371},18.440000000000001,"À la fin du projet (suite au dernier versement)",null,null,null," -"]
[null,{"$f":"IF(LEN('Détail des projets'!B128)=0,\"\",'Détail des projets'!B128)","v":"50643-114 - Agrandissement de l'école Gareau: Mise en œuvre de mesures pour favoriser l'évitement d'émissions de GES - ajout d'un système de géothermie"},{"$f":"IF(LEN('Détail des projets'!C128)=0,\"\",'Détail des projets'!C128)","v":"Affluents"},{"$f":"IF(LEN('Détail des projets'!G128)=0,\"\",'Détail des projets'!G128)","v":" 14-Lanaudière "},{"$f":"IF(LEN('Détail des projets'!K128)=0,\"\",'Détail des projets'!K128)","v":82093},37.32,"À la fin du projet (suite au dernier versement)",null,null,null," -"]
[null,{"$f":"IF(LEN('Détail des projets'!B129)=0,\"\",'Détail des projets'!B129)","v":"50643-115 - Projet de réduction des GES: Remplacement des systèmes fonctionnant au GN par des systèmes électriques - 2 bâtiments"},{"$f":"IF(LEN('Détail des projets'!C129)=0,\"\",'Détail des projets'!C129)","v":"Affluents"},{"$f":"IF(LEN('Détail des projets'!G129)=0,\"\",'Détail des projets'!G129)","v":" 14-Lanaudière "},{"$f":"IF(LEN('Détail des projets'!K129)=0,\"\",'Détail des projets'!K129)","v":235306},102.41,"À la fin du projet (suite au dernier versement)",123.2,null,null,30]
[null,{"$f":"IF(LEN('Détail des projets'!B130)=0,\"\",'Détail des projets'!B130)","v":"50643-116 - Agrandissement des écoles: Installation de systèmes d'aérothermie - 3 bâtiments"},{"$f":"IF(LEN('Détail des projets'!C130)=0,\"\",'Détail des projets'!C130)","v":"Samares"},{"$f":"IF(LEN('Détail des projets'!G130)=0,\"\",'Détail des projets'!G130)","v":" 14-Lanaudière "},{"$f":"IF(LEN('Détail des projets'!K130)=0,\"\",'Détail des projets'!K130)","v":112200},51,"À la fin du projet (suite au dernier versement)",null,null,null," -"]
[null,{"$f":"IF(LEN('Détail des projets'!B131)=0,\"\",'Détail des projets'!B131)","v":"50643-117 - Nouvelle école secondaire Mirabel: Mise en œuvre de mesures pour favoriser l'évitement d'émissions de GES "},{"$f":"IF(LEN('Détail des projets'!C131)=0,\"\",'Détail des projets'!C131)","v":"Seigneurie-des-Mille-Îles"},{"$f":"IF(LEN('Détail des projets'!G131)=0,\"\",'Détail des projets'!G131)","v":" 14-Lanaudière "},{"$f":"IF(LEN('Détail des projets'!K131)=0,\"\",'Détail des projets'!K131)","v":545600},248,"À la fin du projet (suite au dernier versement)",null,null,null," -"]
[null,{"$f":"IF(LEN('Détail des projets'!B132)=0,\"\",'Détail des projets'!B132)","v":"50643-118 - Modernisation de la chaufferie: Transformation de l'aile Girouard  en école - installation d'un système de géothermie"},{"$f":"IF(LEN('Détail des projets'!C132)=0,\"\",'Détail des projets'!C132)","v":"Saint-Hyacinthe"},{"$f":"IF(LEN('Détail des projets'!G132)=0,\"\",'Détail des projets'!G132)","v":" 16-Montérégie "},{"$f":"IF(LEN('Détail des projets'!K132)=0,\"\",'Détail des projets'!K132)","v":153780},69.900000000000006,"À la fin du projet (suite au dernier versement)",null,null,null," -"]
[null,{"$f":"IF(LEN('Détail des projets'!B133)=0,\"\",'Détail des projets'!B133)","v":"50643-119 - Projet de réduction des GES: ajout d'un système de géothermie en parallèles au système éxistant de l'école Christ-Roi"},{"$f":"IF(LEN('Détail des projets'!C133)=0,\"\",'Détail des projets'!C133)","v":"Marie-Victorin"},{"$f":"IF(LEN('Détail des projets'!G133)=0,\"\",'Détail des projets'!G133)","v":" 16-Montérégie "},{"$f":"IF(LEN('Détail des projets'!K133)=0,\"\",'Détail des projets'!K133)","v":110380},47.89,"À la fin du projet (suite au dernier versement)",99.13,null,null,40]
[null,{"$f":"IF(LEN('Détail des projets'!B134)=0,\"\",'Détail des projets'!B134)","v":"50643-120 - Agrandissement de l'école Christ-Roi: Installation d'un système de géothermie"},{"$f":"IF(LEN('Détail des projets'!C134)=0,\"\",'Détail des projets'!C134)","v":"Marie-Victorin"},{"$f":"IF(LEN('Détail des projets'!G134)=0,\"\",'Détail des projets'!G134)","v":" 16-Montérégie "},{"$f":"IF(LEN('Détail des projets'!K134)=0,\"\",'Détail des projets'!K134)","v":114400},52,"À la fin du projet (suite au dernier versement)",null,null,null," -"]
[null,{"$f":"IF(LEN('Détail des projets'!B135)=0,\"\",'Détail des projets'!B135)","v":"50643-121 - Nouvelle construction: Mise en œuvre de mesures pour favoriser l'évitement d'émissions de GES - immeuble des Glaieuls - utilisation de la géothermie"},{"$f":"IF(LEN('Détail des projets'!C135)=0,\"\",'Détail des projets'!C135)","v":"Marie-Victorin"},{"$f":"IF(LEN('Détail des projets'!G135)=0,\"\",'Détail des projets'!G135)","v":" 16-Montérégie "},{"$f":"IF(LEN('Détail des projets'!K135)=0,\"\",'Détail des projets'!K135)","v":165508},75.12,"À la fin du projet (suite au dernier versement)",null,null,null," -"]
[null,{"$f":"IF(LEN('Détail des projets'!B136)=0,\"\",'Détail des projets'!B136)","v":"50643-122 - Agrandissement de l'école Saint-Michelle-Archange: Remplacer la chaudière au mazout par un système de géothermie"},{"$f":"IF(LEN('Détail des projets'!C136)=0,\"\",'Détail des projets'!C136)","v":"Grandes-Seigneuries"},{"$f":"IF(LEN('Détail des projets'!G136)=0,\"\",'Détail des projets'!G136)","v":" 16-Montérégie "},{"$f":"IF(LEN('Détail des projets'!K136)=0,\"\",'Détail des projets'!K136)","v":278343},124.25,"À la fin du projet (suite au dernier versement)",500.64,null,null,40]
[null,{"$f":"IF(LEN('Détail des projets'!B137)=0,\"\",'Détail des projets'!B137)","v":"50643-123 - Nouvelle école Saint-Sylvère: Mise en œuvre de mesures pour augmenter l'évitement d'émissions de GES - système d'aérothermie"},{"$f":"IF(LEN('Détail des projets'!C137)=0,\"\",'Détail des projets'!C137)","v":"Riveraine"},{"$f":"IF(LEN('Détail des projets'!G137)=0,\"\",'Détail des projets'!G137)","v":" 17-Centre-du-Québec "},{"$f":"IF(LEN('Détail des projets'!K137)=0,\"\",'Détail des projets'!K137)","v":48407},22,"À la fin du projet (suite au dernier versement)",null,null,null," -"]
[null,{"$f":"IF(LEN('Détail des projets'!B138)=0,\"\",'Détail des projets'!B138)","v":"50643-124 - Nouvelle école Saint-Célestin: Mise en œuvre de mesures pour favoriser l'évitement d'émissions de GES - système d'aérothermie"},{"$f":"IF(LEN('Détail des projets'!C138)=0,\"\",'Détail des projets'!C138)","v":"Riveraine"},{"$f":"IF(LEN('Détail des projets'!G138)=0,\"\",'Détail des projets'!G138)","v":" 17-Centre-du-Québec "},{"$f":"IF(LEN('Détail des projets'!K138)=0,\"\",'Détail des projets'!K138)","v":70957},32.25,"À la fin du projet (suite au dernier versement)",null,null,null," -"]
[null,{"$f":"IF(LEN('Détail des projets'!B139)=0,\"\",'Détail des projets'!B139)","v":"50643-125 - Nouvelle Lab-école Shefford: Mise en œuvre de mesures pour favoriser l'évitement d'émissions de GES"},{"$f":"IF(LEN('Détail des projets'!C139)=0,\"\",'Détail des projets'!C139)","v":"Val-des-Cerfs"},{"$f":"IF(LEN('Détail des projets'!G139)=0,\"\",'Détail des projets'!G139)","v":" 16-Montérégie "},{"$f":"IF(LEN('Détail des projets'!K139)=0,\"\",'Détail des projets'!K139)","v":108099},49.14,"À la fin du projet (suite au dernier versement)",null,null,null," -"]
[null,{"$f":"IF(LEN('Détail des projets'!B140)=0,\"\",'Détail des projets'!B140)","v":"50643-126 - Projet de réduction de GES: Modernisation des chaufferies - Installation de système de géothermie (Nouvelles-Technologies) et remplacement des chaudières au mazout par des électriques (Rose-des-Vents et Lucioles)"},{"$f":"IF(LEN('Détail des projets'!C140)=0,\"\",'Détail des projets'!C140)","v":"Seigneurie-des-Mille-Îles"},{"$f":"IF(LEN('Détail des projets'!G140)=0,\"\",'Détail des projets'!G140)","v":" 15-Laurentides "},{"$f":"IF(LEN('Détail des projets'!K140)=0,\"\",'Détail des projets'!K140)","v":442945.25},194.52,"À la fin du projet (suite au dernier versement)",530.32000000000005,null,null,30]
[null,{"$f":"IF(LEN('Détail des projets'!B141)=0,\"\",'Détail des projets'!B141)","v":"50643-127 - Projet de réduction des GES: Modernisation des chaufferies - Installation de systèmes de géothermies - 3 bâtiments"},{"$f":"IF(LEN('Détail des projets'!C141)=0,\"\",'Détail des projets'!C141)","v":"CSDM"},{"$f":"IF(LEN('Détail des projets'!G141)=0,\"\",'Détail des projets'!G141)","v":" 06-Montréal "},{"$f":"IF(LEN('Détail des projets'!K141)=0,\"\",'Détail des projets'!K141)","v":976378},436.99,"À la fin du projet (suite au dernier versement)",71.11,null,null,40]
[null,{"$f":"IF(LEN('Détail des projets'!B142)=0,\"\",'Détail des projets'!B142)","v":"50643-128 - Nouvelle écoles Longue-Pointe: Mise en œuvre de mesures pour augmenter l'évitement d'émissions de GES - Géothermie"},{"$f":"IF(LEN('Détail des projets'!C142)=0,\"\",'Détail des projets'!C142)","v":"CSDM"},{"$f":"IF(LEN('Détail des projets'!G142)=0,\"\",'Détail des projets'!G142)","v":" 06-Montréal "},{"$f":"IF(LEN('Détail des projets'!K142)=0,\"\",'Détail des projets'!K142)","v":175569},80.09,"À la fin du projet (suite au dernier versement)",null,null,null," -"]
[null,{"$f":"IF(LEN('Détail des projets'!B143)=0,\"\",'Détail des projets'!B143)","v":"50643-129 - Nouvelle Lab-école Marguerite-d-Youville: Mise en œuvre de mesures pour favoriser l'évitement d'émissions de GES "},{"$f":"IF(LEN('Détail des projets'!C143)=0,\"\",'Détail des projets'!C143)","v":"Rives-Du-Saguenay"},{"$f":"IF(LEN('Détail des projets'!G143)=0,\"\",'Détail des projets'!G143)","v":" 02-Saguenay- Lac-Saint-Jean "},{"$f":"IF(LEN('Détail des projets'!K143)=0,\"\",'Détail des projets'!K143)","v":106389.8},48.36,"À la fin du projet (suite au dernier versement)",null,null,null," -"]
[null,{"$f":"IF(LEN('Détail des projets'!B144)=0,\"\",'Détail des projets'!B144)","v":"50643-130 - Nouvelle école à Blainville, secteur Chambéry : Mise en œuvre de mesures pour augmenter l'évitement d'émissions de GES - Systèmes de géothermie"},{"$f":"IF(LEN('Détail des projets'!C144)=0,\"\",'Détail des projets'!C144)","v":"Seigneurie-des-Mille-Îles"},{"$f":"IF(LEN('Détail des projets'!G144)=0,\"\",'Détail des projets'!G144)","v":" 15-Laurentides "},{"$f":"IF(LEN('Détail des projets'!K144)=0,\"\",'Détail des projets'!K144)","v":146887},363.36,"À la fin du projet (suite au dernier versement)",null,null,null," -"]
[null,{"$f":"IF(LEN('Détail des projets'!B145)=0,\"\",'Détail des projets'!B145)","v":"50643-131 - Nouvelle école Léry : Mise en œuvre de mesures pour augmenter l'évitement d'émissions de GES - système de géothermie"},{"$f":"IF(LEN('Détail des projets'!C145)=0,\"\",'Détail des projets'!C145)","v":"Grandes-Seigneuries"},{"$f":"IF(LEN('Détail des projets'!G145)=0,\"\",'Détail des projets'!G145)","v":" 16-Montérégie "},{"$f":"IF(LEN('Détail des projets'!K145)=0,\"\",'Détail des projets'!K145)","v":148095.20000000001},67.319999999999993,"À la fin du projet (suite au dernier versement)",null,null,null," -"]
[null,{"$f":"IF(LEN('Détail des projets'!B146)=0,\"\",'Détail des projets'!B146)","v":"50643-132 - Agrandissment de l'école Deux-Soleils:  Remplacement de 2 chaudières au mazout - Installation de thermopompe"},{"$f":"IF(LEN('Détail des projets'!C146)=0,\"\",'Détail des projets'!C146)","v":"Des Sommets"},{"$f":"IF(LEN('Détail des projets'!G146)=0,\"\",'Détail des projets'!G146)","v":" 05-Estrie "},{"$f":"IF(LEN('Détail des projets'!K146)=0,\"\",'Détail des projets'!K146)","v":95706},41.23,"À la fin du projet (suite au dernier versement)",null,null,null," -"]
[null,{"$f":"IF(LEN('Détail des projets'!B147)=0,\"\",'Détail des projets'!B147)","v":"50643-133 - Projet de réduction de GES: Piscine Sylvie-Bernier - Conversion vers géothermie"},{"$f":"IF(LEN('Détail des projets'!C147)=0,\"\",'Détail des projets'!C147)","v":"des Découvreurs"},{"$f":"IF(LEN('Détail des projets'!G147)=0,\"\",'Détail des projets'!G147)","v":" 03-Capitale-Nationale "},{"$f":"IF(LEN('Détail des projets'!K147)=0,\"\",'Détail des projets'!K147)","v":747487},337.49,"À la fin du projet (suite au dernier versement)",103.35,null,null,40]
[null,{"$f":"IF(LEN('Détail des projets'!B148)=0,\"\",'Détail des projets'!B148)","v":"50643-134 - Nouvelle école à Mirabel, secteur Domaine-Vert-Nord 2: Mise en œuvre de mesures pour favoriser l'évitement d'émissions de GES - Système de géothermie - "},{"$f":"IF(LEN('Détail des projets'!C148)=0,\"\",'Détail des projets'!C148)","v":"Seigneurie-des-Mille-Îles"},{"$f":"IF(LEN('Détail des projets'!G148)=0,\"\",'Détail des projets'!G148)","v":" 15-Laurentides "},{"$f":"IF(LEN('Détail des projets'!K148)=0,\"\",'Détail des projets'!K148)","v":106579},48.45,"À la fin du projet (suite au dernier versement)",null,null,null," -"]
[null,{"$f":"IF(LEN('Détail des projets'!B149)=0,\"\",'Détail des projets'!B149)","v":"50643-135 - Nouvelle école Saint-Augustin : Mise en œuvre de mesures pour augmenter l'évitement d'émissions de GES - Systèmes de géothermie - "},{"$f":"IF(LEN('Détail des projets'!C149)=0,\"\",'Détail des projets'!C149)","v":"Seigneurie-des-Mille-Îles"},{"$f":"IF(LEN('Détail des projets'!G149)=0,\"\",'Détail des projets'!G149)","v":" 15-Laurentides "},{"$f":"IF(LEN('Détail des projets'!K149)=0,\"\",'Détail des projets'!K149)","v":100989},45.9,"À la fin du projet (suite au dernier versement)",null,null,null," -"]
[null,{"$f":"IF(LEN('Détail des projets'!B150)=0,\"\",'Détail des projets'!B150)","v":"50643-136 - Nouvelle école à Ste-Marthe-sur-le-Lac : Mise en œuvre de mesures pour augmenter l'évitement d'émissions de GES - Systèmes de géothermie -"},{"$f":"IF(LEN('Détail des projets'!C150)=0,\"\",'Détail des projets'!C150)","v":"Seigneurie-des-Mille-Îles"},{"$f":"IF(LEN('Détail des projets'!G150)=0,\"\",'Détail des projets'!G150)","v":" 15-Laurentides "},{"$f":"IF(LEN('Détail des projets'!K150)=0,\"\",'Détail des projets'!K150)","v":146887},66.77,"À la fin du projet (suite au dernier versement)",null,null,null," -"]
[null,{"$f":"IF(LEN('Détail des projets'!B151)=0,\"\",'Détail des projets'!B151)","v":"50643-137 - Nouvelle école à Terrebonne 640N: Mise en œuvre de mesures pour augmenter l'évitement d'émissions de GES - Systèmes de géothermie -"},{"$f":"IF(LEN('Détail des projets'!C151)=0,\"\",'Détail des projets'!C151)","v":"Seigneurie-des-Mille-Îles"},{"$f":"IF(LEN('Détail des projets'!G151)=0,\"\",'Détail des projets'!G151)","v":" 14-Lanaudière "},{"$f":"IF(LEN('Détail des projets'!K151)=0,\"\",'Détail des projets'!K151)","v":127846},58.11,"À la fin du projet (suite au dernier versement)",null,null,null," -"]
[null,{"$f":"IF(LEN('Détail des projets'!B152)=0,\"\",'Détail des projets'!B152)","v":"50643-138 - Nouvelle école à Terrebonne (Urbanova): Mise en œuvre de mesures pour augmenter l'évitement d'émissions de GES - Systèmes de géothermie -"},{"$f":"IF(LEN('Détail des projets'!C152)=0,\"\",'Détail des projets'!C152)","v":"Seigneurie-des-Mille-Îles"},{"$f":"IF(LEN('Détail des projets'!G152)=0,\"\",'Détail des projets'!G152)","v":" 14-Lanaudière "},{"$f":"IF(LEN('Détail des projets'!K152)=0,\"\",'Détail des projets'!K152)","v":170212},77.37,"À la fin du projet (suite au dernier versement)",null,null,null," -"]
[null,{"$f":"IF(LEN('Détail des projets'!B153)=0,\"\",'Détail des projets'!B153)","v":"50643-139 - Nouveau Complexe Multi-sports Polyvalente de St-Georges: Mise en œuvre de mesures pour augmenter l'évitement d'émissions de GES - système d'aérothermie"},{"$f":"IF(LEN('Détail des projets'!C153)=0,\"\",'Détail des projets'!C153)","v":"Beauce-Etchemin"},{"$f":"IF(LEN('Détail des projets'!G153)=0,\"\",'Détail des projets'!G153)","v":" 12-Chaudières-Appalaches "},{"$f":"IF(LEN('Détail des projets'!K153)=0,\"\",'Détail des projets'!K153)","v":87307},39.69,"À la fin du projet (suite au dernier versement)",null,null,null," -"]
[null,{"$f":"IF(LEN('Détail des projets'!B154)=0,\"\",'Détail des projets'!B154)","v":"50643-140 - Agrandissement de l'école Marie-Victorin: Mise en œuvre de mesures pour favoriser l'évitement d'émissions de GES - utilisation de la géothermie"},{"$f":"IF(LEN('Détail des projets'!C154)=0,\"\",'Détail des projets'!C154)","v":"Marie-Victorin"},{"$f":"IF(LEN('Détail des projets'!G154)=0,\"\",'Détail des projets'!G154)","v":" 16-Montérégie "},{"$f":"IF(LEN('Détail des projets'!K154)=0,\"\",'Détail des projets'!K154)","v":85382},38.81,"À la fin du projet (suite au dernier versement)",null,null,null," -"]
[null,{"$f":"IF(LEN('Détail des projets'!B155)=0,\"\",'Détail des projets'!B155)","v":"50643-141 - Projet de réduction GES: Modernisation de chaufferie de l'école Marie-Victorin: Système de chauffage lié à l'agrandissement - géothermie"},{"$f":"IF(LEN('Détail des projets'!C155)=0,\"\",'Détail des projets'!C155)","v":"Marie-Victorin"},{"$f":"IF(LEN('Détail des projets'!G155)=0,\"\",'Détail des projets'!G155)","v":" 16-Montérégie "},{"$f":"IF(LEN('Détail des projets'!K155)=0,\"\",'Détail des projets'!K155)","v":101140},43.69,"À la fin du projet (suite au dernier versement)",116.1,null,null,40]
[null,{"$f":"IF(LEN('Détail des projets'!B156)=0,\"\",'Détail des projets'!B156)","v":"50643-144 - Projet de réduction GES: Modernisation de la chaufferie de l'école Bois-Joli: Remplacement des chaudières GN par système hybride (électrique et GN)"},{"$f":"IF(LEN('Détail des projets'!C156)=0,\"\",'Détail des projets'!C156)","v":"Draveurs"},{"$f":"IF(LEN('Détail des projets'!G156)=0,\"\",'Détail des projets'!G156)","v":" 07-Outaouais "},{"$f":"IF(LEN('Détail des projets'!K156)=0,\"\",'Détail des projets'!K156)","v":127985.7},55.9,"À la fin du projet (suite au dernier versement)",82.73,null,null,30]
[null,{"$f":"IF(LEN('Détail des projets'!B157)=0,\"\",'Détail des projets'!B157)","v":"50643-145 - Agrandissement de l'école primaire Du Phare: Mise en œuvre de mesure pour favoriser l'évitement d'émission de GES"},{"$f":"IF(LEN('Détail des projets'!C157)=0,\"\",'Détail des projets'!C157)","v":"Cote-du-sud"},{"$f":"IF(LEN('Détail des projets'!G157)=0,\"\",'Détail des projets'!G157)","v":" 12-Chaudières-Appalaches "},{"$f":"IF(LEN('Détail des projets'!K157)=0,\"\",'Détail des projets'!K157)","v":27900},12.68,"À la fin du projet (suite au dernier versement)",null,null,null," -"]
[null,{"$f":"IF(LEN('Détail des projets'!B158)=0,\"\",'Détail des projets'!B158)","v":"50643-146 - Projet de réduction GES: Modernisation de chaufferies: Remplacement chaudières au GN par des électriques - 3 bâtiments"},{"$f":"IF(LEN('Détail des projets'!C158)=0,\"\",'Détail des projets'!C158)","v":"Marguérite-Bourgeoys"},{"$f":"IF(LEN('Détail des projets'!G158)=0,\"\",'Détail des projets'!G158)","v":" 06-Montréal "},{"$f":"IF(LEN('Détail des projets'!K158)=0,\"\",'Détail des projets'!K158)","v":450733.06},198.06,"À la fin du projet (suite au dernier versement)",156.99,null,null,30]
[null,{"$f":"IF(LEN('Détail des projets'!B159)=0,\"\",'Détail des projets'!B159)","v":"50643-147 - Agrandissement de l'école Maclean: Mise en oeuvre de mesure pour favoriser l'évitement d'émission de GES"},{"$f":"IF(LEN('Détail des projets'!C159)=0,\"\",'Détail des projets'!C159)","v":"Central Québec"},{"$f":"IF(LEN('Détail des projets'!G159)=0,\"\",'Détail des projets'!G159)","v":" 10-Nord-du-Québec "},{"$f":"IF(LEN('Détail des projets'!K159)=0,\"\",'Détail des projets'!K159)","v":69058},31.39,"À la fin du projet (suite au dernier versement)",null,null,null," -"]
[null,{"$f":"IF(LEN('Détail des projets'!B160)=0,\"\",'Détail des projets'!B160)","v":"50643-149 - Projet de réduction GES: Modernisation de chaufferies dans 3 écoles"},{"$f":"IF(LEN('Détail des projets'!C160)=0,\"\",'Détail des projets'!C160)","v":"CSDM"},{"$f":"IF(LEN('Détail des projets'!G160)=0,\"\",'Détail des projets'!G160)","v":" 06-Montréal "},{"$f":"IF(LEN('Détail des projets'!K160)=0,\"\",'Détail des projets'!K160)","v":1831453.54},825.66,"À la fin du projet (suite au dernier versement)",232.85,null,null,30]
[null,{"$f":"IF(LEN('Détail des projets'!B161)=0,\"\",'Détail des projets'!B161)","v":"50643-151 - Agrandissement de École secondaire Mont-Royal: Mise en oeuvre de mesure pour favoriser l'évitement d'émission de GES - chaufferies séparées"},{"$f":"IF(LEN('Détail des projets'!C161)=0,\"\",'Détail des projets'!C161)","v":"Marguérite-Bourgeoys"},{"$f":"IF(LEN('Détail des projets'!G161)=0,\"\",'Détail des projets'!G161)","v":" 06-Montréal "},{"$f":"IF(LEN('Détail des projets'!K161)=0,\"\",'Détail des projets'!K161)","v":94476.800000000003},42.94,"À la fin du projet (suite au dernier versement)",null,null,null," -"]
[null,{"$f":"IF(LEN('Détail des projets'!B162)=0,\"\",'Détail des projets'!B162)","v":"50643-152 - Projet de réduction GES: Modernisation de la chaufferie de l'école Marguerite-Bourgeoys"},{"$f":"IF(LEN('Détail des projets'!C162)=0,\"\",'Détail des projets'!C162)","v":"Hautes-Rivières"},{"$f":"IF(LEN('Détail des projets'!G162)=0,\"\",'Détail des projets'!G162)","v":" 16-Montérégie "},{"$f":"IF(LEN('Détail des projets'!K162)=0,\"\",'Détail des projets'!K162)","v":268853},119.93,"À la fin du projet (suite au dernier versement)",412.8,null,null,30]
[null,{"$f":"IF(LEN('Détail des projets'!B163)=0,\"\",'Détail des projets'!B163)","v":"50643-153 - Projet de réduction GES: Rénovation de chaufferie du bâtiment Le 4835, avenue Christophe-Colomb (762059)"},{"$f":"IF(LEN('Détail des projets'!C163)=0,\"\",'Détail des projets'!C163)","v":"CSDM"},{"$f":"IF(LEN('Détail des projets'!G163)=0,\"\",'Détail des projets'!G163)","v":" 06-Montréal "},{"$f":"IF(LEN('Détail des projets'!K163)=0,\"\",'Détail des projets'!K163)","v":341262},152.85,"À la fin du projet (suite au dernier versement)",93.68,null,null,30]
[null,{"$f":"IF(LEN('Détail des projets'!B164)=0,\"\",'Détail des projets'!B164)","v":"50643-154 - Projet de réduction de GES: Modernisation des systèmes de ventilation fonctionnant au gaz de l'école Professionnelle des métiers, édifice Laurier (596)  par des électriques."},{"$f":"IF(LEN('Détail des projets'!C164)=0,\"\",'Détail des projets'!C164)","v":"Hautes-Rivières"},{"$f":"IF(LEN('Détail des projets'!G164)=0,\"\",'Détail des projets'!G164)","v":" 16-Montérégie "},{"$f":"IF(LEN('Détail des projets'!K164)=0,\"\",'Détail des projets'!K164)","v":160838},119.93,"À la fin du projet (suite au dernier versement)",412.8,null,null,30]
[null,{"$f":"IF(LEN('Détail des projets'!B165)=0,\"\",'Détail des projets'!B165)","v":"50643-155 - Modernisation des chaufferies: Remplacement des chaudières GN par chaudière électrique et installation d'un système d'aérothermie (N-D-d-L)"},{"$f":"IF(LEN('Détail des projets'!C165)=0,\"\",'Détail des projets'!C165)","v":"Hautes-Rivières"},{"$f":"IF(LEN('Détail des projets'!G165)=0,\"\",'Détail des projets'!G165)","v":" 16-Montérégie "},{"$f":"IF(LEN('Détail des projets'!K165)=0,\"\",'Détail des projets'!K165)","v":298996.77},131.36000000000001,"À la fin du projet (suite au dernier versement)",215.99,null,null,30]
[null,{"$f":"IF(LEN('Détail des projets'!B166)=0,\"\",'Détail des projets'!B166)","v":"50643-156 - Agrandissement école secondaire  École Armand‐Corbeil: Mise en œuvre de mesure pour favoriser l'évitement d'émission de GES - Installation "},{"$f":"IF(LEN('Détail des projets'!C166)=0,\"\",'Détail des projets'!C166)","v":"Affluents"},{"$f":"IF(LEN('Détail des projets'!G166)=0,\"\",'Détail des projets'!G166)","v":" 14-Lanaudière "},{"$f":"IF(LEN('Détail des projets'!K166)=0,\"\",'Détail des projets'!K166)","v":158050},71.84,"À la fin du projet (suite au dernier versement)",null,null,null," -"]
[null,{"$f":"IF(LEN('Détail des projets'!B167)=0,\"\",'Détail des projets'!B167)","v":"50643-157 - Projet de réduction de GES: Modernisation de la chaufferie - raccordement du système de chauffage de la piscine à celui de l'agrandissement."},{"$f":"IF(LEN('Détail des projets'!C167)=0,\"\",'Détail des projets'!C167)","v":"Affluents"},{"$f":"IF(LEN('Détail des projets'!G167)=0,\"\",'Détail des projets'!G167)","v":" 14-Lanaudière "},{"$f":"IF(LEN('Détail des projets'!K167)=0,\"\",'Détail des projets'!K167)","v":100734},43.97,"À la fin du projet (suite au dernier versement)",193.1,null,null,30]
[null,{"$f":"IF(LEN('Détail des projets'!B168)=0,\"\",'Détail des projets'!B168)","v":"50643-158 - Projet de réduction de GES: Modernisation de la chaufferie de l'école de la Voltige - Remplacement chaudières au gaz par une chaudière électrique"},{"$f":"IF(LEN('Détail des projets'!C168)=0,\"\",'Détail des projets'!C168)","v":"Chemin du Roy"},{"$f":"IF(LEN('Détail des projets'!G168)=0,\"\",'Détail des projets'!G168)","v":" 04-Mauricie  "},{"$f":"IF(LEN('Détail des projets'!K168)=0,\"\",'Détail des projets'!K168)","v":105155},59.02,"À la fin du projet (suite au dernier versement)",106.04,null,null,30]
[null,{"$f":"IF(LEN('Détail des projets'!B169)=0,\"\",'Détail des projets'!B169)","v":"50643-159 - Projet de réduction GES: Modernisation de la chaufferie du centre Durocher: réfection de la chaufferie - Aérothermie"},{"$f":"IF(LEN('Détail des projets'!C169)=0,\"\",'Détail des projets'!C169)","v":"Rives-Du-Saguenay"},{"$f":"IF(LEN('Détail des projets'!G169)=0,\"\",'Détail des projets'!G169)","v":" 02-Saguenay- Lac-Saint-Jean "},{"$f":"IF(LEN('Détail des projets'!K169)=0,\"\",'Détail des projets'!K169)","v":87835},37.65,"À la fin du projet (suite au dernier versement)",197.55,null,null,25]
[null,{"$f":"IF(LEN('Détail des projets'!B170)=0,\"\",'Détail des projets'!B170)","v":"50643-160 - Agrandissement de l'école primaire Cuillierrier. Mise en œuvre de mesure pour favoriser l'évitement d'émission de GES avec de l'aérothermie"},{"$f":"IF(LEN('Détail des projets'!C170)=0,\"\",'Détail des projets'!C170)","v":"Trois-Lacs"},{"$f":"IF(LEN('Détail des projets'!G170)=0,\"\",'Détail des projets'!G170)","v":" 16-Montérégie "},{"$f":"IF(LEN('Détail des projets'!K170)=0,\"\",'Détail des projets'!K170)","v":17732},8.06,"À la fin du projet (suite au dernier versement)",null,null,null," -"]
[null,{"$f":"IF(LEN('Détail des projets'!B171)=0,\"\",'Détail des projets'!B171)","v":"50643-161 - Projet de réduction GES: Transformation du Centre communautaire Albert-Gariépy en école - Remplacement de chaudière au gaz par de la géothermie"},{"$f":"IF(LEN('Détail des projets'!C171)=0,\"\",'Détail des projets'!C171)","v":"Marguérite-Bourgeoys"},{"$f":"IF(LEN('Détail des projets'!G171)=0,\"\",'Détail des projets'!G171)","v":" 06-Montréal "},{"$f":"IF(LEN('Détail des projets'!K171)=0,\"\",'Détail des projets'!K171)","v":231600},103,"À la fin du projet (suite au dernier versement)",266.83999999999997,null,null,40]
[null,{"$f":"IF(LEN('Détail des projets'!B172)=0,\"\",'Détail des projets'!B172)","v":"50643-163 - Agrandissement et réaménagement de l'école secondaire Le Carrefour: Mise en œuvre de mesure pour favoriser l'évitement d'émission de GES"},{"$f":"IF(LEN('Détail des projets'!C172)=0,\"\",'Détail des projets'!C172)","v":"Patriotes"},{"$f":"IF(LEN('Détail des projets'!G172)=0,\"\",'Détail des projets'!G172)","v":" 16-Montérégie "},{"$f":"IF(LEN('Détail des projets'!K172)=0,\"\",'Détail des projets'!K172)","v":97020},44.1,"À la fin du projet (suite au dernier versement)",null,null,null," -"]
[null,{"$f":"IF(LEN('Détail des projets'!B173)=0,\"\",'Détail des projets'!B173)","v":"50643-164 - nouvelle école sur le terrain de l'école Trait-d 'Union: Mise en œuvre de mesure pour favoriser l'évitement d'émission de GES"},{"$f":"IF(LEN('Détail des projets'!C173)=0,\"\",'Détail des projets'!C173)","v":"Seigneurie-des-Mille-Îles"},{"$f":"IF(LEN('Détail des projets'!G173)=0,\"\",'Détail des projets'!G173)","v":" 15-Laurentides "},{"$f":"IF(LEN('Détail des projets'!K173)=0,\"\",'Détail des projets'!K173)","v":91843},41.75,"À la fin du projet (suite au dernier versement)",null,null,null," -"]
[null,{"$f":"IF(LEN('Détail des projets'!B174)=0,\"\",'Détail des projets'!B174)","v":"50643-165 - Nouvelle école Félix-Antoine-Savard: Mise en œuvre de mesure pour favoriser l'évitement d'émission de GES"},{"$f":"IF(LEN('Détail des projets'!C174)=0,\"\",'Détail des projets'!C174)","v":"Charlevoix"},{"$f":"IF(LEN('Détail des projets'!G174)=0,\"\",'Détail des projets'!G174)","v":" 03-Capitale-Nationale "},{"$f":"IF(LEN('Détail des projets'!K174)=0,\"\",'Détail des projets'!K174)","v":179234},81.47,"À la fin du projet (suite au dernier versement)",null,null,null," -"]
[null,{"$f":"IF(LEN('Détail des projets'!B175)=0,\"\",'Détail des projets'!B175)","v":"50643-166 - Agandissement de l'immeuble Bon-Séjour de l'École Au Coeur-des-Monts - Mise en œuvre de mesure pour favoriser l'évitement d'émission de GES"},{"$f":"IF(LEN('Détail des projets'!C175)=0,\"\",'Détail des projets'!C175)","v":"Saint-Hyacinthe"},{"$f":"IF(LEN('Détail des projets'!G175)=0,\"\",'Détail des projets'!G175)","v":" 16-Montérégie "},{"$f":"IF(LEN('Détail des projets'!K175)=0,\"\",'Détail des projets'!K175)","v":26257},12.05,"À la fin du projet (suite au dernier versement)",null,null,null," -"]
[null,{"$f":"IF(LEN('Détail des projets'!B176)=0,\"\",'Détail des projets'!B176)","v":"50643-167 - Projet de réduction GES: Modernisation de la chaufferie du Pavillon Clermont de l'école Boréal - Remplacement d'une chaudière au mazout par une électrique"},{"$f":"IF(LEN('Détail des projets'!C176)=0,\"\",'Détail des projets'!C176)","v":"Lac-Abitibi"},{"$f":"IF(LEN('Détail des projets'!G176)=0,\"\",'Détail des projets'!G176)","v":" 08-Abitibi-Témiscamingue "},{"$f":"IF(LEN('Détail des projets'!K176)=0,\"\",'Détail des projets'!K176)","v":133722},58.51,"À la fin du projet (suite au dernier versement)",100.96,null,null,30]
[null,{"$f":"IF(LEN('Détail des projets'!B177)=0,\"\",'Détail des projets'!B177)","v":"50643-168 - Nouvelle école Terre-Soleil: Mise en œuvre de mesure pour favoriser l'évitement d'émission de GES"},{"$f":"IF(LEN('Détail des projets'!C177)=0,\"\",'Détail des projets'!C177)","v":"Seigneurie-des-Mille-Îles"},{"$f":"IF(LEN('Détail des projets'!G177)=0,\"\",'Détail des projets'!G177)","v":" 15-Laurentides "},{"$f":"IF(LEN('Détail des projets'!K177)=0,\"\",'Détail des projets'!K177)","v":128982},58.63,"À la fin du projet (suite au dernier versement)",null,null,null," -"]
[null,{"$f":"IF(LEN('Détail des projets'!B178)=0,\"\",'Détail des projets'!B178)","v":"50643-169 - Nouveau Centre de formation professionnelle Sainte-Justine-de-Newton - Mise en œuvre de mesure pour favoriser l'évitement d'émission de GES"},{"$f":"IF(LEN('Détail des projets'!C178)=0,\"\",'Détail des projets'!C178)","v":"Trois-Lacs"},{"$f":"IF(LEN('Détail des projets'!G178)=0,\"\",'Détail des projets'!G178)","v":" 16-Montérégie "},{"$f":"IF(LEN('Détail des projets'!K178)=0,\"\",'Détail des projets'!K178)","v":31986},14.54,"À la fin du projet (suite au dernier versement)",null,null,null," -"]
[null,{"$f":"IF(LEN('Détail des projets'!B179)=0,\"\",'Détail des projets'!B179)","v":"50643-171 - Nouvelle Lab École Rimouski: Mise en œuvre de mesure pour favoriser l'évitement d'émission de GES"},{"$f":"IF(LEN('Détail des projets'!C179)=0,\"\",'Détail des projets'!C179)","v":"Phares"},{"$f":"IF(LEN('Détail des projets'!G179)=0,\"\",'Détail des projets'!G179)","v":" 01-Bas-Saint-Laurent "},{"$f":"IF(LEN('Détail des projets'!K179)=0,\"\",'Détail des projets'!K179)","v":150029},68.2,"À la fin du projet (suite au dernier versement)",null,null,null," -"]
[null,{"$f":"IF(LEN('Détail des projets'!B180)=0,\"\",'Détail des projets'!B180)","v":"50643-172 - Projet de réduction GES: Modernisation de la chaufferie de 2 bâtiments - Remplacement de chaudières au mazout"},{"$f":"IF(LEN('Détail des projets'!C180)=0,\"\",'Détail des projets'!C180)","v":"Seigneurie-des-Mille-Îles"},{"$f":"IF(LEN('Détail des projets'!G180)=0,\"\",'Détail des projets'!G180)","v":" 15-Laurentides "},{"$f":"IF(LEN('Détail des projets'!K180)=0,\"\",'Détail des projets'!K180)","v":96981},39.54,"À la fin du projet (suite au dernier versement)",278.24,null,null,30]
[null,{"$f":"IF(LEN('Détail des projets'!B181)=0,\"\",'Détail des projets'!B181)","v":"50643-173 - Agrandissement de l'école de la Baie-Saint-François: Mise en œuvre de mesure pour favoriser l'évitement d'émission de GES"},{"$f":"IF(LEN('Détail des projets'!C181)=0,\"\",'Détail des projets'!C181)","v":"Vallée-des-Tisserands"},{"$f":"IF(LEN('Détail des projets'!G181)=0,\"\",'Détail des projets'!G181)","v":" 16-Montérégie "},{"$f":"IF(LEN('Détail des projets'!K181)=0,\"\",'Détail des projets'!K181)","v":188672},85.76,"À la fin du projet (suite au dernier versement)",null,null,null," -"]
[null,{"$f":"IF(LEN('Détail des projets'!B182)=0,\"\",'Détail des projets'!B182)","v":"50643-174 - Nouvelle école à Saint-Hyacinthe: Mise en œuvre de mesure pour favoriser l'évitement d'émission de GES"},{"$f":"IF(LEN('Détail des projets'!C182)=0,\"\",'Détail des projets'!C182)","v":"Saint-Hyacinthe"},{"$f":"IF(LEN('Détail des projets'!G182)=0,\"\",'Détail des projets'!G182)","v":" 16-Montérégie "},{"$f":"IF(LEN('Détail des projets'!K182)=0,\"\",'Détail des projets'!K182)","v":128867.2},58.58,"À la fin du projet (suite au dernier versement)",null,null,null," -"]
[null,{"$f":"IF(LEN('Détail des projets'!B183)=0,\"\",'Détail des projets'!B183)","v":"50643-176 - Projet de réduction GES: Modernisation de la chaufferie du siège social - Conversion chaudière au mazout vers électrique"},{"$f":"IF(LEN('Détail des projets'!C183)=0,\"\",'Détail des projets'!C183)","v":"Hauts-Cantons"},{"$f":"IF(LEN('Détail des projets'!G183)=0,\"\",'Détail des projets'!G183)","v":" 05-Estrie "},{"$f":"IF(LEN('Détail des projets'!K183)=0,\"\",'Détail des projets'!K183)","v":68140},28.69,"À la fin du projet (suite au dernier versement)",270.04000000000002,null,null,30]
[null,{"$f":"IF(LEN('Détail des projets'!B184)=0,\"\",'Détail des projets'!B184)","v":"50643-177 - Projet de réduction GES: Modernisation de la chaufferie de 4 bâtiments"},{"$f":"IF(LEN('Détail des projets'!C184)=0,\"\",'Détail des projets'!C184)","v":"Hauts-Cantons"},{"$f":"IF(LEN('Détail des projets'!G184)=0,\"\",'Détail des projets'!G184)","v":" 05-Estrie "},{"$f":"IF(LEN('Détail des projets'!K184)=0,\"\",'Détail des projets'!K184)","v":347492},148.91,"À la fin du projet (suite au dernier versement)",200.83,null,null,30]
[null,{"$f":"IF(LEN('Détail des projets'!B185)=0,\"\",'Détail des projets'!B185)","v":"50643-178 - Agrandissement de l'école des Sentiers: Mise en œuvre de mesure pour favoriser l'évitement d'émission de GES"},{"$f":"IF(LEN('Détail des projets'!C185)=0,\"\",'Détail des projets'!C185)","v":"Navigateurs"},{"$f":"IF(LEN('Détail des projets'!G185)=0,\"\",'Détail des projets'!G185)","v":" 12-Chaudières-Appalaches "},{"$f":"IF(LEN('Détail des projets'!K185)=0,\"\",'Détail des projets'!K185)","v":54340},24.7,"À la fin du projet (suite au dernier versement)",null,null,null," -"]
[null,{"$f":"IF(LEN('Détail des projets'!B186)=0,\"\",'Détail des projets'!B186)","v":"50643-179 - Projet de réduction GES: Modernisation de la chaufferie de l'école Antoine-Saint-Exupéry: Conversion d'une chaudière au gaz par une électrique"},{"$f":"IF(LEN('Détail des projets'!C186)=0,\"\",'Détail des projets'!C186)","v":"Pointe-de-l'Île"},{"$f":"IF(LEN('Détail des projets'!G186)=0,\"\",'Détail des projets'!G186)","v":" 06-Montréal "},{"$f":"IF(LEN('Détail des projets'!K186)=0,\"\",'Détail des projets'!K186)","v":317720},142.59,"À la fin du projet (suite au dernier versement)",26.8,null,null,30]
[null,{"$f":"IF(LEN('Détail des projets'!B187)=0,\"\",'Détail des projets'!B187)","v":"50643-180 - Projet de réduction GES: Modernisation de la chaufferie de l'école Saint-Michel: Remplacement de la chaudière à l'huile"},{"$f":"IF(LEN('Détail des projets'!C187)=0,\"\",'Détail des projets'!C187)","v":"Chemin du Roy"},{"$f":"IF(LEN('Détail des projets'!G187)=0,\"\",'Détail des projets'!G187)","v":" 04-Mauricie  "},{"$f":"IF(LEN('Détail des projets'!K187)=0,\"\",'Détail des projets'!K187)","v":68388},29.96,"À la fin du projet (suite au dernier versement)",194.41,null,null,30]
[null,{"$f":"IF(LEN('Détail des projets'!B188)=0,\"\",'Détail des projets'!B188)","v":"50643-181 - Agrandissement de l'école Jean‐Baptiste‐Meilleur: Mise en œuvre de mesure pour favoriser l'évitement d'émission de GES"},{"$f":"IF(LEN('Détail des projets'!C188)=0,\"\",'Détail des projets'!C188)","v":"Affluents"},{"$f":"IF(LEN('Détail des projets'!G188)=0,\"\",'Détail des projets'!G188)","v":" 14-Lanaudière "},{"$f":"IF(LEN('Détail des projets'!K188)=0,\"\",'Détail des projets'!K188)","v":99484},45.22,"À la fin du projet (suite au dernier versement)",null,null,null," -"]
[null,{"$f":"IF(LEN('Détail des projets'!B189)=0,\"\",'Détail des projets'!B189)","v":"50643-182 - Agrandissement de l'école Notre-Dame: Mise en œuvre de mesure pour favoriser l'évitement d'émission de GES - ajout géothermie"},{"$f":"IF(LEN('Détail des projets'!C189)=0,\"\",'Détail des projets'!C189)","v":"Sorel-Tracy"},{"$f":"IF(LEN('Détail des projets'!G189)=0,\"\",'Détail des projets'!G189)","v":" 16-Montérégie "},{"$f":"IF(LEN('Détail des projets'!K189)=0,\"\",'Détail des projets'!K189)","v":67071},30.49,"À la fin du projet (suite au dernier versement)",null,null,null," -"]
[null,{"$f":"IF(LEN('Détail des projets'!B190)=0,\"\",'Détail des projets'!B190)","v":"50643-186 - Projet de réduction GES: Modernisation de la chaufferies de l'école de l'Épervière: Remplacement de chaudières au GN par de la géothermie + Agrandissement"},{"$f":"IF(LEN('Détail des projets'!C190)=0,\"\",'Détail des projets'!C190)","v":"Navigateurs"},{"$f":"IF(LEN('Détail des projets'!G190)=0,\"\",'Détail des projets'!G190)","v":" 12-Chaudières-Appalaches "},{"$f":"IF(LEN('Détail des projets'!K190)=0,\"\",'Détail des projets'!K190)","v":122691},34.26,"À la fin du projet (suite au dernier versement)",840.42,null,null,40]
[null,{"$f":"IF(LEN('Détail des projets'!B191)=0,\"\",'Détail des projets'!B191)","v":"50643-187 - Agrandissement école des Quatre-Vents: Mise en œuvre de mesure pour favoriser l'évitement d'émission de GES"},{"$f":"IF(LEN('Détail des projets'!C191)=0,\"\",'Détail des projets'!C191)","v":"Navigateurs"},{"$f":"IF(LEN('Détail des projets'!G191)=0,\"\",'Détail des projets'!G191)","v":" 12-Chaudières-Appalaches "},{"$f":"IF(LEN('Détail des projets'!K191)=0,\"\",'Détail des projets'!K191)","v":14568},6.62,"À la fin du projet (suite au dernier versement)",null,null,null," -"]
[null,{"$f":"IF(LEN('Détail des projets'!B192)=0,\"\",'Détail des projets'!B192)","v":"50643-188 - Agrandissement Sainte-Hélène: Mise en œuvre de mesure pour favoriser l'évitement d'émission de GES"},{"$f":"IF(LEN('Détail des projets'!C192)=0,\"\",'Détail des projets'!C192)","v":"Navigateurs"},{"$f":"IF(LEN('Détail des projets'!G192)=0,\"\",'Détail des projets'!G192)","v":" 12-Chaudières-Appalaches "},{"$f":"IF(LEN('Détail des projets'!K192)=0,\"\",'Détail des projets'!K192)","v":14568},6.62,"À la fin du projet (suite au dernier versement)",null,null,null," -"]
[null,{"$f":"IF(LEN('Détail des projets'!B193)=0,\"\",'Détail des projets'!B193)","v":"50643-190 - Agrandissement école Bon-Pasteur (Gymnase): Mise en œuvre de mesure pour favoriser l'évitement d'émission de GES"},{"$f":"IF(LEN('Détail des projets'!C193)=0,\"\",'Détail des projets'!C193)","v":"Baie-James"},{"$f":"IF(LEN('Détail des projets'!G193)=0,\"\",'Détail des projets'!G193)","v":" 10-Nord-du-Québec "},{"$f":"IF(LEN('Détail des projets'!K193)=0,\"\",'Détail des projets'!K193)","v":18736},8.52,"À la fin du projet (suite au dernier versement)",null,null,null," -"]
[null,{"$f":"IF(LEN('Détail des projets'!B194)=0,\"\",'Détail des projets'!B194)","v":"50643-191 - Agrandissement de l'école Mosaïque:  Mise en œuvre de mesure pour favoriser l'évitement d'émission de GES"},{"$f":"IF(LEN('Détail des projets'!C194)=0,\"\",'Détail des projets'!C194)","v":"Marguérite-Bourgeoys"},{"$f":"IF(LEN('Détail des projets'!G194)=0,\"\",'Détail des projets'!G194)","v":" 06-Montréal "},{"$f":"IF(LEN('Détail des projets'!K194)=0,\"\",'Détail des projets'!K194)","v":74644},33.93,"À la fin du projet (suite au dernier versement)",null,null,null," -"]
[null,{"$f":"IF(LEN('Détail des projets'!B195)=0,\"\",'Détail des projets'!B195)","v":"50643-192 - Agrandissement de l'école Lajoie:  Mise en œuvre de mesure pour favoriser l'évitement d'émission de GES - Remplacer les chaudières au GN par des chaudières électriques dans le bâtiment existant"},{"$f":"IF(LEN('Détail des projets'!C195)=0,\"\",'Détail des projets'!C195)","v":"Marguérite-Bourgeoys"},{"$f":"IF(LEN('Détail des projets'!G195)=0,\"\",'Détail des projets'!G195)","v":" 06-Montréal "},{"$f":"IF(LEN('Détail des projets'!K195)=0,\"\",'Détail des projets'!K195)","v":286745},112.5,"À la fin du projet (suite au dernier versement)",179.84,null,null,30]
[null,{"$f":"IF(LEN('Détail des projets'!B196)=0,\"\",'Détail des projets'!B196)","v":"50643-193 - Agrandissment de l'école Saint-Louis: Remplacer les chaudières au GN par des chaudières électriques dans le bâtiment existant et géothermie dans l'agrandissement"},{"$f":"IF(LEN('Détail des projets'!C196)=0,\"\",'Détail des projets'!C196)","v":"Marguérite-Bourgeoys"},{"$f":"IF(LEN('Détail des projets'!G196)=0,\"\",'Détail des projets'!G196)","v":" 06-Montréal "},{"$f":"IF(LEN('Détail des projets'!K196)=0,\"\",'Détail des projets'!K196)","v":263931},82.76,"À la fin du projet (suite au dernier versement)",67.069999999999993,null,null,40]
[null,{"$f":"IF(LEN('Détail des projets'!B197)=0,\"\",'Détail des projets'!B197)","v":"50643-194 - Projet de réduction GES: Modernisation de la chaufferie du CEA Champlain - Remplacer les chaudières au GN par des chaudières électriques"},{"$f":"IF(LEN('Détail des projets'!C197)=0,\"\",'Détail des projets'!C197)","v":"Marguérite-Bourgeoys"},{"$f":"IF(LEN('Détail des projets'!G197)=0,\"\",'Détail des projets'!G197)","v":" 06-Montréal "},{"$f":"IF(LEN('Détail des projets'!K197)=0,\"\",'Détail des projets'!K197)","v":379985},176.45,"À la fin du projet (suite au dernier versement)",35.65,null,null,30]
[null,{"$f":"IF(LEN('Détail des projets'!B198)=0,\"\",'Détail des projets'!B198)","v":"50643-195 - Agrandissment de l'école Paul-Guérin-Lajoie - Remplacer les chaudières au GN par des chaudières électriques dans le bâtiment existant et géothermie dans l'agrandissement"},{"$f":"IF(LEN('Détail des projets'!C198)=0,\"\",'Détail des projets'!C198)","v":"Marguérite-Bourgeoys"},{"$f":"IF(LEN('Détail des projets'!G198)=0,\"\",'Détail des projets'!G198)","v":" 06-Montréal "},{"$f":"IF(LEN('Détail des projets'!K198)=0,\"\",'Détail des projets'!K198)","v":145132},33.08,"À la fin du projet (suite au dernier versement)",161.09,null,null,40]
[null,{"$f":"IF(LEN('Détail des projets'!B199)=0,\"\",'Détail des projets'!B199)","v":"50643-200 - Mammouth - Construction d'une école secondaire dans l'arrondissement Charlesbourg  (1256 places-élèves)"},{"$f":"IF(LEN('Détail des projets'!C199)=0,\"\",'Détail des projets'!C199)","v":"des Premières-Seigneuries"},{"$f":"IF(LEN('Détail des projets'!G199)=0,\"\",'Détail des projets'!G199)","v":" 03-Capitale-Nationale "},{"$f":"IF(LEN('Détail des projets'!K199)=0,\"\",'Détail des projets'!K199)","v":466400},174,"À la fin du projet (suite au dernier versement)"]
[null,{"$f":"IF(LEN('Détail des projets'!B200)=0,\"\",'Détail des projets'!B200)","v":"50643-201 - Mammouth - Construction d'une école secondaire à Anjou - Pointe-de-l'ile, projet A (1 863 places-élèves)"},{"$f":"IF(LEN('Détail des projets'!C200)=0,\"\",'Détail des projets'!C200)","v":"Pointe-de-l'Île"},{"$f":"IF(LEN('Détail des projets'!G200)=0,\"\",'Détail des projets'!G200)","v":" 06-Montréal "},{"$f":"IF(LEN('Détail des projets'!K200)=0,\"\",'Détail des projets'!K200)","v":655600},245,"À la fin du projet (suite au dernier versement)"]
[null,{"$f":"IF(LEN('Détail des projets'!B201)=0,\"\",'Détail des projets'!B201)","v":"50643-202 - Mammouth - Contruction d'une école selondaire à Montréal-Nord / St-Léonard - Pointe-de-l'ile, projet B (1706 places-élèves)"},{"$f":"IF(LEN('Détail des projets'!C201)=0,\"\",'Détail des projets'!C201)","v":"Pointe-de-l'Île"},{"$f":"IF(LEN('Détail des projets'!G201)=0,\"\",'Détail des projets'!G201)","v":" 06-Montréal "},{"$f":"IF(LEN('Détail des projets'!K201)=0,\"\",'Détail des projets'!K201)","v":598400},224,"À la fin du projet (suite au dernier versement)"]
[null,{"$f":"IF(LEN('Détail des projets'!B202)=0,\"\",'Détail des projets'!B202)","v":"50643-203 - Mammouth - Construction d'une école secondaire dans le secteur LaSalle (terrain Cégep André-Laurendeau) (1024 places-élèves)"},{"$f":"IF(LEN('Détail des projets'!C202)=0,\"\",'Détail des projets'!C202)","v":"Marguérite-Bourgeoys"},{"$f":"IF(LEN('Détail des projets'!G202)=0,\"\",'Détail des projets'!G202)","v":" 06-Montréal "},{"$f":"IF(LEN('Détail des projets'!K202)=0,\"\",'Détail des projets'!K202)","v":400400},150,"À la fin du projet (suite au dernier versement)"]
[null,{"$f":"IF(LEN('Détail des projets'!B203)=0,\"\",'Détail des projets'!B203)","v":"50643-204 - Mammouth - Construction d'une école secondaire dans le secteur Nord-Ouest  (secteur Ste-Geneviève - terrain Cégep Gérald-Godin) (913 places-élèves)"},{"$f":"IF(LEN('Détail des projets'!C203)=0,\"\",'Détail des projets'!C203)","v":"Marguérite-Bourgeoys"},{"$f":"IF(LEN('Détail des projets'!G203)=0,\"\",'Détail des projets'!G203)","v":" 06-Montréal "},{"$f":"IF(LEN('Détail des projets'!K203)=0,\"\",'Détail des projets'!K203)","v":371800},139,"À la fin du projet (suite au dernier versement)"]
[null,{"$f":"IF(LEN('Détail des projets'!B204)=0,\"\",'Détail des projets'!B204)","v":"50643-205 - Mammouth - Construction d'une école primaire-secondaire à l'Île-des-Sœurs (18 classes du primaire et 959 places-élèves au secondaire)"},{"$f":"IF(LEN('Détail des projets'!C204)=0,\"\",'Détail des projets'!C204)","v":"Marguérite-Bourgeoys"},{"$f":"IF(LEN('Détail des projets'!G204)=0,\"\",'Détail des projets'!G204)","v":" 06-Montréal "},{"$f":"IF(LEN('Détail des projets'!K204)=0,\"\",'Détail des projets'!K204)","v":369600},138,"À la fin du projet (suite au dernier versement)"]
[null,{"$f":"IF(LEN('Détail des projets'!B205)=0,\"\",'Détail des projets'!B205)","v":"50643-206 - Mammouth - Construction d'une école secondaire à Laval (2 150 places-élèves)"},{"$f":"IF(LEN('Détail des projets'!C205)=0,\"\",'Détail des projets'!C205)","v":"Laval"},{"$f":"IF(LEN('Détail des projets'!G205)=0,\"\",'Détail des projets'!G205)","v":" 13-Laval "},{"$f":"IF(LEN('Détail des projets'!K205)=0,\"\",'Détail des projets'!K205)","v":756800},283,"À la fin du projet (suite au dernier versement)"]
[null,{"$f":"IF(LEN('Détail des projets'!B206)=0,\"\",'Détail des projets'!B206)","v":"50643-207 - Mammouth - Construction d'une école secondaire à Terrebonne"},{"$f":"IF(LEN('Détail des projets'!C206)=0,\"\",'Détail des projets'!C206)","v":"Affluents"},{"$f":"IF(LEN('Détail des projets'!G206)=0,\"\",'Détail des projets'!G206)","v":" 14-Lanaudière "},{"$f":"IF(LEN('Détail des projets'!K206)=0,\"\",'Détail des projets'!K206)","v":466400},174,"À la fin du projet (suite au dernier versement)"]
[null,{"$f":"IF(LEN('Détail des projets'!B207)=0,\"\",'Détail des projets'!B207)","v":"50643-208 - Mammouth - Construction d'une école secondaire à Mirabel  (1 280 places-élèves) (Saint-Augustin) "},{"$f":"IF(LEN('Détail des projets'!C207)=0,\"\",'Détail des projets'!C207)","v":"Seigneurie-des-Mille-Îles"},{"$f":"IF(LEN('Détail des projets'!G207)=0,\"\",'Détail des projets'!G207)","v":" 15-Laurentides "},{"$f":"IF(LEN('Détail des projets'!K207)=0,\"\",'Détail des projets'!K207)","v":490600},184,"À la fin du projet (suite au dernier versement)"]
[null,{"$f":"IF(LEN('Détail des projets'!B208)=0,\"\",'Détail des projets'!B208)","v":"50643-209 - Mammouth - Construction d'une école secondaire à Saint-Jérôme (1 256 places-élèves)"},{"$f":"IF(LEN('Détail des projets'!C208)=0,\"\",'Détail des projets'!C208)","v":"Rivière-du-Nord"},{"$f":"IF(LEN('Détail des projets'!G208)=0,\"\",'Détail des projets'!G208)","v":" 15-Laurentides "},{"$f":"IF(LEN('Détail des projets'!K208)=0,\"\",'Détail des projets'!K208)","v":466400},174,"À la fin du projet (suite au dernier versement)"]
[null,{"$f":"IF(LEN('Détail des projets'!B209)=0,\"\",'Détail des projets'!B209)","v":"50643-210 - Mammouth - Agrandissement de l'école secondaire de Chambly (1 365 places-élèves)"},{"$f":"IF(LEN('Détail des projets'!C209)=0,\"\",'Détail des projets'!C209)","v":"Patriotes"},{"$f":"IF(LEN('Détail des projets'!G209)=0,\"\",'Détail des projets'!G209)","v":" 16-Montérégie "},{"$f":"IF(LEN('Détail des projets'!K209)=0,\"\",'Détail des projets'!K209)","v":486200},182,"À la fin du projet (suite au dernier versement)"]
[null,{"$f":"IF(LEN('Détail des projets'!B210)=0,\"\",'Détail des projets'!B210)","v":"50643-211 - Mammouth - Construction de l'école secondaire Louis-Philippe-Paré  (2512 places-élèves) et démolition de l'infrastructure existante"},{"$f":"IF(LEN('Détail des projets'!C210)=0,\"\",'Détail des projets'!C210)","v":"Grandes-Seigneuries"},{"$f":"IF(LEN('Détail des projets'!G210)=0,\"\",'Détail des projets'!G210)","v":" 16-Montérégie "},{"$f":"IF(LEN('Détail des projets'!K210)=0,\"\",'Détail des projets'!K210)","v":919600},344,"À la fin du projet (suite au dernier versement)"]
[null,{"$f":"IF(LEN('Détail des projets'!B211)=0,\"\",'Détail des projets'!B211)","v":"50643-212 - Mammouth - Construction d'une école secondaire à Vaudreuil-Dorion (1 256 places-élèves)"},{"$f":"IF(LEN('Détail des projets'!C211)=0,\"\",'Détail des projets'!C211)","v":"Trois-Lacs"},{"$f":"IF(LEN('Détail des projets'!G211)=0,\"\",'Détail des projets'!G211)","v":" 16-Montérégie "},{"$f":"IF(LEN('Détail des projets'!K211)=0,\"\",'Détail des projets'!K211)","v":466400},174,"À la fin du projet (suite au dernier versement)"]
[null,{"$f":"IF(LEN('Détail des projets'!B212)=0,\"\",'Détail des projets'!B212)","v":"50643-213 - Mammouth - Construction d'une école secondaire à Saint-Zotique (1256 places-élèves)"},{"$f":"IF(LEN('Détail des projets'!C212)=0,\"\",'Détail des projets'!C212)","v":"Trois-Lacs"},{"$f":"IF(LEN('Détail des projets'!G212)=0,\"\",'Détail des projets'!G212)","v":" 16-Montérégie "},{"$f":"IF(LEN('Détail des projets'!K212)=0,\"\",'Détail des projets'!K212)","v":466400},174,"À la fin du projet (suite au dernier versement)"]
[null,{"$f":"IF(LEN('Détail des projets'!B213)=0,\"\",'Détail des projets'!B213)","v":"50643-214 - Mammouth - Construction d'une école secondaire à Drummondville"},{"$f":"IF(LEN('Détail des projets'!C213)=0,\"\",'Détail des projets'!C213)","v":"Chênes"},{"$f":"IF(LEN('Détail des projets'!G213)=0,\"\",'Détail des projets'!G213)","v":" 17-Centre-du-Québec "},{"$f":"IF(LEN('Détail des projets'!K213)=0,\"\",'Détail des projets'!K213)","v":466400},174,"À la fin du projet (suite au dernier versement)"]
[null,{"$f":"IF(LEN('Détail des projets'!B214)=0,\"\",'Détail des projets'!B214)","v":"50643-300 - Nouveau Batiment: Mise en œuvre de mesure pour favoriser l'évitement d'émission de GES"},{"$f":"IF(LEN('Détail des projets'!C214)=0,\"\",'Détail des projets'!C214)","v":"Kamouraska - Rivière-du-loup"},{"$f":"IF(LEN('Détail des projets'!G214)=0,\"\",'Détail des projets'!G214)","v":" 01-Bas-Saint-Laurent "},{"$f":"IF(LEN('Détail des projets'!K214)=0,\"\",'Détail des projets'!K214)","v":137500},62.5,"À la fin du projet (suite au dernier versement)"]
[null,{"$f":"IF(LEN('Détail des projets'!B215)=0,\"\",'Détail des projets'!B215)","v":"50643-301 - Construction bâtiment - Saint-Modeste"},{"$f":"IF(LEN('Détail des projets'!C215)=0,\"\",'Détail des projets'!C215)","v":"Kamouraska - Rivière-du-loup"},{"$f":"IF(LEN('Détail des projets'!G215)=0,\"\",'Détail des projets'!G215)","v":" 01-Bas-Saint-Laurent "},{"$f":"IF(LEN('Détail des projets'!K215)=0,\"\",'Détail des projets'!K215)","v":35794},16.27,"À la fin du projet (suite au dernier versement)"]
[null,{"$f":"IF(LEN('Détail des projets'!B216)=0,\"\",'Détail des projets'!B216)","v":"50643-302 - Construction bâtiment -Saint-Pierre"},{"$f":"IF(LEN('Détail des projets'!C216)=0,\"\",'Détail des projets'!C216)","v":"Lac-Saint-Jean"},{"$f":"IF(LEN('Détail des projets'!G216)=0,\"\",'Détail des projets'!G216)","v":" 02-Saguenay- Lac-Saint-Jean "},{"$f":"IF(LEN('Détail des projets'!K216)=0,\"\",'Détail des projets'!K216)","v":13508},6.14,"À la fin du projet (suite au dernier versement)"]
[null,{"$f":"IF(LEN('Détail des projets'!B217)=0,\"\",'Détail des projets'!B217)","v":"50643-303 - Construction bâtiment -Tandem - Édifice Saint-Luc, le"},{"$f":"IF(LEN('Détail des projets'!C217)=0,\"\",'Détail des projets'!C217)","v":"De la joncquière"},{"$f":"IF(LEN('Détail des projets'!G217)=0,\"\",'Détail des projets'!G217)","v":" 02-Saguenay- Lac-Saint-Jean "},{"$f":"IF(LEN('Détail des projets'!K217)=0,\"\",'Détail des projets'!K217)","v":26356},11.98,"À la fin du projet (suite au dernier versement)"]
[null,{"$f":"IF(LEN('Détail des projets'!B218)=0,\"\",'Détail des projets'!B218)","v":"50643-304 - Construction bâtiment -Buisson, du"},{"$f":"IF(LEN('Détail des projets'!C218)=0,\"\",'Détail des projets'!C218)","v":"de la Capitale"},{"$f":"IF(LEN('Détail des projets'!G218)=0,\"\",'Détail des projets'!G218)","v":" 03-Capitale-Nationale "},{"$f":"IF(LEN('Détail des projets'!K218)=0,\"\",'Détail des projets'!K218)","v":58806},26.73,"À la fin du projet (suite au dernier versement)"]
[null,{"$f":"IF(LEN('Détail des projets'!B219)=0,\"\",'Détail des projets'!B219)","v":"50643-305 - Nouveau Batiment"},{"$f":"IF(LEN('Détail des projets'!C219)=0,\"\",'Détail des projets'!C219)","v":"des Premières-Seigneuries"},{"$f":"IF(LEN('Détail des projets'!G219)=0,\"\",'Détail des projets'!G219)","v":" 03-Capitale-Nationale "},{"$f":"IF(LEN('Détail des projets'!K219)=0,\"\",'Détail des projets'!K219)","v":173734},78.97,"À la fin du projet (suite au dernier versement)"]
[null,{"$f":"IF(LEN('Détail des projets'!B220)=0,\"\",'Détail des projets'!B220)","v":"50643-306 - Nouveau Batiment"},{"$f":"IF(LEN('Détail des projets'!C220)=0,\"\",'Détail des projets'!C220)","v":"des Premières-Seigneuries"},{"$f":"IF(LEN('Détail des projets'!G220)=0,\"\",'Détail des projets'!G220)","v":" 03-Capitale-Nationale "},{"$f":"IF(LEN('Détail des projets'!K220)=0,\"\",'Détail des projets'!K220)","v":131846},59.93,"À la fin du projet (suite au dernier versement)"]
[null,{"$f":"IF(LEN('Détail des projets'!B221)=0,\"\",'Détail des projets'!B221)","v":"50643-307 - Nouveau Batiment"},{"$f":"IF(LEN('Détail des projets'!C221)=0,\"\",'Détail des projets'!C221)","v":"des Premières-Seigneuries"},{"$f":"IF(LEN('Détail des projets'!G221)=0,\"\",'Détail des projets'!G221)","v":" 03-Capitale-Nationale "},{"$f":"IF(LEN('Détail des projets'!K221)=0,\"\",'Détail des projets'!K221)","v":101002},45.91,"À la fin du projet (suite au dernier versement)"]
[null,{"$f":"IF(LEN('Détail des projets'!B222)=0,\"\",'Détail des projets'!B222)","v":"50643-308 - Construction bâtiment -Perce-Neige, pavillon Saint-Charles, du"},{"$f":"IF(LEN('Détail des projets'!C222)=0,\"\",'Détail des projets'!C222)","v":"Portneuf"},{"$f":"IF(LEN('Détail des projets'!G222)=0,\"\",'Détail des projets'!G222)","v":" 03-Capitale-Nationale "},{"$f":"IF(LEN('Détail des projets'!K222)=0,\"\",'Détail des projets'!K222)","v":21516},9.7799999999999994,"À la fin du projet (suite au dernier versement)"]
[null,{"$f":"IF(LEN('Détail des projets'!B223)=0,\"\",'Détail des projets'!B223)","v":"50643-309 - Construction bâtiment -Source, de la"},{"$f":"IF(LEN('Détail des projets'!C223)=0,\"\",'Détail des projets'!C223)","v":"Chemin du Roy"},{"$f":"IF(LEN('Détail des projets'!G223)=0,\"\",'Détail des projets'!G223)","v":" 04-Mauricie  "},{"$f":"IF(LEN('Détail des projets'!K223)=0,\"\",'Détail des projets'!K223)","v":64394},29.27,"À la fin du projet (suite au dernier versement)"]
[null,{"$f":"IF(LEN('Détail des projets'!B224)=0,\"\",'Détail des projets'!B224)","v":"50643-310 - Construction bâtiment -Sainte-Bernadette"},{"$f":"IF(LEN('Détail des projets'!C224)=0,\"\",'Détail des projets'!C224)","v":"Chemin du Roy"},{"$f":"IF(LEN('Détail des projets'!G224)=0,\"\",'Détail des projets'!G224)","v":" 04-Mauricie  "},{"$f":"IF(LEN('Détail des projets'!K224)=0,\"\",'Détail des projets'!K224)","v":51326},23.33,"À la fin du projet (suite au dernier versement)"]
[null,{"$f":"IF(LEN('Détail des projets'!B225)=0,\"\",'Détail des projets'!B225)","v":"50643-311 - Construction bâtiment -Marguerite-Bourgeois"},{"$f":"IF(LEN('Détail des projets'!C225)=0,\"\",'Détail des projets'!C225)","v":"Chemin du Roy"},{"$f":"IF(LEN('Détail des projets'!G225)=0,\"\",'Détail des projets'!G225)","v":" 04-Mauricie  "},{"$f":"IF(LEN('Détail des projets'!K225)=0,\"\",'Détail des projets'!K225)","v":37554},17.07,"À la fin du projet (suite au dernier versement)"]
[null,{"$f":"IF(LEN('Détail des projets'!B226)=0,\"\",'Détail des projets'!B226)","v":"50643-312 - Construction bâtiment -Louis-Saint-Laurent"},{"$f":"IF(LEN('Détail des projets'!C226)=0,\"\",'Détail des projets'!C226)","v":"Hauts-Cantons"},{"$f":"IF(LEN('Détail des projets'!G226)=0,\"\",'Détail des projets'!G226)","v":" 05-Estrie "},{"$f":"IF(LEN('Détail des projets'!K226)=0,\"\",'Détail des projets'!K226)","v":27786},12.63,"À la fin du projet (suite au dernier versement)"]
[null,{"$f":"IF(LEN('Détail des projets'!B227)=0,\"\",'Détail des projets'!B227)","v":"50643-313 - Construction bâtiment -Parchemin, côté collège, du"},{"$f":"IF(LEN('Détail des projets'!C227)=0,\"\",'Détail des projets'!C227)","v":"Hauts-Cantons"},{"$f":"IF(LEN('Détail des projets'!G227)=0,\"\",'Détail des projets'!G227)","v":" 05-Estrie "},{"$f":"IF(LEN('Détail des projets'!K227)=0,\"\",'Détail des projets'!K227)","v":40502},18.41,"À la fin du projet (suite au dernier versement)"]
[null,{"$f":"IF(LEN('Détail des projets'!B228)=0,\"\",'Détail des projets'!B228)","v":"50643-314 - Construction bâtiment - Notre-Dame-du-Paradis"},{"$f":"IF(LEN('Détail des projets'!C228)=0,\"\",'Détail des projets'!C228)","v":"Hauts-Cantons"},{"$f":"IF(LEN('Détail des projets'!G228)=0,\"\",'Détail des projets'!G228)","v":" 05-Estrie "},{"$f":"IF(LEN('Détail des projets'!K228)=0,\"\",'Détail des projets'!K228)","v":25102},11.41,"À la fin du projet (suite au dernier versement)"]
[null,{"$f":"IF(LEN('Détail des projets'!B229)=0,\"\",'Détail des projets'!B229)","v":"50643-315 - Construction bâtiment - Sylvestre"},{"$f":"IF(LEN('Détail des projets'!C229)=0,\"\",'Détail des projets'!C229)","v":"Région-de-Sherbrooke"},{"$f":"IF(LEN('Détail des projets'!G229)=0,\"\",'Détail des projets'!G229)","v":" 05-Estrie "},{"$f":"IF(LEN('Détail des projets'!K229)=0,\"\",'Détail des projets'!K229)","v":58608},26.64,"À la fin du projet (suite au dernier versement)"]
[null,{"$f":"IF(LEN('Détail des projets'!B230)=0,\"\",'Détail des projets'!B230)","v":"50643-316 - Construction bâtiment - Jean XXIII"},{"$f":"IF(LEN('Détail des projets'!C230)=0,\"\",'Détail des projets'!C230)","v":"Région-de-Sherbrooke"},{"$f":"IF(LEN('Détail des projets'!G230)=0,\"\",'Détail des projets'!G230)","v":" 05-Estrie "},{"$f":"IF(LEN('Détail des projets'!K230)=0,\"\",'Détail des projets'!K230)","v":51326},23.33,"À la fin du projet (suite au dernier versement)"]
[null,{"$f":"IF(LEN('Détail des projets'!B231)=0,\"\",'Détail des projets'!B231)","v":"50643-317 - Construction bâtiment - Sainte-Famille"},{"$f":"IF(LEN('Détail des projets'!C231)=0,\"\",'Détail des projets'!C231)","v":"Région-de-Sherbrooke"},{"$f":"IF(LEN('Détail des projets'!G231)=0,\"\",'Détail des projets'!G231)","v":" 05-Estrie "},{"$f":"IF(LEN('Détail des projets'!K231)=0,\"\",'Détail des projets'!K231)","v":111804},50.82,"À la fin du projet (suite au dernier versement)"]
[null,{"$f":"IF(LEN('Détail des projets'!B232)=0,\"\",'Détail des projets'!B232)","v":"50643-318 - Construction bâtiment - Marie Reine"},{"$f":"IF(LEN('Détail des projets'!C232)=0,\"\",'Détail des projets'!C232)","v":"Région-de-Sherbrooke"},{"$f":"IF(LEN('Détail des projets'!G232)=0,\"\",'Détail des projets'!G232)","v":" 05-Estrie "},{"$f":"IF(LEN('Détail des projets'!K232)=0,\"\",'Détail des projets'!K232)","v":42834},19.47,"À la fin du projet (suite au dernier versement)"]
[null,{"$f":"IF(LEN('Détail des projets'!B233)=0,\"\",'Détail des projets'!B233)","v":"50643-319 - Construction bâtiment - Triolet, pavillons 2 et 3, du"},{"$f":"IF(LEN('Détail des projets'!C233)=0,\"\",'Détail des projets'!C233)","v":"Région-de-Sherbrooke"},{"$f":"IF(LEN('Détail des projets'!G233)=0,\"\",'Détail des projets'!G233)","v":" 05-Estrie "},{"$f":"IF(LEN('Détail des projets'!K233)=0,\"\",'Détail des projets'!K233)","v":634832},288.56,"À la fin du projet (suite au dernier versement)"]
[null,{"$f":"IF(LEN('Détail des projets'!B234)=0,\"\",'Détail des projets'!B234)","v":"50643-320 - Construction bâtiment - Jardin-des-Lacs, du"},{"$f":"IF(LEN('Détail des projets'!C234)=0,\"\",'Détail des projets'!C234)","v":"Région-de-Sherbrooke"},{"$f":"IF(LEN('Détail des projets'!G234)=0,\"\",'Détail des projets'!G234)","v":" 05-Estrie "},{"$f":"IF(LEN('Détail des projets'!K234)=0,\"\",'Détail des projets'!K234)","v":76802},34.909999999999997,"À la fin du projet (suite au dernier versement)"]
[null,{"$f":"IF(LEN('Détail des projets'!B235)=0,\"\",'Détail des projets'!B235)","v":"50643-321 - Construction bâtiment - Arc-en-Ciel, pavillon 2, de l'"},{"$f":"IF(LEN('Détail des projets'!C235)=0,\"\",'Détail des projets'!C235)","v":"Des Sommets"},{"$f":"IF(LEN('Détail des projets'!G235)=0,\"\",'Détail des projets'!G235)","v":" 05-Estrie "},{"$f":"IF(LEN('Détail des projets'!K235)=0,\"\",'Détail des projets'!K235)","v":20394},9.27,"À la fin du projet (suite au dernier versement)"]
[null,{"$f":"IF(LEN('Détail des projets'!B236)=0,\"\",'Détail des projets'!B236)","v":"50643-322 - Construction bâtiment - Fraternité, de la"},{"$f":"IF(LEN('Détail des projets'!C236)=0,\"\",'Détail des projets'!C236)","v":"Pointe-de-l'Île"},{"$f":"IF(LEN('Détail des projets'!G236)=0,\"\",'Détail des projets'!G236)","v":" 06-Montréal "},{"$f":"IF(LEN('Détail des projets'!K236)=0,\"\",'Détail des projets'!K236)","v":98934},44.97,"À la fin du projet (suite au dernier versement)"]
[null,{"$f":"IF(LEN('Détail des projets'!B237)=0,\"\",'Détail des projets'!B237)","v":"50643-323 - Construction bâtiment - Wilfrid-Pelletier annexe"},{"$f":"IF(LEN('Détail des projets'!C237)=0,\"\",'Détail des projets'!C237)","v":"Pointe-de-l'Île"},{"$f":"IF(LEN('Détail des projets'!G237)=0,\"\",'Détail des projets'!G237)","v":" 06-Montréal "},{"$f":"IF(LEN('Détail des projets'!K237)=0,\"\",'Détail des projets'!K237)","v":82610},37.549999999999997,"À la fin du projet (suite au dernier versement)"]
[null,{"$f":"IF(LEN('Détail des projets'!B238)=0,\"\",'Détail des projets'!B238)","v":"50643-324 - Construction bâtiment - Saint-Joseph"},{"$f":"IF(LEN('Détail des projets'!C238)=0,\"\",'Détail des projets'!C238)","v":"Pointe-de-l'Île"},{"$f":"IF(LEN('Détail des projets'!G238)=0,\"\",'Détail des projets'!G238)","v":" 06-Montréal "},{"$f":"IF(LEN('Détail des projets'!K238)=0,\"\",'Détail des projets'!K238)","v":143198},65.09,"À la fin du projet (suite au dernier versement)"]
[null,{"$f":"IF(LEN('Détail des projets'!B239)=0,\"\",'Détail des projets'!B239)","v":"50643-325 - Construction bâtiment - Jacques-Rousseau"},{"$f":"IF(LEN('Détail des projets'!C239)=0,\"\",'Détail des projets'!C239)","v":"Pointe-de-l'Île"},{"$f":"IF(LEN('Détail des projets'!G239)=0,\"\",'Détail des projets'!G239)","v":" 06-Montréal "},{"$f":"IF(LEN('Détail des projets'!K239)=0,\"\",'Détail des projets'!K239)","v":112684},51.22,"À la fin du projet (suite au dernier versement)"]
[null,{"$f":"IF(LEN('Détail des projets'!B240)=0,\"\",'Détail des projets'!B240)","v":"50643-326 - Construction bâtiment - Centre de formation des métiers de l'acier"},{"$f":"IF(LEN('Détail des projets'!C240)=0,\"\",'Détail des projets'!C240)","v":"Pointe-de-l'Île"},{"$f":"IF(LEN('Détail des projets'!G240)=0,\"\",'Détail des projets'!G240)","v":" 06-Montréal "},{"$f":"IF(LEN('Détail des projets'!K240)=0,\"\",'Détail des projets'!K240)","v":112310},51.05,"À la fin du projet (suite au dernier versement)"]
[null,{"$f":"IF(LEN('Détail des projets'!B241)=0,\"\",'Détail des projets'!B241)","v":"50643-327 - Construction bâtiment - Marc-Aurèle-Fortin"},{"$f":"IF(LEN('Détail des projets'!C241)=0,\"\",'Détail des projets'!C241)","v":"Pointe-de-l'Île"},{"$f":"IF(LEN('Détail des projets'!G241)=0,\"\",'Détail des projets'!G241)","v":" 06-Montréal "},{"$f":"IF(LEN('Détail des projets'!K241)=0,\"\",'Détail des projets'!K241)","v":119460},54.3,"À la fin du projet (suite au dernier versement)"]
[null,{"$f":"IF(LEN('Détail des projets'!B242)=0,\"\",'Détail des projets'!B242)","v":"50643-328 - Construction bâtiment - Saint-Marcel"},{"$f":"IF(LEN('Détail des projets'!C242)=0,\"\",'Détail des projets'!C242)","v":"Pointe-de-l'Île"},{"$f":"IF(LEN('Détail des projets'!G242)=0,\"\",'Détail des projets'!G242)","v":" 06-Montréal "},{"$f":"IF(LEN('Détail des projets'!K242)=0,\"\",'Détail des projets'!K242)","v":40502},18.41,"À la fin du projet (suite au dernier versement)"]
[null,{"$f":"IF(LEN('Détail des projets'!B243)=0,\"\",'Détail des projets'!B243)","v":"50643-329 - Construction bâtiment - François-La-Bernarde"},{"$f":"IF(LEN('Détail des projets'!C243)=0,\"\",'Détail des projets'!C243)","v":"Pointe-de-l'Île"},{"$f":"IF(LEN('Détail des projets'!G243)=0,\"\",'Détail des projets'!G243)","v":" 06-Montréal "},{"$f":"IF(LEN('Détail des projets'!K243)=0,\"\",'Détail des projets'!K243)","v":79904},36.32,"À la fin du projet (suite au dernier versement)"]
[null,{"$f":"IF(LEN('Détail des projets'!B244)=0,\"\",'Détail des projets'!B244)","v":"50643-330 - Construction bâtiment - Notre-Dame-de-Fatima"},{"$f":"IF(LEN('Détail des projets'!C244)=0,\"\",'Détail des projets'!C244)","v":"Pointe-de-l'Île"},{"$f":"IF(LEN('Détail des projets'!G244)=0,\"\",'Détail des projets'!G244)","v":" 06-Montréal "},{"$f":"IF(LEN('Détail des projets'!K244)=0,\"\",'Détail des projets'!K244)","v":111760},50.8,"À la fin du projet (suite au dernier versement)"]
[null,{"$f":"IF(LEN('Détail des projets'!B245)=0,\"\",'Détail des projets'!B245)","v":"50643-331 - Construction bâtiment - Tournesol, le"},{"$f":"IF(LEN('Détail des projets'!C245)=0,\"\",'Détail des projets'!C245)","v":"Pointe-de-l'Île"},{"$f":"IF(LEN('Détail des projets'!G245)=0,\"\",'Détail des projets'!G245)","v":" 06-Montréal "},{"$f":"IF(LEN('Détail des projets'!K245)=0,\"\",'Détail des projets'!K245)","v":101706},46.23,"À la fin du projet (suite au dernier versement)"]
[null,{"$f":"IF(LEN('Détail des projets'!B246)=0,\"\",'Détail des projets'!B246)","v":"50643-332 - Construction bâtiment - Sainte-Alice"},{"$f":"IF(LEN('Détail des projets'!C246)=0,\"\",'Détail des projets'!C246)","v":"Pointe-de-l'Île"},{"$f":"IF(LEN('Détail des projets'!G246)=0,\"\",'Détail des projets'!G246)","v":" 06-Montréal "},{"$f":"IF(LEN('Détail des projets'!K246)=0,\"\",'Détail des projets'!K246)","v":19118},8.69,"À la fin du projet (suite au dernier versement)"]
[null,{"$f":"IF(LEN('Détail des projets'!B247)=0,\"\",'Détail des projets'!B247)","v":"50643-333 - Nouveau Batiment"},{"$f":"IF(LEN('Détail des projets'!C247)=0,\"\",'Détail des projets'!C247)","v":"Pointe-de-l'Île"},{"$f":"IF(LEN('Détail des projets'!G247)=0,\"\",'Détail des projets'!G247)","v":" 06-Montréal "},{"$f":"IF(LEN('Détail des projets'!K247)=0,\"\",'Détail des projets'!K247)","v":96756},43.98,"À la fin du projet (suite au dernier versement)"]
[null,{"$f":"IF(LEN('Détail des projets'!B248)=0,\"\",'Détail des projets'!B248)","v":"50643-334 - Nouveau Batiment"},{"$f":"IF(LEN('Détail des projets'!C248)=0,\"\",'Détail des projets'!C248)","v":"Pointe-de-l'Île"},{"$f":"IF(LEN('Détail des projets'!G248)=0,\"\",'Détail des projets'!G248)","v":" 06-Montréal "},{"$f":"IF(LEN('Détail des projets'!K248)=0,\"\",'Détail des projets'!K248)","v":212520},96.6,"À la fin du projet (suite au dernier versement)"]
[null,{"$f":"IF(LEN('Détail des projets'!B249)=0,\"\",'Détail des projets'!B249)","v":"50643-335 - Nouveau Batiment"},{"$f":"IF(LEN('Détail des projets'!C249)=0,\"\",'Détail des projets'!C249)","v":"Pointe-de-l'Île"},{"$f":"IF(LEN('Détail des projets'!G249)=0,\"\",'Détail des projets'!G249)","v":" 06-Montréal "},{"$f":"IF(LEN('Détail des projets'!K249)=0,\"\",'Détail des projets'!K249)","v":110396},50.18,"À la fin du projet (suite au dernier versement)"]
[null,{"$f":"IF(LEN('Détail des projets'!B250)=0,\"\",'Détail des projets'!B250)","v":"50643-336 - Nouveau Batiment"},{"$f":"IF(LEN('Détail des projets'!C250)=0,\"\",'Détail des projets'!C250)","v":"Pointe-de-l'Île"},{"$f":"IF(LEN('Détail des projets'!G250)=0,\"\",'Détail des projets'!G250)","v":" 06-Montréal "},{"$f":"IF(LEN('Détail des projets'!K250)=0,\"\",'Détail des projets'!K250)","v":173734},78.97,"À la fin du projet (suite au dernier versement)"]
[null,{"$f":"IF(LEN('Détail des projets'!B251)=0,\"\",'Détail des projets'!B251)","v":"50643-337 - Nouveau Batiment"},{"$f":"IF(LEN('Détail des projets'!C251)=0,\"\",'Détail des projets'!C251)","v":"Pointe-de-l'Île"},{"$f":"IF(LEN('Détail des projets'!G251)=0,\"\",'Détail des projets'!G251)","v":" 06-Montréal "},{"$f":"IF(LEN('Détail des projets'!K251)=0,\"\",'Détail des projets'!K251)","v":173734},78.97,"À la fin du projet (suite au dernier versement)"]
[null,{"$f":"IF(LEN('Détail des projets'!B252)=0,\"\",'Détail des projets'!B252)","v":"50643-338 - Construction bâtiment - Les-Enfants-du-Monde"},{"$f":"IF(LEN('Détail des projets'!C252)=0,\"\",'Détail des projets'!C252)","v":"CSDM"},{"$f":"IF(LEN('Détail des projets'!G252)=0,\"\",'Détail des projets'!G252)","v":" 06-Montréal "},{"$f":"IF(LEN('Détail des projets'!K252)=0,\"\",'Détail des projets'!K252)","v":104082},47.31,"À la fin du projet (suite au dernier versement)"]
[null,{"$f":"IF(LEN('Détail des projets'!B253)=0,\"\",'Détail des projets'!B253)","v":"50643-339 - Construction bâtiment - De l'Étincelle"},{"$f":"IF(LEN('Détail des projets'!C253)=0,\"\",'Détail des projets'!C253)","v":"CSDM"},{"$f":"IF(LEN('Détail des projets'!G253)=0,\"\",'Détail des projets'!G253)","v":" 06-Montréal "},{"$f":"IF(LEN('Détail des projets'!K253)=0,\"\",'Détail des projets'!K253)","v":162118},73.69,"À la fin du projet (suite au dernier versement)"]
[null,{"$f":"IF(LEN('Détail des projets'!B254)=0,\"\",'Détail des projets'!B254)","v":"50643-340 - Construction bâtiment - Académie Dunton"},{"$f":"IF(LEN('Détail des projets'!C254)=0,\"\",'Détail des projets'!C254)","v":"CSDM"},{"$f":"IF(LEN('Détail des projets'!G254)=0,\"\",'Détail des projets'!G254)","v":" 06-Montréal "},{"$f":"IF(LEN('Détail des projets'!K254)=0,\"\",'Détail des projets'!K254)","v":279532},127.06,"À la fin du projet (suite au dernier versement)"]
[null,{"$f":"IF(LEN('Détail des projets'!B255)=0,\"\",'Détail des projets'!B255)","v":"50643-341 - Construction bâtiment - Le 3349, rue Adam"},{"$f":"IF(LEN('Détail des projets'!C255)=0,\"\",'Détail des projets'!C255)","v":"CSDM"},{"$f":"IF(LEN('Détail des projets'!G255)=0,\"\",'Détail des projets'!G255)","v":" 06-Montréal "},{"$f":"IF(LEN('Détail des projets'!K255)=0,\"\",'Détail des projets'!K255)","v":109538},49.79,"À la fin du projet (suite au dernier versement)"]
[null,{"$f":"IF(LEN('Détail des projets'!B256)=0,\"\",'Détail des projets'!B256)","v":"50643-342 - Construction bâtiment - Lucille-Teasdale"},{"$f":"IF(LEN('Détail des projets'!C256)=0,\"\",'Détail des projets'!C256)","v":"CSDM"},{"$f":"IF(LEN('Détail des projets'!G256)=0,\"\",'Détail des projets'!G256)","v":" 06-Montréal "},{"$f":"IF(LEN('Détail des projets'!K256)=0,\"\",'Détail des projets'!K256)","v":18040},8.1999999999999993,"À la fin du projet (suite au dernier versement)"]
[null,{"$f":"IF(LEN('Détail des projets'!B257)=0,\"\",'Détail des projets'!B257)","v":"50643-343 - Nouveau Batiment"},{"$f":"IF(LEN('Détail des projets'!C257)=0,\"\",'Détail des projets'!C257)","v":"CSDM"},{"$f":"IF(LEN('Détail des projets'!G257)=0,\"\",'Détail des projets'!G257)","v":" 06-Montréal "},{"$f":"IF(LEN('Détail des projets'!K257)=0,\"\",'Détail des projets'!K257)","v":121572},55.26,"À la fin du projet (suite au dernier versement)"]
[null,{"$f":"IF(LEN('Détail des projets'!B258)=0,\"\",'Détail des projets'!B258)","v":"50643-344 - Nouveau Batiment"},{"$f":"IF(LEN('Détail des projets'!C258)=0,\"\",'Détail des projets'!C258)","v":"CSDM"},{"$f":"IF(LEN('Détail des projets'!G258)=0,\"\",'Détail des projets'!G258)","v":" 06-Montréal "},{"$f":"IF(LEN('Détail des projets'!K258)=0,\"\",'Détail des projets'!K258)","v":137434},62.47,"À la fin du projet (suite au dernier versement)"]
[null,{"$f":"IF(LEN('Détail des projets'!B259)=0,\"\",'Détail des projets'!B259)","v":"50643-345 - Nouveau Batiment"},{"$f":"IF(LEN('Détail des projets'!C259)=0,\"\",'Détail des projets'!C259)","v":"CSDM"},{"$f":"IF(LEN('Détail des projets'!G259)=0,\"\",'Détail des projets'!G259)","v":" 06-Montréal "},{"$f":"IF(LEN('Détail des projets'!K259)=0,\"\",'Détail des projets'!K259)","v":165484},75.22,"À la fin du projet (suite au dernier versement)"]
[null,{"$f":"IF(LEN('Détail des projets'!B260)=0,\"\",'Détail des projets'!B260)","v":"50643-346 - Nouveau Batiment"},{"$f":"IF(LEN('Détail des projets'!C260)=0,\"\",'Détail des projets'!C260)","v":"CSDM"},{"$f":"IF(LEN('Détail des projets'!G260)=0,\"\",'Détail des projets'!G260)","v":" 06-Montréal "},{"$f":"IF(LEN('Détail des projets'!K260)=0,\"\",'Détail des projets'!K260)","v":162448},73.84,"À la fin du projet (suite au dernier versement)"]
[null,{"$f":"IF(LEN('Détail des projets'!B261)=0,\"\",'Détail des projets'!B261)","v":"50643-347 - Nouveau Batiment"},{"$f":"IF(LEN('Détail des projets'!C261)=0,\"\",'Détail des projets'!C261)","v":"CSDM"},{"$f":"IF(LEN('Détail des projets'!G261)=0,\"\",'Détail des projets'!G261)","v":" 06-Montréal "},{"$f":"IF(LEN('Détail des projets'!K261)=0,\"\",'Détail des projets'!K261)","v":141130},64.150000000000006,"À la fin du projet (suite au dernier versement)"]
[null,{"$f":"IF(LEN('Détail des projets'!B262)=0,\"\",'Détail des projets'!B262)","v":"50643-348 - Nouveau Batiment"},{"$f":"IF(LEN('Détail des projets'!C262)=0,\"\",'Détail des projets'!C262)","v":"CSDM"},{"$f":"IF(LEN('Détail des projets'!G262)=0,\"\",'Détail des projets'!G262)","v":" 06-Montréal "},{"$f":"IF(LEN('Détail des projets'!K262)=0,\"\",'Détail des projets'!K262)","v":137500},62.5,"À la fin du projet (suite au dernier versement)"]
[null,{"$f":"IF(LEN('Détail des projets'!B263)=0,\"\",'Détail des projets'!B263)","v":"50643-349 - Construction bâtiment - Saint-Gabriel-Lalemant, annexe"},{"$f":"IF(LEN('Détail des projets'!C263)=0,\"\",'Détail des projets'!C263)","v":"CSDM"},{"$f":"IF(LEN('Détail des projets'!G263)=0,\"\",'Détail des projets'!G263)","v":" 06-Montréal "},{"$f":"IF(LEN('Détail des projets'!K263)=0,\"\",'Détail des projets'!K263)","v":97416},44.28,"À la fin du projet (suite au dernier versement)"]
[null,{"$f":"IF(LEN('Détail des projets'!B264)=0,\"\",'Détail des projets'!B264)","v":"50643-350 - Construction bâtiment - Saint-Justin"},{"$f":"IF(LEN('Détail des projets'!C264)=0,\"\",'Détail des projets'!C264)","v":"CSDM"},{"$f":"IF(LEN('Détail des projets'!G264)=0,\"\",'Détail des projets'!G264)","v":" 06-Montréal "},{"$f":"IF(LEN('Détail des projets'!K264)=0,\"\",'Détail des projets'!K264)","v":100166},45.53,"À la fin du projet (suite au dernier versement)"]
[null,{"$f":"IF(LEN('Détail des projets'!B265)=0,\"\",'Détail des projets'!B265)","v":"50643-351 - Construction bâtiment - Berges-de-Lachine, des"},{"$f":"IF(LEN('Détail des projets'!C265)=0,\"\",'Détail des projets'!C265)","v":"Marguérite-Bourgeoys"},{"$f":"IF(LEN('Détail des projets'!G265)=0,\"\",'Détail des projets'!G265)","v":" 06-Montréal "},{"$f":"IF(LEN('Détail des projets'!K265)=0,\"\",'Détail des projets'!K265)","v":67430},30.65,"À la fin du projet (suite au dernier versement)"]
[null,{"$f":"IF(LEN('Détail des projets'!B266)=0,\"\",'Détail des projets'!B266)","v":"50643-352 - Construction bâtiment - Très-Saint-Sacrement, édifice du Savoir"},{"$f":"IF(LEN('Détail des projets'!C266)=0,\"\",'Détail des projets'!C266)","v":"Marguérite-Bourgeoys"},{"$f":"IF(LEN('Détail des projets'!G266)=0,\"\",'Détail des projets'!G266)","v":" 06-Montréal "},{"$f":"IF(LEN('Détail des projets'!K266)=0,\"\",'Détail des projets'!K266)","v":64922},29.51,"À la fin du projet (suite au dernier versement)"]
[null,{"$f":"IF(LEN('Détail des projets'!B267)=0,\"\",'Détail des projets'!B267)","v":"50643-353 - Construction bâtiment - Eau-Vive, L'"},{"$f":"IF(LEN('Détail des projets'!C267)=0,\"\",'Détail des projets'!C267)","v":"Marguérite-Bourgeoys"},{"$f":"IF(LEN('Détail des projets'!G267)=0,\"\",'Détail des projets'!G267)","v":" 06-Montréal "},{"$f":"IF(LEN('Détail des projets'!K267)=0,\"\",'Détail des projets'!K267)","v":92026},41.83,"À la fin du projet (suite au dernier versement)"]
[null,{"$f":"IF(LEN('Détail des projets'!B268)=0,\"\",'Détail des projets'!B268)","v":"50643-354 - Nouveau Batiment"},{"$f":"IF(LEN('Détail des projets'!C268)=0,\"\",'Détail des projets'!C268)","v":"Marguérite-Bourgeoys"},{"$f":"IF(LEN('Détail des projets'!G268)=0,\"\",'Détail des projets'!G268)","v":" 06-Montréal "},{"$f":"IF(LEN('Détail des projets'!K268)=0,\"\",'Détail des projets'!K268)","v":168608},76.64,"À la fin du projet (suite au dernier versement)"]
[null,{"$f":"IF(LEN('Détail des projets'!B269)=0,\"\",'Détail des projets'!B269)","v":"50643-355 - Construction bâtiment - Immeuble du 860, boulevard de la Côte-Vertu"},{"$f":"IF(LEN('Détail des projets'!C269)=0,\"\",'Détail des projets'!C269)","v":"Marguérite-Bourgeoys"},{"$f":"IF(LEN('Détail des projets'!G269)=0,\"\",'Détail des projets'!G269)","v":" 06-Montréal "},{"$f":"IF(LEN('Détail des projets'!K269)=0,\"\",'Détail des projets'!K269)","v":65362},29.71,"À la fin du projet (suite au dernier versement)"]
[null,{"$f":"IF(LEN('Détail des projets'!B270)=0,\"\",'Détail des projets'!B270)","v":"50643-356 - Nouveau Batiment"},{"$f":"IF(LEN('Détail des projets'!C270)=0,\"\",'Détail des projets'!C270)","v":"Marguérite-Bourgeoys"},{"$f":"IF(LEN('Détail des projets'!G270)=0,\"\",'Détail des projets'!G270)","v":" 06-Montréal "},{"$f":"IF(LEN('Détail des projets'!K270)=0,\"\",'Détail des projets'!K270)","v":131934},59.97,"À la fin du projet (suite au dernier versement)"]
[null,{"$f":"IF(LEN('Détail des projets'!B271)=0,\"\",'Détail des projets'!B271)","v":"50643-357 - Nouveau Batiment"},{"$f":"IF(LEN('Détail des projets'!C271)=0,\"\",'Détail des projets'!C271)","v":"Marguérite-Bourgeoys"},{"$f":"IF(LEN('Détail des projets'!G271)=0,\"\",'Détail des projets'!G271)","v":" 06-Montréal "},{"$f":"IF(LEN('Détail des projets'!K271)=0,\"\",'Détail des projets'!K271)","v":74756},33.979999999999997,"À la fin du projet (suite au dernier versement)"]
[null,{"$f":"IF(LEN('Détail des projets'!B272)=0,\"\",'Détail des projets'!B272)","v":"50643-358 - Nouveau Batiment"},{"$f":"IF(LEN('Détail des projets'!C272)=0,\"\",'Détail des projets'!C272)","v":"Marguérite-Bourgeoys"},{"$f":"IF(LEN('Détail des projets'!G272)=0,\"\",'Détail des projets'!G272)","v":" 06-Montréal "},{"$f":"IF(LEN('Détail des projets'!K272)=0,\"\",'Détail des projets'!K272)","v":154220},70.099999999999994,"À la fin du projet (suite au dernier versement)"]
[null,{"$f":"IF(LEN('Détail des projets'!B273)=0,\"\",'Détail des projets'!B273)","v":"50643-359 - Nouveau Batiment"},{"$f":"IF(LEN('Détail des projets'!C273)=0,\"\",'Détail des projets'!C273)","v":"Marguérite-Bourgeoys"},{"$f":"IF(LEN('Détail des projets'!G273)=0,\"\",'Détail des projets'!G273)","v":" 06-Montréal "},{"$f":"IF(LEN('Détail des projets'!K273)=0,\"\",'Détail des projets'!K273)","v":129866},59.03,"À la fin du projet (suite au dernier versement)"]
[null,{"$f":"IF(LEN('Détail des projets'!B274)=0,\"\",'Détail des projets'!B274)","v":"50643-360 - Nouvelle école secondaire Pierrefonds"},{"$f":"IF(LEN('Détail des projets'!C274)=0,\"\",'Détail des projets'!C274)","v":"Marguérite-Bourgeoys"},{"$f":"IF(LEN('Détail des projets'!G274)=0,\"\",'Détail des projets'!G274)","v":" 06-Montréal "},{"$f":"IF(LEN('Détail des projets'!K274)=0,\"\",'Détail des projets'!K274)","v":758758},344.89,"À la fin du projet (suite au dernier versement)"]
[null,{"$f":"IF(LEN('Détail des projets'!B275)=0,\"\",'Détail des projets'!B275)","v":"50643-361 - Nouveau Batiment"},{"$f":"IF(LEN('Détail des projets'!C275)=0,\"\",'Détail des projets'!C275)","v":"Marguérite-Bourgeoys"},{"$f":"IF(LEN('Détail des projets'!G275)=0,\"\",'Détail des projets'!G275)","v":" 06-Montréal "},{"$f":"IF(LEN('Détail des projets'!K275)=0,\"\",'Détail des projets'!K275)","v":173734},78.97,"À la fin du projet (suite au dernier versement)"]
[null,{"$f":"IF(LEN('Détail des projets'!B276)=0,\"\",'Détail des projets'!B276)","v":"50643-362 - Construction bâtiment - Ajagudak"},{"$f":"IF(LEN('Détail des projets'!C276)=0,\"\",'Détail des projets'!C276)","v":"Kativik"},{"$f":"IF(LEN('Détail des projets'!G276)=0,\"\",'Détail des projets'!G276)","v":" 10-Nord-du-Québec "},{"$f":"IF(LEN('Détail des projets'!K276)=0,\"\",'Détail des projets'!K276)","v":47212},21.46,"À la fin du projet (suite au dernier versement)"]
[null,{"$f":"IF(LEN('Détail des projets'!B277)=0,\"\",'Détail des projets'!B277)","v":"50643-363 - Construction bâtiment - Tukisiniarvik"},{"$f":"IF(LEN('Détail des projets'!C277)=0,\"\",'Détail des projets'!C277)","v":"Kativik"},{"$f":"IF(LEN('Détail des projets'!G277)=0,\"\",'Détail des projets'!G277)","v":" 10-Nord-du-Québec "},{"$f":"IF(LEN('Détail des projets'!K277)=0,\"\",'Détail des projets'!K277)","v":66770},30.35,"À la fin du projet (suite au dernier versement)"]
[null,{"$f":"IF(LEN('Détail des projets'!B278)=0,\"\",'Détail des projets'!B278)","v":"50643-364 - Nouveau Batiment"},{"$f":"IF(LEN('Détail des projets'!C278)=0,\"\",'Détail des projets'!C278)","v":"Draveurs"},{"$f":"IF(LEN('Détail des projets'!G278)=0,\"\",'Détail des projets'!G278)","v":" 07-Outaouais "},{"$f":"IF(LEN('Détail des projets'!K278)=0,\"\",'Détail des projets'!K278)","v":131846},59.93,"À la fin du projet (suite au dernier versement)"]
[null,{"$f":"IF(LEN('Détail des projets'!B279)=0,\"\",'Détail des projets'!B279)","v":"50643-365 - Construction bâtiment - Amérique-Française, de l'"},{"$f":"IF(LEN('Détail des projets'!C279)=0,\"\",'Détail des projets'!C279)","v":"Portages-de-l'Outaouais"},{"$f":"IF(LEN('Détail des projets'!G279)=0,\"\",'Détail des projets'!G279)","v":" 07-Outaouais "},{"$f":"IF(LEN('Détail des projets'!K279)=0,\"\",'Détail des projets'!K279)","v":18040},8.1999999999999993,"À la fin du projet (suite au dernier versement)"]
[null,{"$f":"IF(LEN('Détail des projets'!B280)=0,\"\",'Détail des projets'!B280)","v":"50643-366 - Nouveau Batiment"},{"$f":"IF(LEN('Détail des projets'!C280)=0,\"\",'Détail des projets'!C280)","v":"Portages-de-l'Outaouais"},{"$f":"IF(LEN('Détail des projets'!G280)=0,\"\",'Détail des projets'!G280)","v":" 07-Outaouais "},{"$f":"IF(LEN('Détail des projets'!K280)=0,\"\",'Détail des projets'!K280)","v":168608},76.64,"À la fin du projet (suite au dernier versement)"]
[null,{"$f":"IF(LEN('Détail des projets'!B281)=0,\"\",'Détail des projets'!B281)","v":"50643-367 - Nouveau Batiment"},{"$f":"IF(LEN('Détail des projets'!C281)=0,\"\",'Détail des projets'!C281)","v":"Portages-de-l'Outaouais"},{"$f":"IF(LEN('Détail des projets'!G281)=0,\"\",'Détail des projets'!G281)","v":" 07-Outaouais "},{"$f":"IF(LEN('Détail des projets'!K281)=0,\"\",'Détail des projets'!K281)","v":137500},62.5,"À la fin du projet (suite au dernier versement)"]
[null,{"$f":"IF(LEN('Détail des projets'!B282)=0,\"\",'Détail des projets'!B282)","v":"50643-368 - Construction bâtiment - Sainte-Cécile"},{"$f":"IF(LEN('Détail des projets'!C282)=0,\"\",'Détail des projets'!C282)","v":"Portages-de-l'Outaouais"},{"$f":"IF(LEN('Détail des projets'!G282)=0,\"\",'Détail des projets'!G282)","v":" 07-Outaouais "},{"$f":"IF(LEN('Détail des projets'!K282)=0,\"\",'Détail des projets'!K282)","v":32714},14.87,"À la fin du projet (suite au dernier versement)"]
[null,{"$f":"IF(LEN('Détail des projets'!B283)=0,\"\",'Détail des projets'!B283)","v":"50643-369 - Construction bâtiment - Parc-de-la-Montagne, du"},{"$f":"IF(LEN('Détail des projets'!C283)=0,\"\",'Détail des projets'!C283)","v":"Portages-de-l'Outaouais"},{"$f":"IF(LEN('Détail des projets'!G283)=0,\"\",'Détail des projets'!G283)","v":" 07-Outaouais "},{"$f":"IF(LEN('Détail des projets'!K283)=0,\"\",'Détail des projets'!K283)","v":58696},26.68,"À la fin du projet (suite au dernier versement)"]
[null,{"$f":"IF(LEN('Détail des projets'!B284)=0,\"\",'Détail des projets'!B284)","v":"50643-370 - Nouveau Batiment"},{"$f":"IF(LEN('Détail des projets'!C284)=0,\"\",'Détail des projets'!C284)","v":"Coeur-des-Vallées"},{"$f":"IF(LEN('Détail des projets'!G284)=0,\"\",'Détail des projets'!G284)","v":" 07-Outaouais "},{"$f":"IF(LEN('Détail des projets'!K284)=0,\"\",'Détail des projets'!K284)","v":94050},42.75,"À la fin du projet (suite au dernier versement)"]
[null,{"$f":"IF(LEN('Détail des projets'!B285)=0,\"\",'Détail des projets'!B285)","v":"50643-371 - Construction bâtiment - Monseigneur-Blanche"},{"$f":"IF(LEN('Détail des projets'!C285)=0,\"\",'Détail des projets'!C285)","v":"Fer"},{"$f":"IF(LEN('Détail des projets'!G285)=0,\"\",'Détail des projets'!G285)","v":" 09-Côte-Nord "},{"$f":"IF(LEN('Détail des projets'!K285)=0,\"\",'Détail des projets'!K285)","v":13222},6.01,"À la fin du projet (suite au dernier versement)"]
[null,{"$f":"IF(LEN('Détail des projets'!B286)=0,\"\",'Détail des projets'!B286)","v":"50643-372 - Nouveau Batiment"},{"$f":"IF(LEN('Détail des projets'!C286)=0,\"\",'Détail des projets'!C286)","v":"Baie-James"},{"$f":"IF(LEN('Détail des projets'!G286)=0,\"\",'Détail des projets'!G286)","v":" 10-Nord-du-Québec "},{"$f":"IF(LEN('Détail des projets'!K286)=0,\"\",'Détail des projets'!K286)","v":23738},10.79,"À la fin du projet (suite au dernier versement)"]
[null,{"$f":"IF(LEN('Détail des projets'!B287)=0,\"\",'Détail des projets'!B287)","v":"50643-373 - Construction bâtiment - Couvent du Bon-Pasteur"},{"$f":"IF(LEN('Détail des projets'!C287)=0,\"\",'Détail des projets'!C287)","v":"Cote-du-sud"},{"$f":"IF(LEN('Détail des projets'!G287)=0,\"\",'Détail des projets'!G287)","v":" 12-Chaudières-Appalaches "},{"$f":"IF(LEN('Détail des projets'!K287)=0,\"\",'Détail des projets'!K287)","v":21538},9.7899999999999991,"À la fin du projet (suite au dernier versement)"]
[null,{"$f":"IF(LEN('Détail des projets'!B288)=0,\"\",'Détail des projets'!B288)","v":"50643-374 - Nouveau Batiment"},{"$f":"IF(LEN('Détail des projets'!C288)=0,\"\",'Détail des projets'!C288)","v":"Cote-du-sud"},{"$f":"IF(LEN('Détail des projets'!G288)=0,\"\",'Détail des projets'!G288)","v":" 11-Gaspésie-Iles-de-la-Madeleine "},{"$f":"IF(LEN('Détail des projets'!K288)=0,\"\",'Détail des projets'!K288)","v":93830},42.65,"À la fin du projet (suite au dernier versement)"]
[null,{"$f":"IF(LEN('Détail des projets'!B289)=0,\"\",'Détail des projets'!B289)","v":"50643-375 - Construction bâtiment - Saint-Nicolas"},{"$f":"IF(LEN('Détail des projets'!C289)=0,\"\",'Détail des projets'!C289)","v":"Cote-du-sud"},{"$f":"IF(LEN('Détail des projets'!G289)=0,\"\",'Détail des projets'!G289)","v":" 12-Chaudières-Appalaches "},{"$f":"IF(LEN('Détail des projets'!K289)=0,\"\",'Détail des projets'!K289)","v":13222},6.01,"À la fin du projet (suite au dernier versement)"]
[null,{"$f":"IF(LEN('Détail des projets'!B290)=0,\"\",'Détail des projets'!B290)","v":"50643-376 - Construction bâtiment - Serre PBV"},{"$f":"IF(LEN('Détail des projets'!C290)=0,\"\",'Détail des projets'!C290)","v":"Beauce-Etchemin"},{"$f":"IF(LEN('Détail des projets'!G290)=0,\"\",'Détail des projets'!G290)","v":" 12-Chaudières-Appalaches "},{"$f":"IF(LEN('Détail des projets'!K290)=0,\"\",'Détail des projets'!K290)","v":115192},52.36,"À la fin du projet (suite au dernier versement)"]
[null,{"$f":"IF(LEN('Détail des projets'!B291)=0,\"\",'Détail des projets'!B291)","v":"50643-377 - Construction bâtiment - Boisé, du"},{"$f":"IF(LEN('Détail des projets'!C291)=0,\"\",'Détail des projets'!C291)","v":"Navigateurs"},{"$f":"IF(LEN('Détail des projets'!G291)=0,\"\",'Détail des projets'!G291)","v":" 12-Chaudières-Appalaches "},{"$f":"IF(LEN('Détail des projets'!K291)=0,\"\",'Détail des projets'!K291)","v":27016},12.28,"À la fin du projet (suite au dernier versement)"]
[null,{"$f":"IF(LEN('Détail des projets'!B292)=0,\"\",'Détail des projets'!B292)","v":"50643-378 - Construction bâtiment - Grand-Voilier (Hirondelles), du"},{"$f":"IF(LEN('Détail des projets'!C292)=0,\"\",'Détail des projets'!C292)","v":"Navigateurs"},{"$f":"IF(LEN('Détail des projets'!G292)=0,\"\",'Détail des projets'!G292)","v":" 12-Chaudières-Appalaches "},{"$f":"IF(LEN('Détail des projets'!K292)=0,\"\",'Détail des projets'!K292)","v":27676},12.58,"À la fin du projet (suite au dernier versement)"]
[null,{"$f":"IF(LEN('Détail des projets'!B293)=0,\"\",'Détail des projets'!B293)","v":"50643-379 - Construction bâtiment - Ruisseau, du"},{"$f":"IF(LEN('Détail des projets'!C293)=0,\"\",'Détail des projets'!C293)","v":"Navigateurs"},{"$f":"IF(LEN('Détail des projets'!G293)=0,\"\",'Détail des projets'!G293)","v":" 12-Chaudières-Appalaches "},{"$f":"IF(LEN('Détail des projets'!K293)=0,\"\",'Détail des projets'!K293)","v":59510},27.05,"À la fin du projet (suite au dernier versement)"]
[null,{"$f":"IF(LEN('Détail des projets'!B294)=0,\"\",'Détail des projets'!B294)","v":"50643-380 - Construction bâtiment - Sainte-Marie"},{"$f":"IF(LEN('Détail des projets'!C294)=0,\"\",'Détail des projets'!C294)","v":"Navigateurs"},{"$f":"IF(LEN('Détail des projets'!G294)=0,\"\",'Détail des projets'!G294)","v":" 12-Chaudières-Appalaches "},{"$f":"IF(LEN('Détail des projets'!K294)=0,\"\",'Détail des projets'!K294)","v":18040},8.1999999999999993,"À la fin du projet (suite au dernier versement)"]
[null,{"$f":"IF(LEN('Détail des projets'!B295)=0,\"\",'Détail des projets'!B295)","v":"50643-381 - Construction bâtiment - Épervière, l'"},{"$f":"IF(LEN('Détail des projets'!C295)=0,\"\",'Détail des projets'!C295)","v":"Navigateurs"},{"$f":"IF(LEN('Détail des projets'!G295)=0,\"\",'Détail des projets'!G295)","v":" 12-Chaudières-Appalaches "},{"$f":"IF(LEN('Détail des projets'!K295)=0,\"\",'Détail des projets'!K295)","v":42328},19.239999999999998,"À la fin du projet (suite au dernier versement)"]
[null,{"$f":"IF(LEN('Détail des projets'!B296)=0,\"\",'Détail des projets'!B296)","v":"50643-382 - Construction bâtiment - Saint-Dominique"},{"$f":"IF(LEN('Détail des projets'!C296)=0,\"\",'Détail des projets'!C296)","v":"Navigateurs"},{"$f":"IF(LEN('Détail des projets'!G296)=0,\"\",'Détail des projets'!G296)","v":" 12-Chaudières-Appalaches "},{"$f":"IF(LEN('Détail des projets'!K296)=0,\"\",'Détail des projets'!K296)","v":27016},12.28,"À la fin du projet (suite au dernier versement)"]
[null,{"$f":"IF(LEN('Détail des projets'!B297)=0,\"\",'Détail des projets'!B297)","v":"50643-383 - Construction bâtiment - Odyssée, de l'"},{"$f":"IF(LEN('Détail des projets'!C297)=0,\"\",'Détail des projets'!C297)","v":"Navigateurs"},{"$f":"IF(LEN('Détail des projets'!G297)=0,\"\",'Détail des projets'!G297)","v":" 12-Chaudières-Appalaches "},{"$f":"IF(LEN('Détail des projets'!K297)=0,\"\",'Détail des projets'!K297)","v":18040},8.1999999999999993,"À la fin du projet (suite au dernier versement)"]
[null,{"$f":"IF(LEN('Détail des projets'!B298)=0,\"\",'Détail des projets'!B298)","v":"50643-384 - Construction bâtiment - Clair-Soleil"},{"$f":"IF(LEN('Détail des projets'!C298)=0,\"\",'Détail des projets'!C298)","v":"Navigateurs"},{"$f":"IF(LEN('Détail des projets'!G298)=0,\"\",'Détail des projets'!G298)","v":" 12-Chaudières-Appalaches "},{"$f":"IF(LEN('Détail des projets'!K298)=0,\"\",'Détail des projets'!K298)","v":36014},16.37,"À la fin du projet (suite au dernier versement)"]
[null,{"$f":"IF(LEN('Détail des projets'!B299)=0,\"\",'Détail des projets'!B299)","v":"50643-385 - Construction bâtiment - Fleur-de-Vie, pavillon B"},{"$f":"IF(LEN('Détail des projets'!C299)=0,\"\",'Détail des projets'!C299)","v":"Laval"},{"$f":"IF(LEN('Détail des projets'!G299)=0,\"\",'Détail des projets'!G299)","v":" 13-Laval "},{"$f":"IF(LEN('Détail des projets'!K299)=0,\"\",'Détail des projets'!K299)","v":37796},17.18,"À la fin du projet (suite au dernier versement)"]
[null,{"$f":"IF(LEN('Détail des projets'!B300)=0,\"\",'Détail des projets'!B300)","v":"50643-386 - Construction bâtiment - Le Baluchon"},{"$f":"IF(LEN('Détail des projets'!C300)=0,\"\",'Détail des projets'!C300)","v":"Laval"},{"$f":"IF(LEN('Détail des projets'!G300)=0,\"\",'Détail des projets'!G300)","v":" 13-Laval "},{"$f":"IF(LEN('Détail des projets'!K300)=0,\"\",'Détail des projets'!K300)","v":20394},9.27,"À la fin du projet (suite au dernier versement)"]
[null,{"$f":"IF(LEN('Détail des projets'!B301)=0,\"\",'Détail des projets'!B301)","v":"50643-387 - Construction bâtiment - Pavillon Ulric-Debien"},{"$f":"IF(LEN('Détail des projets'!C301)=0,\"\",'Détail des projets'!C301)","v":"Laval"},{"$f":"IF(LEN('Détail des projets'!G301)=0,\"\",'Détail des projets'!G301)","v":" 13-Laval "},{"$f":"IF(LEN('Détail des projets'!K301)=0,\"\",'Détail des projets'!K301)","v":70554},32.07,"À la fin du projet (suite au dernier versement)"]
[null,{"$f":"IF(LEN('Détail des projets'!B302)=0,\"\",'Détail des projets'!B302)","v":"50643-388 - Construction bâtiment - Édifice Cunard"},{"$f":"IF(LEN('Détail des projets'!C302)=0,\"\",'Détail des projets'!C302)","v":"Laval"},{"$f":"IF(LEN('Détail des projets'!G302)=0,\"\",'Détail des projets'!G302)","v":" 13-Laval "},{"$f":"IF(LEN('Détail des projets'!K302)=0,\"\",'Détail des projets'!K302)","v":471592},214.36,"À la fin du projet (suite au dernier versement)"]
[null,{"$f":"IF(LEN('Détail des projets'!B303)=0,\"\",'Détail des projets'!B303)","v":"50643-389 - Nouvelle école pour adultes à Chomedey"},{"$f":"IF(LEN('Détail des projets'!C303)=0,\"\",'Détail des projets'!C303)","v":"Laval"},{"$f":"IF(LEN('Détail des projets'!G303)=0,\"\",'Détail des projets'!G303)","v":" 13-Laval "},{"$f":"IF(LEN('Détail des projets'!K303)=0,\"\",'Détail des projets'!K303)","v":33396},15.18,"À la fin du projet (suite au dernier versement)"]
[null,{"$f":"IF(LEN('Détail des projets'!B304)=0,\"\",'Détail des projets'!B304)","v":"50643-390 - Nouveau Batiment"},{"$f":"IF(LEN('Détail des projets'!C304)=0,\"\",'Détail des projets'!C304)","v":"Laval"},{"$f":"IF(LEN('Détail des projets'!G304)=0,\"\",'Détail des projets'!G304)","v":" 13-Laval "},{"$f":"IF(LEN('Détail des projets'!K304)=0,\"\",'Détail des projets'!K304)","v":125950},57.25,"À la fin du projet (suite au dernier versement)"]
[null,{"$f":"IF(LEN('Détail des projets'!B305)=0,\"\",'Détail des projets'!B305)","v":"50643-391 - Nouveau Batiment"},{"$f":"IF(LEN('Détail des projets'!C305)=0,\"\",'Détail des projets'!C305)","v":"Laval"},{"$f":"IF(LEN('Détail des projets'!G305)=0,\"\",'Détail des projets'!G305)","v":" 13-Laval "},{"$f":"IF(LEN('Détail des projets'!K305)=0,\"\",'Détail des projets'!K305)","v":144012},65.459999999999994,"À la fin du projet (suite au dernier versement)"]
[null,{"$f":"IF(LEN('Détail des projets'!B306)=0,\"\",'Détail des projets'!B306)","v":"50643-392 - Contruction bâtiment - Centre administratif, édifice 3"},{"$f":"IF(LEN('Détail des projets'!C306)=0,\"\",'Détail des projets'!C306)","v":"Laval"},{"$f":"IF(LEN('Détail des projets'!G306)=0,\"\",'Détail des projets'!G306)","v":" 13-Laval "},{"$f":"IF(LEN('Détail des projets'!K306)=0,\"\",'Détail des projets'!K306)","v":89188},40.54,"À la fin du projet (suite au dernier versement)"]
[null,{"$f":"IF(LEN('Détail des projets'!B307)=0,\"\",'Détail des projets'!B307)","v":"50643-393 - Nouveau Batiment"},{"$f":"IF(LEN('Détail des projets'!C307)=0,\"\",'Détail des projets'!C307)","v":"Laval"},{"$f":"IF(LEN('Détail des projets'!G307)=0,\"\",'Détail des projets'!G307)","v":" 13-Laval "},{"$f":"IF(LEN('Détail des projets'!K307)=0,\"\",'Détail des projets'!K307)","v":148764},67.62,"À la fin du projet (suite au dernier versement)"]
[null,{"$f":"IF(LEN('Détail des projets'!B308)=0,\"\",'Détail des projets'!B308)","v":"50643-394 - Construction bâtiment - Les Berges, édifice 1"},{"$f":"IF(LEN('Détail des projets'!C308)=0,\"\",'Détail des projets'!C308)","v":"Laval"},{"$f":"IF(LEN('Détail des projets'!G308)=0,\"\",'Détail des projets'!G308)","v":" 13-Laval "},{"$f":"IF(LEN('Détail des projets'!K308)=0,\"\",'Détail des projets'!K308)","v":102212},46.46,"À la fin du projet (suite au dernier versement)"]
[null,{"$f":"IF(LEN('Détail des projets'!B309)=0,\"\",'Détail des projets'!B309)","v":"50643-395 - Construction bâtiment - Les Berges, édifice 2"},{"$f":"IF(LEN('Détail des projets'!C309)=0,\"\",'Détail des projets'!C309)","v":"Laval"},{"$f":"IF(LEN('Détail des projets'!G309)=0,\"\",'Détail des projets'!G309)","v":" 13-Laval "},{"$f":"IF(LEN('Détail des projets'!K309)=0,\"\",'Détail des projets'!K309)","v":51634},23.47,"À la fin du projet (suite au dernier versement)"]
[null,{"$f":"IF(LEN('Détail des projets'!B310)=0,\"\",'Détail des projets'!B310)","v":"50643-396 - Construction bâtiment - Sainte-Croix, pavillon"},{"$f":"IF(LEN('Détail des projets'!C310)=0,\"\",'Détail des projets'!C310)","v":"Laval"},{"$f":"IF(LEN('Détail des projets'!G310)=0,\"\",'Détail des projets'!G310)","v":" 13-Laval "},{"$f":"IF(LEN('Détail des projets'!K310)=0,\"\",'Détail des projets'!K310)","v":46970},21.35,"À la fin du projet (suite au dernier versement)"]
[null,{"$f":"IF(LEN('Détail des projets'!B311)=0,\"\",'Détail des projets'!B311)","v":"50643-397 - Construction bâtiment - Du Coteau"},{"$f":"IF(LEN('Détail des projets'!C311)=0,\"\",'Détail des projets'!C311)","v":"Affluents"},{"$f":"IF(LEN('Détail des projets'!G311)=0,\"\",'Détail des projets'!G311)","v":" 14-Lanaudière "},{"$f":"IF(LEN('Détail des projets'!K311)=0,\"\",'Détail des projets'!K311)","v":121396},55.18,"À la fin du projet (suite au dernier versement)"]
[null,{"$f":"IF(LEN('Détail des projets'!B312)=0,\"\",'Détail des projets'!B312)","v":"50643-398 - Construction bâtiment - Source d'Autray, de la"},{"$f":"IF(LEN('Détail des projets'!C312)=0,\"\",'Détail des projets'!C312)","v":"Samares"},{"$f":"IF(LEN('Détail des projets'!G312)=0,\"\",'Détail des projets'!G312)","v":" 14-Lanaudière "},{"$f":"IF(LEN('Détail des projets'!K312)=0,\"\",'Détail des projets'!K312)","v":59510},27.05,"À la fin du projet (suite au dernier versement)"]
[null,{"$f":"IF(LEN('Détail des projets'!B313)=0,\"\",'Détail des projets'!B313)","v":"50643-399 - Construction bâtiment - Sainte-Bernadette"},{"$f":"IF(LEN('Détail des projets'!C313)=0,\"\",'Détail des projets'!C313)","v":"Samares"},{"$f":"IF(LEN('Détail des projets'!G313)=0,\"\",'Détail des projets'!G313)","v":" 14-Lanaudière "},{"$f":"IF(LEN('Détail des projets'!K313)=0,\"\",'Détail des projets'!K313)","v":17556},7.98,"À la fin du projet (suite au dernier versement)"]
[null,{"$f":"IF(LEN('Détail des projets'!B314)=0,\"\",'Détail des projets'!B314)","v":"50643-400 - Construction bâtiment - Notre-Dame"},{"$f":"IF(LEN('Détail des projets'!C314)=0,\"\",'Détail des projets'!C314)","v":"Samares"},{"$f":"IF(LEN('Détail des projets'!G314)=0,\"\",'Détail des projets'!G314)","v":" 14-Lanaudière "},{"$f":"IF(LEN('Détail des projets'!K314)=0,\"\",'Détail des projets'!K314)","v":82016},37.28,"À la fin du projet (suite au dernier versement)"]
[null,{"$f":"IF(LEN('Détail des projets'!B315)=0,\"\",'Détail des projets'!B315)","v":"50643-401 - Nouveau Batiment"},{"$f":"IF(LEN('Détail des projets'!C315)=0,\"\",'Détail des projets'!C315)","v":"Samares"},{"$f":"IF(LEN('Détail des projets'!G315)=0,\"\",'Détail des projets'!G315)","v":" 14-Lanaudière "},{"$f":"IF(LEN('Détail des projets'!K315)=0,\"\",'Détail des projets'!K315)","v":178420},81.099999999999994,"À la fin du projet (suite au dernier versement)"]
[null,{"$f":"IF(LEN('Détail des projets'!B316)=0,\"\",'Détail des projets'!B316)","v":"50643-402 - Nouveau Batiment"},{"$f":"IF(LEN('Détail des projets'!C316)=0,\"\",'Détail des projets'!C316)","v":"Samares"},{"$f":"IF(LEN('Détail des projets'!G316)=0,\"\",'Détail des projets'!G316)","v":" 14-Lanaudière "},{"$f":"IF(LEN('Détail des projets'!K316)=0,\"\",'Détail des projets'!K316)","v":93830},42.65,"À la fin du projet (suite au dernier versement)"]
[null,{"$f":"IF(LEN('Détail des projets'!B317)=0,\"\",'Détail des projets'!B317)","v":"50643-403 - Construction bâtiment - Terre des Jeunes"},{"$f":"IF(LEN('Détail des projets'!C317)=0,\"\",'Détail des projets'!C317)","v":"Seigneurie-des-Mille-Îles"},{"$f":"IF(LEN('Détail des projets'!G317)=0,\"\",'Détail des projets'!G317)","v":" 15-Laurentides "},{"$f":"IF(LEN('Détail des projets'!K317)=0,\"\",'Détail des projets'!K317)","v":89782},40.81,"À la fin du projet (suite au dernier versement)"]
[null,{"$f":"IF(LEN('Détail des projets'!B318)=0,\"\",'Détail des projets'!B318)","v":"50643-404 - Construction bâtiment - Saint-Pierre"},{"$f":"IF(LEN('Détail des projets'!C318)=0,\"\",'Détail des projets'!C318)","v":"Seigneurie-des-Mille-Îles"},{"$f":"IF(LEN('Détail des projets'!G318)=0,\"\",'Détail des projets'!G318)","v":" 15-Laurentides "},{"$f":"IF(LEN('Détail des projets'!K318)=0,\"\",'Détail des projets'!K318)","v":18040},8.1999999999999993,"À la fin du projet (suite au dernier versement)"]
[null,{"$f":"IF(LEN('Détail des projets'!B319)=0,\"\",'Détail des projets'!B319)","v":"50643-405 - Construction bâtiment - Harfang, pavillon Saint-François, secondaire du"},{"$f":"IF(LEN('Détail des projets'!C319)=0,\"\",'Détail des projets'!C319)","v":"Seigneurie-des-Mille-Îles"},{"$f":"IF(LEN('Détail des projets'!G319)=0,\"\",'Détail des projets'!G319)","v":" 15-Laurentides "},{"$f":"IF(LEN('Détail des projets'!K319)=0,\"\",'Détail des projets'!K319)","v":87340},39.700000000000003,"À la fin du projet (suite au dernier versement)"]
[null,{"$f":"IF(LEN('Détail des projets'!B320)=0,\"\",'Détail des projets'!B320)","v":"50643-406 - Construction bâtiment - Du Harfang"},{"$f":"IF(LEN('Détail des projets'!C320)=0,\"\",'Détail des projets'!C320)","v":"Seigneurie-des-Mille-Îles"},{"$f":"IF(LEN('Détail des projets'!G320)=0,\"\",'Détail des projets'!G320)","v":" 15-Laurentides "},{"$f":"IF(LEN('Détail des projets'!K320)=0,\"\",'Détail des projets'!K320)","v":199254},90.57,"À la fin du projet (suite au dernier versement)"]
[null,{"$f":"IF(LEN('Détail des projets'!B321)=0,\"\",'Détail des projets'!B321)","v":"50643-407 - Construction bâtiment - Blés-Dorés, des"},{"$f":"IF(LEN('Détail des projets'!C321)=0,\"\",'Détail des projets'!C321)","v":"Seigneurie-des-Mille-Îles"},{"$f":"IF(LEN('Détail des projets'!G321)=0,\"\",'Détail des projets'!G321)","v":" 15-Laurentides "},{"$f":"IF(LEN('Détail des projets'!K321)=0,\"\",'Détail des projets'!K321)","v":18040},8.1999999999999993,"À la fin du projet (suite au dernier versement)"]
[null,{"$f":"IF(LEN('Détail des projets'!B322)=0,\"\",'Détail des projets'!B322)","v":"50643-408 - Construction bâtiment - Horizon-du-Lac"},{"$f":"IF(LEN('Détail des projets'!C322)=0,\"\",'Détail des projets'!C322)","v":"Seigneurie-des-Mille-Îles"},{"$f":"IF(LEN('Détail des projets'!G322)=0,\"\",'Détail des projets'!G322)","v":" 15-Laurentides "},{"$f":"IF(LEN('Détail des projets'!K322)=0,\"\",'Détail des projets'!K322)","v":18040},8.1999999999999993,"À la fin du projet (suite au dernier versement)"]
[null,{"$f":"IF(LEN('Détail des projets'!B323)=0,\"\",'Détail des projets'!B323)","v":"50643-409 - Nouveau Batiment"},{"$f":"IF(LEN('Détail des projets'!C323)=0,\"\",'Détail des projets'!C323)","v":"Seigneurie-des-Mille-Îles"},{"$f":"IF(LEN('Détail des projets'!G323)=0,\"\",'Détail des projets'!G323)","v":" 15-Laurentides "},{"$f":"IF(LEN('Détail des projets'!K323)=0,\"\",'Détail des projets'!K323)","v":103180},46.9,"À la fin du projet (suite au dernier versement)"]
[null,{"$f":"IF(LEN('Détail des projets'!B324)=0,\"\",'Détail des projets'!B324)","v":"50643-410 - Nouveau Batiment"},{"$f":"IF(LEN('Détail des projets'!C324)=0,\"\",'Détail des projets'!C324)","v":"Seigneurie-des-Mille-Îles"},{"$f":"IF(LEN('Détail des projets'!G324)=0,\"\",'Détail des projets'!G324)","v":" 14-Lanaudière "},{"$f":"IF(LEN('Détail des projets'!K324)=0,\"\",'Détail des projets'!K324)","v":173734},78.97,"À la fin du projet (suite au dernier versement)"]
[null,{"$f":"IF(LEN('Détail des projets'!B325)=0,\"\",'Détail des projets'!B325)","v":"50643-411 - Construction bâtiment - Sainte-Thérèse-de-l'Enfant-Jésus"},{"$f":"IF(LEN('Détail des projets'!C325)=0,\"\",'Détail des projets'!C325)","v":"Rivière-du-Nord"},{"$f":"IF(LEN('Détail des projets'!G325)=0,\"\",'Détail des projets'!G325)","v":" 15-Laurentides "},{"$f":"IF(LEN('Détail des projets'!K325)=0,\"\",'Détail des projets'!K325)","v":96712},43.96,"À la fin du projet (suite au dernier versement)"]
[null,{"$f":"IF(LEN('Détail des projets'!B326)=0,\"\",'Détail des projets'!B326)","v":"50643-412 - Nouveau Batiment"},{"$f":"IF(LEN('Détail des projets'!C326)=0,\"\",'Détail des projets'!C326)","v":"Rivière-du-Nord"},{"$f":"IF(LEN('Détail des projets'!G326)=0,\"\",'Détail des projets'!G326)","v":" 15-Laurentides "},{"$f":"IF(LEN('Détail des projets'!K326)=0,\"\",'Détail des projets'!K326)","v":167948},76.34,"À la fin du projet (suite au dernier versement)"]
[null,{"$f":"IF(LEN('Détail des projets'!B327)=0,\"\",'Détail des projets'!B327)","v":"50643-413 - Nouveau Batiment"},{"$f":"IF(LEN('Détail des projets'!C327)=0,\"\",'Détail des projets'!C327)","v":"Rivière-du-Nord"},{"$f":"IF(LEN('Détail des projets'!G327)=0,\"\",'Détail des projets'!G327)","v":" 15-Laurentides "},{"$f":"IF(LEN('Détail des projets'!K327)=0,\"\",'Détail des projets'!K327)","v":160688},73.040000000000006,"À la fin du projet (suite au dernier versement)"]
[null,{"$f":"IF(LEN('Détail des projets'!B328)=0,\"\",'Détail des projets'!B328)","v":"50643-414 - Nouveau Batiment"},{"$f":"IF(LEN('Détail des projets'!C328)=0,\"\",'Détail des projets'!C328)","v":"Rivière-du-Nord"},{"$f":"IF(LEN('Détail des projets'!G328)=0,\"\",'Détail des projets'!G328)","v":" 15-Laurentides "},{"$f":"IF(LEN('Détail des projets'!K328)=0,\"\",'Détail des projets'!K328)","v":58300},26.5,"À la fin du projet (suite au dernier versement)"]
[null,{"$f":"IF(LEN('Détail des projets'!B329)=0,\"\",'Détail des projets'!B329)","v":"50643-415 - Nouveau Batiment"},{"$f":"IF(LEN('Détail des projets'!C329)=0,\"\",'Détail des projets'!C329)","v":"Rivière-du-Nord"},{"$f":"IF(LEN('Détail des projets'!G329)=0,\"\",'Détail des projets'!G329)","v":" 15-Laurentides "},{"$f":"IF(LEN('Détail des projets'!K329)=0,\"\",'Détail des projets'!K329)","v":146322},66.510000000000005,"À la fin du projet (suite au dernier versement)"]
[null,{"$f":"IF(LEN('Détail des projets'!B330)=0,\"\",'Détail des projets'!B330)","v":"50643-416 - Nouveau Batiment"},{"$f":"IF(LEN('Détail des projets'!C330)=0,\"\",'Détail des projets'!C330)","v":"Rivière-du-Nord"},{"$f":"IF(LEN('Détail des projets'!G330)=0,\"\",'Détail des projets'!G330)","v":" 15-Laurentides "},{"$f":"IF(LEN('Détail des projets'!K330)=0,\"\",'Détail des projets'!K330)","v":188672},85.76,"À la fin du projet (suite au dernier versement)"]
[null,{"$f":"IF(LEN('Détail des projets'!B331)=0,\"\",'Détail des projets'!B331)","v":"50643-417 - Nouveau Batiment"},{"$f":"IF(LEN('Détail des projets'!C331)=0,\"\",'Détail des projets'!C331)","v":"Laurentides"},{"$f":"IF(LEN('Détail des projets'!G331)=0,\"\",'Détail des projets'!G331)","v":" 15-Laurentides "},{"$f":"IF(LEN('Détail des projets'!K331)=0,\"\",'Détail des projets'!K331)","v":137500},62.5,"À la fin du projet (suite au dernier versement)"]
[null,{"$f":"IF(LEN('Détail des projets'!B332)=0,\"\",'Détail des projets'!B332)","v":"50643-418 - Construction bâtiment - Pavillon Tournesol"},{"$f":"IF(LEN('Détail des projets'!C332)=0,\"\",'Détail des projets'!C332)","v":"Laurentides"},{"$f":"IF(LEN('Détail des projets'!G332)=0,\"\",'Détail des projets'!G332)","v":" 15-Laurentides "},{"$f":"IF(LEN('Détail des projets'!K332)=0,\"\",'Détail des projets'!K332)","v":42328},19.239999999999998,"À la fin du projet (suite au dernier versement)"]
[null,{"$f":"IF(LEN('Détail des projets'!B333)=0,\"\",'Détail des projets'!B333)","v":"50643-419 - Nouveau Batiment"},{"$f":"IF(LEN('Détail des projets'!C333)=0,\"\",'Détail des projets'!C333)","v":"Laurentides"},{"$f":"IF(LEN('Détail des projets'!G333)=0,\"\",'Détail des projets'!G333)","v":" 15-Laurentides "},{"$f":"IF(LEN('Détail des projets'!K333)=0,\"\",'Détail des projets'!K333)","v":160688},73.040000000000006,"À la fin du projet (suite au dernier versement)"]
[null,{"$f":"IF(LEN('Détail des projets'!B334)=0,\"\",'Détail des projets'!B334)","v":"50643-420 - Construction bâtiment - Notre-Dame-de-la-Paix"},{"$f":"IF(LEN('Détail des projets'!C334)=0,\"\",'Détail des projets'!C334)","v":"Saint-Hyacinthe"},{"$f":"IF(LEN('Détail des projets'!G334)=0,\"\",'Détail des projets'!G334)","v":" 16-Montérégie "},{"$f":"IF(LEN('Détail des projets'!K334)=0,\"\",'Détail des projets'!K334)","v":32472},14.76,"À la fin du projet (suite au dernier versement)"]
[null,{"$f":"IF(LEN('Détail des projets'!B335)=0,\"\",'Détail des projets'!B335)","v":"50643-421 - Construction bâtiment - Normandie, de"},{"$f":"IF(LEN('Détail des projets'!C335)=0,\"\",'Détail des projets'!C335)","v":"Marie-Victorin"},{"$f":"IF(LEN('Détail des projets'!G335)=0,\"\",'Détail des projets'!G335)","v":" 16-Montérégie "},{"$f":"IF(LEN('Détail des projets'!K335)=0,\"\",'Détail des projets'!K335)","v":76890},34.950000000000003,"À la fin du projet (suite au dernier versement)"]
[null,{"$f":"IF(LEN('Détail des projets'!B336)=0,\"\",'Détail des projets'!B336)","v":"50643-422 - Construction bâtiment - Saint-Edmond, secondaire"},{"$f":"IF(LEN('Détail des projets'!C336)=0,\"\",'Détail des projets'!C336)","v":"Marie-Victorin"},{"$f":"IF(LEN('Détail des projets'!G336)=0,\"\",'Détail des projets'!G336)","v":" 16-Montérégie "},{"$f":"IF(LEN('Détail des projets'!K336)=0,\"\",'Détail des projets'!K336)","v":156002},70.91,"À la fin du projet (suite au dernier versement)"]
[null,{"$f":"IF(LEN('Détail des projets'!B337)=0,\"\",'Détail des projets'!B337)","v":"50643-423 - Construction bâtiment - Paul-Chagnon"},{"$f":"IF(LEN('Détail des projets'!C337)=0,\"\",'Détail des projets'!C337)","v":"Marie-Victorin"},{"$f":"IF(LEN('Détail des projets'!G337)=0,\"\",'Détail des projets'!G337)","v":" 16-Montérégie "},{"$f":"IF(LEN('Détail des projets'!K337)=0,\"\",'Détail des projets'!K337)","v":58564},26.62,"À la fin du projet (suite au dernier versement)"]
[null,{"$f":"IF(LEN('Détail des projets'!B338)=0,\"\",'Détail des projets'!B338)","v":"50643-424 - Construction bâtiment - Rabeau"},{"$f":"IF(LEN('Détail des projets'!C338)=0,\"\",'Détail des projets'!C338)","v":"Marie-Victorin"},{"$f":"IF(LEN('Détail des projets'!G338)=0,\"\",'Détail des projets'!G338)","v":" 16-Montérégie "},{"$f":"IF(LEN('Détail des projets'!K338)=0,\"\",'Détail des projets'!K338)","v":85558},38.89,"À la fin du projet (suite au dernier versement)"]
[null,{"$f":"IF(LEN('Détail des projets'!B339)=0,\"\",'Détail des projets'!B339)","v":"50643-425 - Construction bâtiment - Saint-Laurent"},{"$f":"IF(LEN('Détail des projets'!C339)=0,\"\",'Détail des projets'!C339)","v":"Marie-Victorin"},{"$f":"IF(LEN('Détail des projets'!G339)=0,\"\",'Détail des projets'!G339)","v":" 16-Montérégie "},{"$f":"IF(LEN('Détail des projets'!K339)=0,\"\",'Détail des projets'!K339)","v":52118},23.69,"À la fin du projet (suite au dernier versement)"]
[null,{"$f":"IF(LEN('Détail des projets'!B340)=0,\"\",'Détail des projets'!B340)","v":"50643-426 - Construction bâtiment - Antoine-Brossard"},{"$f":"IF(LEN('Détail des projets'!C340)=0,\"\",'Détail des projets'!C340)","v":"Marie-Victorin"},{"$f":"IF(LEN('Détail des projets'!G340)=0,\"\",'Détail des projets'!G340)","v":" 16-Montérégie "},{"$f":"IF(LEN('Détail des projets'!K340)=0,\"\",'Détail des projets'!K340)","v":644996},293.18,"À la fin du projet (suite au dernier versement)"]
[null,{"$f":"IF(LEN('Détail des projets'!B341)=0,\"\",'Détail des projets'!B341)","v":"50643-427 - Construction bâtiment - Jacques-Rousseau"},{"$f":"IF(LEN('Détail des projets'!C341)=0,\"\",'Détail des projets'!C341)","v":"Marie-Victorin"},{"$f":"IF(LEN('Détail des projets'!G341)=0,\"\",'Détail des projets'!G341)","v":" 16-Montérégie "},{"$f":"IF(LEN('Détail des projets'!K341)=0,\"\",'Détail des projets'!K341)","v":707410},321.55,"À la fin du projet (suite au dernier versement)"]
[null,{"$f":"IF(LEN('Détail des projets'!B342)=0,\"\",'Détail des projets'!B342)","v":"50643-428 - Construction bâtiment - Lucille-Teasdale, internationale"},{"$f":"IF(LEN('Détail des projets'!C342)=0,\"\",'Détail des projets'!C342)","v":"Marie-Victorin"},{"$f":"IF(LEN('Détail des projets'!G342)=0,\"\",'Détail des projets'!G342)","v":" 16-Montérégie "},{"$f":"IF(LEN('Détail des projets'!K342)=0,\"\",'Détail des projets'!K342)","v":369138},167.79,"À la fin du projet (suite au dernier versement)"]
[null,{"$f":"IF(LEN('Détail des projets'!B343)=0,\"\",'Détail des projets'!B343)","v":"50643-429 - Nouveau Batiment"},{"$f":"IF(LEN('Détail des projets'!C343)=0,\"\",'Détail des projets'!C343)","v":"Marie-Victorin"},{"$f":"IF(LEN('Détail des projets'!G343)=0,\"\",'Détail des projets'!G343)","v":" 16-Montérégie "},{"$f":"IF(LEN('Détail des projets'!K343)=0,\"\",'Détail des projets'!K343)","v":168608},76.64,"À la fin du projet (suite au dernier versement)"]
[null,{"$f":"IF(LEN('Détail des projets'!B344)=0,\"\",'Détail des projets'!B344)","v":"50643-430 - Nouveau Batiment"},{"$f":"IF(LEN('Détail des projets'!C344)=0,\"\",'Détail des projets'!C344)","v":"Marie-Victorin"},{"$f":"IF(LEN('Détail des projets'!G344)=0,\"\",'Détail des projets'!G344)","v":" 16-Montérégie "},{"$f":"IF(LEN('Détail des projets'!K344)=0,\"\",'Détail des projets'!K344)","v":173734},78.97,"À la fin du projet (suite au dernier versement)"]
[null,{"$f":"IF(LEN('Détail des projets'!B345)=0,\"\",'Détail des projets'!B345)","v":"50643-431 - Nouveau Batiment"},{"$f":"IF(LEN('Détail des projets'!C345)=0,\"\",'Détail des projets'!C345)","v":"Marie-Victorin"},{"$f":"IF(LEN('Détail des projets'!G345)=0,\"\",'Détail des projets'!G345)","v":" 16-Montérégie "},{"$f":"IF(LEN('Détail des projets'!K345)=0,\"\",'Détail des projets'!K345)","v":237820},108.1,"À la fin du projet (suite au dernier versement)"]
[null,{"$f":"IF(LEN('Détail des projets'!B346)=0,\"\",'Détail des projets'!B346)","v":"50643-432 - Nouveau Batiment - Nouvelle école Carignan"},{"$f":"IF(LEN('Détail des projets'!C346)=0,\"\",'Détail des projets'!C346)","v":"Patriotes"},{"$f":"IF(LEN('Détail des projets'!G346)=0,\"\",'Détail des projets'!G346)","v":" 16-Montérégie "},{"$f":"IF(LEN('Détail des projets'!K346)=0,\"\",'Détail des projets'!K346)","v":173734},78.97,"À la fin du projet (suite au dernier versement)"]
[null,{"$f":"IF(LEN('Détail des projets'!B347)=0,\"\",'Détail des projets'!B347)","v":"50643-433 - Nouveau Batiment"},{"$f":"IF(LEN('Détail des projets'!C347)=0,\"\",'Détail des projets'!C347)","v":"Patriotes"},{"$f":"IF(LEN('Détail des projets'!G347)=0,\"\",'Détail des projets'!G347)","v":" 16-Montérégie "},{"$f":"IF(LEN('Détail des projets'!K347)=0,\"\",'Détail des projets'!K347)","v":97416},44.28,"À la fin du projet (suite au dernier versement)"]
[null,{"$f":"IF(LEN('Détail des projets'!B348)=0,\"\",'Détail des projets'!B348)","v":"50643-434 - Nouveau Batiment"},{"$f":"IF(LEN('Détail des projets'!C348)=0,\"\",'Détail des projets'!C348)","v":"Val-des-Cerfs"},{"$f":"IF(LEN('Détail des projets'!G348)=0,\"\",'Détail des projets'!G348)","v":" 16-Montérégie "},{"$f":"IF(LEN('Détail des projets'!K348)=0,\"\",'Détail des projets'!K348)","v":97416},44.28,"À la fin du projet (suite au dernier versement)"]
[null,{"$f":"IF(LEN('Détail des projets'!B349)=0,\"\",'Détail des projets'!B349)","v":"50643-435 - Nouveau Batiment"},{"$f":"IF(LEN('Détail des projets'!C349)=0,\"\",'Détail des projets'!C349)","v":"Val-des-Cerfs"},{"$f":"IF(LEN('Détail des projets'!G349)=0,\"\",'Détail des projets'!G349)","v":" 16-Montérégie "},{"$f":"IF(LEN('Détail des projets'!K349)=0,\"\",'Détail des projets'!K349)","v":97416},44.28,"À la fin du projet (suite au dernier versement)"]
[null,{"$f":"IF(LEN('Détail des projets'!B350)=0,\"\",'Détail des projets'!B350)","v":"50643-436 - Nouveau Batiment"},{"$f":"IF(LEN('Détail des projets'!C350)=0,\"\",'Détail des projets'!C350)","v":"Val-des-Cerfs"},{"$f":"IF(LEN('Détail des projets'!G350)=0,\"\",'Détail des projets'!G350)","v":" 16-Montérégie "},{"$f":"IF(LEN('Détail des projets'!K350)=0,\"\",'Détail des projets'!K350)","v":97416},44.28,"À la fin du projet (suite au dernier versement)"]
[null,{"$f":"IF(LEN('Détail des projets'!B351)=0,\"\",'Détail des projets'!B351)","v":"50643-437 - Construction bâtiment - Omer-Séguin"},{"$f":"IF(LEN('Détail des projets'!C351)=0,\"\",'Détail des projets'!C351)","v":"Vallée-des-Tisserands"},{"$f":"IF(LEN('Détail des projets'!G351)=0,\"\",'Détail des projets'!G351)","v":" 16-Montérégie "},{"$f":"IF(LEN('Détail des projets'!K351)=0,\"\",'Détail des projets'!K351)","v":27280},12.4,"À la fin du projet (suite au dernier versement)"]
[null,{"$f":"IF(LEN('Détail des projets'!B352)=0,\"\",'Détail des projets'!B352)","v":"50643-438 - Construction bâtiment - Des Jeunes-Riverains"},{"$f":"IF(LEN('Détail des projets'!C352)=0,\"\",'Détail des projets'!C352)","v":"Vallée-des-Tisserands"},{"$f":"IF(LEN('Détail des projets'!G352)=0,\"\",'Détail des projets'!G352)","v":" 16-Montérégie "},{"$f":"IF(LEN('Détail des projets'!K352)=0,\"\",'Détail des projets'!K352)","v":18656},8.48,"À la fin du projet (suite au dernier versement)"]
[null,{"$f":"IF(LEN('Détail des projets'!B353)=0,\"\",'Détail des projets'!B353)","v":"50643-439 - Nouveau Batiment"},{"$f":"IF(LEN('Détail des projets'!C353)=0,\"\",'Détail des projets'!C353)","v":"Trois-Lacs"},{"$f":"IF(LEN('Détail des projets'!G353)=0,\"\",'Détail des projets'!G353)","v":" 16-Montérégie "},{"$f":"IF(LEN('Détail des projets'!K353)=0,\"\",'Détail des projets'!K353)","v":31306},14.23,"À la fin du projet (suite au dernier versement)"]
[null,{"$f":"IF(LEN('Détail des projets'!B354)=0,\"\",'Détail des projets'!B354)","v":"50643-440 - Nouveau Batiment"},{"$f":"IF(LEN('Détail des projets'!C354)=0,\"\",'Détail des projets'!C354)","v":"Trois-Lacs"},{"$f":"IF(LEN('Détail des projets'!G354)=0,\"\",'Détail des projets'!G354)","v":" 16-Montérégie "},{"$f":"IF(LEN('Détail des projets'!K354)=0,\"\",'Détail des projets'!K354)","v":146322},66.510000000000005,"À la fin du projet (suite au dernier versement)"]
[null,{"$f":"IF(LEN('Détail des projets'!B355)=0,\"\",'Détail des projets'!B355)","v":"50643-441 - Nouveau Batiment"},{"$f":"IF(LEN('Détail des projets'!C355)=0,\"\",'Détail des projets'!C355)","v":"Riveraine"},{"$f":"IF(LEN('Détail des projets'!G355)=0,\"\",'Détail des projets'!G355)","v":" 17-Centre-du-Québec "},{"$f":"IF(LEN('Détail des projets'!K355)=0,\"\",'Détail des projets'!K355)","v":86372},39.26,"À la fin du projet (suite au dernier versement)"]
[null,{"$f":"IF(LEN('Détail des projets'!B356)=0,\"\",'Détail des projets'!B356)","v":"50643-442 - Construction bâtiment - Tournesol"},{"$f":"IF(LEN('Détail des projets'!C356)=0,\"\",'Détail des projets'!C356)","v":"Riveraine"},{"$f":"IF(LEN('Détail des projets'!G356)=0,\"\",'Détail des projets'!G356)","v":" 17-Centre-du-Québec "},{"$f":"IF(LEN('Détail des projets'!K356)=0,\"\",'Détail des projets'!K356)","v":64526},29.33,"À la fin du projet (suite au dernier versement)"]
[null,{"$f":"IF(LEN('Détail des projets'!B357)=0,\"\",'Détail des projets'!B357)","v":"50643-443 - Construction bâtiment - Sainte-Famille"},{"$f":"IF(LEN('Détail des projets'!C357)=0,\"\",'Détail des projets'!C357)","v":"Bois-Francs"},{"$f":"IF(LEN('Détail des projets'!G357)=0,\"\",'Détail des projets'!G357)","v":" 17-Centre-du-Québec "},{"$f":"IF(LEN('Détail des projets'!K357)=0,\"\",'Détail des projets'!K357)","v":18040},8.1999999999999993,"À la fin du projet (suite au dernier versement)"]
[null,{"$f":"IF(LEN('Détail des projets'!B358)=0,\"\",'Détail des projets'!B358)","v":"50643-444 - Construction bâtiment - Monseigneur-Milot"},{"$f":"IF(LEN('Détail des projets'!C358)=0,\"\",'Détail des projets'!C358)","v":"Bois-Francs"},{"$f":"IF(LEN('Détail des projets'!G358)=0,\"\",'Détail des projets'!G358)","v":" 17-Centre-du-Québec "},{"$f":"IF(LEN('Détail des projets'!K358)=0,\"\",'Détail des projets'!K358)","v":22506},10.23,"À la fin du projet (suite au dernier versement)"]
[null,{"$f":"IF(LEN('Détail des projets'!B359)=0,\"\",'Détail des projets'!B359)","v":"50643-445 - Construction bâtiment - Pie-X"},{"$f":"IF(LEN('Détail des projets'!C359)=0,\"\",'Détail des projets'!C359)","v":"Bois-Francs"},{"$f":"IF(LEN('Détail des projets'!G359)=0,\"\",'Détail des projets'!G359)","v":" 17-Centre-du-Québec "},{"$f":"IF(LEN('Détail des projets'!K359)=0,\"\",'Détail des projets'!K359)","v":58520},26.6,"À la fin du projet (suite au dernier versement)"]
[null,{"$f":"IF(LEN('Détail des projets'!B360)=0,\"\",'Détail des projets'!B360)","v":"50643-446 - Construction bâtiment - Sacré-Coeur"},{"$f":"IF(LEN('Détail des projets'!C360)=0,\"\",'Détail des projets'!C360)","v":"Bois-Francs"},{"$f":"IF(LEN('Détail des projets'!G360)=0,\"\",'Détail des projets'!G360)","v":" 17-Centre-du-Québec "},{"$f":"IF(LEN('Détail des projets'!K360)=0,\"\",'Détail des projets'!K360)","v":18040},8.1999999999999993,"À la fin du projet (suite au dernier versement)"]
[null,{"$f":"IF(LEN('Détail des projets'!B361)=0,\"\",'Détail des projets'!B361)","v":"50643-447 - Construction bâtiment - Le tandem (Albert-Morissette), secondaire"},{"$f":"IF(LEN('Détail des projets'!C361)=0,\"\",'Détail des projets'!C361)","v":"Bois-Francs"},{"$f":"IF(LEN('Détail des projets'!G361)=0,\"\",'Détail des projets'!G361)","v":" 17-Centre-du-Québec "},{"$f":"IF(LEN('Détail des projets'!K361)=0,\"\",'Détail des projets'!K361)","v":73546},33.43,"À la fin du projet (suite au dernier versement)"]
[null,{"$f":"IF(LEN('Détail des projets'!B362)=0,\"\",'Détail des projets'!B362)","v":"50643-448 - Construction bâtiment - Deux Rivières, des"},{"$f":"IF(LEN('Détail des projets'!C362)=0,\"\",'Détail des projets'!C362)","v":"Chênes"},{"$f":"IF(LEN('Détail des projets'!G362)=0,\"\",'Détail des projets'!G362)","v":" 17-Centre-du-Québec "},{"$f":"IF(LEN('Détail des projets'!K362)=0,\"\",'Détail des projets'!K362)","v":68178},30.99,"À la fin du projet (suite au dernier versement)"]
[null,{"$f":"IF(LEN('Détail des projets'!B363)=0,\"\",'Détail des projets'!B363)","v":"50643-449 - Nouveau Batiment"},{"$f":"IF(LEN('Détail des projets'!C363)=0,\"\",'Détail des projets'!C363)","v":"Chênes"},{"$f":"IF(LEN('Détail des projets'!G363)=0,\"\",'Détail des projets'!G363)","v":" 17-Centre-du-Québec "},{"$f":"IF(LEN('Détail des projets'!K363)=0,\"\",'Détail des projets'!K363)","v":130746},59.43,"À la fin du projet (suite au dernier versement)"]
[null,{"$f":"IF(LEN('Détail des projets'!B364)=0,\"\",'Détail des projets'!B364)","v":"50643-450 - Construction bâtiment - Riverside Regional Elementary School"},{"$f":"IF(LEN('Détail des projets'!C364)=0,\"\",'Détail des projets'!C364)","v":"Central Québec"},{"$f":"IF(LEN('Détail des projets'!G364)=0,\"\",'Détail des projets'!G364)","v":" 02-Saguenay- Lac-Saint-Jean "},{"$f":"IF(LEN('Détail des projets'!K364)=0,\"\",'Détail des projets'!K364)","v":23606},10.73,"À la fin du projet (suite au dernier versement)"]
[null,{"$f":"IF(LEN('Détail des projets'!B365)=0,\"\",'Détail des projets'!B365)","v":"50643-451 - Construction bâtiment - MacLean Memorial"},{"$f":"IF(LEN('Détail des projets'!C365)=0,\"\",'Détail des projets'!C365)","v":"Central Québec"},{"$f":"IF(LEN('Détail des projets'!G365)=0,\"\",'Détail des projets'!G365)","v":" 10-Nord-du-Québec "},{"$f":"IF(LEN('Détail des projets'!K365)=0,\"\",'Détail des projets'!K365)","v":52602},23.91,"À la fin du projet (suite au dernier versement)"]
[null,{"$f":"IF(LEN('Détail des projets'!B366)=0,\"\",'Détail des projets'!B366)","v":"50643-452 - Construction bâtiment - Jimmy Sandy Memorial"},{"$f":"IF(LEN('Détail des projets'!C366)=0,\"\",'Détail des projets'!C366)","v":"Central Québec"},{"$f":"IF(LEN('Détail des projets'!G366)=0,\"\",'Détail des projets'!G366)","v":" 10-Nord-du-Québec "},{"$f":"IF(LEN('Détail des projets'!K366)=0,\"\",'Détail des projets'!K366)","v":180488},82.04,"À la fin du projet (suite au dernier versement)"]
[null,{"$f":"IF(LEN('Détail des projets'!B367)=0,\"\",'Détail des projets'!B367)","v":"50643-453 - Nouveau Batiment"},{"$f":"IF(LEN('Détail des projets'!C367)=0,\"\",'Détail des projets'!C367)","v":"Sir-Wilfried-Laurier"},{"$f":"IF(LEN('Détail des projets'!G367)=0,\"\",'Détail des projets'!G367)","v":" 15-Laurentides "},{"$f":"IF(LEN('Détail des projets'!K367)=0,\"\",'Détail des projets'!K367)","v":97416},44.28,"À la fin du projet (suite au dernier versement)"]
[null,{"$f":"IF(LEN('Détail des projets'!B368)=0,\"\",'Détail des projets'!B368)","v":"50643-454 - Construction bâtiment - Greater Gatineau-St-Aloysius"},{"$f":"IF(LEN('Détail des projets'!C368)=0,\"\",'Détail des projets'!C368)","v":"Western Québec"},{"$f":"IF(LEN('Détail des projets'!G368)=0,\"\",'Détail des projets'!G368)","v":" 07-Outaouais "},{"$f":"IF(LEN('Détail des projets'!K368)=0,\"\",'Détail des projets'!K368)","v":13530},6.15,"À la fin du projet (suite au dernier versement)"]
[null,{"$f":"IF(LEN('Détail des projets'!B369)=0,\"\",'Détail des projets'!B369)","v":""},{"$f":"IF(LEN('Détail des projets'!C369)=0,\"\",'Détail des projets'!C369)","v":""},{"$f":"IF(LEN('Détail des projets'!G369)=0,\"\",'Détail des projets'!G369)","v":""},{"$f":"SUM(F25:F368)","v":38513.128000000026},0,null,null,null,null,null,null,null,null,null,{"$f":"SUM(P25:P368)","v":0},0,0,0,0,0,0,0,0,0,0,0,0,0,0,0,0,0]
[null,{"$f":"IF(LEN('Détail des projets'!B370)=0,\"\",'Détail des projets'!B370)","v":""},{"$f":"IF(LEN('Détail des projets'!C370)=0,\"\",'Détail des projets'!C370)","v":""},{"$f":"IF(LEN('Détail des projets'!G370)=0,\"\",'Détail des projets'!G370)","v":""},{"$f":"IF(LEN('Détail des projets'!K370)=0,\"\",'Détail des projets'!K370)","v":""}]
[null,{"$f":"IF(LEN('Détail des projets'!B371)=0,\"\",'Détail des projets'!B371)","v":""},{"$f":"IF(LEN('Détail des projets'!C371)=0,\"\",'Détail des projets'!C371)","v":""},{"$f":"IF(LEN('Détail des projets'!G371)=0,\"\",'Détail des projets'!G371)","v":""},{"$f":"IF(LEN('Détail des projets'!K371)=0,\"\",'Détail des projets'!K371)","v":""}]
[null,{"$f":"IF(LEN('Détail des projets'!B372)=0,\"\",'Détail des projets'!B372)","v":""},{"$f":"IF(LEN('Détail des projets'!C372)=0,\"\",'Détail des projets'!C372)","v":""},{"$f":"IF(LEN('Détail des projets'!G372)=0,\"\",'Détail des projets'!G372)","v":""},{"$f":"IF(LEN('Détail des projets'!K372)=0,\"\",'Détail des projets'!K372)","v":""}]
[null,{"$f":"IF(LEN('Détail des projets'!B373)=0,\"\",'Détail des projets'!B373)","v":""},{"$f":"IF(LEN('Détail des projets'!C373)=0,\"\",'Détail des projets'!C373)","v":""},{"$f":"IF(LEN('Détail des projets'!G373)=0,\"\",'Détail des projets'!G373)","v":""},{"$f":"IF(LEN('Détail des projets'!K373)=0,\"\",'Détail des projets'!K373)","v":""}]
[null,"TOTAL (tonnes CO2 éq.)",null,null,null,{"$f":"SUM(F25:F368)","v":38513.128000000026},null,null,null,null,null,null,null,null,null,{"$f":"SUM(P25:P373)","v":0},0,0,0,0,0,0,0,0,0,0,0,0,0,0,0,0,0,{"$f":"SUM(AH25:AH49)","v":0},0,0,0,0,0]
[]
[]
[]
[]
[]
[]
[]
[]
[]
[]
[]
[]
[]
[]
[]
[]
[]
[]
[null," TOTAL (tonnes CO2 éq.)"]

{"sheet":"Indicateurs","index":5,"n_rows":292,"n_cols":43,"rows_kept":292,"cut":false,"hidden":false,"merged":[[1,1,1,5],[1,7,1,8],[2,7,5,20],[152,1,152,4],[68,1,68,4],[70,1,72,3],[73,1,75,3],[69,1,69,3],[68,5,68,20],[1,18,1,19],[22,21,23,21],[2,1,2,3],[5,1,5,5],[3,2,3,5],[4,2,4,5],[22,19,23,19],[21,1,21,5],[22,18,23,18],[22,3,23,3],[22,4,23,4],[22,1,23,1],[22,2,23,2],[22,5,23,5],[19,1,19,3],[19,4,19,5],[155,18,155,19],[155,9,155,10],[156,18,156,19],[156,9,156,10],[154,9,154,10],[153,9,153,10],[155,1,155,2],[155,7,155,8],[155,5,155,6],[154,5,154,6],[153,5,153,6],[154,7,154,8],[153,7,153,8],[156,5,156,6],[156,1,156,2],[156,7,156,8],[154,18,154,19],[155,11,155,13],[156,11,156,13],[153,11,154,15],[157,1,157,2],[157,5,157,6],[157,7,157,8],[157,9,157,10],[157,18,157,19],[172,1,172,2],[173,1,173,2],[174,1,174,2],[158,1,158,2],[159,1,159,2],[160,1,160,2],[161,1,161,2],[162,1,162,2],[163,1,163,2],[164,1,164,2],[165,1,165,2],[166,1,166,2],[167,1,167,2],[168,1,168,2],[169,1,169,2],[170,1,170,2],[171,1,171,2],[158,5,158,6],[159,5,159,6],[175,1,175,2],[176,1,176,2],[177,1,177,2],[178,1,178,2],[179,1,179,2],[274,18,274,19],[275,1,275,2],[275,5,275,6],[275,7,275,8],[275,9,275,10],[275,18,275,19],[274,1,274,2],[274,5,274,6],[274,7,274,8],[274,9,274,10],[181,1,181,2],[182,1,182,2],[183,1,183,2],[184,1,184,2],[185,1,185,2],[180,1,180,2],[191,1,191,2],[192,1,192,2],[193,1,193,2],[276,18,276,19],[277,1,277,2],[277,5,277,6],[277,7,277,8],[277,9,277,10],[277,18,277,19],[276,1,276,2],[276,5,276,6],[276,7,276,8],[276,9,276,10],[277,11,277,13],[278,18,278,19],[279,1,279,2],[279,5,279,6],[279,7,279,8],[279,9,279,10],[279,18,279,19],[278,1,278,2],[278,5,278,6],[278,7,278,8],[278,9,278,10],[278,11,278,13],[279,11,279,13],[280,18,280,19],[281,1,281,2],[281,5,281,6],[281,7,281,8],[281,9,281,10],[281,18,281,19],[280,1,280,2],[280,5,280,6],[280,7,280,8],[280,9,280,10],[280,11,280,13],[281,11,281,13],[282,18,282,19],[283,1,283,2],[283,5,283,6],[283,7,283,8],[283,9,283,10],[283,18,283,19],[282,1,282,2],[282,5,282,6],[282,7,282,8],[282,9,282,10],[283,11,283,13],[282,11,282,13],[284,18,284,19],[285,1,285,2],[285,5,285,6],[285,7,285,8],[285,9,285,10],[285,18,285,19],[284,1,284,2],[284,5,284,6],[284,7,284,8],[284,9,284,10],[284,11,284,13],[285,11,285,13],[286,18,286,19],[287,1,287,2],[287,5,287,6],[287,7,287,8],[287,9,287,10],[287,18,287,19],[286,1,286,2],[286,5,286,6],[286,7,286,8],[286,9,286,10],[286,11,286,13],[287,11,287,13],[290,18,290,19],[291,1,291,20],[290,1,290,2],[290,5,290,6],[290,7,290,8],[290,9,290,10],[288,18,288,19],[289,1,289,2],[289,5,289,6],[289,7,289,8],[289,9,289,10],[289,18,289,19],[288,1,288,2],[288,5,288,6],[288,7,288,8],[288,9,288,10],[288,11,288,13],[289,11,289,13],[290,11,290,13],[194,1,194,2],[195,1,195,2],[186,1,186,2],[187,1,187,2],[188,1,188,2],[189,1,189,2],[190,1,190,2],[201,1,201,2],[202,1,202,2],[203,1,203,2],[204,1,204,2],[205,1,205,2],[196,1,196,2],[197,1,197,2],[198,1,198,2],[199,1,199,2],[200,1,200,2],[211,1,211,2],[212,1,212,2],[213,1,213,2],[214,1,214,2],[215,1,215,2],[206,1,206,2],[207,1,207,2],[208,1,208,2],[209,1,209,2],[210,1,210,2],[221,1,221,2],[222,1,222,2],[223,1,223,2],[224,1,224,2],[225,1,225,2],[216,1,216,2],[217,1,217,2],[218,1,218,2],[219,1,219,2],[220,1,220,2],[231,1,231,2],[232,1,232,2],[233,1,233,2],[234,1,234,2],[235,1,235,2],[226,1,226,2],[227,1,227,2],[228,1,228,2],[229,1,229,2],[230,1,230,2],[241,1,241,2],[242,1,242,2],[243,1,243,2],[244,1,244,2],[245,1,245,2],[236,1,236,2],[237,1,237,2],[238,1,238,2],[239,1,239,2],[240,1,240,2],[252,1,252,2],[253,1,253,2],[254,1,254,2],[255,1,255,2],[246,1,246,2],[247,1,247,2],[248,1,248,2],[249,1,249,2],[250,1,250,2],[160,5,160,6],[161,5,161,6],[162,5,162,6],[272,1,272,2],[273,1,273,2],[267,1,267,2],[268,1,268,2],[269,1,269,2],[261,1,261,2],[262,1,262,2],[263,1,263,2],[270,1,270,2],[271,1,271,2],[266,1,266,2],[265,1,265,2],[264,1,264,2],[256,1,256,2],[257,1,257,2],[258,1,258,2],[259,1,259,2],[260,1,260,2],[251,1,251,2],[168,5,168,6],[169,5,169,6],[170,5,170,6],[171,5,171,6],[172,5,172,6],[163,5,163,6],[164,5,164,6],[165,5,165,6],[166,5,166,6],[167,5,167,6],[178,5,178,6],[179,5,179,6],[180,5,180,6],[181,5,181,6],[182,5,182,6],[173,5,173,6],[174,5,174,6],[175,5,175,6],[176,5,176,6],[177,5,177,6],[188,5,188,6],[189,5,189,6],[190,5,190,6],[191,5,191,6],[192,5,192,6],[183,5,183,6],[184,5,184,6],[185,5,185,6],[186,5,186,6],[187,5,187,6],[198,5,198,6],[199,5,199,6],[200,5,200,6],[201,5,201,6],[202,5,202,6],[193,5,193,6],[194,5,194,6],[195,5,195,6],[196,5,196,6],[197,5,197,6],[208,5,208,6],[209,5,209,6],[210,5,210,6],[211,5,211,6],[212,5,212,6],[203,5,203,6],[204,5,204,6],[205,5,205,6],[206,5,206,6],[207,5,207,6],[218,5,218,6],[219,5,219,6],[220,5,220,6],[221,5,221,6],[222,5,222,6],[213,5,213,6],[214,5,214,6],[215,5,215,6],[216,5,216,6],[217,5,217,6],[228,5,228,6],[229,5,229,6],[230,5,230,6],[231,5,231,6],[232,5,232,6],[223,5,223,6],[224,5,224,6],[225,5,225,6],[226,5,226,6],[227,5,227,6],[238,5,238,6],[239,5,239,6],[240,5,240,6],[241,5,241,6],[242,5,242,6],[233,5,233,6],[234,5,234,6],[235,5,235,6],[236,5,236,6],[237,5,237,6],[248,5,248,6],[249,5,249,6],[250,5,250,6],[251,5,251,6],[252,5,252,6],[243,5,243,6],[244,5,244,6],[245,5,245,6],[246,5,246,6],[247,5,247,6],[266,5,266,6],[267,5,267,6],[258,5,258,6],[259,5,259,6],[260,5,260,6],[261,5,261,6],[262,5,262,6],[253,5,253,6],[254,5,254,6],[255,5,255,6],[256,5,256,6],[257,5,257,6],[273,5,273,6],[229,7,229,8],[230,7,230,8],[231,7,231,8],[232,7,232,8],[233,7,233,8],[234,7,234,8],[235,7,235,8],[236,7,236,8],[237,7,237,8],[238,7,238,8],[239,7,239,8],[240,7,240,8],[241,7,241,8],[242,7,242,8],[243,7,243,8],[268,5,268,6],[269,5,269,6],[270,5,270,6],[271,5,271,6],[272,5,272,6],[263,5,263,6],[264,5,264,6],[265,5,265,6],[249,7,249,8],[250,7,250,8],[251,7,251,8],[252,7,252,8],[253,7,253,8],[244,7,244,8],[245,7,245,8],[246,7,246,8],[247,7,247,8],[248,7,248,8],[259,7,259,8],[260,7,260,8],[261,7,261,8],[262,7,262,8],[263,7,263,8],[254,7,254,8],[255,7,255,8],[256,7,256,8],[257,7,257,8],[258,7,258,8],[269,7,269,8],[270,7,270,8],[271,7,271,8],[272,7,272,8],[273,7,273,8],[264,7,264,8],[265,7,265,8],[266,7,266,8],[267,7,267,8],[268,7,268,8],[228,7,228,8],[208,7,208,8],[209,7,209,8],[210,7,210,8],[211,7,211,8],[212,7,212,8],[213,7,213,8],[214,7,214,8],[215,7,215,8],[216,7,216,8],[222,7,222,8],[223,7,223,8],[224,7,224,8],[225,7,225,8],[226,7,226,8],[217,7,217,8],[218,7,218,8],[219,7,219,8],[220,7,220,8],[221,7,221,8],[203,7,203,8],[204,7,204,8],[200,7,200,8],[201,7,201,8],[202,7,202,8],[205,7,205,8],[206,7,206,8],[207,7,207,8],[227,7,227,8],[170,7,170,8],[171,7,171,8],[172,7,172,8],[173,7,173,8],[174,7,174,8],[175,7,175,8],[176,7,176,8],[177,7,177,8],[178,7,178,8],[179,7,179,8],[180,7,180,8],[181,7,181,8],[182,7,182,8],[195,7,195,8],[196,7,196,8],[197,7,197,8],[198,7,198,8],[199,7,199,8],[190,7,190,8],[191,7,191,8],[192,7,192,8],[193,7,193,8],[194,7,194,8],[185,7,185,8],[186,7,186,8],[187,7,187,8],[188,7,188,8],[189,7,189,8],[158,9,158,10],[159,9,159,10],[160,9,160,10],[161,9,161,10],[162,9,162,10],[183,7,183,8],[184,7,184,8],[158,7,158,8],[159,7,159,8],[160,7,160,8],[161,7,161,8],[162,7,162,8],[163,7,163,8],[164,7,164,8],[165,7,165,8],[166,7,166,8],[167,7,167,8],[168,7,168,8],[169,7,169,8],[168,9,168,10],[169,9,169,10],[170,9,170,10],[171,9,171,10],[172,9,172,10],[163,9,163,10],[164,9,164,10],[165,9,165,10],[166,9,166,10],[167,9,167,10],[178,9,178,10],[179,9,179,10],[180,9,180,10],[181,9,181,10],[182,9,182,10],[173,9,173,10],[174,9,174,10],[175,9,175,10],[176,9,176,10],[177,9,177,10],[188,9,188,10],[189,9,189,10],[190,9,190,10],[208,9,208,10],[191,9,191,10],[192,9,192,10],[183,9,183,10],[184,9,184,10],[185,9,185,10],[186,9,186,10],[187,9,187,10],[198,9,198,10],[199,9,199,10],[203,9,203,10],[204,9,204,10],[205,9,205,10],[206,9,206,10],[207,9,207,10],[200,9,200,10],[201,9,201,10],[202,9,202,10],[193,9,193,10],[194,9,194,10],[195,9,195,10],[196,9,196,10],[197,9,197,10],[213,9,213,10],[214,9,214,10],[215,9,215,10],[216,9,216,10],[217,9,217,10],[209,9,209,10],[210,9,210,10],[211,9,211,10],[212,9,212,10],[223,9,223,10],[224,9,224,10],[225,9,225,10],[226,9,226,10],[227,9,227,10],[218,9,218,10],[219,9,219,10],[220,9,220,10],[221,9,221,10],[222,9,222,10],[233,9,233,10],[234,9,234,10],[235,9,235,10],[236,9,236,10],[237,9,237,10],[228,9,228,10],[229,9,229,10],[230,9,230,10],[231,9,231,10],[232,9,232,10],[243,9,243,10],[244,9,244,10],[245,9,245,10],[246,9,246,10],[247,9,247,10],[238,9,238,10],[239,9,239,10],[240,9,240,10],[241,9,241,10],[242,9,242,10],[253,9,253,10],[254,9,254,10],[255,9,255,10],[256,9,256,10],[257,9,257,10],[248,9,248,10],[249,9,249,10],[250,9,250,10],[251,9,251,10],[252,9,252,10],[175,11,175,13],[176,11,176,13],[177,11,177,13],[178,11,178,13],[179,11,179,13],[180,11,180,13],[181,11,181,13],[182,11,182,13],[273,9,273,10],[268,9,268,10],[269,9,269,10],[270,9,270,10],[271,9,271,10],[272,9,272,10],[263,9,263,10],[264,9,264,10],[265,9,265,10],[266,9,266,10],[267,9,267,10],[258,9,258,10],[259,9,259,10],[260,9,260,10],[261,9,261,10],[262,9,262,10],[221,11,221,13],[223,11,223,13],[224,11,224,13],[225,11,225,13],[202,11,202,13],[183,11,183,13],[184,11,184,13],[185,11,185,13],[186,11,186,13],[187,11,187,13],[188,11,188,13],[189,11,189,13],[190,11,190,13],[191,11,191,13],[192,11,192,13],[193,11,193,13],[194,11,194,13],[195,11,195,13],[196,11,196,13],[197,11,197,13],[198,11,198,13],[199,11,199,13],[200,11,200,13],[201,11,201,13],[212,11,212,13],[213,11,213,13],[214,11,214,13],[215,11,215,13],[216,11,216,13],[217,11,217,13],[218,11,218,13],[219,11,219,13],[220,11,220,13],[203,11,203,13],[204,11,204,13],[205,11,205,13],[206,11,206,13],[207,11,207,13],[208,11,208,13],[209,11,209,13],[210,11,210,13],[211,11,211,13],[261,11,261,13],[262,11,262,13],[248,11,248,13],[249,11,249,13],[250,11,250,13],[251,11,251,13],[252,11,252,13],[232,11,232,13],[222,11,222,13],[255,11,255,13],[167,18,167,19],[168,18,168,19],[169,18,169,19],[170,18,170,19],[171,18,171,19],[172,18,172,19],[263,11,263,13],[264,11,264,13],[238,11,238,13],[239,11,239,13],[240,11,240,13],[241,11,241,13],[242,11,242,13],[233,11,233,13],[234,11,234,13],[235,11,235,13],[236,11,236,13],[237,11,237,13],[256,11,256,13],[257,11,257,13],[258,11,258,13],[259,11,259,13],[253,11,253,13],[254,11,254,13],[158,18,158,19],[159,18,159,19],[160,18,160,19],[161,18,161,19],[162,18,162,19],[163,18,163,19],[164,18,164,19],[165,18,165,19],[166,18,166,19],[178,18,178,19],[179,18,179,19],[180,18,180,19],[181,18,181,19],[182,18,182,19],[173,18,173,19],[174,18,174,19],[175,18,175,19],[176,18,176,19],[177,18,177,19],[188,18,188,19],[189,18,189,19],[190,18,190,19],[191,18,191,19],[192,18,192,19],[183,18,183,19],[184,18,184,19],[185,18,185,19],[186,18,186,19],[187,18,187,19],[198,18,198,19],[199,18,199,19],[200,18,200,19],[201,18,201,19],[202,18,202,19],[193,18,193,19],[194,18,194,19],[195,18,195,19],[196,18,196,19],[197,18,197,19],[208,18,208,19],[209,18,209,19],[210,18,210,19],[211,18,211,19],[212,18,212,19],[203,18,203,19],[204,18,204,19],[205,18,205,19],[206,18,206,19],[207,18,207,19],[218,18,218,19],[219,18,219,19],[220,18,220,19],[221,18,221,19],[222,18,222,19],[213,18,213,19],[214,18,214,19],[215,18,215,19],[216,18,216,19],[217,18,217,19],[228,18,228,19],[229,18,229,19],[230,18,230,19],[231,18,231,19],[232,18,232,19],[223,18,223,19],[224,18,224,19],[225,18,225,19],[226,18,226,19],[227,18,227,19],[238,18,238,19],[239,18,239,19],[240,18,240,19],[241,18,241,19],[242,18,242,19],[233,18,233,19],[234,18,234,19],[235,18,235,19],[236,18,236,19],[237,18,237,19],[257,18,257,19],[248,18,248,19],[249,18,249,19],[250,18,250,19],[251,18,251,19],[252,18,252,19],[243,18,243,19],[244,18,244,19],[245,18,245,19],[246,18,246,19],[247,18,247,19],[273,18,273,19],[153,1,154,2],[153,3,154,3],[153,4,154,4],[153,18,153,19],[268,18,268,19],[269,18,269,19],[270,18,270,19],[271,18,271,19],[272,18,272,19],[263,18,263,19],[264,18,264,19],[265,18,265,19],[266,18,266,19],[267,18,267,19],[258,18,258,19],[259,18,259,19],[260,18,260,19],[261,18,261,19],[262,18,262,19],[253,18,253,19],[254,18,254,19],[255,18,255,19],[256,18,256,19],[166,11,166,13],[167,11,167,13],[168,11,168,13],[169,11,169,13],[170,11,170,13],[171,11,171,13],[172,11,172,13],[173,11,173,13],[174,11,174,13],[265,11,265,13],[266,11,266,13],[267,11,267,13],[268,11,268,13],[269,11,269,13],[270,11,270,13],[271,11,271,13],[272,11,272,13],[273,11,273,13],[157,11,157,13],[158,11,158,13],[159,11,159,13],[160,11,160,13],[161,11,161,13],[162,11,162,13],[274,11,274,13],[275,11,275,13],[276,11,276,13],[163,11,163,13],[164,11,164,13],[165,11,165,13],[243,11,243,13],[244,11,244,13],[245,11,245,13],[246,11,246,13],[247,11,247,13],[226,11,226,13],[227,11,227,13],[228,11,228,13],[229,11,229,13],[230,11,230,13],[231,11,231,13],[260,11,260,13]]}
[]
[null,{"$f":"Utilitaire!E8","v":"Plan d'action 2013-2020 sur les changements climatiques"}]
[null,{"$f":"\"Action \" & Accueil!D58","v":"Action en cours"}]
[null,{"$f":"Accueil!D55","v":"11.5"},{"$f":"Accueil!E55","v":"Investissements en infrastructures écoresponsables"}]
[null,"Ministère porteur:",{"$f":"Accueil!$D$65","v":"MEQ"}]
[null,"Indicateurs"]
[]
[]
[]
[]
[]
[]
[]
[]
[]
[]
[]
[]
[]
[null,"Informations en date du :",null,null,"2022-03-31"]
[]
[null,"INDICATEURS DE PERFORMANCE",null,null,null,null,null,{"$f":"IF(OR(AND(MONTH(#REF!)>6,YEAR(#REF!)=VALUE(MID(G23,1,4))),YEAR(#REF!)>VALUE(MID(G23,1,4))),\"Réel\",\"Prévu\")","v":{"$error":"#REF!"}},{"$f":"IF(OR(AND(MONTH(#REF!)>6,YEAR(#REF!)=VALUE(MID(H23,1,4))),YEAR(#REF!)>VALUE(MID(H23,1,4))),\"Réel\",\"Prévu\")","v":{"$error":"#REF!"}},{"$f":"IF(OR(AND(MONTH(#REF!)>6,YEAR(#REF!)=VALUE(MID(I23,1,4))),YEAR(#REF!)>VALUE(MID(I23,1,4))),\"Réel\",\"Prévu\")","v":{"$error":"#REF!"}},{"$f":"IF(OR(AND(MONTH(#REF!)>6,YEAR(#REF!)=VALUE(MID(J23,1,4))),YEAR(#REF!)>VALUE(MID(J23,1,4))),\"Réel\",\"Prévu\")","v":{"$error":"#REF!"}},{"$f":"IF(OR(AND(MONTH(#REF!)>6,YEAR(#REF!)=VALUE(MID(K23,1,4))),YEAR(#REF!)>VALUE(MID(K23,1,4))),\"Réel\",\"Prévu\")","v":{"$error":"#REF!"}},{"$f":"IF(OR(AND(MONTH(#REF!)>6,YEAR(#REF!)=VALUE(MID(L23,1,4))),YEAR(#REF!)>VALUE(MID(L23,1,4))),\"Réel\",\"Prévu\")","v":{"$error":"#REF!"}},{"$f":"IF(OR(AND(MONTH(#REF!)>6,YEAR(#REF!)=VALUE(MID(M23,1,4))),YEAR(#REF!)>VALUE(MID(M23,1,4))),\"Réel\",\"Prévu\")","v":{"$error":"#REF!"}},{"$f":"IF(OR(AND(MONTH(#REF!)>6,YEAR(#REF!)=VALUE(MID(N23,1,4))),YEAR(#REF!)>VALUE(MID(N23,1,4))),\"Réel\",\"Prévu\")","v":{"$error":"#REF!"}},{"$f":"IF(OR(AND(MONTH(#REF!)>6,YEAR(#REF!)=VALUE(MID(O23,1,4))),YEAR(#REF!)>VALUE(MID(O23,1,4))),\"Réel\",\"Prévu\")","v":{"$error":"#REF!"}},{"$f":"IF(OR(AND(MONTH(#REF!)>6,YEAR(#REF!)=VALUE(MID(P23,1,4))),YEAR(#REF!)>VALUE(MID(P23,1,4))),\"Réel\",\"Prévu\")","v":{"$error":"#REF!"}},null,{"$f":"IF(OR(AND(MONTH(#REF!)>6,YEAR(#REF!)=VALUE(MID(Q23,1,4))),YEAR(#REF!)>VALUE(MID(Q23,1,4))),\"Réel\",\"Prévu\")","v":{"$error":"#REF!"}},{"$f":"MONTH(#REF!)","v":{"$error":"#REF!"}}]
[null,"Cible","Unité de mesure","Année prévue d'atteinte de la cible","Description de l'indicateur","Type d'indicateur","2013-2014","2014-2015","2015-2016","2016-2017","2017-2018","2018-2019","2019-2020","2020-2021","2021-2022","2022-2023","2023-2024","2024-2025","RÉSULTAT À COMPARER AVEC LA CIBLE","Pourcentage d'atteinte de la cible","Commentaires sur les résultats"]
[null,null,null,null,null,null,"Réel","Réel","Réel","Réel","Réel","Réel","Réel","Réel","Réel","Prévu","Prévu","Prévu",null,null,"(facultatif)"]
[1,null,null,null,null,null,{"$f":"PourcentageAvancementJbf(Utilitaire!C229,'Détail des projets'!O374,1000000*Accueil!$D$67)","v":0},{"$f":"PourcentageAvancementJbf(Utilitaire!D229,'Détail des projets'!P374,1000000*Accueil!$D$67)","v":0},{"$f":"PourcentageAvancementJbf(Utilitaire!E229,'Détail des projets'!Q374,1000000*Accueil!$D$67)","v":0},{"$f":"PourcentageAvancementJbf(Utilitaire!F229,'Détail des projets'!R374,1000000*Accueil!$D$67)","v":0},{"$f":"PourcentageAvancementJbf(Utilitaire!G229,'Détail des projets'!S374,1000000*Accueil!$D$67)","v":0},{"$f":"PourcentageAvancementJbf(Utilitaire!H229,'Détail des projets'!T374,1000000*Accueil!$D$67)","v":0},{"$f":"PourcentageAvancementJbf(Utilitaire!I229,'Détail des projets'!U374,1000000*Accueil!$D$67)","v":0},{"$f":"PourcentageAvancementJbf(Utilitaire!J229,'Détail des projets'!V374,1000000*Accueil!$D$67)","v":0},{"$f":"PourcentageAvancementJbf(Utilitaire!K227,'Détail des projets'!W374,1000000*Accueil!$D$67)","v":0.55304993210599995},null,null,null,null,{"$f":"IF(COUNTA(B25)=1,IF(COUNTA(S25)=1,IF(F25=\"Minimum à atteindre\",IF(B25=0,IF(S25>0,1,0),S25/B25),IF(F25=\"Maximum à ne pas dépasser\",IF(B25=0,IF(S25<0,1,0),(B25-S25)/B25+1),IF(F25=\"Binaire\",IF(B25=S25,1,0),\"\"))),0),\"\")","v":""}]
[2,140,"$ / tonne","2020","Coûts par tonne d'émission de GES réduite ou évitée","maximum à ne pas dépasser",0,0,0,0,0,0,0,0,213,null,null,null,213,{"$f":"IF(COUNTA(B26)=1,IF(COUNTA(S26)=1,IF(F26=\"Minimum à atteindre\",IF(B26=0,IF(S26>0,1,0),S26/B26),IF(F26=\"Maximum à ne pas dépasser\",IF(B26=0,IF(S26<0,1,0),(B26-S26)/B26+1),IF(F26=\"Binaire\",IF(B26=S26,1,0),\"\"))),0),\"\")","v":0.47857142857142854}]
[3,22754,"T/CO2","2020","Réduction annuelle des émissions de gaz à effet de serre (GES). ","minimum à atteindre",0,0,0,0,0,0,null,null,null,null,null,null,null,0,"Les résultats sont à venir. "]
[4,30,"%","2020","Réduction du nombre de bâtiments utilisant le mazout ou le gaz naturel comme source de chauffage principal et qui ont bénéficié du programme PACC par rapport au nombre total de bâtiments chauffés au mazout (415) ou au gaz naturel (1583) en 2015","minimum à atteindre",0,0,0,0,0,0,null,null,null,null,null,null,null,0,"Les résultats sont à venir."]
[5,null,null,null,null,null,null,null,null,null,null,null,null,null,null,null,null,null,null,""]
[6,null,null,null,null,null,null,null,null,null,null,null,null,null,null,null,null,null,null,""]
[7,null,null,null,null,null,null,null,null,null,null,null,null,null,null,null,null,null,null,""]
[8,null,null,null,null,null,null,null,null,null,null,null,null,null,null,null,null,null,null,""]
[9,null,null,null,null,null,null,null,null,null,null,null,null,null,null,null,null,null,null,""]
[10,null,null,null,null,null,null,null,null,null,null,null,null,null,null,null,null,null,null,""]
[11,null,null,null,null,null,null,null,null,null,null,null,null,null,null,null,null,null,null,{"$f":"IF(COUNTA(B35)=1,IF(COUNTA(S35)=1,IF(F35=\"Minimum à atteindre\",IF(B35=0,IF(S35>0,1,0),S35/B35),IF(F35=\"Maximum à ne pas dépasser\",IF(B35=0,IF(S35<0,1,0),(B35-S35)/B35+1),IF(F35=\"Binaire\",IF(B35=S35,1,0),\"\"))),0),\"\")","v":""}]
[12,null,null,null,null,null,null,null,null,null,null,null,null,null,null,null,null,null,null,{"$f":"IF(COUNTA(B36)=1,IF(COUNTA(S36)=1,IF(F36=\"Minimum à atteindre\",IF(B36=0,IF(S36>0,1,0),S36/B36),IF(F36=\"Maximum à ne pas dépasser\",IF(B36=0,IF(S36<0,1,0),(B36-S36)/B36+1),IF(F36=\"Binaire\",IF(B36=S36,1,0),\"\"))),0),\"\")","v":""}]
[13,null,null,null,null,null,null,null,null,null,null,null,null,null,null,null,null,null,null,{"$f":"IF(COUNTA(B37)=1,IF(COUNTA(S37)=1,IF(F37=\"Minimum à atteindre\",IF(B37=0,IF(S37>0,1,0),S37/B37),IF(F37=\"Maximum à ne pas dépasser\",IF(B37=0,IF(S37<0,1,0),(B37-S37)/B37+1),IF(F37=\"Binaire\",IF(B37=S37,1,0),\"\"))),0),\"\")","v":""}]
[14,null,null,null,null,null,null,null,null,null,null,null,null,null,null,null,null,null,null,""]
[15,null,null,null,null,null,null,null,null,null,null,null,null,null,null,null,null,null,null,{"$f":"IF(COUNTA(B39)=1,IF(COUNTA(S39)=1,IF(F39=\"Minimum à atteindre\",IF(B39=0,IF(S39>0,1,0),S39/B39),IF(F39=\"Maximum à ne pas dépasser\",IF(B39=0,IF(S39<0,1,0),(B39-S39)/B39+1),IF(F39=\"Binaire\",IF(B39=S39,1,0),\"\"))),0),\"\")","v":""}]
[16,null,null,null,null,null,null,null,null,null,null,null,null,null,null,null,null,null,null,{"$f":"IF(COUNTA(B40)=1,IF(COUNTA(S40)=1,IF(F40=\"Minimum à atteindre\",IF(B40=0,IF(S40>0,1,0),S40/B40),IF(F40=\"Maximum à ne pas dépasser\",IF(B40=0,IF(S40<0,1,0),(B40-S40)/B40+1),IF(F40=\"Binaire\",IF(B40=S40,1,0),\"\"))),0),\"\")","v":""}]
[17,null,null,null,null,null,null,null,null,null,null,null,null,null,null,null,null,null,null,""]
[18,null,null,null,null,null,null,null,null,null,null,null,null,null,null,null,null,null,null,""]
[19,null,null,null,null,null,null,null,null,null,null,null,null,null,null,null,null,null,null,""]
[20,null,null,null,null,null,null,null,null,null,null,null,null,null,null,null,null,null,null,""]
[21,null,null,null,null,null,null,null,null,null,null,null,null,null,null,null,null,null,null,"",null,null,null,null,null,null,null,null,null,null,null,null,null,null,null,null,null,null,null,null,null,null,false]
[]
[]
[]
[]
[]
[]
[]
[]
[]
[]
[]
[]
[]
[]
[]
[]
[]
[]
[]
[]
[]
[]
[]
[null,"PRÉVISIONS DES RETOMBÉES SUR LES RÉDUCTIONS DES ÉMISSIONS DE GES",null,null,null,"Ce tableau et les résultats par action qu'il contient ne seront pas publiés. L'objectif est de permettre une appréciation à l'échelle du PACC des résultats escomptés. Veuillez le compléter et vérifier l'information qui y est contenue, au meilleur de vos connaissances et avec l'information dont vous disposez."]
[null,"Niveau de certitude",null,null,"Lieu",2020,2021,2022,2023,2024,2025,2026,2030,2035,2036,2038,2029,2031,2040,2050,"Commentaires sur les résultats"]
[null,"Pérennité des réductions d'émissions de GES réalisées à ce jour \n(T éq. CO2)",null,null,"Au Québec",null,null,null,null,null,null,null,null,null,null,null,null,null,null,null,""]
[null,null,null,null,"Hors Québec",null,null,null,null,null,null,null,null,null,null,null,null,null,null,null,""]
[null,null,null,null,"Non distingué",null,null,null,null,null,null,null,null,null,null,null,null,null,null,null,""]
[null,"Développement du potentiel de réduction des émissions de GES pour le futur \n(T éq. CO2)",null,null,"Au Québec",null,null,null,null,null,null,null,null,null,null,null,null,null,null,null,""]
[null,null,null,null,"Hors Québec",null,null,null,null,null,null,null,null,null,null,null,null,null,null,null,""]
[null,null,null,null,"Non distingué",null,null,null,null,null,null,null,null,null,null,null,null,null,null,null,""]
[]
[]
[]
[]
[]
[]
[]
[]
[]
[]
[]
[]
[]
[]
[]
[]
[]
[]
[]
[]
[]
[]
[]
[]
[]
[]
[]
[]
[]
[]
[]
[]
[]
[]
[]
[]
[]
[]
[]
[]
[]
[]
[]
[]
[]
[]
[]
[]
[]
[]
[]
[]
[]
[]
[]
[]
[]
[]
[]
[]
[]
[]
[]
[]
[]
[]
[]
[]
[]
[]
[]
[]
[]
[]
[]
[]
[null,"ADAPTATION AUX EFFETS DES CHANGEMENTS CLIMATIQUES"]
[null,"Solutions d'adaptation proposées",null,"Lignes concernées de l'onglet Détail des projets","Étape","Ajustements",null,"Risques",null,"Effets des changements climatiques",null,"Région",null,null,null,null,null,null,"Échelle humaine",null,"Échelle environnementale"]
[null,null,null,null,null,"La solution agit sur : ",null,"afin de protéger : ",null,"de :",null,null,null,null,null,null,null,null,"(estimation du nombre de personnes desservies)",null,"(estimation du nombre d'espèces desservies)"]
[null,null,null,25]
[null,null,null,26]
[null,null,null,27]
[null,null,null,28]
[null,null,null,29]
[null,null,null,30]
[null,null,null,31]
[null,null,null,32]
[]
[]
[]
[]
[]
[]
[]
[]
[]
[]
[]
[]
[]
[]
[]
[]
[]
[]
[]
[]
[]
[]
[]
[]
[]
[]
[]
[]
[]
[]
[]
[]
[]
[]
[]
[]
[]
[]
[]
[]
[]
[]
[]
[]
[]
[]
[]
[]
[]
[]
[]
[]
[]
[]
[]
[]
[]
[]
[]
[]
[]
[]
[]
[]
[]
[]
[]
[]
[]
[]
[]
[]
[]
[]
[]
[]
[]
[]
[]
[]
[]
[]
[]
[]
[]
[]
[]
[]
[]
[]
[]
[]
[]
[]
[]
[]
[]
[]
[]
[]
[]
[]
[]
[]
[]
[]
[]
[]
[]
[]
[]
[]
[]
[]
[]
[]
[]
[]
[]
[]
[]
[]
[]
[]
[]
[]
[]
[]
[null,"Ajouter une ligne"]

{"sheet":"Évaluation","index":6,"n_rows":222,"n_cols":14,"rows_kept":222,"cut":false,"hidden":true,"merged":[[1,7,1,11],[1,1,1,5],[210,1,211,1],[210,2,211,2],[210,3,210,13],[211,3,211,13],[143,3,143,4],[143,5,143,7],[143,8,143,9],[143,10,143,11],[136,1,136,2],[136,3,136,4],[136,5,136,7],[136,8,136,9],[136,10,136,11],[142,1,142,2],[142,3,142,4],[142,5,142,7],[142,8,142,9],[142,10,142,11],[141,1,141,2],[141,3,141,4],[137,8,137,9],[137,10,137,11],[135,1,135,2],[135,3,135,4],[135,5,135,7],[135,8,135,9],[135,10,135,11],[6,1,6,2],[6,3,6,5],[134,1,134,2],[134,3,134,4],[134,5,134,7],[134,8,134,9],[134,10,134,11],[133,1,133,2],[133,3,133,4],[133,5,133,7],[133,8,133,9],[133,10,133,11],[132,1,132,2],[132,3,132,4],[132,5,132,7],[132,8,132,9],[132,10,132,11],[131,1,131,2],[131,3,131,4],[131,5,131,7],[131,8,131,9],[131,10,131,11],[130,1,130,2],[130,3,130,4],[130,5,130,7],[130,8,130,9],[130,10,130,11],[129,1,129,2],[129,3,129,4],[129,5,129,7],[129,8,129,9],[129,10,129,11],[128,1,128,2],[128,3,128,4],[128,5,128,7],[128,8,128,9],[128,10,128,11],[127,1,127,2],[127,3,127,4],[127,5,127,7],[127,8,127,9],[127,10,127,11],[126,1,126,2],[126,3,126,4],[126,5,126,7],[126,8,126,9],[126,10,126,11],[125,1,125,2],[125,3,125,4],[125,5,125,7],[125,8,125,9],[125,10,125,11],[124,1,124,2],[124,3,124,4],[124,5,124,7],[124,8,124,9],[124,10,124,11],[123,1,123,2],[123,3,123,4],[123,5,123,7],[123,8,123,9],[123,10,123,11],[122,1,122,2],[122,3,122,4],[122,5,122,7],[122,8,122,9],[122,10,122,11],[121,1,121,2],[121,3,121,4],[121,5,121,7],[121,8,121,9],[121,10,121,11],[120,1,120,2],[120,3,120,4],[120,5,120,7],[120,8,120,9],[120,10,120,11],[119,1,119,2],[119,3,119,4],[119,5,119,7],[119,8,119,9],[119,10,119,11],[118,1,118,2],[118,3,118,4],[118,5,118,7],[118,8,118,9],[118,10,118,11],[117,1,117,2],[117,3,117,4],[117,5,117,7],[117,8,117,9],[117,10,117,11],[116,1,116,2],[116,3,116,4],[116,5,116,7],[116,8,116,9],[116,10,116,11],[115,1,115,2],[115,3,115,4],[115,5,115,7],[115,8,115,9],[115,10,115,11],[114,1,114,2],[114,3,114,4],[114,5,114,7],[114,8,114,9],[114,10,114,11],[113,1,113,2],[113,3,113,4],[113,5,113,7],[113,8,113,9],[113,10,113,11],[112,1,112,2],[112,3,112,4],[112,5,112,7],[112,8,112,9],[112,10,112,11],[111,1,111,2],[111,3,111,4],[111,5,111,7],[111,8,111,9],[111,10,111,11],[110,1,110,2],[110,3,110,4],[110,5,110,7],[110,8,110,9],[110,10,110,11],[109,1,109,2],[109,3,109,4],[109,5,109,7],[109,8,109,9],[109,10,109,11],[108,1,108,2],[108,3,108,4],[108,5,108,7],[108,8,108,9],[108,10,108,11],[107,1,107,2],[107,3,107,4],[107,5,107,7],[107,8,107,9],[107,10,107,11],[106,1,106,2],[106,3,106,4],[106,5,106,7],[106,8,106,9],[106,10,106,11],[105,1,105,2],[105,3,105,4],[105,5,105,7],[105,8,105,9],[105,10,105,11],[104,1,104,2],[104,3,104,4],[104,5,104,7],[104,8,104,9],[104,10,104,11],[103,1,103,2],[103,3,103,4],[103,5,103,7],[103,8,103,9],[103,10,103,11],[102,1,102,2],[102,3,102,4],[102,5,102,7],[102,8,102,9],[102,10,102,11],[101,1,101,2],[101,3,101,4],[101,5,101,7],[101,8,101,9],[101,10,101,11],[100,1,100,2],[100,3,100,4],[100,5,100,7],[100,8,100,9],[100,10,100,11],[99,1,99,2],[99,3,99,4],[99,5,99,7],[99,8,99,9],[99,10,99,11],[98,1,98,2],[98,3,98,4],[98,5,98,7],[98,8,98,9],[98,10,98,11],[97,1,97,2],[97,3,97,4],[97,5,97,7],[97,8,97,9],[97,10,97,11],[96,1,96,2],[96,3,96,4],[96,5,96,7],[96,8,96,9],[96,10,96,11],[95,1,95,2],[95,3,95,4],[95,5,95,7],[95,8,95,9],[95,10,95,11],[94,1,94,2],[94,3,94,4],[94,5,94,7],[94,8,94,9],[94,10,94,11],[93,1,93,2],[93,3,93,4],[93,5,93,7],[93,8,93,9],[93,10,93,11],[92,1,92,2],[92,3,92,4],[92,5,92,7],[92,8,92,9],[92,10,92,11],[91,1,91,2],[91,3,91,4],[91,5,91,7],[91,8,91,9],[91,10,91,11],[90,1,90,2],[90,3,90,4],[90,5,90,7],[90,8,90,9],[90,10,90,11],[89,1,89,2],[89,3,89,4],[89,5,89,7],[89,8,89,9],[89,10,89,11],[88,1,88,2],[88,3,88,4],[88,5,88,7],[88,8,88,9],[88,10,88,11],[87,1,87,2],[87,3,87,4],[87,5,87,7],[87,8,87,9],[87,10,87,11],[86,1,86,2],[86,3,86,4],[86,5,86,7],[86,8,86,9],[86,10,86,11],[85,1,85,2],[85,3,85,4],[85,5,85,7],[85,8,85,9],[85,10,85,11],[84,1,84,2],[84,3,84,4],[84,5,84,7],[84,8,84,9],[84,10,84,11],[83,1,83,2],[83,3,83,4],[83,5,83,7],[83,8,83,9],[83,10,83,11],[82,1,82,2],[82,3,82,4],[82,5,82,7],[82,8,82,9],[82,10,82,11],[81,1,81,2],[81,3,81,4],[81,5,81,7],[81,8,81,9],[81,10,81,11],[80,1,80,2],[80,3,80,4],[80,5,80,7],[80,8,80,9],[80,10,80,11],[79,1,79,2],[79,3,79,4],[79,5,79,7],[79,8,79,9],[79,10,79,11],[78,1,78,2],[78,3,78,4],[78,5,78,7],[78,8,78,9],[78,10,78,11],[77,1,77,2],[77,3,77,4],[77,5,77,7],[77,8,77,9],[77,10,77,11],[76,1,76,2],[76,3,76,4],[76,5,76,7],[76,8,76,9],[76,10,76,11],[75,1,75,2],[75,3,75,4],[75,5,75,7],[75,8,75,9],[75,10,75,11],[74,1,74,2],[74,3,74,4],[74,5,74,7],[74,8,74,9],[74,10,74,11],[73,1,73,2],[73,3,73,4],[73,5,73,7],[73,8,73,9],[73,10,73,11],[72,1,72,2],[72,3,72,4],[72,5,72,7],[72,8,72,9],[72,10,72,11],[71,1,71,2],[71,3,71,4],[71,5,71,7],[71,8,71,9],[71,10,71,11],[70,1,70,2],[70,3,70,4],[70,5,70,7],[70,8,70,9],[70,10,70,11],[69,1,69,2],[69,3,69,4],[69,5,69,7],[69,8,69,9],[69,10,69,11],[68,1,68,2],[68,3,68,4],[68,5,68,7],[68,8,68,9],[68,10,68,11],[67,1,67,2],[67,3,67,4],[67,5,67,7],[67,8,67,9],[67,10,67,11],[66,1,66,2],[66,3,66,4],[66,5,66,7],[66,8,66,9],[66,10,66,11],[65,1,65,2],[65,3,65,4],[65,5,65,7],[65,8,65,9],[65,10,65,11],[64,1,64,2],[64,3,64,4],[64,5,64,7],[64,8,64,9],[64,10,64,11],[63,1,63,2],[63,3,63,4],[63,5,63,7],[63,8,63,9],[63,10,63,11],[62,1,62,2],[62,3,62,4],[62,5,62,7],[62,8,62,9],[62,10,62,11],[61,1,61,2],[61,3,61,4],[61,5,61,7],[61,8,61,9],[61,10,61,11],[60,1,60,2],[60,3,60,4],[60,5,60,7],[60,8,60,9],[60,10,60,11],[59,1,59,2],[59,3,59,4],[59,5,59,7],[59,8,59,9],[59,10,59,11],[58,1,58,2],[58,3,58,4],[58,5,58,7],[58,8,58,9],[58,10,58,11],[57,1,57,2],[57,3,57,4],[57,5,57,7],[57,8,57,9],[57,10,57,11],[56,1,56,2],[56,3,56,4],[56,5,56,7],[56,8,56,9],[56,10,56,11],[55,1,55,2],[55,3,55,4],[55,5,55,7],[55,8,55,9],[55,10,55,11],[54,1,54,2],[54,3,54,4],[54,5,54,7],[54,8,54,9],[54,10,54,11],[53,1,53,2],[53,3,53,4],[53,5,53,7],[53,8,53,9],[53,10,53,11],[138,10,138,11],[203,1,203,14],[208,9,208,11],[208,3,208,5],[140,1,140,2],[140,3,140,4],[140,5,140,7],[140,8,140,9],[140,10,140,11],[144,1,144,2],[144,3,144,4],[141,5,141,7],[141,8,141,9],[144,5,144,7],[144,8,144,9],[144,10,144,11],[143,1,143,2],[141,10,141,11],[50,8,50,9],[50,10,50,11],[219,2,219,13],[221,2,221,13],[51,8,51,9],[217,3,217,13],[218,2,218,13],[220,2,220,13],[216,2,216,13],[145,1,145,14],[50,5,50,7],[52,1,52,2],[52,3,52,4],[52,5,52,7],[52,8,52,9],[52,10,52,11],[209,2,209,13],[139,5,139,7],[139,8,139,9],[139,10,139,11],[138,1,138,2],[138,3,138,4],[138,5,138,7],[138,8,138,9],[39,1,39,14],[40,1,40,2],[40,3,40,4],[40,5,40,7],[40,8,40,9],[40,10,40,11],[40,13,40,14],[41,1,41,2],[41,3,41,4],[41,5,41,7],[41,8,41,9],[41,10,41,11],[42,1,42,2],[42,3,42,4],[42,5,42,7],[42,8,42,9],[42,10,42,11],[43,1,43,2],[43,3,43,4],[49,1,49,2],[44,3,44,4],[44,5,44,7],[44,8,44,9],[44,10,44,11],[45,1,45,2],[45,3,45,4],[45,5,45,7],[45,8,45,9],[45,10,45,11],[43,10,43,11],[48,8,48,9],[48,10,48,11],[49,8,49,9],[49,10,49,11],[46,1,46,2],[46,3,46,4],[2,1,2,3],[3,2,3,5],[4,2,4,5],[5,1,5,5],[139,1,139,2],[139,3,139,4],[48,1,48,2],[48,3,48,4],[48,5,48,7],[137,1,137,2],[137,3,137,4],[137,5,137,7],[49,3,49,4],[49,5,49,7],[51,1,51,2],[51,3,51,4],[51,5,51,7],[44,1,44,2],[2,7,5,14],[37,12,37,14],[37,1,37,11],[51,10,51,11],[50,1,50,2],[50,3,50,4],[46,5,46,7],[46,8,46,9],[46,10,46,11],[47,1,47,2],[47,3,47,4],[47,5,47,7],[47,8,47,9],[47,10,47,11],[43,5,43,7],[43,8,43,9]]}
[]
[null,{"$f":"Utilitaire!E8","v":"Plan d'action 2013-2020 sur les changements climatiques"},null,null,null,null,null,"Conseils de rédaction :",null,null,null,null,"Informations en date du :",{"$f":"Utilitaire!G6","v":"2022-03-31"}]
[null,{"$f":"\"Action \" & Accueil!D58","v":"Action en cours"},null,null,null,null,null,"- Veuillez compléter la section \"Évaluation de l'action\" (OBLIGATOIRE) - ligne 204 (Fin du PACC)\n\n- Cet onglet sera pour usage interne seulement, il ne sera pas publié.\n\n- Des bulles commentaires dans chacun des titres vous aideront à remplir adéquatement les différentes colonnes.\n\n- Les cases de la section « Évaluation de l'action » sont limitées à 3000 caractères. "]
[null,{"$f":"Accueil!D55","v":"11.5"},{"$f":"Accueil!E55","v":"Investissements en infrastructures écoresponsables"}]
[null,"Ministère porteur:",{"$f":"Accueil!$D$65","v":"MEQ"}]
[null,"Évaluation"]
[null,"Informations en date du :",null,"2022-03-31"]
[]
[]
[]
[]
[]
[]
[]
[]
[]
[]
[]
[]
[]
[]
[]
[]
[]
[]
[]
[]
[]
[]
[]
[]
[]
[]
[]
[]
[]
[]
[null,"Est-ce qu'une production d'un rapport d'évaluation complet est prévue dans le cadre de cette action : "]
[]
[null,"Liste des livrables"]
[null,"Titre du document",null,"Date du document",null,"Type de document",null,null,"Date prévue de transmission au BECC",null,"Date réelle de transmission au BECC",null,"Référence","Commentaires"]
[]
[]
[]
[]
[]
[]
[]
[]
[]
[]
[]
[]
[]
[]
[]
[]
[]
[]
[]
[]
[]
[]
[]
[]
[]
[]
[]
[]
[]
[]
[]
[]
[]
[]
[]
[]
[]
[]
[]
[]
[]
[]
[]
[]
[]
[]
[]
[]
[]
[]
[]
[]
[]
[]
[]
[]
[]
[]
[]
[]
[]
[]
[]
[]
[]
[]
[]
[]
[]
[]
[]
[]
[]
[]
[]
[]
[]
[]
[]
[]
[]
[]
[]
[]
[]
[]
[]
[]
[]
[]
[]
[]
[]
[]
[]
[]
[]
[]
[]
[]
[]
[]
[]
[]
[null,"Ajouter une ligne"]
[]
[]
[]
[]
[]
[]
[]
[]
[]
[]
[]
[]
[]
[]
[]
[]
[]
[]
[]
[]
[]
[]
[]
[]
[]
[]
[]
[]
[]
[]
[]
[]
[]
[]
[]
[]
[]
[]
[]
[]
[]
[]
[]
[]
[]
[]
[]
[]
[]
[]
[]
[]
[]
[]
[]
[]
[]
[null,"Évaluation de l'action"]
[]
[]
[]
[]
[null,null,"Début : ",{"$f":"Accueil!$D$68","v":"2018-04-27"},null,null,null,null,"Fin : ",{"$f":"Accueil!$K$68","v":"2025-12-31"}]
[null,"Résultats attendus : ",{"$f":"IF(LEN(Description!C49)>0,Description!C49,\"\")","v":"Réduction des émissions de GES des bâtiments du réseau des centres de services scolaires et des commissions scolaires et l'amélioration de leur consommation énergétique."}]
[null,"Résultats obtenus \n(Cibles, indicateurs et description) : ",{"$f":"IF(COUNTA(Indicateurs!B25:B45)=0,0,AVERAGE(Indicateurs!$T$25:$T$45))","v":0.15952380952380951},{"$f":"IF(LEN(Description!C50)>0,Description!C50,\"\")","v":"Dans la dernière année, considérant l'année budgétaire 2021-2022  (1er avril 2021 au 31 mars 2022), les travaux de 25 projets ont été finalisés. Les réductions annuelles prévues pour ces projets est de 4,3 kT de CO2eq annuellement. "}]
[null,null,null,{"$f":"IF(LEN(Description!C51)>0,Description!C51,\"\")","v":"Depuis son lancement le 27 avril 2018, l'action a permis d'autoriser la réalisation de 353 projets, pour un total de plus de 86,24M$. Ces projets touchent 516 bâtiments répartis dans plus de 127 municipalités."}]
[]
[]
[]
[]
[null,"Type d'évaluation : ","En cours d'action"]
[null,"Est-ce que les résultats obtenus dans le cadre de l'action sont satisfaisants?","Oui","Les résultats attendus en matière de réduction ou d'évitement de GES sont très prometteurs. Avec un engament financcier de d'environ 86,24M$, il est prévu une réduction / évitement  d'environ 38 320 tonnes de CO2 éq. Ce qui représente dépasse la cible de 22 754 t CO2 éq à atteindre."]
[null,"Quelles sont les améliorations possibles pour le futur?","Il serait pertinent que le programme puisse permettre aussi le financement de la mise œuvre des mesures visant l'ADAPTATION AUX EFFETS DES CHANGEMENTS CLIMATIQUES comme la surchauffe dans les bâtiments scolaires et la qualité de l'air intérieur par l'amélioration de paramètres de confort comme le taux de CO2, la température et le taux d'humidité relative pour favoriser la réussite éducative."]
[null,"Quels sont les forces et les points positifs de l'action?","1. Permet de réduire ou d'éviter les émissions de GES des bâtiments du réseau des centres de serices scolaires (CSS) et des commissions scolaires (CS)\n2. Permet de renover les chaufferies des bâtiments des  CSS et CS dans lesquels les projets sont réalisés\n3. Permet d'améliorer l'efficacité énergétique des bâtiments dans lesquels les projets sont réalisés par l'installation d'équipements plus performants et moins énergivores \n4. Permet dans certains cas des économies sur les factures énergétiques"]
[null,"Quelle est votre recommandation quant à la poursuite de cette action? ","Reconduire"]
[null,"Autres commentaires"]

{"sheet":"Commentaires","index":7,"n_rows":33,"n_cols":20,"rows_kept":33,"cut":false,"hidden":true,"merged":[[26,1,26,11],[28,12,28,13],[28,1,28,11],[33,12,33,13],[33,1,33,11],[31,12,31,13],[32,12,32,13],[29,1,29,11],[27,1,27,11],[24,12,24,13],[25,12,25,13],[26,12,26,13],[27,12,27,13],[29,12,29,13],[34,1,34,11],[34,12,34,13],[31,1,31,11],[32,1,32,11],[30,1,30,11],[30,12,30,13],[24,1,24,11],[3,2,3,5],[5,1,5,5],[25,1,25,11],[2,1,2,2],[4,2,4,5],[19,1,19,3],[19,4,19,5],[1,7,1,11],[2,7,5,17],[23,1,23,11],[23,12,23,13],[1,1,1,5],[1,15,1,16]]}
[]
[null,{"$f":"Utilitaire!E8","v":"Plan d'action 2013-2020 sur les changements climatiques"},null,null,null,null,null,null,null,null,null,null,null,null,null,null,null,null,null,"COF"]
[null,{"$f":"\"Action \" & Accueil!D58","v":"Action en cours"},null,null,null,null,null,null,null,null,null,null,null,null,null,null,null,null,null,"Frais"]
[null,{"$f":"Accueil!D55","v":"11.5"},{"$f":"Accueil!E55","v":"Investissements en infrastructures écoresponsables"},null,null,null,null,null,null,null,null,null,null,null,null,null,null,null,null,"ETC"]
[null,"Ministère porteur:",{"$f":"Accueil!$D$65","v":"MEQ"},null,null,null,null,null,null,null,null,null,null,null,null,null,null,null,null,"Détail des projets"]
[null,"Commentaires",null,null,null,null,null,null,null,null,null,null,null,null,null,null,null,null,null,"Détail des projets (GES)"]
[null,null,null,null,null,null,null,null,null,null,null,null,null,null,null,null,null,null,null,"Bilan GES"]
[null,null,null,null,null,null,null,null,null,null,null,null,null,null,null,null,null,null,null,"Indicateurs"]
[null,null,null,null,null,null,null,null,null,null,null,null,null,null,null,null,null,null,null,"Toutes-Autre"]
[]
[]
[null,null,null,null,null,null,null,null,null,null,null,null,null,null,null,null,null,null,null,"2013-2014"]
[null,null,null,null,null,null,null,null,null,null,null,null,null,null,null,null,null,null,null,"2014-2015"]
[null,null,null,null,null,null,null,null,null,null,null,null,null,null,null,null,null,null,null,"2015-2016"]
[null,null,null,null,null,null,null,null,null,null,null,null,null,null,null,null,null,null,null,"2016-2017"]
[null,null,null,null,null,null,null,null,null,null,null,null,null,null,null,null,null,null,null,"2017-2018"]
[null,null,null,null,null,null,null,null,null,null,null,null,null,null,null,null,null,null,null,"2018-2019"]
[null,null,null,null,null,null,null,null,null,null,null,null,null,null,null,null,null,null,null,"2019-2020"]
[null,null,null,null,null,null,null,null,null,null,null,null,null,null,null,null,null,null,null,"2020-2021"]
[null,"Informations en date du :",null,null,"2022-03-31",null,null,null,null,null,null,null,null,null,null,null,null,null,null,"2021-2022"]
[null,null,null,null,null,null,null,null,null,null,null,null,null,null,null,null,null,null,null,"2022-2023"]
[null,null,null,null,null,null,null,null,null,null,null,null,null,null,null,null,null,null,null,"2023-2024"]
[]
[null,"Commentaires",null,null,null,null,null,null,null,null,null,null,"Section concernée",null,"Année","Exercice","nom Commentateur ","courriel Commentateur "]
[null,"",null,null,null,null,null,null,null,null,null,null,"",null,null,"","",""]
[null,"",null,null,null,null,null,null,null,null,null,null,"",null,null,"","",""]
[null,null,null,null,null,null,null,null,null,null,null,null,"",null,null,null,""]
[]
[]
[]
[]
[null,"",null,null,null,null,null,null,null,null,null,null,"",null,null,"","","",null,"juin"]
[null,"",null,null,null,null,null,null,null,null,null,null,"",null,null,"","","",null,"décembre"]

{"sheet":"Validation","index":8,"n_rows":85,"n_cols":7,"rows_kept":85,"cut":false,"hidden":true,"merged":[[3,3,3,6],[3,1,3,2],[17,1,17,5],[18,1,18,4],[4,3,4,6],[7,1,7,3],[7,4,7,5],[21,5,22,5],[23,5,24,5],[25,5,26,5],[26,1,26,4],[22,1,22,4],[24,1,24,4],[1,1,1,6],[19,1,19,4],[31,1,31,4],[28,1,28,5],[47,1,47,5],[30,1,30,4],[16,1,16,6],[21,1,21,4],[23,1,23,4],[25,1,25,4],[20,1,20,5],[27,1,27,4],[29,1,29,4],[5,1,5,6],[2,1,2,2],[4,1,4,2],[49,1,49,4],[34,1,34,4],[48,1,48,4],[48,5,49,5],[32,1,32,4],[33,1,33,4],[35,1,35,4],[36,1,36,5],[41,1,41,4],[25,6,26,6],[48,6,49,6],[51,6,52,6],[57,1,57,4],[37,1,37,4],[43,1,43,4],[38,1,38,4],[39,1,39,4],[40,1,40,4],[50,1,50,4],[51,1,51,4],[52,1,52,4],[56,1,56,5],[51,5,52,5],[54,1,54,4],[55,1,55,4],[53,1,53,4],[59,1,59,5],[60,1,60,4],[61,1,61,4],[8,1,8,6],[13,1,13,6],[14,1,14,6],[46,1,46,4],[45,1,45,4],[44,1,44,4],[45,6,46,6],[45,5,46,5],[42,1,42,5],[58,1,58,4],[21,6,22,6],[23,6,24,6]]}
[]
[null,{"$f":"Utilitaire!E8","v":"Plan d'action 2013-2020 sur les changements climatiques"}]
[null,{"$f":"\"Action \" & Accueil!D58","v":"Action en cours"}]
[null,{"$f":"Accueil!D55","v":"11.5"}]
[null,"Ministère porteur:",null,{"$f":"Accueil!$D$65","v":"MEQ"},{"$f":"Accueil!$D$65","v":"MEQ"}]
[null,"Rapport de validation de la fiche de suivi"]
[]
[null,"Conseils de rédaction : ",null,null,"Informations en date du :",null,{"$f":"Utilitaire!G6","v":"2022-03-31"}]
[null,"\n\n'- Cet onglet ne sera pas diffusé.\n\n- Nous apprécierions vos commentaires constructifs par rapport aux nouvelles fiches de suivi. La case B15 est réservée à cet effet.\n\n- Complétez la grille de validation ci-dessous (ligne 19) en cochant chaque point. Vous pouvez inscrire des commentaires à l'endroit prévu à cet effet."]
[]
[]
[]
[]
[null,"Votre appréciation de la fiche de suivi et suggestions pour les prochains exercices"]
[]
[]
[null,"Grille de validation de la fiche de suivi"]
[null,"Fin du PACC",null,null,null,null,"Commentaires"]
[null,"Avez-vous complété le tableau de la ligne 204 de l'onglet Évaluation?"]
[null,"Avez-vous saisi tous vos engagements à SAGIR (vous avez jusqu'au 31 mai)?"]
[null,"Onglet Accueil",null,null,null,null,"Commentaires"]
[null,"Vérifier que toutes les cases sont remplies."]
[null,"Les cases non remplies s'affichent en orange\nLes lignes 69 à 73 seront masquées pour la publication."]
[null,"Vérifier que la part de financement est écrite sous forme de pourcentage (ex. : 60 %).",null,null,null,null,"% variable en fonction des projets."]
[null,"Inscrire un nombre entre 0 et 100 suivi du symbole \"%\". Si le pourcentage est variable, inscrire \"Variable\"."]
[null,"Vérifier que le statut de l'action est toujours conforme avec son évolution."]
[null,"Utiliser l'information des onglets \"Description\" et Détail des projets\" afin que le statut soit conforme avec\n l'évolution de l'action."]
[null,"Vérifier, s'il y a lieu, que le nom du programme est inscrit."]
[null,"Onglet Description",null,null,null,null,"Commentaires"]
[null,"Vérifier que toutes les cases obligatoires sont remplies."]
[null,"Vérifier que tous les éléments pertinents en lien avec le COVID-19 sont inscrits au tableau prévu à cet effet."]
[null,"Vérifier que les éléments de classification de l'action sont sélectionnés à partir du menu déroulant."]
[null,"Vérifier que l'entièreté du texte est lisible. "]
[null,"Vérifier que l'échéancier dans la section \"Mise en œuvre\" est inscrit."]
[null,"Vérifier que l'état d'avancement est sélectionné à partir du menu déroulant."]
[null,"Vérifier que le tableau \"Plans, stratégies, politiques incluant la mise en œuvre de cette action\" est rempli."]
[null,"Onglet Détail des projets",null,null,null,null,"Commentaires"]
[null,"Vérifier que les informations confidentielles sont inscrites en bleu."]
[null,"Transmettre au BECC le rapport des résultats, si un projet est terminé."]
[null,"Vérifier le total des dépenses réelles de tous les projets correspond à celui inscrit dans les COF pour chaque année financière complétée.",null,null,null,null,"Divergence à la suite de l'exercice de mise à jour des données au 31 mars 2022"]
[null,"Vérifier que le total des dépenses réelles et prévues pour un projet n'excède pas le montant engagé."]
[null,"Vérifier l'utilisation des nouveaux statuts de projets pour les projets affectés par le COVID-19"]
[null,"Onglet GES",null,null,null,null,"Commentaires"]
[null,"Vérifier que le total des réductions de GES correspond aux données de l'onglet \"Indicateurs\"."]
[null,"Vérifier que les deux cases de la ligne 20 sont bien remplies."]
[null,"Vérifier que le coût la tonne et la durée du projet sont bien indiqués pour tous les projets ayant soit un potentiel de réduction ou des réductions réelles (colonnes H et K)."]
[null,"La méthode de calcul du coût la tonne doit respecter les indications en commentaire dans la cellule H23."]
[null,"Onglet Indicateurs",null,null,null,null,"Commentaires"]
[null,"Vérifier la cohérence des cibles, des résultats et des résultats à comparer avec les cibles.\n (même unité de mesure, évolution des résultats annuels)"]
[null,"S'il y a lieu, utiliser la colonne \"Commentaires sur les résultats\" afin de fournir davantage d'informations."]
[null,"Vérifier que les commentaires à l'intention du BECC qui ne sont pas pour diffusion sont inscrits en bleu."]
[null,"Vérifier qu'il y a des résultats pour tous les indicateurs. Inscrire un 0 comme résultat pour les \n indicateurs ne présentant pas de résultats."]
[null,"Si les résultats ne sont pas disponibles, vous devez inscrire un commentaire dans la colonne prévue\n à cet effet indiquant à quel moment ils seront disponibles."]
[null," Transmettre au BECC pour approbation une annexe 4 (fiche-indicateur) si vous désirez qu'un indicateur soit ajouté.",null,null,null,null,"N/A"]
[null,"Vérifier que le tableau \"PRÉVISIONS DES RETOMBÉES SUR LES RÉDUCTIONS DES ÉMISSIONS DE GES\" est bien rempli si votre action vise la réduction des GES."]
[null,"Vérifier que le tableau \"ADAPTATION AUX EFFETS DES CHANGEMENTS CLIMATIQUES\" est bien rempli si votre action vise l'adaptation aux changements climatiques."]
[null,"Onglet Commentaires",null,null,null,null,"Commentaires"]
[null,"Vérifier que les commentaires de l'exercice précédent s'appliquent toujours. Retirer tous les\n commentaires qui ne s'appliquent plus."]
[null,"Inscrire en noir les commentaires nécessaires à afficher lors de la publication des fiches"]
[null,"Onglet Évaluation",null,null,null,null,"Commentaires"]
[null,"Remplir et mettre à jour la liste des livrables. Veuillez transmettre tout livrable attendu au BECC avec votre fiche de suivi."]
[null,"Veuillez remplir la section Évaluation de l'action. Obligatoire pour la fin du PACC."]
[]
[]
[]
[]
[]
[]
[]
[]
[]
[]
[]
[]
[]
[]
[]
[]
[]
[]
["Code de couleur","Onglet concerné","no ligne","Description de la problématique","No d'erreur",null,"Commentaires"]
[null,"Description",null,"Les informations \"Description, objectif, clientèle, critères d'admissibilité, processus de suivi de l'action, résultats attendus, résultats obtenus dans la dernière année, résultats obtenus, finalité, catégorie\" sont manquantes dans l'onglet Description.",18]
[null,"détail des projets",null,"Aucun projet n'est mentionné dans la fiche. Cette situation est acceptable seulement si l'action n'est pas encore lancée (statut non démarrée ou en élaboration).",12]
[null,"GES",null,"Les informations \"Potentiel de réduction des GES, réduction réelle des émissions de GES\" sont manquantes dans l'onglet GES.",18]
[null,"indicateurs",null,"Aucun indicateur n'est inscrit pour cette action. Acceptable seulement si l'action n'est pas démarrée.",20]

{"sheet":"Modalités de fin du PACC","index":9,"n_rows":23,"n_cols":5,"rows_kept":23,"cut":false,"hidden":true,"merged":[[1,1,1,13],[22,2,22,13],[3,2,3,3],[4,2,4,3],[5,2,5,3],[7,2,7,3],[6,2,6,3],[8,1,8,13],[17,2,17,13],[19,2,19,13],[20,2,20,13],[21,2,21,13],[18,3,18,13],[12,1,12,13],[14,2,14,13],[15,2,15,13],[16,2,16,13],[13,1,13,12]]}
[]
[null,"Échéancier de la fin du Plan d'action 2013-2020 sur les changements climatiques"]
[]
[null,"-","2021-03-31",null,"Fin du PACC. Vous ne pouvez plus prendre de nouveaux engagements en vertu des actions du PACC."]
[null,"-","2021-05-31",null,"Échéance pour saisir dans SAGIR les engagements (lettre d'octroi suffisante) pris avant le 31 mars."]
[null,"-","2021-12-31",null,"Échéance pour signer les conventions de subventions se rapportant aux engagements saisis à SAGIR."]
[null,"-","2022-12-31",null,"Fin des projets réalisés à l'interne des Partenaires"]
[null,"-","2025-12-31",null,"Fin des projets"]
[null,"Lorsque tous les projets liés à une action seront terminés et que tous les résultats liés à l'action seront colligés, l'action sera inscrite comme étant « terminée » et sera retirée du suivi semestriel."]
[]
[]
[]
[null,"Modalités détaillées de la fin du PACC"]
[null,"(Ces modalités sont annexées à l'entente administrative concernant la mise en œuvre du PACC et concordent avec l'échéancier ci-dessus)"]
[null,null,"1. Les enveloppes budgétaires 2013-2020 des actions et sous-actions (Annexe 2 de l’ENTENTE) doivent être respectées en tout temps."]
[null,null,"2. Tous les engagements (c.-à-d. une dépense jugée admissible et autorisée) doivent être pris avant le 31 mars 2021. Après cette date, les engagements pris ne peuvent plus être bonifiés."]
[null,null,"3. Tous les engagements pris avant le 31 mars 2021 (par exemple : lettre d’octroi de subvention signée par vos autorités, contrat, convention ou entente signés, décret ou CT approuvé) doivent être saisis dans SAGIR au plus tard le 31 mai 2021. Une nouvelle version de la « Procédure de comptabilisation des dépenses portées au débit du Fonds d’électrification et de changements climatiques par les ministères et organismes partenaires » sera transmise ultérieurement lors de la fermeture de la fin d’année financière 2020-2021 afin de tenir compte de la fin du PACC."]
[null,null,"4. Les conventions d’aide financière qui ne pourront être signées avant le 31 mars 2021 pourront être reconnues comme engagées seulement si le Partenaire transmet une lettre d’octroi de subvention au bénéficiaire avant cette date :"]
[null,null,null,"· La lettre d’octroi devra mentionner le montant total de la subvention avec le détail des versements estimés par année financière et devra préciser qu’elle est conditionnelle à une décision du Conseil des ministres ou du Conseil du trésor lorsqu’applicable. Enfin, la lettre devra préciser que la subvention est conditionnelle à la signature d’une convention de subvention au plus tard le 31 décembre 2021."]
[null,null,"5. Aucun engagement ne pourra s’échelonner au-delà du 31 décembre 2025."]
[null,null,"6. Les frais d’administration (dépenses de rémunération et de fonctionnement) nécessaires au suivi de conventions d’aide financière ou de contrats pourront être imputés au FECC jusqu’au terme des projets ou au plus tard au 31 décembre 2025."]
[null,null,"7. Les suivis se poursuivront tant que les actions ne seront pas terminées."]
[null,null,"8. Aucune dépense pour les projets réalisés à l’interne (projets majoritairement réalisés en régie interne par le personnel du Partenaire) ne pourra être effectuée au-delà du 31 mars 2022."]

{"sheet":"Prochain Exercice-Commentaire","index":10,"n_rows":11,"n_cols":6,"rows_kept":11,"cut":false,"hidden":true,"merged":[[6,1,6,5],[5,3,5,4],[1,1,2,5],[3,1,4,2],[3,4,3,5],[4,4,4,5],[5,1,5,2]]}
[]
[null,{"$f":"Utilitaire!E8","v":"Plan d'action 2013-2020 sur les changements climatiques"}]
[]
[null,"Commentaires",null,null,{"$f":"Accueil!D65 & \" - \" &Accueil!D53","v":"MEQ - 11.5"}]
[null,null,null,null,{"$f":"\"Action \" & Accueil!D58","v":"Action en cours"}]
[null,"Conseils de rédaction :",null,"Informations en date du :",null,{"$f":"Utilitaire!G6","v":"2022-03-31"}]
[null,"- Veuillez inscrire ici tout commentaire pour prochain exercice"]
[]
[]
[null,"Onglet de la fiche","Case","Commentaire"]
[null,"Évaluation","M38","Veuillez préciser si un rapport final est prévu.","Dany"]